Workbook

Sheet invullijst
A1: 1 | B1: Sint Ambrosius Baardwijk | C1: Baardwijk | F1: Organistatie | H1: jaar | K1: nr
A2: 2 | B2: St. Crispinus & Crispinianus Besoijen | C2: Besoijen | H2: 2024 - 2025 | K2: 3
A3: 3 | B3: O.L.V. Schuts Elshout | C3: Elshout | F3: =IF(VLOOKUP($K2,invullijst!$A$1:$C$6,2,FALSE)="","",VLOOKUP($K2,invullijst!$A$1:$C$6,2,FALSE)) -> O.L.V. Schuts Elshout
A4: 4 | B4: Sint Ambrosius Haarsteeg | C4: Haarsteeg | J4: versie 2020-1
A5: 5 | B5: Sint Jan Baptist Kaatsheuvel | C5: Kaatsheuvel
A8: NR | B8: NAAM | C8: PLAATS | D8: dis. | E8: € | F8: W 1 | G8: W 2 | H8: W 3 | I8: W 4 | J8: W 5 | K8: kampk
A10: 0 | B10: 0 | C10: 0 | D10: 0 | E10: 0 | F10: 0 | G10: 0 | H10: 0 | I10: 0 | J10: 0 | K10: 0
A11: 0 | B11: 0 | C11: 0 | D11: 0 | E11: 0.00 | F11: 0 | G11: 0 | H11: 0 | I11: 0 | J11: 0 | K11: 0
A12: 101 | B12: Antwan van Buul | C12: Baardwijk | D12: vr | F12: x | G12: 68 | H12: 67 | I12: 60 | J12: 61 | K12: 36
A13: 102 | B13: John de Jong | C13: Baardwijk | D13: vr | F13: x | G13: 73 | H13: 63 | I13: 60 | J13: 62 | K13: 22
A14: 103 | B14: Norbert van Buul | C14: Baardwijk | D14: vr | F14: x | G14: 55 | H14: 65 | I14: 63 | J14: 59 | K14: 28
A15: 104 | B15: Peter Brekelmans | C15: Baardwijk | D15: 65+ | F15: x | G15: 79 | H15: 73 | I15: 84 | J15: x | K15: 37
A16: 105 | B16: René Klijn | C16: Baardwijk | D16: vr | F16: x | G16: 85 | H16: 80 | I16: 80 | J16: 88 | K16: 42
A17: 106 | B17: René Pullens | C17: Baardwijk | D17: vr | F17: x | G17: 76 | H17: 82 | I17: 77 | J17: 77 | K17: 41
A18: 107 | B18: Cees Coppens | C18: Baardwijk | D18: 65+ | F18: x | G18: 86 | H18: 80 | I18: 82 | J18: 75 | K18: 37
A19: 108 | B19: Bram Pullens | C19: Baardwijk | D19: vr | F19: x | G19: 77 | H19: 78 | I19: 84 | J19: 80 | K19: 35
A20: 109 | B20: Gijs Pullens | C20: Baardwijk | D20: vr | F20: x | G20: 83 | H20: 83 | I20: 75 | J20: 70 | K20: 35
A21: 112 | B21: Toon van Buul | C21: Baardwijk | D21: 65+ | F21: x | G21: 58 | H21: x | I21: 67 | J21: 64 | K21: 20
A22: 202 | B22: Arco van Kuijk | C22: Besoijen | D22: vr | F22: 73 | G22: 81 | H22: 81 | I22: x | J22: 76 | K22: 31
A23: 203 | B23: Frank van den Houdt | C23: Besoijen | D23: vr | F23: 86 | G23: 84 | H23: 79 | I23: x | J23: 75 | K23: 37
A24: 204 | B24: Harry de Louw | C24: Besoijen | D24: vr | F24: 80 | G24: 85 | H24: 80 | I24: x | J24: 74 | K24: 39
A25: 205 | B25: Jos v/d Snepscheut | C25: Besoijen | D25: vr | F25: 75 | G25: 80 | H25: 73 | I25: x | J25: 74 | K25: 42
A26: 206 | B26: Kees van Hulten | C26: Besoijen | D26: vr | F26: 73 | G26: 83 | H26: 78 | I26: x | J26: x | K26: 41
A27: 207 | B27: Max de Louw | C27: Besoijen | D27: vr | F27: 89 | G27: 88 | H27: 92 | I27: x | J27: 89 | K27: 42
A28: 208 | B28: Erin van Hulten | C28: Besoijen | D28: vr | F28: 77 | G28: 82 | H28: 87 | I28: x | J28: 78 | K28: 41
A29: 209 | B29: René van Kuijk | C29: Besoijen | D29: vr | F29: 81 | G29: 82 | H29: 83 | I29: x | J29: 81 | K29: 39
A30: 210 | B30: Sander Oome | C30: Besoijen | D30: vr | F30: 91 | G30: 87 | H30: 90 | I30: x | J30: 90 | K30: 40
A31: 211 | B31: Ad van den houdt | C31: Besoijen | D31: 65+ | F31: 92 | G31: 91 | H31: 89 | I31: x | J31: x | K31: 46
A32: 212 | B32: René Duquesnoy | C32: Besoijen | D32: 65+ | F32: 87 | G32: 80 | H32: 89 | I32: x | J32: 86 | K32: 45
A33: 213 | B33: Roland van Delft | C33: Besoijen | D33: vr | F33: 74 | G33: 71 | H33: 69 | I33: x | J33: 71 | K33: 35
A34: 214 | B34: Andre de Vaan | C34: Besoijen | D34: 65+ | F34: 87 | G34: 86 | H34: 89 | I34: x | J34: 90 | K34: 44
A35: 216 | B35: Pieter Laghuwitz | C35: Besoijen | D35: vr | F35: 87 | G35: 87 | H35: 86 | I35: x | J35: 90 | K35: 45
A36: 217 | B36: Hans Laghuwitz | C36: Besoijen | D36: vr | F36: 76 | G36: 81 | H36: 79 | I36: x | J36: 72 | K36: 35
A37: 218 | B37: Jacob van de Werken | C37: Besoijen | D37: 65+ | F37: 97 | G37: 97 | H37: 94 | I37: x | J37: 91 | K37: 46
A38: 219 | B38: Frans de Bont | C38: Besoijen | D38: 65+ | F38: 95 | G38: 93 | H38: 94 | I38: x | J38: 96 | K38: 46
A39: 220 | B39: Kees Vos | C39: Besoijen | D39: 65+ | F39: 90 | G39: 93 | H39: 91 | I39: x | J39: 90 | K39: 46
A40: 221 | B40: Mees Huijben | C40: Besoijen | D40: J | F40: 63 | G40: 79 | H40: 74 | I40: x | J40: 75 | K40: 36
A41: 222 | B41: Nick de Vaan | C41: Besoijen | D41: vr | F41: 72 | G41: 75 | H41: 70 | I41: x | J41: 82
A42: 223 | B42: Jänis Jakobsons | C42: Besoijen | D42: vr | F42: 77 | G42: 81 | H42: 84 | I42: x | J42: 73 | K42: 27
A43: 301 | B43: Arjen van Assem disp | C43: Elshout | D43: 65+ | F43: 89 | G43: 90 | H43: 89 | I43: 92 | J43: x | K43: 45
A44: 302 | B44: Freek de Jong | C44: Elshout | D44: vr | F44: 88 | G44: 90 | H44: 80 | I44: 88 | J44: x | K44: 40
A45: 304 | B45: Henk Bruurmijn | C45: Elshout | D45: vr | F45: 80 | G45: 62 | H45: 78 | I45: 82 | J45: x | K45: 43
A46: 305 | B46: Johan Klerx | C46: Elshout | D46: vr | F46: 84 | G46: 85 | H46: 86 | I46: 84 | J46: x | K46: 42
A47: 306 | B47: Ron Groot | C47: Elshout | D47: vr | F47: 76 | G47: 81 | H47: 89 | I47: 82 | J47: x | K47: 39
A48: 307 | B48: Bert van Engelen | C48: Elshout | D48: 65+ | F48: 95 | G48: 95 | H48: 93 | I48: 94 | J48: x | K48: 44
A49: 309 | B49: René de Jong | C49: Elshout | D49: 65+ | F49: 87 | G49: 81 | H49: 88 | I49: 88 | J49: x | K49: 39
A50: 310 | B50: Tiny Boom | C50: Elshout | D50: 65+ | F50: 92 | G50: 92 | H50: 91 | I50: 94 | J50: x | K50: 45
A51: 311 | B51: Ton Kolmans | C51: Elshout | D51: vr | F51: 77 | G51: x | H51: x | I51: x | J51: x
A52: 312 | B52: Floor de Jong | C52: Elshout | D52: J | F52: 95 | G52: 91 | H52: 92 | J52: x | K52: 44
A53: 401 | B53: Frans van Beurden | C53: Haarsteeg | D53: 65+ | F53: 95 | G53: x | H53: 98 | I53: 98 | J53: 93 | K53: 48
A54: 402 | B54: Daniëlle v/d Lee | C54: Haarsteeg | D54: vr | F54: 84 | G54: x | H54: 80 | I54: 84 | J54: x | K54: 43
A55: 403 | B55: Dorien de Kort | C55: Haarsteeg | D55: 65+ | F55: 88 | G55: x | H55: 95 | I55: 96 | J55: 90 | K55: 49
A56: 404 | B56: Gerard van Beurden | C56: Haarsteeg | D56: 65+ | F56: 94 | G56: x | H56: 98 | I56: 96 | J56: 97 | K56: 49
A57: 405 | B57: Jan de Vaan | C57: Haarsteeg | D57: 65+ | F57: 98 | G57: x | H57: 97 | I57: 96 | J57: 97 | K57: 48
A58: 406 | B58: Jeroen van Oss | C58: Haarsteeg | D58: vr | F58: 82 | G58: x | H58: 86 | I58: 78 | J58: 80 | K58: 40
A59: 408 | B59: Rudy van Falier | C59: Haarsteeg | D59: vr | F59: 81 | G59: x | H59: 84 | I59: 82 | J59: x | K59: 38
A60: 410 | B60: Tonnie Koks | C60: Haarsteeg | D60: vr | F60: 88 | G60: x | H60: 88 | I60: 83 | J60: 86 | K60: 40
A61: 411 | B61: Wilma v/d Lee | C61: Haarsteeg | D61: vr | F61: 61 | G61: x | H61: 53 | I61: 76 | J61: 75 | K61: 32
A62: 412 | B62: Francien v/d Wiel | C62: Haarsteeg | D62: 65+ | F62: 93 | G62: x | H62: 96 | I62: 96 | J62: 94 | K62: 48
A63: 413 | B63: Frans Mommersteeg | C63: Haarsteeg | D63: 65+ | F63: 95 | G63: x | H63: 96 | I63: 94 | J63: 94 | K63: 47
A64: 415 | B64: Wim de Gouw | C64: Haarsteeg | D64: 65+ | F64: 96 | G64: x | H64: 95 | I64: 96 | J64: 94 | K64: 46
A65: 416 | B65: Thijs Koks | C65: Haarsteeg | D65: vr | F65: x | G65: x | H65: x | I65: x | J65: 92
A66: 501 | B66: Annette Vos | C66: Kaatsheuvel | D66: vr | F66: 85 | G66: 78 | H66: x | I66: 76 | J66: 81 | K66: 41
A67: 503 | B67: Kees Vos | C67: Kaatsheuvel | D67: 65+ | F67: 81 | G67: x | H67: x | I67: x | J67: x
A68: 506 | B68: Maikel Monden | C68: Kaatsheuvel | D68: vr | F68: 83 | G68: 81 | H68: x | I68: 75 | J68: 82 | K68: 42
A69: 507 | B69: Michael Blaauwbroek | C69: Kaatsheuvel | D69: vr | F69: 76 | G69: 74 | H69: x | I69: 83 | J69: 70 | K69: 31
A70: 508 | B70: Rowan Dobbelsteen | C70: Kaatsheuvel | D70: vr | F70: 78 | G70: 75 | H70: x | I70: 77 | J70: 84 | K70: 34
A71: 509 | B71: Adwan de Pinth | C71: Kaatsheuvel | D71: 65+ | F71: 90 | G71: 94 | H71: x | I71: 96 | J71: 91 | K71: 40
A72: 512 | B72: Hans Bergakker | C72: Kaatsheuvel | D72: vr | F72: 72 | G72: 78 | H72: x | I72: 73 | J72: 73 | K72: 35
A73: 513 | B73: Mark van Delft | C73: Kaatsheuvel | D73: vr | F73: 78 | G73: 77 | H73: x | I73: 80 | J73: 74 | K73: 31
A74: 515 | B74: Ilona Bergakker disp | C74: Kaatsheuvel | D74: 65+ | F74: 89 | G74: 87 | H74: x | I74: 85 | J74: 89 | K74: 44
A75: 516 | B75: Henry Bergakker disp | C75: Kaatsheuvel | D75: 65+ | F75: 90 | G75: 92 | H75: x | I75: 90 | J75: 92 | K75: 47
A76: 517 | B76: Diny Vos | C76: Kaatsheuvel | D76: vr | F76: 68 | G76: 75 | H76: x | I76: 59 | J76: 64 | K76: 20
A77: 518 | B77: Ton Stanz | C77: Kaatsheuvel | D77: 65+ | F77: 83 | G77: 84 | H77: x | I77: x | J77: 77
A78: 519 | B78: Frank Derissen | C78: Kaatsheuvel | D78: vr | F78: x | G78: x | H78: x | I78: 75 | J78: 76

Sheet Personeel
A1: PERSONEEL | G1: =invullijst!F1 -> Organistatie | K1: =invullijst!H2 -> 2024 - 2025
G2: =invullijst!F3 -> O.L.V. Schuts Elshout
A3: alleen in de gele kolom nummer schutter invullen | G3: wedstrijd | M3: KAMP-
A4: KL. | C4: schutter | E4: NAAM | F4: PLAATS | G4: 1 | H4: 2 | I4: 3 | J4: 4 | K4: 5 | L4: TOTAAL | M4: KAART
A5: A | B5: 1 | C5: 207 | D5: =IF(VLOOKUP($C5,invullijst!$A$11:$M$185,4,FALSE)="","",VLOOKUP($C5,invullijst!$A$11:$M$185,4,FALSE)) -> vr | E5: =IF(VLOOKUP($C5,invullijst!$A$11:$M$185,2,FALSE)="","",VLOOKUP($C5,invullijst!$A$11:$M$185,2,FALSE)) -> Max de Louw | F5: =IF(VLOOKUP($C5,invullijst!$A$11:$M$185,3,FALSE)="","",VLOOKUP($C5,invullijst!$A$11:$M$185,3,FALSE)) -> Besoijen | G5: =IF(VLOOKUP(C5,invullijst!$A$11:$M$185,6,FALSE)="","",VLOOKUP(C5,invullijst!$A$11:$M$185,6,FALSE)) -> 89 | H5: =IF(VLOOKUP($C5,invullijst!$A$11:$M$185,7,FALSE)="","",VLOOKUP($C5,invullijst!$A$11:$M$185,7,FALSE)) -> 88 | I5: =IF(VLOOKUP($C5,invullijst!$A$11:$M$185,8,FALSE)="","",VLOOKUP($C5,invullijst!$A$11:$M$185,8,FALSE)) -> 92 | J5: =IF(VLOOKUP($C5,invullijst!$A$11:$M$185,9,FALSE)="","",VLOOKUP($C5,invullijst!$A$11:$M$185,9,FALSE)) -> x | K5: =IF(VLOOKUP($C5,invullijst!$A$11:$M$185,10,FALSE)="","",VLOOKUP($C5,invullijst!$A$11:$M$185,10,FALSE)) -> 89 | L5: =SUM(G5:K5) -> 358 | M5: =IF(VLOOKUP($C5,invullijst!$A$11:$M$185,11,FALSE)="","",VLOOKUP($C5,invullijst!$A$11:$M$185,11,FALSE)) -> 42
B6: 2 | C6: 210 | D6: =IF(VLOOKUP($C6,invullijst!$A$11:$M$185,4,FALSE)="","",VLOOKUP($C6,invullijst!$A$11:$M$185,4,FALSE)) -> vr | E6: =IF(VLOOKUP($C6,invullijst!$A$11:$M$185,2,FALSE)="","",VLOOKUP($C6,invullijst!$A$11:$M$185,2,FALSE)) -> Sander Oome | F6: =IF(VLOOKUP($C6,invullijst!$A$11:$M$185,3,FALSE)="","",VLOOKUP($C6,invullijst!$A$11:$M$185,3,FALSE)) -> Besoijen | G6: =IF(VLOOKUP(C6,invullijst!$A$11:$M$185,6,FALSE)="","",VLOOKUP(C6,invullijst!$A$11:$M$185,6,FALSE)) -> 91 | H6: =IF(VLOOKUP($C6,invullijst!$A$11:$M$185,7,FALSE)="","",VLOOKUP($C6,invullijst!$A$11:$M$185,7,FALSE)) -> 87 | I6: =IF(VLOOKUP($C6,invullijst!$A$11:$M$185,8,FALSE)="","",VLOOKUP($C6,invullijst!$A$11:$M$185,8,FALSE)) -> 90 | J6: =IF(VLOOKUP($C6,invullijst!$A$11:$M$185,9,FALSE)="","",VLOOKUP($C6,invullijst!$A$11:$M$185,9,FALSE)) -> x | K6: =IF(VLOOKUP($C6,invullijst!$A$11:$M$185,10,FALSE)="","",VLOOKUP($C6,invullijst!$A$11:$M$185,10,FALSE)) -> 90 | L6: 358 | M6: =IF(VLOOKUP($C6,invullijst!$A$11:$M$185,11,FALSE)="","",VLOOKUP($C6,invullijst!$A$11:$M$185,11,FALSE)) -> 40
B7: 3 | C7: 216 | D7: =IF(VLOOKUP($C7,invullijst!$A$11:$M$185,4,FALSE)="","",VLOOKUP($C7,invullijst!$A$11:$M$185,4,FALSE)) -> vr | E7: =IF(VLOOKUP($C7,invullijst!$A$11:$M$185,2,FALSE)="","",VLOOKUP($C7,invullijst!$A$11:$M$185,2,FALSE)) -> Pieter Laghuwitz | F7: =IF(VLOOKUP($C7,invullijst!$A$11:$M$185,3,FALSE)="","",VLOOKUP($C7,invullijst!$A$11:$M$185,3,FALSE)) -> Besoijen | G7: =IF(VLOOKUP(C7,invullijst!$A$11:$M$185,6,FALSE)="","",VLOOKUP(C7,invullijst!$A$11:$M$185,6,FALSE)) -> 87 | H7: =IF(VLOOKUP($C7,invullijst!$A$11:$M$185,7,FALSE)="","",VLOOKUP($C7,invullijst!$A$11:$M$185,7,FALSE)) -> 87 | I7: =IF(VLOOKUP($C7,invullijst!$A$11:$M$185,8,FALSE)="","",VLOOKUP($C7,invullijst!$A$11:$M$185,8,FALSE)) -> 86 | J7: =IF(VLOOKUP($C7,invullijst!$A$11:$M$185,9,FALSE)="","",VLOOKUP($C7,invullijst!$A$11:$M$185,9,FALSE)) -> x | K7: =IF(VLOOKUP($C7,invullijst!$A$11:$M$185,10,FALSE)="","",VLOOKUP($C7,invullijst!$A$11:$M$185,10,FALSE)) -> 90 | L7: 350 | M7: =IF(VLOOKUP($C7,invullijst!$A$11:$M$185,11,FALSE)="","",VLOOKUP($C7,invullijst!$A$11:$M$185,11,FALSE)) -> 45
B8: 4 | C8: 302 | D8: =IF(VLOOKUP($C8,invullijst!$A$11:$M$185,4,FALSE)="","",VLOOKUP($C8,invullijst!$A$11:$M$185,4,FALSE)) -> vr | E8: =IF(VLOOKUP($C8,invullijst!$A$11:$M$185,2,FALSE)="","",VLOOKUP($C8,invullijst!$A$11:$M$185,2,FALSE)) -> Freek de Jong | F8: =IF(VLOOKUP($C8,invullijst!$A$11:$M$185,3,FALSE)="","",VLOOKUP($C8,invullijst!$A$11:$M$185,3,FALSE)) -> Elshout | G8: =IF(VLOOKUP(C8,invullijst!$A$11:$M$185,6,FALSE)="","",VLOOKUP(C8,invullijst!$A$11:$M$185,6,FALSE)) -> 88 | H8: =IF(VLOOKUP($C8,invullijst!$A$11:$M$185,7,FALSE)="","",VLOOKUP($C8,invullijst!$A$11:$M$185,7,FALSE)) -> 90 | I8: =IF(VLOOKUP($C8,invullijst!$A$11:$M$185,8,FALSE)="","",VLOOKUP($C8,invullijst!$A$11:$M$185,8,FALSE)) -> 80 | J8: =IF(VLOOKUP($C8,invullijst!$A$11:$M$185,9,FALSE)="","",VLOOKUP($C8,invullijst!$A$11:$M$185,9,FALSE)) -> 88 | K8: =IF(VLOOKUP($C8,invullijst!$A$11:$M$185,10,FALSE)="","",VLOOKUP($C8,invullijst!$A$11:$M$185,10,FALSE)) -> x | L8: 346 | M8: =IF(VLOOKUP($C8,invullijst!$A$11:$M$185,11,FALSE)="","",VLOOKUP($C8,invullijst!$A$11:$M$185,11,FALSE)) -> 40
B9: 5 | C9: 410 | D9: =IF(VLOOKUP($C9,invullijst!$A$11:$M$185,4,FALSE)="","",VLOOKUP($C9,invullijst!$A$11:$M$185,4,FALSE)) -> vr | E9: =IF(VLOOKUP($C9,invullijst!$A$11:$M$185,2,FALSE)="","",VLOOKUP($C9,invullijst!$A$11:$M$185,2,FALSE)) -> Tonnie Koks | F9: =IF(VLOOKUP($C9,invullijst!$A$11:$M$185,3,FALSE)="","",VLOOKUP($C9,invullijst!$A$11:$M$185,3,FALSE)) -> Haarsteeg | G9: =IF(VLOOKUP(C9,invullijst!$A$11:$M$185,6,FALSE)="","",VLOOKUP(C9,invullijst!$A$11:$M$185,6,FALSE)) -> 88 | H9: =IF(VLOOKUP($C9,invullijst!$A$11:$M$185,7,FALSE)="","",VLOOKUP($C9,invullijst!$A$11:$M$185,7,FALSE)) -> x | I9: =IF(VLOOKUP($C9,invullijst!$A$11:$M$185,8,FALSE)="","",VLOOKUP($C9,invullijst!$A$11:$M$185,8,FALSE)) -> 88 | J9: =IF(VLOOKUP($C9,invullijst!$A$11:$M$185,9,FALSE)="","",VLOOKUP($C9,invullijst!$A$11:$M$185,9,FALSE)) -> 83 | K9: =IF(VLOOKUP($C9,invullijst!$A$11:$M$185,10,FALSE)="","",VLOOKUP($C9,invullijst!$A$11:$M$185,10,FALSE)) -> 86 | L9: 345 | M9: =IF(VLOOKUP($C9,invullijst!$A$11:$M$185,11,FALSE)="","",VLOOKUP($C9,invullijst!$A$11:$M$185,11,FALSE)) -> 40
B10: 6 | C10: 105 | D10: =IF(VLOOKUP($C10,invullijst!$A$11:$M$185,4,FALSE)="","",VLOOKUP($C10,invullijst!$A$11:$M$185,4,FALSE)) -> vr | E10: =IF(VLOOKUP($C10,invullijst!$A$11:$M$185,2,FALSE)="","",VLOOKUP($C10,invullijst!$A$11:$M$185,2,FALSE)) -> René Klijn | F10: =IF(VLOOKUP($C10,invullijst!$A$11:$M$185,3,FALSE)="","",VLOOKUP($C10,invullijst!$A$11:$M$185,3,FALSE)) -> Baardwijk | G10: =IF(VLOOKUP(C10,invullijst!$A$11:$M$185,6,FALSE)="","",VLOOKUP(C10,invullijst!$A$11:$M$185,6,FALSE)) -> x | H10: =IF(VLOOKUP($C10,invullijst!$A$11:$M$185,7,FALSE)="","",VLOOKUP($C10,invullijst!$A$11:$M$185,7,FALSE)) -> 85 | I10: =IF(VLOOKUP($C10,invullijst!$A$11:$M$185,8,FALSE)="","",VLOOKUP($C10,invullijst!$A$11:$M$185,8,FALSE)) -> 80 | J10: =IF(VLOOKUP($C10,invullijst!$A$11:$M$185,9,FALSE)="","",VLOOKUP($C10,invullijst!$A$11:$M$185,9,FALSE)) -> 80 | K10: =IF(VLOOKUP($C10,invullijst!$A$11:$M$185,10,FALSE)="","",VLOOKUP($C10,invullijst!$A$11:$M$185,10,FALSE)) -> 88 | L10: 333 | M10: =IF(VLOOKUP($C10,invullijst!$A$11:$M$185,11,FALSE)="","",VLOOKUP($C10,invullijst!$A$11:$M$185,11,FALSE)) -> 42
B11: 7 | C11: 306 | D11: =IF(VLOOKUP($C11,invullijst!$A$11:$M$185,4,FALSE)="","",VLOOKUP($C11,invullijst!$A$11:$M$185,4,FALSE)) -> vr | E11: =IF(VLOOKUP($C11,invullijst!$A$11:$M$185,2,FALSE)="","",VLOOKUP($C11,invullijst!$A$11:$M$185,2,FALSE)) -> Ron Groot | F11: =IF(VLOOKUP($C11,invullijst!$A$11:$M$185,3,FALSE)="","",VLOOKUP($C11,invullijst!$A$11:$M$185,3,FALSE)) -> Elshout | G11: =IF(VLOOKUP(C11,invullijst!$A$11:$M$185,6,FALSE)="","",VLOOKUP(C11,invullijst!$A$11:$M$185,6,FALSE)) -> 76 | H11: =IF(VLOOKUP($C11,invullijst!$A$11:$M$185,7,FALSE)="","",VLOOKUP($C11,invullijst!$A$11:$M$185,7,FALSE)) -> 81 | I11: =IF(VLOOKUP($C11,invullijst!$A$11:$M$185,8,FALSE)="","",VLOOKUP($C11,invullijst!$A$11:$M$185,8,FALSE)) -> 89 | J11: =IF(VLOOKUP($C11,invullijst!$A$11:$M$185,9,FALSE)="","",VLOOKUP($C11,invullijst!$A$11:$M$185,9,FALSE)) -> 82 | K11: =IF(VLOOKUP($C11,invullijst!$A$11:$M$185,10,FALSE)="","",VLOOKUP($C11,invullijst!$A$11:$M$185,10,FALSE)) -> x | L11: 328 | M11: =IF(VLOOKUP($C11,invullijst!$A$11:$M$185,11,FALSE)="","",VLOOKUP($C11,invullijst!$A$11:$M$185,11,FALSE)) -> 39
B12: 8 | C12: 209 | D12: =IF(VLOOKUP($C12,invullijst!$A$11:$M$185,4,FALSE)="","",VLOOKUP($C12,invullijst!$A$11:$M$185,4,FALSE)) -> vr | E12: =IF(VLOOKUP($C12,invullijst!$A$11:$M$185,2,FALSE)="","",VLOOKUP($C12,invullijst!$A$11:$M$185,2,FALSE)) -> René van Kuijk | F12: =IF(VLOOKUP($C12,invullijst!$A$11:$M$185,3,FALSE)="","",VLOOKUP($C12,invullijst!$A$11:$M$185,3,FALSE)) -> Besoijen | G12: =IF(VLOOKUP(C12,invullijst!$A$11:$M$185,6,FALSE)="","",VLOOKUP(C12,invullijst!$A$11:$M$185,6,FALSE)) -> 81 | H12: =IF(VLOOKUP($C12,invullijst!$A$11:$M$185,7,FALSE)="","",VLOOKUP($C12,invullijst!$A$11:$M$185,7,FALSE)) -> 82 | I12: =IF(VLOOKUP($C12,invullijst!$A$11:$M$185,8,FALSE)="","",VLOOKUP($C12,invullijst!$A$11:$M$185,8,FALSE)) -> 83 | J12: =IF(VLOOKUP($C12,invullijst!$A$11:$M$185,9,FALSE)="","",VLOOKUP($C12,invullijst!$A$11:$M$185,9,FALSE)) -> x | K12: =IF(VLOOKUP($C12,invullijst!$A$11:$M$185,10,FALSE)="","",VLOOKUP($C12,invullijst!$A$11:$M$185,10,FALSE)) -> 81 | L12: 327 | M12: =IF(VLOOKUP($C12,invullijst!$A$11:$M$185,11,FALSE)="","",VLOOKUP($C12,invullijst!$A$11:$M$185,11,FALSE)) -> 39
B13: 9 | C13: 406 | D13: =IF(VLOOKUP($C13,invullijst!$A$11:$M$185,4,FALSE)="","",VLOOKUP($C13,invullijst!$A$11:$M$185,4,FALSE)) -> vr | E13: =IF(VLOOKUP($C13,invullijst!$A$11:$M$185,2,FALSE)="","",VLOOKUP($C13,invullijst!$A$11:$M$185,2,FALSE)) -> Jeroen van Oss | F13: =IF(VLOOKUP($C13,invullijst!$A$11:$M$185,3,FALSE)="","",VLOOKUP($C13,invullijst!$A$11:$M$185,3,FALSE)) -> Haarsteeg | G13: =IF(VLOOKUP(C13,invullijst!$A$11:$M$185,6,FALSE)="","",VLOOKUP(C13,invullijst!$A$11:$M$185,6,FALSE)) -> 82 | H13: =IF(VLOOKUP($C13,invullijst!$A$11:$M$185,7,FALSE)="","",VLOOKUP($C13,invullijst!$A$11:$M$185,7,FALSE)) -> x | I13: =IF(VLOOKUP($C13,invullijst!$A$11:$M$185,8,FALSE)="","",VLOOKUP($C13,invullijst!$A$11:$M$185,8,FALSE)) -> 86 | J13: =IF(VLOOKUP($C13,invullijst!$A$11:$M$185,9,FALSE)="","",VLOOKUP($C13,invullijst!$A$11:$M$185,9,FALSE)) -> 78 | K13: =IF(VLOOKUP($C13,invullijst!$A$11:$M$185,10,FALSE)="","",VLOOKUP($C13,invullijst!$A$11:$M$185,10,FALSE)) -> 80 | L13: 326 | M13: =IF(VLOOKUP($C13,invullijst!$A$11:$M$185,11,FALSE)="","",VLOOKUP($C13,invullijst!$A$11:$M$185,11,FALSE)) -> 40
B14: 10 | C14: 208 | D14: =IF(VLOOKUP($C14,invullijst!$A$11:$M$185,4,FALSE)="","",VLOOKUP($C14,invullijst!$A$11:$M$185,4,FALSE)) -> vr | E14: =IF(VLOOKUP($C14,invullijst!$A$11:$M$185,2,FALSE)="","",VLOOKUP($C14,invullijst!$A$11:$M$185,2,FALSE)) -> Erin van Hulten | F14: =IF(VLOOKUP($C14,invullijst!$A$11:$M$185,3,FALSE)="","",VLOOKUP($C14,invullijst!$A$11:$M$185,3,FALSE)) -> Besoijen | G14: =IF(VLOOKUP(C14,invullijst!$A$11:$M$185,6,FALSE)="","",VLOOKUP(C14,invullijst!$A$11:$M$185,6,FALSE)) -> 77 | H14: =IF(VLOOKUP($C14,invullijst!$A$11:$M$185,7,FALSE)="","",VLOOKUP($C14,invullijst!$A$11:$M$185,7,FALSE)) -> 82 | I14: =IF(VLOOKUP($C14,invullijst!$A$11:$M$185,8,FALSE)="","",VLOOKUP($C14,invullijst!$A$11:$M$185,8,FALSE)) -> 87 | J14: =IF(VLOOKUP($C14,invullijst!$A$11:$M$185,9,FALSE)="","",VLOOKUP($C14,invullijst!$A$11:$M$185,9,FALSE)) -> x | K14: =IF(VLOOKUP($C14,invullijst!$A$11:$M$185,10,FALSE)="","",VLOOKUP($C14,invullijst!$A$11:$M$185,10,FALSE)) -> 78 | L14: 324 | M14: =IF(VLOOKUP($C14,invullijst!$A$11:$M$185,11,FALSE)="","",VLOOKUP($C14,invullijst!$A$11:$M$185,11,FALSE)) -> 41
B15: 11 | C15: 203 | D15: =IF(VLOOKUP($C15,invullijst!$A$11:$M$185,4,FALSE)="","",VLOOKUP($C15,invullijst!$A$11:$M$185,4,FALSE)) -> vr | E15: =IF(VLOOKUP($C15,invullijst!$A$11:$M$185,2,FALSE)="","",VLOOKUP($C15,invullijst!$A$11:$M$185,2,FALSE)) -> Frank van den Houdt | F15: =IF(VLOOKUP($C15,invullijst!$A$11:$M$185,3,FALSE)="","",VLOOKUP($C15,invullijst!$A$11:$M$185,3,FALSE)) -> Besoijen | G15: =IF(VLOOKUP(C15,invullijst!$A$11:$M$185,6,FALSE)="","",VLOOKUP(C15,invullijst!$A$11:$M$185,6,FALSE)) -> 86 | H15: =IF(VLOOKUP($C15,invullijst!$A$11:$M$185,7,FALSE)="","",VLOOKUP($C15,invullijst!$A$11:$M$185,7,FALSE)) -> 84 | I15: =IF(VLOOKUP($C15,invullijst!$A$11:$M$185,8,FALSE)="","",VLOOKUP($C15,invullijst!$A$11:$M$185,8,FALSE)) -> 79 | J15: =IF(VLOOKUP($C15,invullijst!$A$11:$M$185,9,FALSE)="","",VLOOKUP($C15,invullijst!$A$11:$M$185,9,FALSE)) -> x | K15: =IF(VLOOKUP($C15,invullijst!$A$11:$M$185,10,FALSE)="","",VLOOKUP($C15,invullijst!$A$11:$M$185,10,FALSE)) -> 75 | L15: 324 | M15: =IF(VLOOKUP($C15,invullijst!$A$11:$M$185,11,FALSE)="","",VLOOKUP($C15,invullijst!$A$11:$M$185,11,FALSE)) -> 37
B16: 12 | C16: 506 | D16: =IF(VLOOKUP($C16,invullijst!$A$11:$M$185,4,FALSE)="","",VLOOKUP($C16,invullijst!$A$11:$M$185,4,FALSE)) -> vr | E16: =IF(VLOOKUP($C16,invullijst!$A$11:$M$185,2,FALSE)="","",VLOOKUP($C16,invullijst!$A$11:$M$185,2,FALSE)) -> Maikel Monden | F16: =IF(VLOOKUP($C16,invullijst!$A$11:$M$185,3,FALSE)="","",VLOOKUP($C16,invullijst!$A$11:$M$185,3,FALSE)) -> Kaatsheuvel | G16: =IF(VLOOKUP(C16,invullijst!$A$11:$M$185,6,FALSE)="","",VLOOKUP(C16,invullijst!$A$11:$M$185,6,FALSE)) -> 83 | H16: =IF(VLOOKUP($C16,invullijst!$A$11:$M$185,7,FALSE)="","",VLOOKUP($C16,invullijst!$A$11:$M$185,7,FALSE)) -> 81 | I16: =IF(VLOOKUP($C16,invullijst!$A$11:$M$185,8,FALSE)="","",VLOOKUP($C16,invullijst!$A$11:$M$185,8,FALSE)) -> x | J16: =IF(VLOOKUP($C16,invullijst!$A$11:$M$185,9,FALSE)="","",VLOOKUP($C16,invullijst!$A$11:$M$185,9,FALSE)) -> 75 | K16: =IF(VLOOKUP($C16,invullijst!$A$11:$M$185,10,FALSE)="","",VLOOKUP($C16,invullijst!$A$11:$M$185,10,FALSE)) -> 82 | L16: 321 | M16: =IF(VLOOKUP($C16,invullijst!$A$11:$M$185,11,FALSE)="","",VLOOKUP($C16,invullijst!$A$11:$M$185,11,FALSE)) -> 42
B17: 13 | C17: 501 | D17: =IF(VLOOKUP($C17,invullijst!$A$11:$M$185,4,FALSE)="","",VLOOKUP($C17,invullijst!$A$11:$M$185,4,FALSE)) -> vr | E17: =IF(VLOOKUP($C17,invullijst!$A$11:$M$185,2,FALSE)="","",VLOOKUP($C17,invullijst!$A$11:$M$185,2,FALSE)) -> Annette Vos | F17: =IF(VLOOKUP($C17,invullijst!$A$11:$M$185,3,FALSE)="","",VLOOKUP($C17,invullijst!$A$11:$M$185,3,FALSE)) -> Kaatsheuvel | G17: =IF(VLOOKUP(C17,invullijst!$A$11:$M$185,6,FALSE)="","",VLOOKUP(C17,invullijst!$A$11:$M$185,6,FALSE)) -> 85 | H17: =IF(VLOOKUP($C17,invullijst!$A$11:$M$185,7,FALSE)="","",VLOOKUP($C17,invullijst!$A$11:$M$185,7,FALSE)) -> 78 | I17: =IF(VLOOKUP($C17,invullijst!$A$11:$M$185,8,FALSE)="","",VLOOKUP($C17,invullijst!$A$11:$M$185,8,FALSE)) -> x | J17: =IF(VLOOKUP($C17,invullijst!$A$11:$M$185,9,FALSE)="","",VLOOKUP($C17,invullijst!$A$11:$M$185,9,FALSE)) -> 76 | K17: =IF(VLOOKUP($C17,invullijst!$A$11:$M$185,10,FALSE)="","",VLOOKUP($C17,invullijst!$A$11:$M$185,10,FALSE)) -> 81 | L17: 320 | M17: =IF(VLOOKUP($C17,invullijst!$A$11:$M$185,11,FALSE)="","",VLOOKUP($C17,invullijst!$A$11:$M$185,11,FALSE)) -> 41
B18: 14 | C18: 204 | D18: =IF(VLOOKUP($C18,invullijst!$A$11:$M$185,4,FALSE)="","",VLOOKUP($C18,invullijst!$A$11:$M$185,4,FALSE)) -> vr | E18: =IF(VLOOKUP($C18,invullijst!$A$11:$M$185,2,FALSE)="","",VLOOKUP($C18,invullijst!$A$11:$M$185,2,FALSE)) -> Harry de Louw | F18: =IF(VLOOKUP($C18,invullijst!$A$11:$M$185,3,FALSE)="","",VLOOKUP($C18,invullijst!$A$11:$M$185,3,FALSE)) -> Besoijen | G18: =IF(VLOOKUP(C18,invullijst!$A$11:$M$185,6,FALSE)="","",VLOOKUP(C18,invullijst!$A$11:$M$185,6,FALSE)) -> 80 | H18: =IF(VLOOKUP($C18,invullijst!$A$11:$M$185,7,FALSE)="","",VLOOKUP($C18,invullijst!$A$11:$M$185,7,FALSE)) -> 85 | I18: =IF(VLOOKUP($C18,invullijst!$A$11:$M$185,8,FALSE)="","",VLOOKUP($C18,invullijst!$A$11:$M$185,8,FALSE)) -> 80 | J18: =IF(VLOOKUP($C18,invullijst!$A$11:$M$185,9,FALSE)="","",VLOOKUP($C18,invullijst!$A$11:$M$185,9,FALSE)) -> x | K18: =IF(VLOOKUP($C18,invullijst!$A$11:$M$185,10,FALSE)="","",VLOOKUP($C18,invullijst!$A$11:$M$185,10,FALSE)) -> 74 | L18: 319 | M18: =IF(VLOOKUP($C18,invullijst!$A$11:$M$185,11,FALSE)="","",VLOOKUP($C18,invullijst!$A$11:$M$185,11,FALSE)) -> 39
B19: 15 | C19: 108 | D19: =IF(VLOOKUP($C19,invullijst!$A$11:$M$185,4,FALSE)="","",VLOOKUP($C19,invullijst!$A$11:$M$185,4,FALSE)) -> vr | E19: =IF(VLOOKUP($C19,invullijst!$A$11:$M$185,2,FALSE)="","",VLOOKUP($C19,invullijst!$A$11:$M$185,2,FALSE)) -> Bram Pullens | F19: =IF(VLOOKUP($C19,invullijst!$A$11:$M$185,3,FALSE)="","",VLOOKUP($C19,invullijst!$A$11:$M$185,3,FALSE)) -> Baardwijk | G19: =IF(VLOOKUP(C19,invullijst!$A$11:$M$185,6,FALSE)="","",VLOOKUP(C19,invullijst!$A$11:$M$185,6,FALSE)) -> x | H19: =IF(VLOOKUP($C19,invullijst!$A$11:$M$185,7,FALSE)="","",VLOOKUP($C19,invullijst!$A$11:$M$185,7,FALSE)) -> 77 | I19: =IF(VLOOKUP($C19,invullijst!$A$11:$M$185,8,FALSE)="","",VLOOKUP($C19,invullijst!$A$11:$M$185,8,FALSE)) -> 78 | J19: =IF(VLOOKUP($C19,invullijst!$A$11:$M$185,9,FALSE)="","",VLOOKUP($C19,invullijst!$A$11:$M$185,9,FALSE)) -> 84 | K19: =IF(VLOOKUP($C19,invullijst!$A$11:$M$185,10,FALSE)="","",VLOOKUP($C19,invullijst!$A$11:$M$185,10,FALSE)) -> 80 | L19: 319 | M19: =IF(VLOOKUP($C19,invullijst!$A$11:$M$185,11,FALSE)="","",VLOOKUP($C19,invullijst!$A$11:$M$185,11,FALSE)) -> 35
B20: 16 | C20: 223 | D20: =IF(VLOOKUP($C20,invullijst!$A$11:$M$185,4,FALSE)="","",VLOOKUP($C20,invullijst!$A$11:$M$185,4,FALSE)) -> vr | E20: =IF(VLOOKUP($C20,invullijst!$A$11:$M$185,2,FALSE)="","",VLOOKUP($C20,invullijst!$A$11:$M$185,2,FALSE)) -> Jänis Jakobsons | F20: =IF(VLOOKUP($C20,invullijst!$A$11:$M$185,3,FALSE)="","",VLOOKUP($C20,invullijst!$A$11:$M$185,3,FALSE)) -> Besoijen | G20: =IF(VLOOKUP(C20,invullijst!$A$11:$M$185,6,FALSE)="","",VLOOKUP(C20,invullijst!$A$11:$M$185,6,FALSE)) -> 77 | H20: =IF(VLOOKUP($C20,invullijst!$A$11:$M$185,7,FALSE)="","",VLOOKUP($C20,invullijst!$A$11:$M$185,7,FALSE)) -> 81 | I20: =IF(VLOOKUP($C20,invullijst!$A$11:$M$185,8,FALSE)="","",VLOOKUP($C20,invullijst!$A$11:$M$185,8,FALSE)) -> 84 | J20: =IF(VLOOKUP($C20,invullijst!$A$11:$M$185,9,FALSE)="","",VLOOKUP($C20,invullijst!$A$11:$M$185,9,FALSE)) -> x | K20: =IF(VLOOKUP($C20,invullijst!$A$11:$M$185,10,FALSE)="","",VLOOKUP($C20,invullijst!$A$11:$M$185,10,FALSE)) -> 73 | L20: 315 | M20: =IF(VLOOKUP($C20,invullijst!$A$11:$M$185,11,FALSE)="","",VLOOKUP($C20,invullijst!$A$11:$M$185,11,FALSE)) -> 27
B21: 17 | C21: 508 | D21: =IF(VLOOKUP($C21,invullijst!$A$11:$M$185,4,FALSE)="","",VLOOKUP($C21,invullijst!$A$11:$M$185,4,FALSE)) -> vr | E21: =IF(VLOOKUP($C21,invullijst!$A$11:$M$185,2,FALSE)="","",VLOOKUP($C21,invullijst!$A$11:$M$185,2,FALSE)) -> Rowan Dobbelsteen | F21: =IF(VLOOKUP($C21,invullijst!$A$11:$M$185,3,FALSE)="","",VLOOKUP($C21,invullijst!$A$11:$M$185,3,FALSE)) -> Kaatsheuvel | G21: =IF(VLOOKUP(C21,invullijst!$A$11:$M$185,6,FALSE)="","",VLOOKUP(C21,invullijst!$A$11:$M$185,6,FALSE)) -> 78 | H21: =IF(VLOOKUP($C21,invullijst!$A$11:$M$185,7,FALSE)="","",VLOOKUP($C21,invullijst!$A$11:$M$185,7,FALSE)) -> 75 | I21: =IF(VLOOKUP($C21,invullijst!$A$11:$M$185,8,FALSE)="","",VLOOKUP($C21,invullijst!$A$11:$M$185,8,FALSE)) -> x | J21: =IF(VLOOKUP($C21,invullijst!$A$11:$M$185,9,FALSE)="","",VLOOKUP($C21,invullijst!$A$11:$M$185,9,FALSE)) -> 77 | K21: =IF(VLOOKUP($C21,invullijst!$A$11:$M$185,10,FALSE)="","",VLOOKUP($C21,invullijst!$A$11:$M$185,10,FALSE)) -> 84 | L21: 314 | M21: =IF(VLOOKUP($C21,invullijst!$A$11:$M$185,11,FALSE)="","",VLOOKUP($C21,invullijst!$A$11:$M$185,11,FALSE)) -> 34
B22: 18 | C22: 106 | D22: =IF(VLOOKUP($C22,invullijst!$A$11:$M$185,4,FALSE)="","",VLOOKUP($C22,invullijst!$A$11:$M$185,4,FALSE)) -> vr | E22: =IF(VLOOKUP($C22,invullijst!$A$11:$M$185,2,FALSE)="","",VLOOKUP($C22,invullijst!$A$11:$M$185,2,FALSE)) -> René Pullens | F22: =IF(VLOOKUP($C22,invullijst!$A$11:$M$185,3,FALSE)="","",VLOOKUP($C22,invullijst!$A$11:$M$185,3,FALSE)) -> Baardwijk | G22: =IF(VLOOKUP(C22,invullijst!$A$11:$M$185,6,FALSE)="","",VLOOKUP(C22,invullijst!$A$11:$M$185,6,FALSE)) -> x | H22: =IF(VLOOKUP($C22,invullijst!$A$11:$M$185,7,FALSE)="","",VLOOKUP($C22,invullijst!$A$11:$M$185,7,FALSE)) -> 76 | I22: =IF(VLOOKUP($C22,invullijst!$A$11:$M$185,8,FALSE)="","",VLOOKUP($C22,invullijst!$A$11:$M$185,8,FALSE)) -> 82 | J22: =IF(VLOOKUP($C22,invullijst!$A$11:$M$185,9,FALSE)="","",VLOOKUP($C22,invullijst!$A$11:$M$185,9,FALSE)) -> 77 | K22: =IF(VLOOKUP($C22,invullijst!$A$11:$M$185,10,FALSE)="","",VLOOKUP($C22,invullijst!$A$11:$M$185,10,FALSE)) -> 77 | L22: 312 | M22: =IF(VLOOKUP($C22,invullijst!$A$11:$M$185,11,FALSE)="","",VLOOKUP($C22,invullijst!$A$11:$M$185,11,FALSE)) -> 41
B23: 19 | C23: 109 | D23: =IF(VLOOKUP($C23,invullijst!$A$11:$M$185,4,FALSE)="","",VLOOKUP($C23,invullijst!$A$11:$M$185,4,FALSE)) -> vr | E23: =IF(VLOOKUP($C23,invullijst!$A$11:$M$185,2,FALSE)="","",VLOOKUP($C23,invullijst!$A$11:$M$185,2,FALSE)) -> Gijs Pullens | F23: =IF(VLOOKUP($C23,invullijst!$A$11:$M$185,3,FALSE)="","",VLOOKUP($C23,invullijst!$A$11:$M$185,3,FALSE)) -> Baardwijk | G23: =IF(VLOOKUP(C23,invullijst!$A$11:$M$185,6,FALSE)="","",VLOOKUP(C23,invullijst!$A$11:$M$185,6,FALSE)) -> x | H23: =IF(VLOOKUP($C23,invullijst!$A$11:$M$185,7,FALSE)="","",VLOOKUP($C23,invullijst!$A$11:$M$185,7,FALSE)) -> 83 | I23: =IF(VLOOKUP($C23,invullijst!$A$11:$M$185,8,FALSE)="","",VLOOKUP($C23,invullijst!$A$11:$M$185,8,FALSE)) -> 83 | J23: =IF(VLOOKUP($C23,invullijst!$A$11:$M$185,9,FALSE)="","",VLOOKUP($C23,invullijst!$A$11:$M$185,9,FALSE)) -> 75 | K23: =IF(VLOOKUP($C23,invullijst!$A$11:$M$185,10,FALSE)="","",VLOOKUP($C23,invullijst!$A$11:$M$185,10,FALSE)) -> 70 | L23: 311 | M23: =IF(VLOOKUP($C23,invullijst!$A$11:$M$185,11,FALSE)="","",VLOOKUP($C23,invullijst!$A$11:$M$185,11,FALSE)) -> 35
A24: B | B24: 1 | C24: 202 | D24: =IF(VLOOKUP($C24,invullijst!$A$11:$M$185,4,FALSE)="","",VLOOKUP($C24,invullijst!$A$11:$M$185,4,FALSE)) -> vr | E24: =IF(VLOOKUP($C24,invullijst!$A$11:$M$185,2,FALSE)="","",VLOOKUP($C24,invullijst!$A$11:$M$185,2,FALSE)) -> Arco van Kuijk | F24: =IF(VLOOKUP($C24,invullijst!$A$11:$M$185,3,FALSE)="","",VLOOKUP($C24,invullijst!$A$11:$M$185,3,FALSE)) -> Besoijen | G24: =IF(VLOOKUP(C24,invullijst!$A$11:$M$185,6,FALSE)="","",VLOOKUP(C24,invullijst!$A$11:$M$185,6,FALSE)) -> 73 | H24: =IF(VLOOKUP($C24,invullijst!$A$11:$M$185,7,FALSE)="","",VLOOKUP($C24,invullijst!$A$11:$M$185,7,FALSE)) -> 81 | I24: =IF(VLOOKUP($C24,invullijst!$A$11:$M$185,8,FALSE)="","",VLOOKUP($C24,invullijst!$A$11:$M$185,8,FALSE)) -> 81 | J24: =IF(VLOOKUP($C24,invullijst!$A$11:$M$185,9,FALSE)="","",VLOOKUP($C24,invullijst!$A$11:$M$185,9,FALSE)) -> x | K24: =IF(VLOOKUP($C24,invullijst!$A$11:$M$185,10,FALSE)="","",VLOOKUP($C24,invullijst!$A$11:$M$185,10,FALSE)) -> 76 | L24: 311 | M24: =IF(VLOOKUP($C24,invullijst!$A$11:$M$185,11,FALSE)="","",VLOOKUP($C24,invullijst!$A$11:$M$185,11,FALSE)) -> 31
B25: 2 | C25: 513 | D25: =IF(VLOOKUP($C25,invullijst!$A$11:$M$185,4,FALSE)="","",VLOOKUP($C25,invullijst!$A$11:$M$185,4,FALSE)) -> vr | E25: =IF(VLOOKUP($C25,invullijst!$A$11:$M$185,2,FALSE)="","",VLOOKUP($C25,invullijst!$A$11:$M$185,2,FALSE)) -> Mark van Delft | F25: =IF(VLOOKUP($C25,invullijst!$A$11:$M$185,3,FALSE)="","",VLOOKUP($C25,invullijst!$A$11:$M$185,3,FALSE)) -> Kaatsheuvel | G25: =IF(VLOOKUP(C25,invullijst!$A$11:$M$185,6,FALSE)="","",VLOOKUP(C25,invullijst!$A$11:$M$185,6,FALSE)) -> 78 | H25: =IF(VLOOKUP($C25,invullijst!$A$11:$M$185,7,FALSE)="","",VLOOKUP($C25,invullijst!$A$11:$M$185,7,FALSE)) -> 77 | I25: =IF(VLOOKUP($C25,invullijst!$A$11:$M$185,8,FALSE)="","",VLOOKUP($C25,invullijst!$A$11:$M$185,8,FALSE)) -> x | J25: =IF(VLOOKUP($C25,invullijst!$A$11:$M$185,9,FALSE)="","",VLOOKUP($C25,invullijst!$A$11:$M$185,9,FALSE)) -> 80 | K25: =IF(VLOOKUP($C25,invullijst!$A$11:$M$185,10,FALSE)="","",VLOOKUP($C25,invullijst!$A$11:$M$185,10,FALSE)) -> 74 | L25: 309 | M25: =IF(VLOOKUP($C25,invullijst!$A$11:$M$185,11,FALSE)="","",VLOOKUP($C25,invullijst!$A$11:$M$185,11,FALSE)) -> 31
B26: 3 | C26: 217 | D26: =IF(VLOOKUP($C26,invullijst!$A$11:$M$185,4,FALSE)="","",VLOOKUP($C26,invullijst!$A$11:$M$185,4,FALSE)) -> vr | E26: =IF(VLOOKUP($C26,invullijst!$A$11:$M$185,2,FALSE)="","",VLOOKUP($C26,invullijst!$A$11:$M$185,2,FALSE)) -> Hans Laghuwitz | F26: =IF(VLOOKUP($C26,invullijst!$A$11:$M$185,3,FALSE)="","",VLOOKUP($C26,invullijst!$A$11:$M$185,3,FALSE)) -> Besoijen | G26: =IF(VLOOKUP(C26,invullijst!$A$11:$M$185,6,FALSE)="","",VLOOKUP(C26,invullijst!$A$11:$M$185,6,FALSE)) -> 76 | H26: =IF(VLOOKUP($C26,invullijst!$A$11:$M$185,7,FALSE)="","",VLOOKUP($C26,invullijst!$A$11:$M$185,7,FALSE)) -> 81 | I26: =IF(VLOOKUP($C26,invullijst!$A$11:$M$185,8,FALSE)="","",VLOOKUP($C26,invullijst!$A$11:$M$185,8,FALSE)) -> 79 | J26: =IF(VLOOKUP($C26,invullijst!$A$11:$M$185,9,FALSE)="","",VLOOKUP($C26,invullijst!$A$11:$M$185,9,FALSE)) -> x | K26: =IF(VLOOKUP($C26,invullijst!$A$11:$M$185,10,FALSE)="","",VLOOKUP($C26,invullijst!$A$11:$M$185,10,FALSE)) -> 72 | L26: 308 | M26: =IF(VLOOKUP($C26,invullijst!$A$11:$M$185,11,FALSE)="","",VLOOKUP($C26,invullijst!$A$11:$M$185,11,FALSE)) -> 35
B27: 4 | C27: 507 | D27: =IF(VLOOKUP($C27,invullijst!$A$11:$M$185,4,FALSE)="","",VLOOKUP($C27,invullijst!$A$11:$M$185,4,FALSE)) -> vr | E27: =IF(VLOOKUP($C27,invullijst!$A$11:$M$185,2,FALSE)="","",VLOOKUP($C27,invullijst!$A$11:$M$185,2,FALSE)) -> Michael Blaauwbroek | F27: =IF(VLOOKUP($C27,invullijst!$A$11:$M$185,3,FALSE)="","",VLOOKUP($C27,invullijst!$A$11:$M$185,3,FALSE)) -> Kaatsheuvel | G27: =IF(VLOOKUP(C27,invullijst!$A$11:$M$185,6,FALSE)="","",VLOOKUP(C27,invullijst!$A$11:$M$185,6,FALSE)) -> 76 | H27: =IF(VLOOKUP($C27,invullijst!$A$11:$M$185,7,FALSE)="","",VLOOKUP($C27,invullijst!$A$11:$M$185,7,FALSE)) -> 74 | I27: =IF(VLOOKUP($C27,invullijst!$A$11:$M$185,8,FALSE)="","",VLOOKUP($C27,invullijst!$A$11:$M$185,8,FALSE)) -> x | J27: =IF(VLOOKUP($C27,invullijst!$A$11:$M$185,9,FALSE)="","",VLOOKUP($C27,invullijst!$A$11:$M$185,9,FALSE)) -> 83 | K27: =IF(VLOOKUP($C27,invullijst!$A$11:$M$185,10,FALSE)="","",VLOOKUP($C27,invullijst!$A$11:$M$185,10,FALSE)) -> 70 | L27: 303 | M27: =IF(VLOOKUP($C27,invullijst!$A$11:$M$185,11,FALSE)="","",VLOOKUP($C27,invullijst!$A$11:$M$185,11,FALSE)) -> 31
B28: 5 | C28: 205 | D28: =IF(VLOOKUP($C28,invullijst!$A$11:$M$185,4,FALSE)="","",VLOOKUP($C28,invullijst!$A$11:$M$185,4,FALSE)) -> vr | E28: =IF(VLOOKUP($C28,invullijst!$A$11:$M$185,2,FALSE)="","",VLOOKUP($C28,invullijst!$A$11:$M$185,2,FALSE)) -> Jos v/d Snepscheut | F28: =IF(VLOOKUP($C28,invullijst!$A$11:$M$185,3,FALSE)="","",VLOOKUP($C28,invullijst!$A$11:$M$185,3,FALSE)) -> Besoijen | G28: =IF(VLOOKUP(C28,invullijst!$A$11:$M$185,6,FALSE)="","",VLOOKUP(C28,invullijst!$A$11:$M$185,6,FALSE)) -> 75 | H28: =IF(VLOOKUP($C28,invullijst!$A$11:$M$185,7,FALSE)="","",VLOOKUP($C28,invullijst!$A$11:$M$185,7,FALSE)) -> 80 | I28: =IF(VLOOKUP($C28,invullijst!$A$11:$M$185,8,FALSE)="","",VLOOKUP($C28,invullijst!$A$11:$M$185,8,FALSE)) -> 73 | J28: =IF(VLOOKUP($C28,invullijst!$A$11:$M$185,9,FALSE)="","",VLOOKUP($C28,invullijst!$A$11:$M$185,9,FALSE)) -> x | K28: =IF(VLOOKUP($C28,invullijst!$A$11:$M$185,10,FALSE)="","",VLOOKUP($C28,invullijst!$A$11:$M$185,10,FALSE)) -> 74 | L28: 302 | M28: =IF(VLOOKUP($C28,invullijst!$A$11:$M$185,11,FALSE)="","",VLOOKUP($C28,invullijst!$A$11:$M$185,11,FALSE)) -> 42
B29: 6 | C29: 222 | D29: =IF(VLOOKUP($C29,invullijst!$A$11:$M$185,4,FALSE)="","",VLOOKUP($C29,invullijst!$A$11:$M$185,4,FALSE)) -> vr | E29: =IF(VLOOKUP($C29,invullijst!$A$11:$M$185,2,FALSE)="","",VLOOKUP($C29,invullijst!$A$11:$M$185,2,FALSE)) -> Nick de Vaan | F29: =IF(VLOOKUP($C29,invullijst!$A$11:$M$185,3,FALSE)="","",VLOOKUP($C29,invullijst!$A$11:$M$185,3,FALSE)) -> Besoijen | G29: =IF(VLOOKUP(C29,invullijst!$A$11:$M$185,6,FALSE)="","",VLOOKUP(C29,invullijst!$A$11:$M$185,6,FALSE)) -> 72 | H29: =IF(VLOOKUP($C29,invullijst!$A$11:$M$185,7,FALSE)="","",VLOOKUP($C29,invullijst!$A$11:$M$185,7,FALSE)) -> 75 | I29: =IF(VLOOKUP($C29,invullijst!$A$11:$M$185,8,FALSE)="","",VLOOKUP($C29,invullijst!$A$11:$M$185,8,FALSE)) -> 70 | J29: =IF(VLOOKUP($C29,invullijst!$A$11:$M$185,9,FALSE)="","",VLOOKUP($C29,invullijst!$A$11:$M$185,9,FALSE)) -> x | K29: =IF(VLOOKUP($C29,invullijst!$A$11:$M$185,10,FALSE)="","",VLOOKUP($C29,invullijst!$A$11:$M$185,10,FALSE)) -> 82 | L29: 299 | M29: =IF(VLOOKUP($C29,invullijst!$A$11:$M$185,11,FALSE)="","",VLOOKUP($C29,invullijst!$A$11:$M$185,11,FALSE)) -> 
B30: 7 | C30: 512 | D30: =IF(VLOOKUP($C30,invullijst!$A$11:$M$185,4,FALSE)="","",VLOOKUP($C30,invullijst!$A$11:$M$185,4,FALSE)) -> vr | E30: =IF(VLOOKUP($C30,invullijst!$A$11:$M$185,2,FALSE)="","",VLOOKUP($C30,invullijst!$A$11:$M$185,2,FALSE)) -> Hans Bergakker | F30: =IF(VLOOKUP($C30,invullijst!$A$11:$M$185,3,FALSE)="","",VLOOKUP($C30,invullijst!$A$11:$M$185,3,FALSE)) -> Kaatsheuvel | G30: =IF(VLOOKUP(C30,invullijst!$A$11:$M$185,6,FALSE)="","",VLOOKUP(C30,invullijst!$A$11:$M$185,6,FALSE)) -> 72 | H30: =IF(VLOOKUP($C30,invullijst!$A$11:$M$185,7,FALSE)="","",VLOOKUP($C30,invullijst!$A$11:$M$185,7,FALSE)) -> 78 | I30: =IF(VLOOKUP($C30,invullijst!$A$11:$M$185,8,FALSE)="","",VLOOKUP($C30,invullijst!$A$11:$M$185,8,FALSE)) -> x | J30: =IF(VLOOKUP($C30,invullijst!$A$11:$M$185,9,FALSE)="","",VLOOKUP($C30,invullijst!$A$11:$M$185,9,FALSE)) -> 73 | K30: =IF(VLOOKUP($C30,invullijst!$A$11:$M$185,10,FALSE)="","",VLOOKUP($C30,invullijst!$A$11:$M$185,10,FALSE)) -> 73 | L30: 296 | M30: =IF(VLOOKUP($C30,invullijst!$A$11:$M$185,11,FALSE)="","",VLOOKUP($C30,invullijst!$A$11:$M$185,11,FALSE)) -> 35
B31: 8 | C31: 213 | D31: =IF(VLOOKUP($C31,invullijst!$A$11:$M$185,4,FALSE)="","",VLOOKUP($C31,invullijst!$A$11:$M$185,4,FALSE)) -> vr | E31: =IF(VLOOKUP($C31,invullijst!$A$11:$M$185,2,FALSE)="","",VLOOKUP($C31,invullijst!$A$11:$M$185,2,FALSE)) -> Roland van Delft | F31: =IF(VLOOKUP($C31,invullijst!$A$11:$M$185,3,FALSE)="","",VLOOKUP($C31,invullijst!$A$11:$M$185,3,FALSE)) -> Besoijen | G31: =IF(VLOOKUP(C31,invullijst!$A$11:$M$185,6,FALSE)="","",VLOOKUP(C31,invullijst!$A$11:$M$185,6,FALSE)) -> 74 | H31: =IF(VLOOKUP($C31,invullijst!$A$11:$M$185,7,FALSE)="","",VLOOKUP($C31,invullijst!$A$11:$M$185,7,FALSE)) -> 71 | I31: =IF(VLOOKUP($C31,invullijst!$A$11:$M$185,8,FALSE)="","",VLOOKUP($C31,invullijst!$A$11:$M$185,8,FALSE)) -> 69 | J31: =IF(VLOOKUP($C31,invullijst!$A$11:$M$185,9,FALSE)="","",VLOOKUP($C31,invullijst!$A$11:$M$185,9,FALSE)) -> x | K31: =IF(VLOOKUP($C31,invullijst!$A$11:$M$185,10,FALSE)="","",VLOOKUP($C31,invullijst!$A$11:$M$185,10,FALSE)) -> 71 | L31: 285 | M31: =IF(VLOOKUP($C31,invullijst!$A$11:$M$185,11,FALSE)="","",VLOOKUP($C31,invullijst!$A$11:$M$185,11,FALSE)) -> 35
B32: 9 | C32: 517 | D32: =IF(VLOOKUP($C32,invullijst!$A$11:$M$185,4,FALSE)="","",VLOOKUP($C32,invullijst!$A$11:$M$185,4,FALSE)) -> vr | E32: =IF(VLOOKUP($C32,invullijst!$A$11:$M$185,2,FALSE)="","",VLOOKUP($C32,invullijst!$A$11:$M$185,2,FALSE)) -> Diny Vos | F32: =IF(VLOOKUP($C32,invullijst!$A$11:$M$185,3,FALSE)="","",VLOOKUP($C32,invullijst!$A$11:$M$185,3,FALSE)) -> Kaatsheuvel | G32: =IF(VLOOKUP(C32,invullijst!$A$11:$M$185,6,FALSE)="","",VLOOKUP(C32,invullijst!$A$11:$M$185,6,FALSE)) -> 68 | H32: =IF(VLOOKUP($C32,invullijst!$A$11:$M$185,7,FALSE)="","",VLOOKUP($C32,invullijst!$A$11:$M$185,7,FALSE)) -> 75 | I32: =IF(VLOOKUP($C32,invullijst!$A$11:$M$185,8,FALSE)="","",VLOOKUP($C32,invullijst!$A$11:$M$185,8,FALSE)) -> x | J32: =IF(VLOOKUP($C32,invullijst!$A$11:$M$185,9,FALSE)="","",VLOOKUP($C32,invullijst!$A$11:$M$185,9,FALSE)) -> 59 | K32: =IF(VLOOKUP($C32,invullijst!$A$11:$M$185,10,FALSE)="","",VLOOKUP($C32,invullijst!$A$11:$M$185,10,FALSE)) -> 64 | L32: 266 | M32: =IF(VLOOKUP($C32,invullijst!$A$11:$M$185,11,FALSE)="","",VLOOKUP($C32,invullijst!$A$11:$M$185,11,FALSE)) -> 20
B33: 10 | C33: 411 | D33: =IF(VLOOKUP($C33,invullijst!$A$11:$M$185,4,FALSE)="","",VLOOKUP($C33,invullijst!$A$11:$M$185,4,FALSE)) -> vr | E33: =IF(VLOOKUP($C33,invullijst!$A$11:$M$185,2,FALSE)="","",VLOOKUP($C33,invullijst!$A$11:$M$185,2,FALSE)) -> Wilma v/d Lee | F33: =IF(VLOOKUP($C33,invullijst!$A$11:$M$185,3,FALSE)="","",VLOOKUP($C33,invullijst!$A$11:$M$185,3,FALSE)) -> Haarsteeg | G33: =IF(VLOOKUP(C33,invullijst!$A$11:$M$185,6,FALSE)="","",VLOOKUP(C33,invullijst!$A$11:$M$185,6,FALSE)) -> 61 | H33: =IF(VLOOKUP($C33,invullijst!$A$11:$M$185,7,FALSE)="","",VLOOKUP($C33,invullijst!$A$11:$M$185,7,FALSE)) -> x | I33: =IF(VLOOKUP($C33,invullijst!$A$11:$M$185,8,FALSE)="","",VLOOKUP($C33,invullijst!$A$11:$M$185,8,FALSE)) -> 53 | J33: =IF(VLOOKUP($C33,invullijst!$A$11:$M$185,9,FALSE)="","",VLOOKUP($C33,invullijst!$A$11:$M$185,9,FALSE)) -> 76 | K33: =IF(VLOOKUP($C33,invullijst!$A$11:$M$185,10,FALSE)="","",VLOOKUP($C33,invullijst!$A$11:$M$185,10,FALSE)) -> 75 | L33: 265 | M33: =IF(VLOOKUP($C33,invullijst!$A$11:$M$185,11,FALSE)="","",VLOOKUP($C33,invullijst!$A$11:$M$185,11,FALSE)) -> 32
B34: 11 | C34: 102 | D34: =IF(VLOOKUP($C34,invullijst!$A$11:$M$185,4,FALSE)="","",VLOOKUP($C34,invullijst!$A$11:$M$185,4,FALSE)) -> vr | E34: =IF(VLOOKUP($C34,invullijst!$A$11:$M$185,2,FALSE)="","",VLOOKUP($C34,invullijst!$A$11:$M$185,2,FALSE)) -> John de Jong | F34: =IF(VLOOKUP($C34,invullijst!$A$11:$M$185,3,FALSE)="","",VLOOKUP($C34,invullijst!$A$11:$M$185,3,FALSE)) -> Baardwijk | G34: =IF(VLOOKUP(C34,invullijst!$A$11:$M$185,6,FALSE)="","",VLOOKUP(C34,invullijst!$A$11:$M$185,6,FALSE)) -> x | H34: =IF(VLOOKUP($C34,invullijst!$A$11:$M$185,7,FALSE)="","",VLOOKUP($C34,invullijst!$A$11:$M$185,7,FALSE)) -> 73 | I34: =IF(VLOOKUP($C34,invullijst!$A$11:$M$185,8,FALSE)="","",VLOOKUP($C34,invullijst!$A$11:$M$185,8,FALSE)) -> 63 | J34: =IF(VLOOKUP($C34,invullijst!$A$11:$M$185,9,FALSE)="","",VLOOKUP($C34,invullijst!$A$11:$M$185,9,FALSE)) -> 60 | K34: =IF(VLOOKUP($C34,invullijst!$A$11:$M$185,10,FALSE)="","",VLOOKUP($C34,invullijst!$A$11:$M$185,10,FALSE)) -> 62 | L34: 258 | M34: =IF(VLOOKUP($C34,invullijst!$A$11:$M$185,11,FALSE)="","",VLOOKUP($C34,invullijst!$A$11:$M$185,11,FALSE)) -> 22
B35: 12 | C35: 101 | D35: =IF(VLOOKUP($C35,invullijst!$A$11:$M$185,4,FALSE)="","",VLOOKUP($C35,invullijst!$A$11:$M$185,4,FALSE)) -> vr | E35: =IF(VLOOKUP($C35,invullijst!$A$11:$M$185,2,FALSE)="","",VLOOKUP($C35,invullijst!$A$11:$M$185,2,FALSE)) -> Antwan van Buul | F35: =IF(VLOOKUP($C35,invullijst!$A$11:$M$185,3,FALSE)="","",VLOOKUP($C35,invullijst!$A$11:$M$185,3,FALSE)) -> Baardwijk | G35: =IF(VLOOKUP(C35,invullijst!$A$11:$M$185,6,FALSE)="","",VLOOKUP(C35,invullijst!$A$11:$M$185,6,FALSE)) -> x | H35: =IF(VLOOKUP($C35,invullijst!$A$11:$M$185,7,FALSE)="","",VLOOKUP($C35,invullijst!$A$11:$M$185,7,FALSE)) -> 68 | I35: =IF(VLOOKUP($C35,invullijst!$A$11:$M$185,8,FALSE)="","",VLOOKUP($C35,invullijst!$A$11:$M$185,8,FALSE)) -> 67 | J35: =IF(VLOOKUP($C35,invullijst!$A$11:$M$185,9,FALSE)="","",VLOOKUP($C35,invullijst!$A$11:$M$185,9,FALSE)) -> 60 | K35: =IF(VLOOKUP($C35,invullijst!$A$11:$M$185,10,FALSE)="","",VLOOKUP($C35,invullijst!$A$11:$M$185,10,FALSE)) -> 61 | L35: 256 | M35: =IF(VLOOKUP($C35,invullijst!$A$11:$M$185,11,FALSE)="","",VLOOKUP($C35,invullijst!$A$11:$M$185,11,FALSE)) -> 36
B36: 13 | C36: 305 | D36: =IF(VLOOKUP($C36,invullijst!$A$11:$M$185,4,FALSE)="","",VLOOKUP($C36,invullijst!$A$11:$M$185,4,FALSE)) -> vr | E36: =IF(VLOOKUP($C36,invullijst!$A$11:$M$185,2,FALSE)="","",VLOOKUP($C36,invullijst!$A$11:$M$185,2,FALSE)) -> Johan Klerx | F36: =IF(VLOOKUP($C36,invullijst!$A$11:$M$185,3,FALSE)="","",VLOOKUP($C36,invullijst!$A$11:$M$185,3,FALSE)) -> Elshout | G36: =IF(VLOOKUP(C36,invullijst!$A$11:$M$185,6,FALSE)="","",VLOOKUP(C36,invullijst!$A$11:$M$185,6,FALSE)) -> 84 | H36: =IF(VLOOKUP($C36,invullijst!$A$11:$M$185,7,FALSE)="","",VLOOKUP($C36,invullijst!$A$11:$M$185,7,FALSE)) -> 85 | J36: =IF(VLOOKUP($C36,invullijst!$A$11:$M$185,9,FALSE)="","",VLOOKUP($C36,invullijst!$A$11:$M$185,9,FALSE)) -> 84 | K36: =IF(VLOOKUP($C36,invullijst!$A$11:$M$185,10,FALSE)="","",VLOOKUP($C36,invullijst!$A$11:$M$185,10,FALSE)) -> x | L36: 253 | M36: =IF(VLOOKUP($C36,invullijst!$A$11:$M$185,11,FALSE)="","",VLOOKUP($C36,invullijst!$A$11:$M$185,11,FALSE)) -> 42
B37: 14 | C37: 402 | D37: =IF(VLOOKUP($C37,invullijst!$A$11:$M$185,4,FALSE)="","",VLOOKUP($C37,invullijst!$A$11:$M$185,4,FALSE)) -> vr | E37: =IF(VLOOKUP($C37,invullijst!$A$11:$M$185,2,FALSE)="","",VLOOKUP($C37,invullijst!$A$11:$M$185,2,FALSE)) -> Daniëlle v/d Lee | F37: =IF(VLOOKUP($C37,invullijst!$A$11:$M$185,3,FALSE)="","",VLOOKUP($C37,invullijst!$A$11:$M$185,3,FALSE)) -> Haarsteeg | G37: =IF(VLOOKUP(C37,invullijst!$A$11:$M$185,6,FALSE)="","",VLOOKUP(C37,invullijst!$A$11:$M$185,6,FALSE)) -> 84 | H37: =IF(VLOOKUP($C37,invullijst!$A$11:$M$185,7,FALSE)="","",VLOOKUP($C37,invullijst!$A$11:$M$185,7,FALSE)) -> x | I37: =IF(VLOOKUP($C37,invullijst!$A$11:$M$185,8,FALSE)="","",VLOOKUP($C37,invullijst!$A$11:$M$185,8,FALSE)) -> 80 | J37: =IF(VLOOKUP($C37,invullijst!$A$11:$M$185,9,FALSE)="","",VLOOKUP($C37,invullijst!$A$11:$M$185,9,FALSE)) -> 84 | K37: =IF(VLOOKUP($C37,invullijst!$A$11:$M$185,10,FALSE)="","",VLOOKUP($C37,invullijst!$A$11:$M$185,10,FALSE)) -> x | L37: 248 | M37: =IF(VLOOKUP($C37,invullijst!$A$11:$M$185,11,FALSE)="","",VLOOKUP($C37,invullijst!$A$11:$M$185,11,FALSE)) -> 43
B38: 15 | C38: 408 | D38: =IF(VLOOKUP($C38,invullijst!$A$11:$M$185,4,FALSE)="","",VLOOKUP($C38,invullijst!$A$11:$M$185,4,FALSE)) -> vr | E38: =IF(VLOOKUP($C38,invullijst!$A$11:$M$185,2,FALSE)="","",VLOOKUP($C38,invullijst!$A$11:$M$185,2,FALSE)) -> Rudy van Falier | F38: =IF(VLOOKUP($C38,invullijst!$A$11:$M$185,3,FALSE)="","",VLOOKUP($C38,invullijst!$A$11:$M$185,3,FALSE)) -> Haarsteeg | G38: =IF(VLOOKUP(C38,invullijst!$A$11:$M$185,6,FALSE)="","",VLOOKUP(C38,invullijst!$A$11:$M$185,6,FALSE)) -> 81 | H38: =IF(VLOOKUP($C38,invullijst!$A$11:$M$185,7,FALSE)="","",VLOOKUP($C38,invullijst!$A$11:$M$185,7,FALSE)) -> x | I38: =IF(VLOOKUP($C38,invullijst!$A$11:$M$185,8,FALSE)="","",VLOOKUP($C38,invullijst!$A$11:$M$185,8,FALSE)) -> 84 | J38: =IF(VLOOKUP($C38,invullijst!$A$11:$M$185,9,FALSE)="","",VLOOKUP($C38,invullijst!$A$11:$M$185,9,FALSE)) -> 82 | K38: =IF(VLOOKUP($C38,invullijst!$A$11:$M$185,10,FALSE)="","",VLOOKUP($C38,invullijst!$A$11:$M$185,10,FALSE)) -> x | L38: 247 | M38: =IF(VLOOKUP($C38,invullijst!$A$11:$M$185,11,FALSE)="","",VLOOKUP($C38,invullijst!$A$11:$M$185,11,FALSE)) -> 38
B39: 16 | C39: 103 | D39: =IF(VLOOKUP($C39,invullijst!$A$11:$M$185,4,FALSE)="","",VLOOKUP($C39,invullijst!$A$11:$M$185,4,FALSE)) -> vr | E39: =IF(VLOOKUP($C39,invullijst!$A$11:$M$185,2,FALSE)="","",VLOOKUP($C39,invullijst!$A$11:$M$185,2,FALSE)) -> Norbert van Buul | F39: =IF(VLOOKUP($C39,invullijst!$A$11:$M$185,3,FALSE)="","",VLOOKUP($C39,invullijst!$A$11:$M$185,3,FALSE)) -> Baardwijk | G39: =IF(VLOOKUP(C39,invullijst!$A$11:$M$185,6,FALSE)="","",VLOOKUP(C39,invullijst!$A$11:$M$185,6,FALSE)) -> x | H39: =IF(VLOOKUP($C39,invullijst!$A$11:$M$185,7,FALSE)="","",VLOOKUP($C39,invullijst!$A$11:$M$185,7,FALSE)) -> 55 | I39: =IF(VLOOKUP($C39,invullijst!$A$11:$M$185,8,FALSE)="","",VLOOKUP($C39,invullijst!$A$11:$M$185,8,FALSE)) -> 65 | J39: =IF(VLOOKUP($C39,invullijst!$A$11:$M$185,9,FALSE)="","",VLOOKUP($C39,invullijst!$A$11:$M$185,9,FALSE)) -> 63 | K39: =IF(VLOOKUP($C39,invullijst!$A$11:$M$185,10,FALSE)="","",VLOOKUP($C39,invullijst!$A$11:$M$185,10,FALSE)) -> 59 | L39: 242 | M39: =IF(VLOOKUP($C39,invullijst!$A$11:$M$185,11,FALSE)="","",VLOOKUP($C39,invullijst!$A$11:$M$185,11,FALSE)) -> 28
B40: 17 | C40: 206 | D40: =IF(VLOOKUP($C40,invullijst!$A$11:$M$185,4,FALSE)="","",VLOOKUP($C40,invullijst!$A$11:$M$185,4,FALSE)) -> vr | E40: =IF(VLOOKUP($C40,invullijst!$A$11:$M$185,2,FALSE)="","",VLOOKUP($C40,invullijst!$A$11:$M$185,2,FALSE)) -> Kees van Hulten | F40: =IF(VLOOKUP($C40,invullijst!$A$11:$M$185,3,FALSE)="","",VLOOKUP($C40,invullijst!$A$11:$M$185,3,FALSE)) -> Besoijen | G40: =IF(VLOOKUP($C40,invullijst!$A$11:$M$185,6,FALSE)="","",VLOOKUP($C40,invullijst!$A$11:$M$185,6,FALSE)) -> 73 | H40: =IF(VLOOKUP($C40,invullijst!$A$11:$M$185,7,FALSE)="","",VLOOKUP($C40,invullijst!$A$11:$M$185,7,FALSE)) -> 83 | I40: =IF(VLOOKUP($C40,invullijst!$A$11:$M$185,8,FALSE)="","",VLOOKUP($C40,invullijst!$A$11:$M$185,8,FALSE)) -> 78 | J40: =IF(VLOOKUP($C40,invullijst!$A$11:$M$185,9,FALSE)="","",VLOOKUP($C40,invullijst!$A$11:$M$185,9,FALSE)) -> x | K40: =IF(VLOOKUP($C40,invullijst!$A$11:$M$185,10,FALSE)="","",VLOOKUP($C40,invullijst!$A$11:$M$185,10,FALSE)) -> x | L40: 234 | M40: =IF(VLOOKUP($C40,invullijst!$A$11:$M$185,11,FALSE)="","",VLOOKUP($C40,invullijst!$A$11:$M$185,11,FALSE)) -> 41
B41: 18 | C41: 304 | D41: =IF(VLOOKUP($C41,invullijst!$A$11:$M$185,4,FALSE)="","",VLOOKUP($C41,invullijst!$A$11:$M$185,4,FALSE)) -> vr | E41: =IF(VLOOKUP($C41,invullijst!$A$11:$M$185,2,FALSE)="","",VLOOKUP($C41,invullijst!$A$11:$M$185,2,FALSE)) -> Henk Bruurmijn | F41: =IF(VLOOKUP($C41,invullijst!$A$11:$M$185,3,FALSE)="","",VLOOKUP($C41,invullijst!$A$11:$M$185,3,FALSE)) -> Elshout | G41: =IF(VLOOKUP(C41,invullijst!$A$11:$M$185,6,FALSE)="","",VLOOKUP(C41,invullijst!$A$11:$M$185,6,FALSE)) -> 80 | H41: =IF(VLOOKUP($C41,invullijst!$A$11:$M$185,7,FALSE)="","",VLOOKUP($C41,invullijst!$A$11:$M$185,7,FALSE)) -> 62 | J41: =IF(VLOOKUP($C41,invullijst!$A$11:$M$185,9,FALSE)="","",VLOOKUP($C41,invullijst!$A$11:$M$185,9,FALSE)) -> 82 | K41: =IF(VLOOKUP($C41,invullijst!$A$11:$M$185,10,FALSE)="","",VLOOKUP($C41,invullijst!$A$11:$M$185,10,FALSE)) -> x | L41: 224 | M41: =IF(VLOOKUP($C41,invullijst!$A$11:$M$185,11,FALSE)="","",VLOOKUP($C41,invullijst!$A$11:$M$185,11,FALSE)) -> 43
B42: 19 | C42: 519 | D42: =IF(VLOOKUP($C42,invullijst!$A$11:$M$185,4,FALSE)="","",VLOOKUP($C42,invullijst!$A$11:$M$185,4,FALSE)) -> vr | E42: =IF(VLOOKUP($C42,invullijst!$A$11:$M$185,2,FALSE)="","",VLOOKUP($C42,invullijst!$A$11:$M$185,2,FALSE)) -> Frank Derissen | F42: =IF(VLOOKUP($C42,invullijst!$A$11:$M$185,3,FALSE)="","",VLOOKUP($C42,invullijst!$A$11:$M$185,3,FALSE)) -> Kaatsheuvel | G42: =IF(VLOOKUP(C42,invullijst!$A$11:$M$185,6,FALSE)="","",VLOOKUP(C42,invullijst!$A$11:$M$185,6,FALSE)) -> x | H42: =IF(VLOOKUP($C42,invullijst!$A$11:$M$185,7,FALSE)="","",VLOOKUP($C42,invullijst!$A$11:$M$185,7,FALSE)) -> x | I42: =IF(VLOOKUP($C42,invullijst!$A$11:$M$185,8,FALSE)="","",VLOOKUP($C42,invullijst!$A$11:$M$185,8,FALSE)) -> x | J42: =IF(VLOOKUP($C42,invullijst!$A$11:$M$185,9,FALSE)="","",VLOOKUP($C42,invullijst!$A$11:$M$185,9,FALSE)) -> 75 | K42: =IF(VLOOKUP($C42,invullijst!$A$11:$M$185,10,FALSE)="","",VLOOKUP($C42,invullijst!$A$11:$M$185,10,FALSE)) -> 76 | L42: 151 | M42: =IF(VLOOKUP($C42,invullijst!$A$11:$M$185,11,FALSE)="","",VLOOKUP($C42,invullijst!$A$11:$M$185,11,FALSE)) -> 
B43: 20 | C43: 416 | D43: =IF(VLOOKUP($C43,invullijst!$A$11:$M$185,4,FALSE)="","",VLOOKUP($C43,invullijst!$A$11:$M$185,4,FALSE)) -> vr | E43: =IF(VLOOKUP($C43,invullijst!$A$11:$M$185,2,FALSE)="","",VLOOKUP($C43,invullijst!$A$11:$M$185,2,FALSE)) -> Thijs Koks | F43: =IF(VLOOKUP($C43,invullijst!$A$11:$M$185,3,FALSE)="","",VLOOKUP($C43,invullijst!$A$11:$M$185,3,FALSE)) -> Haarsteeg | G43: =IF(VLOOKUP(C43,invullijst!$A$11:$M$185,6,FALSE)="","",VLOOKUP(C43,invullijst!$A$11:$M$185,6,FALSE)) -> x | H43: =IF(VLOOKUP($C43,invullijst!$A$11:$M$185,7,FALSE)="","",VLOOKUP($C43,invullijst!$A$11:$M$185,7,FALSE)) -> x | I43: =IF(VLOOKUP($C43,invullijst!$A$11:$M$185,8,FALSE)="","",VLOOKUP($C43,invullijst!$A$11:$M$185,8,FALSE)) -> x | J43: =IF(VLOOKUP($C43,invullijst!$A$11:$M$185,9,FALSE)="","",VLOOKUP($C43,invullijst!$A$11:$M$185,9,FALSE)) -> x | K43: =IF(VLOOKUP($C43,invullijst!$A$11:$M$185,10,FALSE)="","",VLOOKUP($C43,invullijst!$A$11:$M$185,10,FALSE)) -> 92 | L43: 92 | M43: =IF(VLOOKUP($C43,invullijst!$A$11:$M$185,11,FALSE)="","",VLOOKUP($C43,invullijst!$A$11:$M$185,11,FALSE)) -> 
B44: 21 | C44: 311 | D44: =IF(VLOOKUP($C44,invullijst!$A$11:$M$185,4,FALSE)="","",VLOOKUP($C44,invullijst!$A$11:$M$185,4,FALSE)) -> vr | E44: =IF(VLOOKUP($C44,invullijst!$A$11:$M$185,2,FALSE)="","",VLOOKUP($C44,invullijst!$A$11:$M$185,2,FALSE)) -> Ton Kolmans | F44: =IF(VLOOKUP($C44,invullijst!$A$11:$M$185,3,FALSE)="","",VLOOKUP($C44,invullijst!$A$11:$M$185,3,FALSE)) -> Elshout | G44: =IF(VLOOKUP(C44,invullijst!$A$11:$M$185,6,FALSE)="","",VLOOKUP(C44,invullijst!$A$11:$M$185,6,FALSE)) -> 77 | H44: =IF(VLOOKUP($C44,invullijst!$A$11:$M$185,7,FALSE)="","",VLOOKUP($C44,invullijst!$A$11:$M$185,7,FALSE)) -> x | J44: =IF(VLOOKUP($C44,invullijst!$A$11:$M$185,9,FALSE)="","",VLOOKUP($C44,invullijst!$A$11:$M$185,9,FALSE)) -> x | K44: =IF(VLOOKUP($C44,invullijst!$A$11:$M$185,10,FALSE)="","",VLOOKUP($C44,invullijst!$A$11:$M$185,10,FALSE)) -> x | L44: 77 | M44: =IF(VLOOKUP($C44,invullijst!$A$11:$M$185,11,FALSE)="","",VLOOKUP($C44,invullijst!$A$11:$M$185,11,FALSE)) -> 
D45: =IF(VLOOKUP($C45,invullijst!$A$11:$M$185,4,FALSE)="","",VLOOKUP($C45,invullijst!$A$11:$M$185,4,FALSE)) -> 0 | E45: =IF(VLOOKUP($C45,invullijst!$A$11:$M$185,2,FALSE)="","",VLOOKUP($C45,invullijst!$A$11:$M$185,2,FALSE)) -> 0 | F45: =IF(VLOOKUP($C45,invullijst!$A$11:$M$185,3,FALSE)="","",VLOOKUP($C45,invullijst!$A$11:$M$185,3,FALSE)) -> 0 | G45: =IF(VLOOKUP(C45,invullijst!$A$11:$M$185,6,FALSE)="","",VLOOKUP(C45,invullijst!$A$11:$M$185,6,FALSE)) -> 0 | H45: =IF(VLOOKUP($C45,invullijst!$A$11:$M$185,7,FALSE)="","",VLOOKUP($C45,invullijst!$A$11:$M$185,7,FALSE)) -> 0 | I45: =IF(VLOOKUP($C45,invullijst!$A$11:$M$185,8,FALSE)="","",VLOOKUP($C45,invullijst!$A$11:$M$185,8,FALSE)) -> 0 | J45: =IF(VLOOKUP($C45,invullijst!$A$11:$M$185,9,FALSE)="","",VLOOKUP($C45,invullijst!$A$11:$M$185,9,FALSE)) -> 0 | K45: =IF(VLOOKUP($C45,invullijst!$A$11:$M$185,10,FALSE)="","",VLOOKUP($C45,invullijst!$A$11:$M$185,10,FALSE)) -> 0 | L45: 0 | M45: =IF(VLOOKUP($C45,invullijst!$A$11:$M$185,11,FALSE)="","",VLOOKUP($C45,invullijst!$A$11:$M$185,11,FALSE)) -> 0
D46: =IF(VLOOKUP($C46,invullijst!$A$11:$M$185,4,FALSE)="","",VLOOKUP($C46,invullijst!$A$11:$M$185,4,FALSE)) -> 0 | E46: =IF(VLOOKUP($C46,invullijst!$A$11:$M$185,2,FALSE)="","",VLOOKUP($C46,invullijst!$A$11:$M$185,2,FALSE)) -> 0 | F46: =IF(VLOOKUP($C46,invullijst!$A$11:$M$185,3,FALSE)="","",VLOOKUP($C46,invullijst!$A$11:$M$185,3,FALSE)) -> 0 | G46: =IF(VLOOKUP(C46,invullijst!$A$11:$M$185,6,FALSE)="","",VLOOKUP(C46,invullijst!$A$11:$M$185,6,FALSE)) -> 0 | H46: =IF(VLOOKUP($C46,invullijst!$A$11:$M$185,7,FALSE)="","",VLOOKUP($C46,invullijst!$A$11:$M$185,7,FALSE)) -> 0 | I46: =IF(VLOOKUP($C46,invullijst!$A$11:$M$185,8,FALSE)="","",VLOOKUP($C46,invullijst!$A$11:$M$185,8,FALSE)) -> 0 | J46: =IF(VLOOKUP($C46,invullijst!$A$11:$M$185,9,FALSE)="","",VLOOKUP($C46,invullijst!$A$11:$M$185,9,FALSE)) -> 0 | K46: =IF(VLOOKUP($C46,invullijst!$A$11:$M$185,10,FALSE)="","",VLOOKUP($C46,invullijst!$A$11:$M$185,10,FALSE)) -> 0 | L46: 0 | M46: =IF(VLOOKUP($C46,invullijst!$A$11:$M$185,11,FALSE)="","",VLOOKUP($C46,invullijst!$A$11:$M$185,11,FALSE)) -> 0
D47: =IF(VLOOKUP($C47,invullijst!$A$11:$M$185,4,FALSE)="","",VLOOKUP($C47,invullijst!$A$11:$M$185,4,FALSE)) -> 0 | E47: =IF(VLOOKUP($C47,invullijst!$A$11:$M$185,2,FALSE)="","",VLOOKUP($C47,invullijst!$A$11:$M$185,2,FALSE)) -> 0 | F47: =IF(VLOOKUP($C47,invullijst!$A$11:$M$185,3,FALSE)="","",VLOOKUP($C47,invullijst!$A$11:$M$185,3,FALSE)) -> 0 | G47: =IF(VLOOKUP(C47,invullijst!$A$11:$M$185,6,FALSE)="","",VLOOKUP(C47,invullijst!$A$11:$M$185,6,FALSE)) -> 0 | H47: =IF(VLOOKUP($C47,invullijst!$A$11:$M$185,7,FALSE)="","",VLOOKUP($C47,invullijst!$A$11:$M$185,7,FALSE)) -> 0 | I47: =IF(VLOOKUP($C47,invullijst!$A$11:$M$185,8,FALSE)="","",VLOOKUP($C47,invullijst!$A$11:$M$185,8,FALSE)) -> 0 | J47: =IF(VLOOKUP($C47,invullijst!$A$11:$M$185,9,FALSE)="","",VLOOKUP($C47,invullijst!$A$11:$M$185,9,FALSE)) -> 0 | K47: =IF(VLOOKUP($C47,invullijst!$A$11:$M$185,10,FALSE)="","",VLOOKUP($C47,invullijst!$A$11:$M$185,10,FALSE)) -> 0 | L47: 0 | M47: =IF(VLOOKUP($C47,invullijst!$A$11:$M$185,11,FALSE)="","",VLOOKUP($C47,invullijst!$A$11:$M$185,11,FALSE)) -> 0
D48: =IF(VLOOKUP($C48,invullijst!$A$11:$M$185,4,FALSE)="","",VLOOKUP($C48,invullijst!$A$11:$M$185,4,FALSE)) -> 0 | E48: =IF(VLOOKUP($C48,invullijst!$A$11:$M$185,2,FALSE)="","",VLOOKUP($C48,invullijst!$A$11:$M$185,2,FALSE)) -> 0 | F48: =IF(VLOOKUP($C48,invullijst!$A$11:$M$185,3,FALSE)="","",VLOOKUP($C48,invullijst!$A$11:$M$185,3,FALSE)) -> 0 | G48: =IF(VLOOKUP(C48,invullijst!$A$11:$M$185,6,FALSE)="","",VLOOKUP(C48,invullijst!$A$11:$M$185,6,FALSE)) -> 0 | H48: =IF(VLOOKUP($C48,invullijst!$A$11:$M$185,7,FALSE)="","",VLOOKUP($C48,invullijst!$A$11:$M$185,7,FALSE)) -> 0 | I48: =IF(VLOOKUP($C48,invullijst!$A$11:$M$185,8,FALSE)="","",VLOOKUP($C48,invullijst!$A$11:$M$185,8,FALSE)) -> 0 | J48: =IF(VLOOKUP($C48,invullijst!$A$11:$M$185,9,FALSE)="","",VLOOKUP($C48,invullijst!$A$11:$M$185,9,FALSE)) -> 0 | K48: =IF(VLOOKUP($C48,invullijst!$A$11:$M$185,10,FALSE)="","",VLOOKUP($C48,invullijst!$A$11:$M$185,10,FALSE)) -> 0 | L48: 0 | M48: =IF(VLOOKUP($C48,invullijst!$A$11:$M$185,11,FALSE)="","",VLOOKUP($C48,invullijst!$A$11:$M$185,11,FALSE)) -> 0
D49: =IF(VLOOKUP($C49,invullijst!$A$11:$M$185,4,FALSE)="","",VLOOKUP($C49,invullijst!$A$11:$M$185,4,FALSE)) -> 0 | E49: =IF(VLOOKUP($C49,invullijst!$A$11:$M$185,2,FALSE)="","",VLOOKUP($C49,invullijst!$A$11:$M$185,2,FALSE)) -> 0 | F49: =IF(VLOOKUP($C49,invullijst!$A$11:$M$185,3,FALSE)="","",VLOOKUP($C49,invullijst!$A$11:$M$185,3,FALSE)) -> 0 | G49: =IF(VLOOKUP(C49,invullijst!$A$11:$M$185,6,FALSE)="","",VLOOKUP(C49,invullijst!$A$11:$M$185,6,FALSE)) -> 0 | H49: =IF(VLOOKUP($C49,invullijst!$A$11:$M$185,7,FALSE)="","",VLOOKUP($C49,invullijst!$A$11:$M$185,7,FALSE)) -> 0 | I49: =IF(VLOOKUP($C49,invullijst!$A$11:$M$185,8,FALSE)="","",VLOOKUP($C49,invullijst!$A$11:$M$185,8,FALSE)) -> 0 | J49: =IF(VLOOKUP($C49,invullijst!$A$11:$M$185,9,FALSE)="","",VLOOKUP($C49,invullijst!$A$11:$M$185,9,FALSE)) -> 0 | K49: =IF(VLOOKUP($C49,invullijst!$A$11:$M$185,10,FALSE)="","",VLOOKUP($C49,invullijst!$A$11:$M$185,10,FALSE)) -> 0 | L49: 0 | M49: =IF(VLOOKUP($C49,invullijst!$A$11:$M$185,11,FALSE)="","",VLOOKUP($C49,invullijst!$A$11:$M$185,11,FALSE)) -> 0
D50: =IF(VLOOKUP($C50,invullijst!$A$11:$M$185,4,FALSE)="","",VLOOKUP($C50,invullijst!$A$11:$M$185,4,FALSE)) -> 0 | E50: =IF(VLOOKUP($C50,invullijst!$A$11:$M$185,2,FALSE)="","",VLOOKUP($C50,invullijst!$A$11:$M$185,2,FALSE)) -> 0 | F50: =IF(VLOOKUP($C50,invullijst!$A$11:$M$185,3,FALSE)="","",VLOOKUP($C50,invullijst!$A$11:$M$185,3,FALSE)) -> 0 | G50: =IF(VLOOKUP(C50,invullijst!$A$11:$M$185,6,FALSE)="","",VLOOKUP(C50,invullijst!$A$11:$M$185,6,FALSE)) -> 0 | H50: =IF(VLOOKUP($C50,invullijst!$A$11:$M$185,7,FALSE)="","",VLOOKUP($C50,invullijst!$A$11:$M$185,7,FALSE)) -> 0 | I50: =IF(VLOOKUP($C50,invullijst!$A$11:$M$185,8,FALSE)="","",VLOOKUP($C50,invullijst!$A$11:$M$185,8,FALSE)) -> 0 | J50: =IF(VLOOKUP($C50,invullijst!$A$11:$M$185,9,FALSE)="","",VLOOKUP($C50,invullijst!$A$11:$M$185,9,FALSE)) -> 0 | K50: =IF(VLOOKUP($C50,invullijst!$A$11:$M$185,10,FALSE)="","",VLOOKUP($C50,invullijst!$A$11:$M$185,10,FALSE)) -> 0 | L50: 0 | M50: =IF(VLOOKUP($C50,invullijst!$A$11:$M$185,11,FALSE)="","",VLOOKUP($C50,invullijst!$A$11:$M$185,11,FALSE)) -> 0
D51: =IF(VLOOKUP($C51,invullijst!$A$11:$M$185,4,FALSE)="","",VLOOKUP($C51,invullijst!$A$11:$M$185,4,FALSE)) -> 0
D52: =IF(VLOOKUP($C52,invullijst!$A$11:$M$185,4,FALSE)="","",VLOOKUP($C52,invullijst!$A$11:$M$185,4,FALSE)) -> 0
D53: =IF(VLOOKUP($C53,invullijst!$A$11:$M$185,4,FALSE)="","",VLOOKUP($C53,invullijst!$A$11:$M$185,4,FALSE)) -> 0
D54: =IF(VLOOKUP($C54,invullijst!$A$11:$M$185,4,FALSE)="","",VLOOKUP($C54,invullijst!$A$11:$M$185,4,FALSE)) -> 0
D55: =IF(VLOOKUP($C55,invullijst!$A$11:$M$185,4,FALSE)="","",VLOOKUP($C55,invullijst!$A$11:$M$185,4,FALSE)) -> 0

Sheet Jeugd
A1: JEUGD | G1: =invullijst!F1 -> Organistatie | K1: =invullijst!H2 -> 2024 - 2025
G2: =invullijst!F3 -> O.L.V. Schuts Elshout
A3: alleen in de gele kolom nummer schutter invullen | G3: wedstrijd | M3: KAMP-
A4: KL | C4: schutter | E4: NAAM | F4: PLAATS | G4: 1 | H4: 2 | I4: 3 | J4: 4 | K4: 5 | L4: TOTAAL | M4: KAART
A5: A | B5: 1 | C5: 221 | D5: =IF(VLOOKUP($C5,invullijst!$A$11:$M$185,4,FALSE)="","",VLOOKUP($C5,invullijst!$A$11:$M$185,4,FALSE)) -> J | E5: =IF(VLOOKUP($C5,invullijst!$A$11:$M$185,2,FALSE)="","",VLOOKUP($C5,invullijst!$A$11:$M$185,2,FALSE)) -> Mees Huijben | F5: =IF(VLOOKUP($C5,invullijst!$A$11:$M$185,3,FALSE)="","",VLOOKUP($C5,invullijst!$A$11:$M$185,3,FALSE)) -> Besoijen | G5: =IF(VLOOKUP($C5,invullijst!$A$11:$M$185,6,FALSE)="","",VLOOKUP($C5,invullijst!$A$11:$M$185,6,FALSE)) -> 63 | H5: =IF(VLOOKUP($C5,invullijst!$A$11:$M$185,7,FALSE)="","",VLOOKUP($C5,invullijst!$A$11:$M$185,7,FALSE)) -> 79 | I5: =IF(VLOOKUP($C5,invullijst!$A$11:$M$185,8,FALSE)="","",VLOOKUP($C5,invullijst!$A$11:$M$185,8,FALSE)) -> 74 | J5: =IF(VLOOKUP($C5,invullijst!$A$11:$M$185,9,FALSE)="","",VLOOKUP($C5,invullijst!$A$11:$M$185,9,FALSE)) -> x | K5: =IF(VLOOKUP($C5,invullijst!$A$11:$M$185,10,FALSE)="","",VLOOKUP($C5,invullijst!$A$11:$M$185,10,FALSE)) -> 75 | L5: =SUM(G5:K5) -> 291 | M5: =IF(VLOOKUP($C5,invullijst!$A$11:$M$185,11,FALSE)="","",VLOOKUP($C5,invullijst!$A$11:$M$185,11,FALSE)) -> 36
B6: 2 | C6: 312 | D6: =IF(VLOOKUP($C6,invullijst!$A$11:$M$185,4,FALSE)="","",VLOOKUP($C6,invullijst!$A$11:$M$185,4,FALSE)) -> J | E6: =IF(VLOOKUP($C6,invullijst!$A$11:$M$185,2,FALSE)="","",VLOOKUP($C6,invullijst!$A$11:$M$185,2,FALSE)) -> Floor de Jong | F6: =IF(VLOOKUP($C6,invullijst!$A$11:$M$185,3,FALSE)="","",VLOOKUP($C6,invullijst!$A$11:$M$185,3,FALSE)) -> Elshout | G6: =IF(VLOOKUP($C6,invullijst!$A$11:$M$185,6,FALSE)="","",VLOOKUP($C6,invullijst!$A$11:$M$185,6,FALSE)) -> 95 | H6: =IF(VLOOKUP($C6,invullijst!$A$11:$M$185,7,FALSE)="","",VLOOKUP($C6,invullijst!$A$11:$M$185,7,FALSE)) -> 91 | I6: =IF(VLOOKUP($C6,invullijst!$A$11:$M$185,8,FALSE)="","",VLOOKUP($C6,invullijst!$A$11:$M$185,8,FALSE)) -> 92 | J6: =IF(VLOOKUP($C6,invullijst!$A$11:$M$185,9,FALSE)="","",VLOOKUP($C6,invullijst!$A$11:$M$185,9,FALSE)) ->  | K6: =IF(VLOOKUP($C6,invullijst!$A$11:$M$185,10,FALSE)="","",VLOOKUP($C6,invullijst!$A$11:$M$185,10,FALSE)) -> x | L6: =SUM(G6:K6) -> 278 | M6: =IF(VLOOKUP($C6,invullijst!$A$11:$M$185,11,FALSE)="","",VLOOKUP($C6,invullijst!$A$11:$M$185,11,FALSE)) -> 44
B7: 3 | D7: =IF(VLOOKUP($C7,invullijst!$A$11:$M$185,4,FALSE)="","",VLOOKUP($C7,invullijst!$A$11:$M$185,4,FALSE)) -> 0 | E7: =IF(VLOOKUP($C7,invullijst!$A$11:$M$185,2,FALSE)="","",VLOOKUP($C7,invullijst!$A$11:$M$185,2,FALSE)) -> 0 | F7: =IF(VLOOKUP($C7,invullijst!$A$11:$M$185,3,FALSE)="","",VLOOKUP($C7,invullijst!$A$11:$M$185,3,FALSE)) -> 0 | G7: =IF(VLOOKUP($C7,invullijst!$A$11:$M$185,6,FALSE)="","",VLOOKUP($C7,invullijst!$A$11:$M$185,6,FALSE)) -> 0 | H7: =IF(VLOOKUP($C7,invullijst!$A$11:$M$185,7,FALSE)="","",VLOOKUP($C7,invullijst!$A$11:$M$185,7,FALSE)) -> 0 | I7: =IF(VLOOKUP($C7,invullijst!$A$11:$M$185,8,FALSE)="","",VLOOKUP($C7,invullijst!$A$11:$M$185,8,FALSE)) -> 0 | J7: =IF(VLOOKUP($C7,invullijst!$A$11:$M$185,9,FALSE)="","",VLOOKUP($C7,invullijst!$A$11:$M$185,9,FALSE)) -> 0 | K7: =IF(VLOOKUP($C7,invullijst!$A$11:$M$185,10,FALSE)="","",VLOOKUP($C7,invullijst!$A$11:$M$185,10,FALSE)) -> 0 | L7: =SUM(G7:K7) -> 0 | M7: =IF(VLOOKUP($C7,invullijst!$A$11:$M$185,11,FALSE)="","",VLOOKUP($C7,invullijst!$A$11:$M$185,11,FALSE)) -> 0
B8: 4 | D8: =IF(VLOOKUP($C8,invullijst!$A$11:$M$185,4,FALSE)="","",VLOOKUP($C8,invullijst!$A$11:$M$185,4,FALSE)) -> 0 | E8: =IF(VLOOKUP($C8,invullijst!$A$11:$M$185,2,FALSE)="","",VLOOKUP($C8,invullijst!$A$11:$M$185,2,FALSE)) -> 0 | F8: =IF(VLOOKUP($C8,invullijst!$A$11:$M$185,3,FALSE)="","",VLOOKUP($C8,invullijst!$A$11:$M$185,3,FALSE)) -> 0 | G8: =IF(VLOOKUP($C8,invullijst!$A$11:$M$185,6,FALSE)="","",VLOOKUP($C8,invullijst!$A$11:$M$185,6,FALSE)) -> 0 | H8: =IF(VLOOKUP($C8,invullijst!$A$11:$M$185,7,FALSE)="","",VLOOKUP($C8,invullijst!$A$11:$M$185,7,FALSE)) -> 0 | I8: =IF(VLOOKUP($C8,invullijst!$A$11:$M$185,8,FALSE)="","",VLOOKUP($C8,invullijst!$A$11:$M$185,8,FALSE)) -> 0 | J8: =IF(VLOOKUP($C8,invullijst!$A$11:$M$185,9,FALSE)="","",VLOOKUP($C8,invullijst!$A$11:$M$185,9,FALSE)) -> 0 | K8: =IF(VLOOKUP($C8,invullijst!$A$11:$M$185,10,FALSE)="","",VLOOKUP($C8,invullijst!$A$11:$M$185,10,FALSE)) -> 0 | L8: =SUM(G8:K8) -> 0 | M8: =IF(VLOOKUP($C8,invullijst!$A$11:$M$185,11,FALSE)="","",VLOOKUP($C8,invullijst!$A$11:$M$185,11,FALSE)) -> 0
D9: =IF(VLOOKUP($C9,invullijst!$A$11:$M$185,4,FALSE)="","",VLOOKUP($C9,invullijst!$A$11:$M$185,4,FALSE)) -> 0
D10: =IF(VLOOKUP($C10,invullijst!$A$11:$M$185,4,FALSE)="","",VLOOKUP($C10,invullijst!$A$11:$M$185,4,FALSE)) -> 0
D11: =IF(VLOOKUP($C11,invullijst!$A$11:$M$185,4,FALSE)="","",VLOOKUP($C11,invullijst!$A$11:$M$185,4,FALSE)) -> 0
D12: =IF(VLOOKUP($C12,invullijst!$A$11:$M$185,4,FALSE)="","",VLOOKUP($C12,invullijst!$A$11:$M$185,4,FALSE)) -> 0
D13: =IF(VLOOKUP($C13,invullijst!$A$11:$M$185,4,FALSE)="","",VLOOKUP($C13,invullijst!$A$11:$M$185,4,FALSE)) -> 0
D14: =IF(VLOOKUP($C14,invullijst!$A$11:$M$185,4,FALSE)="","",VLOOKUP($C14,invullijst!$A$11:$M$185,4,FALSE)) -> 0

Sheet 65+
A1: 65+ | G1: =invullijst!F1 -> Organistatie | K1: =invullijst!H2 -> 2024 - 2025
G2: =invullijst!F3 -> O.L.V. Schuts Elshout
A3: alleen in de gele kolom nummer schutter invullen | G3: wedstrijd | M3: KAMP-
A4: KL. | C4: schutter | E4: NAAM | F4: PLAATS | G4: 1 | H4: 2 | I4: 3 | J4: 4 | K4: 5 | L4: TOTAAL | M4: KAART
A5: A | B5: 1 | C5: 405 | D5: =IF(VLOOKUP($C5,invullijst!$A$11:$M189,4,FALSE)="","",VLOOKUP($C5,invullijst!$A$11:$M189,4,FALSE)) -> 65+ | E5: =IF(VLOOKUP($C5,invullijst!$A$11:$M189,2,FALSE)="","",VLOOKUP($C5,invullijst!$A$11:$M189,2,FALSE)) -> Jan de Vaan | F5: =IF(VLOOKUP($C5,invullijst!$A$11:$M$185,3,FALSE)="","",VLOOKUP($C5,invullijst!$A$11:$M$185,3,FALSE)) -> Haarsteeg | G5: =IF(VLOOKUP($C5,invullijst!$A$11:$M$185,6,FALSE)="","",VLOOKUP($C5,invullijst!$A$11:$M$185,6,FALSE)) -> 98 | H5: =IF(VLOOKUP($C5,invullijst!$A$11:$M$185,7,FALSE)="","",VLOOKUP($C5,invullijst!$A$11:$M$185,7,FALSE)) -> x | I5: =IF(VLOOKUP($C5,invullijst!$A$11:$M$185,8,FALSE)="","",VLOOKUP($C5,invullijst!$A$11:$M$185,8,FALSE)) -> 97 | J5: =IF(VLOOKUP($C5,invullijst!$A$11:$M$185,9,FALSE)="","",VLOOKUP($C5,invullijst!$A$11:$M$185,9,FALSE)) -> 96 | K5: =IF(VLOOKUP($C5,invullijst!$A$11:$M$185,10,FALSE)="","",VLOOKUP($C5,invullijst!$A$11:$M$185,10,FALSE)) -> 97 | L5: =SUM(G5:K5) -> 388 | M5: =IF(VLOOKUP($C5,invullijst!$A$11:$M$185,11,FALSE)="","",VLOOKUP($C5,invullijst!$A$11:$M$185,11,FALSE)) -> 48
B6: 2 | C6: 404 | D6: =IF(VLOOKUP($C6,invullijst!$A$11:$M200,4,FALSE)="","",VLOOKUP($C6,invullijst!$A$11:$M200,4,FALSE)) -> 65+ | E6: =IF(VLOOKUP($C6,invullijst!$A$11:$M200,2,FALSE)="","",VLOOKUP($C6,invullijst!$A$11:$M200,2,FALSE)) -> Gerard van Beurden | F6: =IF(VLOOKUP($C6,invullijst!$A$11:$M$185,3,FALSE)="","",VLOOKUP($C6,invullijst!$A$11:$M$185,3,FALSE)) -> Haarsteeg | G6: =IF(VLOOKUP($C6,invullijst!$A$11:$M$185,6,FALSE)="","",VLOOKUP($C6,invullijst!$A$11:$M$185,6,FALSE)) -> 94 | H6: =IF(VLOOKUP($C6,invullijst!$A$11:$M$185,7,FALSE)="","",VLOOKUP($C6,invullijst!$A$11:$M$185,7,FALSE)) -> x | I6: =IF(VLOOKUP($C6,invullijst!$A$11:$M$185,8,FALSE)="","",VLOOKUP($C6,invullijst!$A$11:$M$185,8,FALSE)) -> 98 | J6: =IF(VLOOKUP($C6,invullijst!$A$11:$M$185,9,FALSE)="","",VLOOKUP($C6,invullijst!$A$11:$M$185,9,FALSE)) -> 96 | K6: =IF(VLOOKUP($C6,invullijst!$A$11:$M$185,10,FALSE)="","",VLOOKUP($C6,invullijst!$A$11:$M$185,10,FALSE)) -> 97 | L6: 385 | M6: =IF(VLOOKUP($C6,invullijst!$A$11:$M$185,11,FALSE)="","",VLOOKUP($C6,invullijst!$A$11:$M$185,11,FALSE)) -> 49
B7: 3 | C7: 401 | D7: =IF(VLOOKUP($C7,invullijst!$A$11:$M192,4,FALSE)="","",VLOOKUP($C7,invullijst!$A$11:$M192,4,FALSE)) -> 65+ | E7: =IF(VLOOKUP($C7,invullijst!$A$11:$M193,2,FALSE)="","",VLOOKUP($C7,invullijst!$A$11:$M193,2,FALSE)) -> Frans van Beurden | F7: =IF(VLOOKUP($C7,invullijst!$A$11:$M$185,3,FALSE)="","",VLOOKUP($C7,invullijst!$A$11:$M$185,3,FALSE)) -> Haarsteeg | G7: =IF(VLOOKUP($C7,invullijst!$A$11:$M$185,6,FALSE)="","",VLOOKUP($C7,invullijst!$A$11:$M$185,6,FALSE)) -> 95 | H7: =IF(VLOOKUP($C7,invullijst!$A$11:$M$185,7,FALSE)="","",VLOOKUP($C7,invullijst!$A$11:$M$185,7,FALSE)) -> x | I7: =IF(VLOOKUP($C7,invullijst!$A$11:$M$185,8,FALSE)="","",VLOOKUP($C7,invullijst!$A$11:$M$185,8,FALSE)) -> 98 | J7: =IF(VLOOKUP($C7,invullijst!$A$11:$M$185,9,FALSE)="","",VLOOKUP($C7,invullijst!$A$11:$M$185,9,FALSE)) -> 98 | K7: =IF(VLOOKUP($C7,invullijst!$A$11:$M$185,10,FALSE)="","",VLOOKUP($C7,invullijst!$A$11:$M$185,10,FALSE)) -> 93 | L7: 384 | M7: =IF(VLOOKUP($C7,invullijst!$A$11:$M$185,11,FALSE)="","",VLOOKUP($C7,invullijst!$A$11:$M$185,11,FALSE)) -> 48
B8: 4 | C8: 415 | D8: =IF(VLOOKUP($C8,invullijst!$A$11:$M190,4,FALSE)="","",VLOOKUP($C8,invullijst!$A$11:$M190,4,FALSE)) -> 65+ | E8: =IF(VLOOKUP($C8,invullijst!$A$11:$M201,2,FALSE)="","",VLOOKUP($C8,invullijst!$A$11:$M201,2,FALSE)) -> Wim de Gouw | F8: =IF(VLOOKUP($C8,invullijst!$A$11:$M$185,3,FALSE)="","",VLOOKUP($C8,invullijst!$A$11:$M$185,3,FALSE)) -> Haarsteeg | G8: =IF(VLOOKUP($C8,invullijst!$A$11:$M$185,6,FALSE)="","",VLOOKUP($C8,invullijst!$A$11:$M$185,6,FALSE)) -> 96 | H8: =IF(VLOOKUP($C8,invullijst!$A$11:$M$185,7,FALSE)="","",VLOOKUP($C8,invullijst!$A$11:$M$185,7,FALSE)) -> x | I8: =IF(VLOOKUP($C8,invullijst!$A$11:$M$185,8,FALSE)="","",VLOOKUP($C8,invullijst!$A$11:$M$185,8,FALSE)) -> 95 | J8: =IF(VLOOKUP($C8,invullijst!$A$11:$M$185,9,FALSE)="","",VLOOKUP($C8,invullijst!$A$11:$M$185,9,FALSE)) -> 96 | K8: =IF(VLOOKUP($C8,invullijst!$A$11:$M$185,10,FALSE)="","",VLOOKUP($C8,invullijst!$A$11:$M$185,10,FALSE)) -> 94 | L8: 381 | M8: =IF(VLOOKUP($C8,invullijst!$A$11:$M$185,11,FALSE)="","",VLOOKUP($C8,invullijst!$A$11:$M$185,11,FALSE)) -> 46
B9: 5 | C9: 412 | D9: =IF(VLOOKUP($C9,invullijst!$A$11:$M201,4,FALSE)="","",VLOOKUP($C9,invullijst!$A$11:$M201,4,FALSE)) -> 65+ | E9: =IF(VLOOKUP($C9,invullijst!$A$11:$M195,2,FALSE)="","",VLOOKUP($C9,invullijst!$A$11:$M195,2,FALSE)) -> Francien v/d Wiel | F9: =IF(VLOOKUP($C9,invullijst!$A$11:$M$185,3,FALSE)="","",VLOOKUP($C9,invullijst!$A$11:$M$185,3,FALSE)) -> Haarsteeg | G9: =IF(VLOOKUP($C9,invullijst!$A$11:$M$185,6,FALSE)="","",VLOOKUP($C9,invullijst!$A$11:$M$185,6,FALSE)) -> 93 | H9: =IF(VLOOKUP($C9,invullijst!$A$11:$M$185,7,FALSE)="","",VLOOKUP($C9,invullijst!$A$11:$M$185,7,FALSE)) -> x | I9: =IF(VLOOKUP($C9,invullijst!$A$11:$M$185,8,FALSE)="","",VLOOKUP($C9,invullijst!$A$11:$M$185,8,FALSE)) -> 96 | J9: =IF(VLOOKUP($C9,invullijst!$A$11:$M$185,9,FALSE)="","",VLOOKUP($C9,invullijst!$A$11:$M$185,9,FALSE)) -> 96 | K9: =IF(VLOOKUP($C9,invullijst!$A$11:$M$185,10,FALSE)="","",VLOOKUP($C9,invullijst!$A$11:$M$185,10,FALSE)) -> 94 | L9: 379 | M9: =IF(VLOOKUP($C9,invullijst!$A$11:$M$185,11,FALSE)="","",VLOOKUP($C9,invullijst!$A$11:$M$185,11,FALSE)) -> 48
B10: 6 | C10: 413 | D10: =IF(VLOOKUP($C10,invullijst!$A$11:$M205,4,FALSE)="","",VLOOKUP($C10,invullijst!$A$11:$M205,4,FALSE)) -> 65+ | E10: =IF(VLOOKUP($C10,invullijst!$A$11:$M199,2,FALSE)="","",VLOOKUP($C10,invullijst!$A$11:$M199,2,FALSE)) -> Frans Mommersteeg | F10: =IF(VLOOKUP($C10,invullijst!$A$11:$M$185,3,FALSE)="","",VLOOKUP($C10,invullijst!$A$11:$M$185,3,FALSE)) -> Haarsteeg | G10: =IF(VLOOKUP($C10,invullijst!$A$11:$M$185,6,FALSE)="","",VLOOKUP($C10,invullijst!$A$11:$M$185,6,FALSE)) -> 95 | H10: =IF(VLOOKUP($C10,invullijst!$A$11:$M$185,7,FALSE)="","",VLOOKUP($C10,invullijst!$A$11:$M$185,7,FALSE)) -> x | I10: =IF(VLOOKUP($C10,invullijst!$A$11:$M$185,8,FALSE)="","",VLOOKUP($C10,invullijst!$A$11:$M$185,8,FALSE)) -> 96 | J10: =IF(VLOOKUP($C10,invullijst!$A$11:$M$185,9,FALSE)="","",VLOOKUP($C10,invullijst!$A$11:$M$185,9,FALSE)) -> 94 | K10: =IF(VLOOKUP($C10,invullijst!$A$11:$M$185,10,FALSE)="","",VLOOKUP($C10,invullijst!$A$11:$M$185,10,FALSE)) -> 94 | L10: 379 | M10: =IF(VLOOKUP($C10,invullijst!$A$11:$M$185,11,FALSE)="","",VLOOKUP($C10,invullijst!$A$11:$M$185,11,FALSE)) -> 47
B11: 7 | C11: 218 | D11: =IF(VLOOKUP($C11,invullijst!$A$11:$M195,4,FALSE)="","",VLOOKUP($C11,invullijst!$A$11:$M195,4,FALSE)) -> 65+ | E11: =IF(VLOOKUP($C11,invullijst!$A$11:$M185,2,FALSE)="","",VLOOKUP($C11,invullijst!$A$11:$M185,2,FALSE)) -> Jacob van de Werken | F11: =IF(VLOOKUP($C11,invullijst!$A$11:$M$185,3,FALSE)="","",VLOOKUP($C11,invullijst!$A$11:$M$185,3,FALSE)) -> Besoijen | G11: =IF(VLOOKUP($C11,invullijst!$A$11:$M$185,6,FALSE)="","",VLOOKUP($C11,invullijst!$A$11:$M$185,6,FALSE)) -> 97 | H11: =IF(VLOOKUP($C11,invullijst!$A$11:$M$185,7,FALSE)="","",VLOOKUP($C11,invullijst!$A$11:$M$185,7,FALSE)) -> 97 | I11: =IF(VLOOKUP($C11,invullijst!$A$11:$M$185,8,FALSE)="","",VLOOKUP($C11,invullijst!$A$11:$M$185,8,FALSE)) -> 94 | J11: =IF(VLOOKUP($C11,invullijst!$A$11:$M$185,9,FALSE)="","",VLOOKUP($C11,invullijst!$A$11:$M$185,9,FALSE)) -> x | K11: =IF(VLOOKUP($C11,invullijst!$A$11:$M$185,10,FALSE)="","",VLOOKUP($C11,invullijst!$A$11:$M$185,10,FALSE)) -> 91 | L11: 379 | M11: =IF(VLOOKUP($C11,invullijst!$A$11:$M$185,11,FALSE)="","",VLOOKUP($C11,invullijst!$A$11:$M$185,11,FALSE)) -> 46
B12: 8 | C12: 219 | D12: =IF(VLOOKUP($C12,invullijst!$A$11:$M194,4,FALSE)="","",VLOOKUP($C12,invullijst!$A$11:$M194,4,FALSE)) -> 65+ | E12: =IF(VLOOKUP($C12,invullijst!$A$11:$M192,2,FALSE)="","",VLOOKUP($C12,invullijst!$A$11:$M192,2,FALSE)) -> Frans de Bont | F12: =IF(VLOOKUP($C12,invullijst!$A$11:$M$185,3,FALSE)="","",VLOOKUP($C12,invullijst!$A$11:$M$185,3,FALSE)) -> Besoijen | G12: =IF(VLOOKUP($C12,invullijst!$A$11:$M$185,6,FALSE)="","",VLOOKUP($C12,invullijst!$A$11:$M$185,6,FALSE)) -> 95 | H12: =IF(VLOOKUP($C12,invullijst!$A$11:$M$185,7,FALSE)="","",VLOOKUP($C12,invullijst!$A$11:$M$185,7,FALSE)) -> 93 | I12: =IF(VLOOKUP($C12,invullijst!$A$11:$M$185,8,FALSE)="","",VLOOKUP($C12,invullijst!$A$11:$M$185,8,FALSE)) -> 94 | J12: =IF(VLOOKUP($C12,invullijst!$A$11:$M$185,9,FALSE)="","",VLOOKUP($C12,invullijst!$A$11:$M$185,9,FALSE)) -> x | K12: =IF(VLOOKUP($C12,invullijst!$A$11:$M$185,10,FALSE)="","",VLOOKUP($C12,invullijst!$A$11:$M$185,10,FALSE)) -> 96 | L12: 378 | M12: =IF(VLOOKUP($C12,invullijst!$A$11:$M$185,11,FALSE)="","",VLOOKUP($C12,invullijst!$A$11:$M$185,11,FALSE)) -> 46
B13: 9 | C13: 307 | D13: =IF(VLOOKUP($C13,invullijst!$A$11:$M206,4,FALSE)="","",VLOOKUP($C13,invullijst!$A$11:$M206,4,FALSE)) -> 65+ | E13: =IF(VLOOKUP($C13,invullijst!$A$11:$M202,2,FALSE)="","",VLOOKUP($C13,invullijst!$A$11:$M202,2,FALSE)) -> Bert van Engelen | F13: =IF(VLOOKUP($C13,invullijst!$A$11:$M$185,3,FALSE)="","",VLOOKUP($C13,invullijst!$A$11:$M$185,3,FALSE)) -> Elshout | G13: =IF(VLOOKUP($C13,invullijst!$A$11:$M$185,6,FALSE)="","",VLOOKUP($C13,invullijst!$A$11:$M$185,6,FALSE)) -> 95 | H13: =IF(VLOOKUP($C13,invullijst!$A$11:$M$185,7,FALSE)="","",VLOOKUP($C13,invullijst!$A$11:$M$185,7,FALSE)) -> 95 | I13: =IF(VLOOKUP($C13,invullijst!$A$11:$M$185,8,FALSE)="","",VLOOKUP($C13,invullijst!$A$11:$M$185,8,FALSE)) -> 93 | J13: =IF(VLOOKUP($C13,invullijst!$A$11:$M$185,9,FALSE)="","",VLOOKUP($C13,invullijst!$A$11:$M$185,9,FALSE)) -> 94 | K13: =IF(VLOOKUP($C13,invullijst!$A$11:$M$185,10,FALSE)="","",VLOOKUP($C13,invullijst!$A$11:$M$185,10,FALSE)) -> x | L13: 377 | M13: =IF(VLOOKUP($C13,invullijst!$A$11:$M$185,11,FALSE)="","",VLOOKUP($C13,invullijst!$A$11:$M$185,11,FALSE)) -> 44
B14: 10 | C14: 509 | D14: =IF(VLOOKUP($C14,invullijst!$A$11:$M188,4,FALSE)="","",VLOOKUP($C14,invullijst!$A$11:$M188,4,FALSE)) -> 65+ | E14: =IF(VLOOKUP($C14,invullijst!$A$11:$M190,2,FALSE)="","",VLOOKUP($C14,invullijst!$A$11:$M190,2,FALSE)) -> Adwan de Pinth | F14: =IF(VLOOKUP($C14,invullijst!$A$11:$M$185,3,FALSE)="","",VLOOKUP($C14,invullijst!$A$11:$M$185,3,FALSE)) -> Kaatsheuvel | G14: =IF(VLOOKUP($C14,invullijst!$A$11:$M$185,6,FALSE)="","",VLOOKUP($C14,invullijst!$A$11:$M$185,6,FALSE)) -> 90 | H14: =IF(VLOOKUP($C14,invullijst!$A$11:$M$185,7,FALSE)="","",VLOOKUP($C14,invullijst!$A$11:$M$185,7,FALSE)) -> 94 | I14: =IF(VLOOKUP($C14,invullijst!$A$11:$M$185,8,FALSE)="","",VLOOKUP($C14,invullijst!$A$11:$M$185,8,FALSE)) -> x | J14: =IF(VLOOKUP($C14,invullijst!$A$11:$M$185,9,FALSE)="","",VLOOKUP($C14,invullijst!$A$11:$M$185,9,FALSE)) -> 96 | K14: =IF(VLOOKUP($C14,invullijst!$A$11:$M$185,10,FALSE)="","",VLOOKUP($C14,invullijst!$A$11:$M$185,10,FALSE)) -> 91 | L14: 371 | M14: =IF(VLOOKUP($C14,invullijst!$A$11:$M$185,11,FALSE)="","",VLOOKUP($C14,invullijst!$A$11:$M$185,11,FALSE)) -> 40
B15: 11 | C15: 403 | D15: =IF(VLOOKUP($C15,invullijst!$A$11:$M191,4,FALSE)="","",VLOOKUP($C15,invullijst!$A$11:$M191,4,FALSE)) -> 65+ | E15: =IF(VLOOKUP($C15,invullijst!$A$11:$M191,2,FALSE)="","",VLOOKUP($C15,invullijst!$A$11:$M191,2,FALSE)) -> Dorien de Kort | F15: =IF(VLOOKUP($C15,invullijst!$A$11:$M$185,3,FALSE)="","",VLOOKUP($C15,invullijst!$A$11:$M$185,3,FALSE)) -> Haarsteeg | G15: =IF(VLOOKUP($C15,invullijst!$A$11:$M$185,6,FALSE)="","",VLOOKUP($C15,invullijst!$A$11:$M$185,6,FALSE)) -> 88 | H15: =IF(VLOOKUP($C15,invullijst!$A$11:$M$185,7,FALSE)="","",VLOOKUP($C15,invullijst!$A$11:$M$185,7,FALSE)) -> x | I15: =IF(VLOOKUP($C15,invullijst!$A$11:$M$185,8,FALSE)="","",VLOOKUP($C15,invullijst!$A$11:$M$185,8,FALSE)) -> 95 | J15: =IF(VLOOKUP($C15,invullijst!$A$11:$M$185,9,FALSE)="","",VLOOKUP($C15,invullijst!$A$11:$M$185,9,FALSE)) -> 96 | K15: =IF(VLOOKUP($C15,invullijst!$A$11:$M$185,10,FALSE)="","",VLOOKUP($C15,invullijst!$A$11:$M$185,10,FALSE)) -> 90 | L15: 369 | M15: =IF(VLOOKUP($C15,invullijst!$A$11:$M$185,11,FALSE)="","",VLOOKUP($C15,invullijst!$A$11:$M$185,11,FALSE)) -> 49
B16: 12 | C16: 310 | D16: =IF(VLOOKUP($C16,invullijst!$A$11:$M203,4,FALSE)="","",VLOOKUP($C16,invullijst!$A$11:$M203,4,FALSE)) -> 65+ | E16: =IF(VLOOKUP($C16,invullijst!$A$11:$M197,2,FALSE)="","",VLOOKUP($C16,invullijst!$A$11:$M197,2,FALSE)) -> Tiny Boom | F16: =IF(VLOOKUP($C16,invullijst!$A$11:$M$185,3,FALSE)="","",VLOOKUP($C16,invullijst!$A$11:$M$185,3,FALSE)) -> Elshout | G16: =IF(VLOOKUP($C16,invullijst!$A$11:$M$185,6,FALSE)="","",VLOOKUP($C16,invullijst!$A$11:$M$185,6,FALSE)) -> 92 | H16: =IF(VLOOKUP($C16,invullijst!$A$11:$M$185,7,FALSE)="","",VLOOKUP($C16,invullijst!$A$11:$M$185,7,FALSE)) -> 92 | I16: =IF(VLOOKUP($C16,invullijst!$A$11:$M$185,8,FALSE)="","",VLOOKUP($C16,invullijst!$A$11:$M$185,8,FALSE)) -> 91 | J16: =IF(VLOOKUP($C16,invullijst!$A$11:$M$185,9,FALSE)="","",VLOOKUP($C16,invullijst!$A$11:$M$185,9,FALSE)) -> 94 | K16: =IF(VLOOKUP($C16,invullijst!$A$11:$M$185,10,FALSE)="","",VLOOKUP($C16,invullijst!$A$11:$M$185,10,FALSE)) -> x | L16: 369 | M16: =IF(VLOOKUP($C16,invullijst!$A$11:$M$185,11,FALSE)="","",VLOOKUP($C16,invullijst!$A$11:$M$185,11,FALSE)) -> 45
B17: 13 | C17: 516 | D17: =IF(VLOOKUP($C17,invullijst!$A$11:$M199,4,FALSE)="","",VLOOKUP($C17,invullijst!$A$11:$M199,4,FALSE)) -> 65+ | E17: =IF(VLOOKUP($C17,invullijst!$A$11:$M200,2,FALSE)="","",VLOOKUP($C17,invullijst!$A$11:$M200,2,FALSE)) -> Henry Bergakker disp | F17: =IF(VLOOKUP($C17,invullijst!$A$11:$M$185,3,FALSE)="","",VLOOKUP($C17,invullijst!$A$11:$M$185,3,FALSE)) -> Kaatsheuvel | G17: =IF(VLOOKUP($C17,invullijst!$A$11:$M$185,6,FALSE)="","",VLOOKUP($C17,invullijst!$A$11:$M$185,6,FALSE)) -> 90 | H17: =IF(VLOOKUP($C17,invullijst!$A$11:$M$185,7,FALSE)="","",VLOOKUP($C17,invullijst!$A$11:$M$185,7,FALSE)) -> 92 | I17: =IF(VLOOKUP($C17,invullijst!$A$11:$M$185,8,FALSE)="","",VLOOKUP($C17,invullijst!$A$11:$M$185,8,FALSE)) -> x | J17: =IF(VLOOKUP($C17,invullijst!$A$11:$M$185,9,FALSE)="","",VLOOKUP($C17,invullijst!$A$11:$M$185,9,FALSE)) -> 90 | K17: =IF(VLOOKUP($C17,invullijst!$A$11:$M$185,10,FALSE)="","",VLOOKUP($C17,invullijst!$A$11:$M$185,10,FALSE)) -> 92 | L17: 364 | M17: =IF(VLOOKUP($C17,invullijst!$A$11:$M$185,11,FALSE)="","",VLOOKUP($C17,invullijst!$A$11:$M$185,11,FALSE)) -> 47
A18: B | B18: 1 | C18: 220 | D18: =IF(VLOOKUP($C18,invullijst!$A$11:$M197,4,FALSE)="","",VLOOKUP($C18,invullijst!$A$11:$M197,4,FALSE)) -> 65+ | E18: =IF(VLOOKUP($C18,invullijst!$A$11:$M196,2,FALSE)="","",VLOOKUP($C18,invullijst!$A$11:$M196,2,FALSE)) -> Kees Vos | F18: =IF(VLOOKUP($C18,invullijst!$A$11:$M$185,3,FALSE)="","",VLOOKUP($C18,invullijst!$A$11:$M$185,3,FALSE)) -> Besoijen | G18: =IF(VLOOKUP($C18,invullijst!$A$11:$M$185,6,FALSE)="","",VLOOKUP($C18,invullijst!$A$11:$M$185,6,FALSE)) -> 90 | H18: =IF(VLOOKUP($C18,invullijst!$A$11:$M$185,7,FALSE)="","",VLOOKUP($C18,invullijst!$A$11:$M$185,7,FALSE)) -> 93 | I18: =IF(VLOOKUP($C18,invullijst!$A$11:$M$185,8,FALSE)="","",VLOOKUP($C18,invullijst!$A$11:$M$185,8,FALSE)) -> 91 | J18: =IF(VLOOKUP($C18,invullijst!$A$11:$M$185,9,FALSE)="","",VLOOKUP($C18,invullijst!$A$11:$M$185,9,FALSE)) -> x | K18: =IF(VLOOKUP($C18,invullijst!$A$11:$M$185,10,FALSE)="","",VLOOKUP($C18,invullijst!$A$11:$M$185,10,FALSE)) -> 90 | L18: 364 | M18: =IF(VLOOKUP($C18,invullijst!$A$11:$M$185,11,FALSE)="","",VLOOKUP($C18,invullijst!$A$11:$M$185,11,FALSE)) -> 46
B19: 2 | C19: 301 | D19: =IF(VLOOKUP($C19,invullijst!$A$11:$M202,4,FALSE)="","",VLOOKUP($C19,invullijst!$A$11:$M202,4,FALSE)) -> 65+ | E19: =IF(VLOOKUP($C19,invullijst!$A$11:$M201,2,FALSE)="","",VLOOKUP($C19,invullijst!$A$11:$M201,2,FALSE)) -> Arjen van Assem disp | F19: =IF(VLOOKUP($C19,invullijst!$A$11:$M$185,3,FALSE)="","",VLOOKUP($C19,invullijst!$A$11:$M$185,3,FALSE)) -> Elshout | G19: =IF(VLOOKUP($C19,invullijst!$A$11:$M$185,6,FALSE)="","",VLOOKUP($C19,invullijst!$A$11:$M$185,6,FALSE)) -> 89 | H19: =IF(VLOOKUP($C19,invullijst!$A$11:$M$185,7,FALSE)="","",VLOOKUP($C19,invullijst!$A$11:$M$185,7,FALSE)) -> 90 | I19: =IF(VLOOKUP($C19,invullijst!$A$11:$M$185,8,FALSE)="","",VLOOKUP($C19,invullijst!$A$11:$M$185,8,FALSE)) -> 89 | J19: =IF(VLOOKUP($C19,invullijst!$A$11:$M$185,9,FALSE)="","",VLOOKUP($C19,invullijst!$A$11:$M$185,9,FALSE)) -> 92 | K19: =IF(VLOOKUP($C19,invullijst!$A$11:$M$185,10,FALSE)="","",VLOOKUP($C19,invullijst!$A$11:$M$185,10,FALSE)) -> x | L19: 360 | M19: =IF(VLOOKUP($C19,invullijst!$A$11:$M$185,11,FALSE)="","",VLOOKUP($C19,invullijst!$A$11:$M$185,11,FALSE)) -> 45
B20: 3 | C20: 214 | D20: =IF(VLOOKUP($C20,invullijst!$A$11:$M198,4,FALSE)="","",VLOOKUP($C20,invullijst!$A$11:$M198,4,FALSE)) -> 65+ | E20: =IF(VLOOKUP($C20,invullijst!$A$11:$M198,2,FALSE)="","",VLOOKUP($C20,invullijst!$A$11:$M198,2,FALSE)) -> Andre de Vaan | F20: =IF(VLOOKUP($C20,invullijst!$A$11:$M$185,3,FALSE)="","",VLOOKUP($C20,invullijst!$A$11:$M$185,3,FALSE)) -> Besoijen | G20: =IF(VLOOKUP($C20,invullijst!$A$11:$M$185,6,FALSE)="","",VLOOKUP($C20,invullijst!$A$11:$M$185,6,FALSE)) -> 87 | H20: =IF(VLOOKUP($C20,invullijst!$A$11:$M$185,7,FALSE)="","",VLOOKUP($C20,invullijst!$A$11:$M$185,7,FALSE)) -> 86 | I20: =IF(VLOOKUP($C20,invullijst!$A$11:$M$185,8,FALSE)="","",VLOOKUP($C20,invullijst!$A$11:$M$185,8,FALSE)) -> 89 | J20: =IF(VLOOKUP($C20,invullijst!$A$11:$M$185,9,FALSE)="","",VLOOKUP($C20,invullijst!$A$11:$M$185,9,FALSE)) -> x | K20: =IF(VLOOKUP($C20,invullijst!$A$11:$M$185,10,FALSE)="","",VLOOKUP($C20,invullijst!$A$11:$M$185,10,FALSE)) -> 90 | L20: 352 | M20: =IF(VLOOKUP($C20,invullijst!$A$11:$M$185,11,FALSE)="","",VLOOKUP($C20,invullijst!$A$11:$M$185,11,FALSE)) -> 44
B21: 4 | C21: 515 | D21: =IF(VLOOKUP($C21,invullijst!$A$11:$M187,4,FALSE)="","",VLOOKUP($C21,invullijst!$A$11:$M187,4,FALSE)) -> 65+ | E21: =IF(VLOOKUP($C21,invullijst!$A$11:$M188,2,FALSE)="","",VLOOKUP($C21,invullijst!$A$11:$M188,2,FALSE)) -> Ilona Bergakker disp | F21: =IF(VLOOKUP($C21,invullijst!$A$11:$M$185,3,FALSE)="","",VLOOKUP($C21,invullijst!$A$11:$M$185,3,FALSE)) -> Kaatsheuvel | G21: =IF(VLOOKUP($C21,invullijst!$A$11:$M$185,6,FALSE)="","",VLOOKUP($C21,invullijst!$A$11:$M$185,6,FALSE)) -> 89 | H21: =IF(VLOOKUP($C21,invullijst!$A$11:$M$185,7,FALSE)="","",VLOOKUP($C21,invullijst!$A$11:$M$185,7,FALSE)) -> 87 | I21: =IF(VLOOKUP($C21,invullijst!$A$11:$M$185,8,FALSE)="","",VLOOKUP($C21,invullijst!$A$11:$M$185,8,FALSE)) -> x | J21: =IF(VLOOKUP($C21,invullijst!$A$11:$M$185,9,FALSE)="","",VLOOKUP($C21,invullijst!$A$11:$M$185,9,FALSE)) -> 85 | K21: =IF(VLOOKUP($C21,invullijst!$A$11:$M$185,10,FALSE)="","",VLOOKUP($C21,invullijst!$A$11:$M$185,10,FALSE)) -> 89 | L21: 350 | M21: =IF(VLOOKUP($C21,invullijst!$A$11:$M$185,11,FALSE)="","",VLOOKUP($C21,invullijst!$A$11:$M$185,11,FALSE)) -> 44
B22: 5 | C22: 309 | D22: =IF(VLOOKUP($C22,invullijst!$A$11:$M207,4,FALSE)="","",VLOOKUP($C22,invullijst!$A$11:$M207,4,FALSE)) -> 65+ | E22: =IF(VLOOKUP($C22,invullijst!$A$11:$M203,2,FALSE)="","",VLOOKUP($C22,invullijst!$A$11:$M203,2,FALSE)) -> René de Jong | F22: =IF(VLOOKUP($C22,invullijst!$A$11:$M$185,3,FALSE)="","",VLOOKUP($C22,invullijst!$A$11:$M$185,3,FALSE)) -> Elshout | G22: =IF(VLOOKUP($C22,invullijst!$A$11:$M$185,6,FALSE)="","",VLOOKUP($C22,invullijst!$A$11:$M$185,6,FALSE)) -> 87 | H22: =IF(VLOOKUP($C22,invullijst!$A$11:$M$185,7,FALSE)="","",VLOOKUP($C22,invullijst!$A$11:$M$185,7,FALSE)) -> 81 | I22: =IF(VLOOKUP($C22,invullijst!$A$11:$M$185,8,FALSE)="","",VLOOKUP($C22,invullijst!$A$11:$M$185,8,FALSE)) -> 88 | J22: =IF(VLOOKUP($C22,invullijst!$A$11:$M$185,9,FALSE)="","",VLOOKUP($C22,invullijst!$A$11:$M$185,9,FALSE)) -> 88 | K22: =IF(VLOOKUP($C22,invullijst!$A$11:$M$185,10,FALSE)="","",VLOOKUP($C22,invullijst!$A$11:$M$185,10,FALSE)) -> x | L22: 344 | M22: =IF(VLOOKUP($C22,invullijst!$A$11:$M$185,11,FALSE)="","",VLOOKUP($C22,invullijst!$A$11:$M$185,11,FALSE)) -> 39
B23: 6 | C23: 212 | D23: =IF(VLOOKUP($C23,invullijst!$A$11:$M196,4,FALSE)="","",VLOOKUP($C23,invullijst!$A$11:$M196,4,FALSE)) -> 65+ | E23: =IF(VLOOKUP($C23,invullijst!$A$11:$M187,2,FALSE)="","",VLOOKUP($C23,invullijst!$A$11:$M187,2,FALSE)) -> René Duquesnoy | F23: =IF(VLOOKUP($C23,invullijst!$A$11:$M$185,3,FALSE)="","",VLOOKUP($C23,invullijst!$A$11:$M$185,3,FALSE)) -> Besoijen | G23: =IF(VLOOKUP($C23,invullijst!$A$11:$M$185,6,FALSE)="","",VLOOKUP($C23,invullijst!$A$11:$M$185,6,FALSE)) -> 87 | H23: =IF(VLOOKUP($C23,invullijst!$A$11:$M$185,7,FALSE)="","",VLOOKUP($C23,invullijst!$A$11:$M$185,7,FALSE)) -> 80 | I23: =IF(VLOOKUP($C23,invullijst!$A$11:$M$185,8,FALSE)="","",VLOOKUP($C23,invullijst!$A$11:$M$185,8,FALSE)) -> 89 | J23: =IF(VLOOKUP($C23,invullijst!$A$11:$M$185,9,FALSE)="","",VLOOKUP($C23,invullijst!$A$11:$M$185,9,FALSE)) -> x | K23: =IF(VLOOKUP($C23,invullijst!$A$11:$M$185,10,FALSE)="","",VLOOKUP($C23,invullijst!$A$11:$M$185,10,FALSE)) -> 86 | L23: 342 | M23: =IF(VLOOKUP($C23,invullijst!$A$11:$M$185,11,FALSE)="","",VLOOKUP($C23,invullijst!$A$11:$M$185,11,FALSE)) -> 45
B24: 7 | C24: 107 | D24: =IF(VLOOKUP($C24,invullijst!$A$11:$M208,4,FALSE)="","",VLOOKUP($C24,invullijst!$A$11:$M208,4,FALSE)) -> 65+ | E24: =IF(VLOOKUP($C24,invullijst!$A$11:$M204,2,FALSE)="","",VLOOKUP($C24,invullijst!$A$11:$M204,2,FALSE)) -> Cees Coppens | F24: =IF(VLOOKUP($C24,invullijst!$A$11:$M$185,3,FALSE)="","",VLOOKUP($C24,invullijst!$A$11:$M$185,3,FALSE)) -> Baardwijk | G24: =IF(VLOOKUP($C24,invullijst!$A$11:$M$185,6,FALSE)="","",VLOOKUP($C24,invullijst!$A$11:$M$185,6,FALSE)) -> x | H24: =IF(VLOOKUP($C24,invullijst!$A$11:$M$185,7,FALSE)="","",VLOOKUP($C24,invullijst!$A$11:$M$185,7,FALSE)) -> 86 | I24: =IF(VLOOKUP($C24,invullijst!$A$11:$M$185,8,FALSE)="","",VLOOKUP($C24,invullijst!$A$11:$M$185,8,FALSE)) -> 80 | J24: =IF(VLOOKUP($C24,invullijst!$A$11:$M$185,9,FALSE)="","",VLOOKUP($C24,invullijst!$A$11:$M$185,9,FALSE)) -> 82 | K24: =IF(VLOOKUP($C24,invullijst!$A$11:$M$185,10,FALSE)="","",VLOOKUP($C24,invullijst!$A$11:$M$185,10,FALSE)) -> 75 | L24: 323 | M24: =IF(VLOOKUP($C24,invullijst!$A$11:$M$185,11,FALSE)="","",VLOOKUP($C24,invullijst!$A$11:$M$185,11,FALSE)) -> 37
B25: 8 | C25: 211 | D25: =IF(VLOOKUP($C25,invullijst!$A$11:$M204,4,FALSE)="","",VLOOKUP($C25,invullijst!$A$11:$M204,4,FALSE)) -> 65+ | E25: =IF(VLOOKUP($C25,invullijst!$A$11:$M202,2,FALSE)="","",VLOOKUP($C25,invullijst!$A$11:$M202,2,FALSE)) -> Ad van den houdt | F25: =IF(VLOOKUP($C25,invullijst!$A$11:$M$185,3,FALSE)="","",VLOOKUP($C25,invullijst!$A$11:$M$185,3,FALSE)) -> Besoijen | G25: =IF(VLOOKUP($C25,invullijst!$A$11:$M$185,6,FALSE)="","",VLOOKUP($C25,invullijst!$A$11:$M$185,6,FALSE)) -> 92 | H25: =IF(VLOOKUP($C25,invullijst!$A$11:$M$185,7,FALSE)="","",VLOOKUP($C25,invullijst!$A$11:$M$185,7,FALSE)) -> 91 | I25: =IF(VLOOKUP($C25,invullijst!$A$11:$M$185,8,FALSE)="","",VLOOKUP($C25,invullijst!$A$11:$M$185,8,FALSE)) -> 89 | J25: =IF(VLOOKUP($C25,invullijst!$A$11:$M$185,9,FALSE)="","",VLOOKUP($C25,invullijst!$A$11:$M$185,9,FALSE)) -> x | K25: =IF(VLOOKUP($C25,invullijst!$A$11:$M$185,10,FALSE)="","",VLOOKUP($C25,invullijst!$A$11:$M$185,10,FALSE)) -> x | L25: 272 | M25: =IF(VLOOKUP($C25,invullijst!$A$11:$M$185,11,FALSE)="","",VLOOKUP($C25,invullijst!$A$11:$M$185,11,FALSE)) -> 46
B26: 9 | C26: 518 | D26: =IF(VLOOKUP($C26,invullijst!$A$11:$M193,4,FALSE)="","",VLOOKUP($C26,invullijst!$A$11:$M193,4,FALSE)) -> 65+ | E26: =IF(VLOOKUP($C26,invullijst!$A$11:$M194,2,FALSE)="","",VLOOKUP($C26,invullijst!$A$11:$M194,2,FALSE)) -> Ton Stanz | F26: =IF(VLOOKUP($C26,invullijst!$A$11:$M$185,3,FALSE)="","",VLOOKUP($C26,invullijst!$A$11:$M$185,3,FALSE)) -> Kaatsheuvel | G26: =IF(VLOOKUP($C26,invullijst!$A$11:$M$185,6,FALSE)="","",VLOOKUP($C26,invullijst!$A$11:$M$185,6,FALSE)) -> 83 | H26: =IF(VLOOKUP($C26,invullijst!$A$11:$M$185,7,FALSE)="","",VLOOKUP($C26,invullijst!$A$11:$M$185,7,FALSE)) -> 84 | I26: =IF(VLOOKUP($C26,invullijst!$A$11:$M$185,8,FALSE)="","",VLOOKUP($C26,invullijst!$A$11:$M$185,8,FALSE)) -> x | J26: =IF(VLOOKUP($C26,invullijst!$A$11:$M$185,9,FALSE)="","",VLOOKUP($C26,invullijst!$A$11:$M$185,9,FALSE)) -> x | K26: =IF(VLOOKUP($C26,invullijst!$A$11:$M$185,10,FALSE)="","",VLOOKUP($C26,invullijst!$A$11:$M$185,10,FALSE)) -> 77 | L26: 244 | M26: =IF(VLOOKUP($C26,invullijst!$A$11:$M$185,11,FALSE)="","",VLOOKUP($C26,invullijst!$A$11:$M$185,11,FALSE)) -> 
B27: 10 | C27: 104 | D27: =IF(VLOOKUP($C27,invullijst!$A$11:$M210,4,FALSE)="","",VLOOKUP($C27,invullijst!$A$11:$M210,4,FALSE)) -> 65+ | E27: =IF(VLOOKUP($C27,invullijst!$A$11:$M206,2,FALSE)="","",VLOOKUP($C27,invullijst!$A$11:$M206,2,FALSE)) -> Peter Brekelmans | F27: =IF(VLOOKUP($C27,invullijst!$A$11:$M$185,3,FALSE)="","",VLOOKUP($C27,invullijst!$A$11:$M$185,3,FALSE)) -> Baardwijk | G27: =IF(VLOOKUP($C27,invullijst!$A$11:$M$185,6,FALSE)="","",VLOOKUP($C27,invullijst!$A$11:$M$185,6,FALSE)) -> x | H27: =IF(VLOOKUP($C27,invullijst!$A$11:$M$185,7,FALSE)="","",VLOOKUP($C27,invullijst!$A$11:$M$185,7,FALSE)) -> 79 | I27: =IF(VLOOKUP($C27,invullijst!$A$11:$M$185,8,FALSE)="","",VLOOKUP($C27,invullijst!$A$11:$M$185,8,FALSE)) -> 73 | J27: =IF(VLOOKUP($C27,invullijst!$A$11:$M$185,9,FALSE)="","",VLOOKUP($C27,invullijst!$A$11:$M$185,9,FALSE)) -> 84 | K27: =IF(VLOOKUP($C27,invullijst!$A$11:$M$185,10,FALSE)="","",VLOOKUP($C27,invullijst!$A$11:$M$185,10,FALSE)) -> x | L27: 236 | M27: =IF(VLOOKUP($C27,invullijst!$A$11:$M$185,11,FALSE)="","",VLOOKUP($C27,invullijst!$A$11:$M$185,11,FALSE)) -> 37
B28: 11 | C28: 112 | D28: =IF(VLOOKUP($C28,invullijst!$A$11:$M209,4,FALSE)="","",VLOOKUP($C28,invullijst!$A$11:$M209,4,FALSE)) -> 65+ | E28: =IF(VLOOKUP($C28,invullijst!$A$11:$M205,2,FALSE)="","",VLOOKUP($C28,invullijst!$A$11:$M205,2,FALSE)) -> Toon van Buul | F28: =IF(VLOOKUP($C28,invullijst!$A$11:$M$185,3,FALSE)="","",VLOOKUP($C28,invullijst!$A$11:$M$185,3,FALSE)) -> Baardwijk | G28: =IF(VLOOKUP($C28,invullijst!$A$11:$M$185,6,FALSE)="","",VLOOKUP($C28,invullijst!$A$11:$M$185,6,FALSE)) -> x | H28: =IF(VLOOKUP($C28,invullijst!$A$11:$M$185,7,FALSE)="","",VLOOKUP($C28,invullijst!$A$11:$M$185,7,FALSE)) -> 58 | I28: =IF(VLOOKUP($C28,invullijst!$A$11:$M$185,8,FALSE)="","",VLOOKUP($C28,invullijst!$A$11:$M$185,8,FALSE)) -> x | J28: =IF(VLOOKUP($C28,invullijst!$A$11:$M$185,9,FALSE)="","",VLOOKUP($C28,invullijst!$A$11:$M$185,9,FALSE)) -> 67 | K28: =IF(VLOOKUP($C28,invullijst!$A$11:$M$185,10,FALSE)="","",VLOOKUP($C28,invullijst!$A$11:$M$185,10,FALSE)) -> 64 | L28: 189 | M28: =IF(VLOOKUP($C28,invullijst!$A$11:$M$185,11,FALSE)="","",VLOOKUP($C28,invullijst!$A$11:$M$185,11,FALSE)) -> 20
B29: 12 | C29: 503 | D29: =IF(VLOOKUP($C29,invullijst!$A$11:$M186,4,FALSE)="","",VLOOKUP($C29,invullijst!$A$11:$M186,4,FALSE)) -> 65+ | E29: =IF(VLOOKUP($C29,invullijst!$A$11:$M187,2,FALSE)="","",VLOOKUP($C29,invullijst!$A$11:$M187,2,FALSE)) -> Kees Vos | F29: =IF(VLOOKUP($C29,invullijst!$A$11:$M$185,3,FALSE)="","",VLOOKUP($C29,invullijst!$A$11:$M$185,3,FALSE)) -> Kaatsheuvel | G29: =IF(VLOOKUP($C29,invullijst!$A$11:$M$185,6,FALSE)="","",VLOOKUP($C29,invullijst!$A$11:$M$185,6,FALSE)) -> 81 | H29: =IF(VLOOKUP($C29,invullijst!$A$11:$M$185,7,FALSE)="","",VLOOKUP($C29,invullijst!$A$11:$M$185,7,FALSE)) -> x | I29: =IF(VLOOKUP($C29,invullijst!$A$11:$M$185,8,FALSE)="","",VLOOKUP($C29,invullijst!$A$11:$M$185,8,FALSE)) -> x | J29: =IF(VLOOKUP($C29,invullijst!$A$11:$M$185,9,FALSE)="","",VLOOKUP($C29,invullijst!$A$11:$M$185,9,FALSE)) -> x | K29: =IF(VLOOKUP($C29,invullijst!$A$11:$M$185,10,FALSE)="","",VLOOKUP($C29,invullijst!$A$11:$M$185,10,FALSE)) -> x | L29: 81 | M29: =IF(VLOOKUP($C29,invullijst!$A$11:$M$185,11,FALSE)="","",VLOOKUP($C29,invullijst!$A$11:$M$185,11,FALSE)) -> 
D30: =IF(VLOOKUP($C30,invullijst!$A$11:$M211,4,FALSE)="","",VLOOKUP($C30,invullijst!$A$11:$M211,4,FALSE)) -> 0 | E30: =IF(VLOOKUP($C30,invullijst!$A$11:$M207,2,FALSE)="","",VLOOKUP($C30,invullijst!$A$11:$M207,2,FALSE)) -> 0 | F30: =IF(VLOOKUP($C30,invullijst!$A$11:$M$185,3,FALSE)="","",VLOOKUP($C30,invullijst!$A$11:$M$185,3,FALSE)) -> 0 | G30: =IF(VLOOKUP($C30,invullijst!$A$11:$M$185,6,FALSE)="","",VLOOKUP($C30,invullijst!$A$11:$M$185,6,FALSE)) -> 0 | H30: =IF(VLOOKUP($C30,invullijst!$A$11:$M$185,7,FALSE)="","",VLOOKUP($C30,invullijst!$A$11:$M$185,7,FALSE)) -> 0 | I30: =IF(VLOOKUP($C30,invullijst!$A$11:$M$185,8,FALSE)="","",VLOOKUP($C30,invullijst!$A$11:$M$185,8,FALSE)) -> 0 | J30: =IF(VLOOKUP($C30,invullijst!$A$11:$M$185,9,FALSE)="","",VLOOKUP($C30,invullijst!$A$11:$M$185,9,FALSE)) -> 0 | K30: =IF(VLOOKUP($C30,invullijst!$A$11:$M$185,10,FALSE)="","",VLOOKUP($C30,invullijst!$A$11:$M$185,10,FALSE)) -> 0 | L30: 0 | M30: =IF(VLOOKUP($C30,invullijst!$A$11:$M$185,11,FALSE)="","",VLOOKUP($C30,invullijst!$A$11:$M$185,11,FALSE)) -> 0
D31: =IF(VLOOKUP($C31,invullijst!$A$11:$M212,4,FALSE)="","",VLOOKUP($C31,invullijst!$A$11:$M212,4,FALSE)) -> 0 | E31: =IF(VLOOKUP($C31,invullijst!$A$11:$M208,2,FALSE)="","",VLOOKUP($C31,invullijst!$A$11:$M208,2,FALSE)) -> 0 | F31: =IF(VLOOKUP($C31,invullijst!$A$11:$M$185,3,FALSE)="","",VLOOKUP($C31,invullijst!$A$11:$M$185,3,FALSE)) -> 0 | G31: =IF(VLOOKUP($C31,invullijst!$A$11:$M$185,6,FALSE)="","",VLOOKUP($C31,invullijst!$A$11:$M$185,6,FALSE)) -> 0 | H31: =IF(VLOOKUP($C31,invullijst!$A$11:$M$185,7,FALSE)="","",VLOOKUP($C31,invullijst!$A$11:$M$185,7,FALSE)) -> 0 | I31: =IF(VLOOKUP($C31,invullijst!$A$11:$M$185,8,FALSE)="","",VLOOKUP($C31,invullijst!$A$11:$M$185,8,FALSE)) -> 0 | J31: =IF(VLOOKUP($C31,invullijst!$A$11:$M$185,9,FALSE)="","",VLOOKUP($C31,invullijst!$A$11:$M$185,9,FALSE)) -> 0 | K31: =IF(VLOOKUP($C31,invullijst!$A$11:$M$185,10,FALSE)="","",VLOOKUP($C31,invullijst!$A$11:$M$185,10,FALSE)) -> 0 | L31: 0 | M31: =IF(VLOOKUP($C31,invullijst!$A$11:$M$185,11,FALSE)="","",VLOOKUP($C31,invullijst!$A$11:$M$185,11,FALSE)) -> 0
D32: =IF(VLOOKUP($C32,invullijst!$A$11:$M213,4,FALSE)="","",VLOOKUP($C32,invullijst!$A$11:$M213,4,FALSE)) -> 0 | E32: =IF(VLOOKUP($C32,invullijst!$A$11:$M209,2,FALSE)="","",VLOOKUP($C32,invullijst!$A$11:$M209,2,FALSE)) -> 0 | F32: =IF(VLOOKUP($C32,invullijst!$A$11:$M$185,3,FALSE)="","",VLOOKUP($C32,invullijst!$A$11:$M$185,3,FALSE)) -> 0 | G32: =IF(VLOOKUP($C32,invullijst!$A$11:$M$185,6,FALSE)="","",VLOOKUP($C32,invullijst!$A$11:$M$185,6,FALSE)) -> 0 | H32: =IF(VLOOKUP($C32,invullijst!$A$11:$M$185,7,FALSE)="","",VLOOKUP($C32,invullijst!$A$11:$M$185,7,FALSE)) -> 0 | I32: =IF(VLOOKUP($C32,invullijst!$A$11:$M$185,8,FALSE)="","",VLOOKUP($C32,invullijst!$A$11:$M$185,8,FALSE)) -> 0 | J32: =IF(VLOOKUP($C32,invullijst!$A$11:$M$185,9,FALSE)="","",VLOOKUP($C32,invullijst!$A$11:$M$185,9,FALSE)) -> 0 | K32: =IF(VLOOKUP($C32,invullijst!$A$11:$M$185,10,FALSE)="","",VLOOKUP($C32,invullijst!$A$11:$M$185,10,FALSE)) -> 0 | L32: 0 | M32: =IF(VLOOKUP($C32,invullijst!$A$11:$M$185,11,FALSE)="","",VLOOKUP($C32,invullijst!$A$11:$M$185,11,FALSE)) -> 0
D33: =IF(VLOOKUP($C33,invullijst!$A$11:$M214,4,FALSE)="","",VLOOKUP($C33,invullijst!$A$11:$M214,4,FALSE)) -> 0 | E33: =IF(VLOOKUP($C33,invullijst!$A$11:$M210,2,FALSE)="","",VLOOKUP($C33,invullijst!$A$11:$M210,2,FALSE)) -> 0 | F33: =IF(VLOOKUP($C33,invullijst!$A$11:$M$185,3,FALSE)="","",VLOOKUP($C33,invullijst!$A$11:$M$185,3,FALSE)) -> 0 | G33: =IF(VLOOKUP($C33,invullijst!$A$11:$M$185,6,FALSE)="","",VLOOKUP($C33,invullijst!$A$11:$M$185,6,FALSE)) -> 0 | H33: =IF(VLOOKUP($C33,invullijst!$A$11:$M$185,7,FALSE)="","",VLOOKUP($C33,invullijst!$A$11:$M$185,7,FALSE)) -> 0 | I33: =IF(VLOOKUP($C33,invullijst!$A$11:$M$185,8,FALSE)="","",VLOOKUP($C33,invullijst!$A$11:$M$185,8,FALSE)) -> 0 | J33: =IF(VLOOKUP($C33,invullijst!$A$11:$M$185,9,FALSE)="","",VLOOKUP($C33,invullijst!$A$11:$M$185,9,FALSE)) -> 0 | K33: =IF(VLOOKUP($C33,invullijst!$A$11:$M$185,10,FALSE)="","",VLOOKUP($C33,invullijst!$A$11:$M$185,10,FALSE)) -> 0 | L33: 0 | M33: =IF(VLOOKUP($C33,invullijst!$A$11:$M$185,11,FALSE)="","",VLOOKUP($C33,invullijst!$A$11:$M$185,11,FALSE)) -> 0
D34: =IF(VLOOKUP($C34,invullijst!$A$11:$M215,4,FALSE)="","",VLOOKUP($C34,invullijst!$A$11:$M215,4,FALSE)) -> 0 | E34: =IF(VLOOKUP($C34,invullijst!$A$11:$M211,2,FALSE)="","",VLOOKUP($C34,invullijst!$A$11:$M211,2,FALSE)) -> 0 | F34: =IF(VLOOKUP($C34,invullijst!$A$11:$M$185,3,FALSE)="","",VLOOKUP($C34,invullijst!$A$11:$M$185,3,FALSE)) -> 0 | G34: =IF(VLOOKUP($C34,invullijst!$A$11:$M$185,6,FALSE)="","",VLOOKUP($C34,invullijst!$A$11:$M$185,6,FALSE)) -> 0 | H34: =IF(VLOOKUP($C34,invullijst!$A$11:$M$185,7,FALSE)="","",VLOOKUP($C34,invullijst!$A$11:$M$185,7,FALSE)) -> 0 | I34: =IF(VLOOKUP($C34,invullijst!$A$11:$M$185,8,FALSE)="","",VLOOKUP($C34,invullijst!$A$11:$M$185,8,FALSE)) -> 0 | J34: =IF(VLOOKUP($C34,invullijst!$A$11:$M$185,9,FALSE)="","",VLOOKUP($C34,invullijst!$A$11:$M$185,9,FALSE)) -> 0 | K34: =IF(VLOOKUP($C34,invullijst!$A$11:$M$185,10,FALSE)="","",VLOOKUP($C34,invullijst!$A$11:$M$185,10,FALSE)) -> 0 | L34: 0 | M34: =IF(VLOOKUP($C34,invullijst!$A$11:$M$185,11,FALSE)="","",VLOOKUP($C34,invullijst!$A$11:$M$185,11,FALSE)) -> 0

Sheet Korps
C1: =invullijst!F1 -> Organistatie | E1: =invullijst!H2 -> 2024 - 2025 | J1: =invullijst!F3 -> O.L.V. Schuts Elshout
C5: UITSLAGEN O.V.L.B. KORPS VRIJE-HAND | Q5: Hieronder niets wijzigen
C7: A-Korps Vrije-hand | J7: B-Korps Vrije-hand | AC7: A-Korps | AF7: B-Korps
C8: Baardwijk | D8: 315 | E8: - | F8: 343 | G8: Besoijen | J8: Baardwijk | K8: 182 | L8: - | M8: 308 | N8: Besoijen | Q8: =D8 -> 315 | R8: ba | S8: =IF(ISBLANK(D8),"",IF(D8=F8,1,IF(D8>F8,2,0))) -> 0 | T8: =IF(ISBLANK(F8),"",IF(F8=D8,1,IF(F8>D8,2,0))) -> 2 | U8: be | V8: =F8 -> 343 | W8: =K8 -> 182 | X8: ba | Y8: =IF(ISBLANK(K8),"",IF(K8=M8,1,IF(K8>M8,2,0))) -> 0 | Z8: =IF(ISBLANK(M8),"",IF(M8=K8,1,IF(M8>K8,2,0))) -> 2 | AA8: be | AB8: =M8 -> 308 | AC8: Baardwijk | AD8: =SUM(S8:S11) -> 2 | AE8: =SUM(Q8:Q11) -> 1265 | AF8: Baardwijk | AG8: =SUM(Y8:Y11) -> 4 | AH8: =SUM(W8:W11) -> 699
C9: Baardwijk | D9: 311 | E9: - | F9: 318 | G9: Elshout | J9: Baardwijk | K9: 206 | L9: - | M9: 0 | N9: Elshout | Q9: 311 | R9: ba | S9: 0 | T9: 2 | U9: el | V9: 318 | W9: =K9 -> 206 | X9: ba | Y9: =IF(ISBLANK(K9),"",IF(K9=M9,1,IF(K9>M9,2,0))) -> 2 | Z9: =IF(ISBLANK(M9),"",IF(M9=K9,1,IF(M9>K9,2,0))) -> 0 | AA9: el | AB9: =M9 -> 0 | AC9: Besoijen | AD9: =SUM(T8,S12:S14) -> 8 | AE9: =SUM(V8,Q12:Q14) -> 1378 | AF9: Besoijen | AG9: =SUM(Z8,Y12:Y14) -> 8 | AH9: =SUM(AB8,W12:W14) -> 1271
C10: Baardwijk | D10: 323 | E10: - | F10: 338 | G10: Haarsteeg | J10: Baardwijk | K10: 128 | L10: - | M10: 53 | N10: Haarsteeg | Q10: 323 | R10: ba | S10: 0 | T10: 2 | U10: ha | V10: 338 | W10: 128 | X10: ba | Y10: 2 | Z10: 0 | AA10: ha | AB10: 53 | AC10: Elshout | AD10: =SUM(T9,T12,S15:S16) -> 6 | AE10: =SUM(V9,V12,Q15:Q16) -> 1304 | AF10: Elshout | AG10: =SUM(Z9,Z12,Y15:Y16) -> 0 | AH10: =SUM(AB9,AB12,W15:W16) -> 0
C11: Baardwijk | D11: 316 | E11: - | F11: 308 | G11: Kaatsheuvel | J11: Baardwijk | K11: 183 | L11: - | M11: 215 | N11: Kaatsheuvel | Q11: 316 | R11: ba | S11: 2 | T11: 0 | U11: ka | V11: 308 | W11: 183 | X11: ba | Y11: 0 | Z11: 2 | AA11: ka | AB11: 215 | AC11: Haarsteeg | AD11: =SUM(T10,T13,T15,S17) -> 4 | AE11: =SUM(V10,V13,V15,Q17) -> 1312 | AF11: Haarsteeg | AG11: =SUM(Z10,Z13,Z15,Y17) -> 2 | AH11: =SUM(AB10,AB13,AB15,W17) -> 129
C12: Besoijen | D12: 348 | E12: - | F12: 333 | G12: Elshout | J12: Besoijen | K12: 313 | L12: - | M12: 0 | N12: Elshout | Q12: 348 | R12: be | S12: 2 | T12: 0 | U12: el | V12: 333 | W12: 313 | X12: be | Y12: 2 | Z12: 0 | AA12: el | AB12: 0 | AC12: Kaatsheuvel | AD12: =SUM(T11,T14,T16,T17) -> 0 | AE12: =SUM(V11,V14,V16,V17) -> 1237 | AF12: Kaatsheuvel | AG12: =SUM(Z11,Z14,Z16,Z17) -> 6 | AH12: =SUM(AB11,AB14,AB16,AB17) -> 807
C13: Besoijen | D13: 340 | E13: - | F13: 314 | G13: Haarsteeg | J13: Besoijen | K13: 322 | L13: - | M13: 0 | N13: Haarsteeg | Q13: 340 | R13: be | S13: 2 | T13: 0 | U13: ha | V13: 314 | W13: 322 | X13: be | Y13: 2 | Z13: 0 | AA13: ha | AB13: 0
C14: Besoijen | D14: 347 | E14: - | F14: 311 | G14: Kaatsheuvel | J14: Besoijen | K14: 328 | L14: - | M14: 227 | N14: Kaatsheuvel | Q14: 347 | R14: be | S14: 2 | T14: 0 | U14: ka | V14: 311 | W14: 328 | X14: be | Y14: 2 | Z14: 0 | AA14: ka | AB14: 227
C15: Elshout | D15: 336 | E15: - | F15: 327 | G15: Haarsteeg | J15: Elshout | K15: 0 | L15: - | M15: 76 | N15: Haarsteeg | Q15: 336 | R15: el | S15: 2 | T15: 0 | U15: ha | V15: 327 | W15: 0 | X15: el | Y15: 0 | Z15: 2 | AA15: ha | AB15: 76
C16: Elshout | D16: 317 | E16: - | F16: 311 | G16: Kaatsheuvel | J16: Elshout | K16: 0 | L16: - | M16: 68 | N16: Kaatsheuvel | Q16: 317 | R16: el | S16: 2 | T16: 0 | U16: ka | V16: 311 | W16: 0 | X16: el | Y16: 0 | Z16: 2 | AA16: ka | AB16: 68
C17: Haarsteeg | D17: 333 | E17: - | F17: 307 | G17: Kaatsheuvel | J17: Haarsteeg | K17: 0 | L17: - | M17: 297 | N17: Kaatsheuvel | Q17: 333 | R17: ha | S17: 2 | T17: 0 | U17: ka | V17: 307 | W17: 0 | X17: ha | Y17: 0 | Z17: 2 | AA17: ka | AB17: 297
C18: (*): de wedstrijden kunnen zowel uit- als thuiswedstrijden zijn; dus b.v. zowel Besoijen-Elshout als Elshout- Besoijen...
C21: EINDSTAND A-KORPS VRIJE-HAND | J21: EINDSTAND B-KORPS VRIJE-HAND
D22: Matchpunten | E22: - | F22: Totaalpunten | K22: Matchpunten | L22: - | M22: Totaalpunten
A24: 1 | C24: Besoijen | D24: =IF(ISTEXT(C24),VLOOKUP(C24,$AC$8:$AE$12,2,FALSE)," ") -> 8 | E24: - | F24: =IF(ISTEXT(C24),VLOOKUP(C24,$AC$8:$AE$12,3,FALSE)," ") -> 1378 | H24: 1 | J24: Besoijen | K24: =IF(ISTEXT(J24),VLOOKUP(J24,$AF$8:$AH$12,2,FALSE)," ") -> 8 | L24: - | M24: =IF(ISTEXT(J24),VLOOKUP(J24,$AF$8:$AH$12,3,FALSE)," ") -> 1271
A25: 2 | C25: Elshout | D25: =IF(ISTEXT(C25),VLOOKUP(C25,$AC$8:$AE$12,2,FALSE)," ") -> 6 | E25: - | F25: =IF(ISTEXT(C25),VLOOKUP(C25,$AC$8:$AE$12,3,FALSE)," ") -> 1304 | H25: 2 | J25: Kaatsheuvel | K25: =IF(ISTEXT(J25),VLOOKUP(J25,$AF$8:$AH$12,2,FALSE)," ") -> 6 | L25: - | M25: =IF(ISTEXT(J25),VLOOKUP(J25,$AF$8:$AH$12,3,FALSE)," ") -> 807
A26: 3 | C26: Haarsteeg | D26: =IF(ISTEXT(C26),VLOOKUP(C26,$AC$8:$AE$12,2,FALSE)," ") -> 4 | E26: - | F26: =IF(ISTEXT(C26),VLOOKUP(C26,$AC$8:$AE$12,3,FALSE)," ") -> 1312 | H26: 3 | J26: Baardwijk | K26: =IF(ISTEXT(J26),VLOOKUP(J26,$AF$8:$AH$12,2,FALSE)," ") -> 4 | L26: - | M26: =IF(ISTEXT(J26),VLOOKUP(J26,$AF$8:$AH$12,3,FALSE)," ") -> 699
A27: 4 | C27: Baardwijk | D27: =IF(ISTEXT(C27),VLOOKUP(C27,$AC$8:$AE$12,2,FALSE)," ") -> 2 | E27: - | F27: =IF(ISTEXT(C27),VLOOKUP(C27,$AC$8:$AE$12,3,FALSE)," ") -> 1265 | H27: 4 | J27: Haarsteeg | K27: =IF(ISTEXT(J27),VLOOKUP(J27,$AF$8:$AH$12,2,FALSE)," ") -> 2 | L27: - | M27: =IF(ISTEXT(J27),VLOOKUP(J27,$AF$8:$AH$12,3,FALSE)," ") -> 129
A28: 5 | C28: Kaatsheuvel | D28: =IF(ISTEXT(C28),VLOOKUP(C28,$AC$8:$AE$12,2,FALSE)," ") -> 0 | E28: - | F28: =IF(ISTEXT(C28),VLOOKUP(C28,$AC$8:$AE$12,3,FALSE)," ") -> 1237 | H28: 5 | J28: Elshout | K28: =IF(ISTEXT(J28),VLOOKUP(J28,$AF$8:$AH$12,2,FALSE)," ") -> 0 | L28: - | M28: =IF(ISTEXT(J28),VLOOKUP(J28,$AF$8:$AH$12,3,FALSE)," ") -> 0
C32: UITSLAGEN O.V.L.B. KORPS OPGELEGD | Q32: Hieronder niets wijzigen
C34: A-KORPS OPGELEGD | J34: B-KORPS OPGELEGD | AC34: A-Korps | AF34: B-Korps
C35: Baardwijk | D35: 139 | E35: - | F35: 277 | G35: Besoijen | J35: Baardwijk | L35: - | M35: 251 | N35: Besoijen | Q35: =D35 -> 139 | R35: ba | S35: =IF(ISBLANK(D35),"",IF(D35=F35,1,IF(D35>F35,2,0))) -> 0 | T35: =IF(ISBLANK(F35),"",IF(F35=D35,1,IF(F35>D35,2,0))) -> 2 | U35: be | V35: =F35 -> 277 | W35: =K35 -> 0 | X35: ba | Y35: =IF(ISBLANK(K35),"",IF(K35=M35,1,IF(K35>M35,2,0))) ->  | Z35: =IF(ISBLANK(M35),"",IF(M35=K35,1,IF(M35>K35,2,0))) -> 2 | AA35: be | AB35: =M35 -> 251 | AC35: Baardwijk | AD35: =SUM(S35:S38) -> 0 | AE35: =SUM(Q35:Q38) -> 748 | AF35: Baardwijk | AG35: =SUM(Y35:Y38) -> 0 | AH35: =SUM(W35:W38) -> 0
C36: Baardwijk | D36: 223 | E36: - | F36: 268 | G36: Elshout | J36: Baardwijk | L36: - | M36: 181 | N36: Elshout | Q36: 223 | R36: ba | S36: 0 | T36: 2 | U36: el | V36: 268 | W36: =K36 -> 0 | X36: ba | Y36: =IF(ISBLANK(K36),"",IF(K36=M36,1,IF(K36>M36,2,0))) ->  | Z36: =IF(ISBLANK(M36),"",IF(M36=K36,1,IF(M36>K36,2,0))) -> 2 | AA36: el | AB36: =M36 -> 181 | AC36: Besoijen | AD36: =SUM(T35,S39:S41) -> 6 | AE36: =SUM(V35,Q39:Q41) -> 1123 | AF36: Besoijen | AG36: =SUM(Z35,Y39:Y41) -> 4 | AH36: =SUM(AB35,W39:W41) -> 846
C37: Baardwijk | D37: 153 | E37: - | F37: 293 | G37: Haarsteeg | J37: Baardwijk | K37: 0 | L37: - | M37: 286 | N37: Haarsteeg | Q37: 153 | R37: ba | S37: 0 | T37: 2 | U37: ha | V37: 293 | W37: 0 | X37: ba | Y37: 0 | Z37: 2 | AA37: ha | AB37: 286 | AC37: Elshout | AD37: =SUM(T36,T39,S42:S43) -> 4 | AE37: =SUM(V36,V39,Q42:Q43) -> 1095 | AF37: Elshout | AG37: =SUM(Z36,Z39,Y42:Y43) -> 6 | AH37: =SUM(AB36,AB39,W42:W43) -> 540
C38: Baardwijk | D38: 233 | E38: - | F38: 271 | G38: Kaatsheuvel | J38: Baardwijk | L38: - | N38: Kaatsheuvel | Q38: 233 | R38: ba | S38: 0 | T38: 2 | U38: ka | V38: 271 | W38: 0 | X38: ba | AA38: ka | AB38: 0 | AC38: Haarsteeg | AD38: =SUM(T37,T40,T42,S44) -> 8 | AE38: =SUM(V37,V40,V42,Q44) -> 1158 | AF38: Haarsteeg | AG38: =SUM(Z37,Z40,Z42,Y44) -> 8 | AH38: =SUM(AB37,AB40,AB42,W44) -> 1137
C39: Besoijen | D39: 279 | E39: - | F39: 271 | G39: Elshout | J39: Besoijen | K39: 74 | L39: - | M39: 89 | N39: Elshout | Q39: 279 | R39: be | S39: 2 | T39: 0 | U39: el | V39: 271 | W39: 74 | X39: be | Y39: 0 | Z39: 2 | AA39: el | AB39: 89 | AC39: Kaatsheuvel | AD39: =SUM(T38,T41,T43,T44) -> 2 | AE39: =SUM(V38,V41,V43,V44) -> 1085 | AF39: Kaatsheuvel | AG39: =SUM(Z38,Z41,Z43,Z44) -> 0 | AH39: =SUM(AB38,AB41,AB43,AB44) -> 325
C40: Besoijen | D40: 284 | E40: - | F40: 288 | G40: Haarsteeg | J40: Besoijen | K40: 264 | L40: - | M40: 283 | N40: Haarsteeg | Q40: 284 | R40: be | S40: 0 | T40: 2 | U40: ha | V40: 288 | W40: 264 | X40: be | Y40: 0 | Z40: 2 | AA40: ha | AB40: 283
C41: Besoijen | D41: 283 | E41: - | F41: 273 | G41: Kaatsheuvel | J41: Besoijen | K41: 257 | L41: - | M41: 84 | N41: Kaatsheuvel | Q41: 283 | R41: be | S41: 2 | T41: 0 | U41: ka | V41: 273 | W41: 257 | X41: be | Y41: 2 | Z41: 0 | AA41: ka | AB41: 84
C42: Elshout | D42: 274 | E42: - | F42: 290 | G42: Haarsteeg | J42: Elshout | K42: 94 | L42: - | M42: 286 | N42: Haarsteeg | Q42: 274 | R42: el | S42: 0 | T42: 2 | U42: ha | V42: 290 | W42: 94 | X42: el | Y42: 0 | Z42: 2 | AA42: ha | AB42: 286
C43: Elshout | D43: 282 | E43: - | F43: 269 | G43: Kaatsheuvel | J43: Elshout | K43: 176 | L43: - | M43: 164 | N43: Kaatsheuvel | Q43: 282 | R43: el | S43: 2 | T43: 0 | U43: ka | V43: 269 | W43: 176 | X43: el | Y43: 2 | Z43: 0 | AA43: ka | AB43: 164
C44: Haarsteeg | D44: 287 | E44: - | F44: 272 | G44: Kaatsheuvel | J44: Haarsteeg | K44: 282 | L44: - | M44: 77 | N44: Kaatsheuvel | Q44: 287 | R44: ha | S44: 2 | T44: 0 | U44: ka | V44: 272 | W44: 282 | X44: ha | Y44: 2 | Z44: 0 | AA44: ka | AB44: 77
C45: (*): de wedstrijden kunnen zowel uit- als thuiswedstrijden zijn; dus b.v. zowel Besoijen-Elshout als Elshout- Besoijen...
C48: EINDSTAND A-KORPS OPGELEGD | J48: EINDSTAND B-KORPS OPGELEGD
D49: Matchpunten | E49: - | F49: Totaalpunten | K49: Matchpunten | L49: - | M49: Totaalpunten
A51: 1 | C51: Haarsteeg | D51: =IF(ISTEXT(C51),VLOOKUP(C51,$AC$35:$AE$39,2,FALSE)," ") -> 8 | E51: - | F51: =IF(ISTEXT(C51),VLOOKUP(C51,$AC$35:$AE$39,3,FALSE)," ") -> 1158 | H51: 1 | J51: Haarsteeg | K51: =IF(ISTEXT(J51),VLOOKUP(J51,$AF$35:$AH$39,2,FALSE)," ") -> 8 | L51: - | M51: =IF(ISTEXT(J51),VLOOKUP(J51,$AF$35:$AH$39,3,FALSE)," ") -> 1137
A52: 2 | C52: Besoijen | D52: =IF(ISTEXT(C52),VLOOKUP(C52,$AC$35:$AE$39,2,FALSE)," ") -> 6 | E52: - | F52: =IF(ISTEXT(C52),VLOOKUP(C52,$AC$35:$AE$39,3,FALSE)," ") -> 1123 | H52: 2 | J52: Elshout | K52: =IF(ISTEXT(J52),VLOOKUP(J52,$AF$35:$AH$39,2,FALSE)," ") -> 6 | L52: - | M52: =IF(ISTEXT(J52),VLOOKUP(J52,$AF$35:$AH$39,3,FALSE)," ") -> 540
A53: 3 | C53: Elshout | D53: =IF(ISTEXT(C53),VLOOKUP(C53,$AC$35:$AE$39,2,FALSE)," ") -> 4 | E53: - | F53: =IF(ISTEXT(C53),VLOOKUP(C53,$AC$35:$AE$39,3,FALSE)," ") -> 1095 | H53: 3 | J53: Besoijen | K53: =IF(ISTEXT(J53),VLOOKUP(J53,$AF$35:$AH$39,2,FALSE)," ") -> 4 | L53: - | M53: =IF(ISTEXT(J53),VLOOKUP(J53,$AF$35:$AH$39,3,FALSE)," ") -> 846
A54: 4 | C54: Kaatsheuvel | D54: =IF(ISTEXT(C54),VLOOKUP(C54,$AC$35:$AE$39,2,FALSE)," ") -> 2 | E54: - | F54: =IF(ISTEXT(C54),VLOOKUP(C54,$AC$35:$AE$39,3,FALSE)," ") -> 1085 | H54: 4 | J54: Kaatsheuvel | K54: =IF(ISTEXT(J54),VLOOKUP(J54,$AF$35:$AH$39,2,FALSE)," ") -> 0 | L54: - | M54: =IF(ISTEXT(J54),VLOOKUP(J54,$AF$35:$AH$39,3,FALSE)," ") -> 325
A55: 5 | C55: Baardwijk | D55: =IF(ISTEXT(C55),VLOOKUP(C55,$AC$35:$AE$39,2,FALSE)," ") -> 0 | E55: - | F55: =IF(ISTEXT(C55),VLOOKUP(C55,$AC$35:$AE$39,3,FALSE)," ") -> 748 | H55: 5 | J55: Baardwijk | K55: =IF(ISTEXT(J55),VLOOKUP(J55,$AF$35:$AH$39,2,FALSE)," ") -> 0 | L55: - | M55: =IF(ISTEXT(J55),VLOOKUP(J55,$AF$35:$AH$39,3,FALSE)," ") -> 0
C57: alleen in de groene kolom punten korps invullen

Sheet wedstrijd 1A
A1: =invullijst!F1 -> Organistatie | F1: =invullijst!H2 -> 2024 - 2025 | I1: =invullijst!F3 -> O.L.V. Schuts Elshout
A2: Datum: | M2: 2024-12-08
A3: 5 | B3: =IF(VLOOKUP(A3,invullijst!A1:F5,2,FALSE)="","",VLOOKUP(A3,invullijst!A1:F5,2,FALSE)) -> Sint Jan Baptist Kaatsheuvel | I3: 3 | J3: =IF(VLOOKUP(I3,invullijst!A1:C5,2,FALSE)="","",VLOOKUP(I3,invullijst!A1:C5,2,FALSE)) -> O.L.V. Schuts Elshout
A5: vrijehand
A6: 1 | B6: =IF($G$3="k",IF(VLOOKUP($D6,invullijst!$A$11:$M$185,11,FALSE)=0," ",VLOOKUP($D6,invullijst!$A$11:$M$185,11,FALSE)),"") ->  | C6: =IF(VLOOKUP(D6,invullijst!A$11:F$226,4,FALSE)="","",VLOOKUP(D6,invullijst!A$11:D$226,4,FALSE)) -> vr | D6: 506 | E6: =IF(VLOOKUP($D6,invullijst!$A$11:$M$185,2,FALSE)="","",VLOOKUP($D6,invullijst!$A$11:$M$185,2,FALSE)) -> Maikel Monden | G6: =IF(VLOOKUP($D6,invullijst!$A$11:$M$185,6,FALSE)=0,"",VLOOKUP($D6,invullijst!$A$11:$M$185,6,FALSE)) -> 83 | I6: 1 | J6: =IF($O$3="k",IF(VLOOKUP($L6,invullijst!$A$11:$M$185,11,FALSE)=0," ",VLOOKUP($L6,invullijst!$A$11:$M$185,11,FALSE)),"") ->  | K6: =IF(VLOOKUP($L6,invullijst!$A$11:$M$226,4,FALSE)="","",VLOOKUP($L6,invullijst!$A$11:$M$226,4,FALSE)) -> vr | L6: 311 | M6: =IF(VLOOKUP($L6,invullijst!$A$11:$M$185,2,FALSE)="","",VLOOKUP($L6,invullijst!$A$11:$M$185,2,FALSE)) -> Ton Kolmans | O6: =IF(VLOOKUP($L6,invullijst!$A$11:$M$185,6,FALSE)=0,"",VLOOKUP($L6,invullijst!$A$11:$M$185,6,FALSE)) -> 77
A7: 2 | B7: =IF($G$3="k",IF(VLOOKUP($D7,invullijst!$A$11:$M$185,11,FALSE)=0," ",VLOOKUP($D7,invullijst!$A$11:$M$185,11,FALSE)),"") ->  | C7: =IF(VLOOKUP(D7,invullijst!A$11:F$226,4,FALSE)="","",VLOOKUP(D7,invullijst!A$11:D$226,4,FALSE)) -> vr | D7: 512 | E7: =IF(VLOOKUP($D7,invullijst!$A$11:$M$185,2,FALSE)="","",VLOOKUP($D7,invullijst!$A$11:$M$185,2,FALSE)) -> Hans Bergakker | G7: =IF(VLOOKUP($D7,invullijst!$A$11:$M$185,6,FALSE)=0,"",VLOOKUP($D7,invullijst!$A$11:$M$185,6,FALSE)) -> 72 | I7: 2 | J7: =IF($O$3="k",IF(VLOOKUP($L7,invullijst!$A$11:$M$185,11,FALSE)=0," ",VLOOKUP($L7,invullijst!$A$11:$M$185,11,FALSE)),"") ->  | K7: =IF(VLOOKUP($L7,invullijst!$A$11:$M$226,4,FALSE)="","",VLOOKUP($L7,invullijst!$A$11:$M$226,4,FALSE)) -> vr | L7: 305 | M7: =IF(VLOOKUP($L7,invullijst!$A$11:$M$185,2,FALSE)="","",VLOOKUP($L7,invullijst!$A$11:$M$185,2,FALSE)) -> Johan Klerx | O7: =IF(VLOOKUP($L7,invullijst!$A$11:$M$185,6,FALSE)=0,"",VLOOKUP($L7,invullijst!$A$11:$M$185,6,FALSE)) -> 84
A8: 3 | B8: =IF($G$3="k",IF(VLOOKUP($D8,invullijst!$A$11:$M$185,11,FALSE)=0," ",VLOOKUP($D8,invullijst!$A$11:$M$185,11,FALSE)),"") ->  | C8: =IF(VLOOKUP(D8,invullijst!A$11:F$226,4,FALSE)="","",VLOOKUP(D8,invullijst!A$11:D$226,4,FALSE)) -> vr | D8: 513 | E8: =IF(VLOOKUP($D8,invullijst!$A$11:$M$185,2,FALSE)="","",VLOOKUP($D8,invullijst!$A$11:$M$185,2,FALSE)) -> Mark van Delft | G8: =IF(VLOOKUP($D8,invullijst!$A$11:$M$185,6,FALSE)=0,"",VLOOKUP($D8,invullijst!$A$11:$M$185,6,FALSE)) -> 78 | I8: 3 | J8: =IF($O$3="k",IF(VLOOKUP($L8,invullijst!$A$11:$M$185,11,FALSE)=0," ",VLOOKUP($L8,invullijst!$A$11:$M$185,11,FALSE)),"") ->  | K8: =IF(VLOOKUP($L8,invullijst!$A$11:$M$226,4,FALSE)="","",VLOOKUP($L8,invullijst!$A$11:$M$226,4,FALSE)) -> vr | L8: 304 | M8: =IF(VLOOKUP($L8,invullijst!$A$11:$M$185,2,FALSE)="","",VLOOKUP($L8,invullijst!$A$11:$M$185,2,FALSE)) -> Henk Bruurmijn | O8: =IF(VLOOKUP($L8,invullijst!$A$11:$M$185,6,FALSE)=0,"",VLOOKUP($L8,invullijst!$A$11:$M$185,6,FALSE)) -> 80
A9: 4 | B9: =IF($G$3="k",IF(VLOOKUP($D9,invullijst!$A$11:$M$185,11,FALSE)=0," ",VLOOKUP($D9,invullijst!$A$11:$M$185,11,FALSE)),"") ->  | C9: =IF(VLOOKUP(D9,invullijst!A$11:F$226,4,FALSE)="","",VLOOKUP(D9,invullijst!A$11:D$226,4,FALSE)) -> vr | D9: 508 | E9: =IF(VLOOKUP($D9,invullijst!$A$11:$M$185,2,FALSE)="","",VLOOKUP($D9,invullijst!$A$11:$M$185,2,FALSE)) -> Rowan Dobbelsteen | G9: =IF(VLOOKUP($D9,invullijst!$A$11:$M$185,6,FALSE)=0,"",VLOOKUP($D9,invullijst!$A$11:$M$185,6,FALSE)) -> 78 | I9: 4 | J9: =IF($O$3="k",IF(VLOOKUP($L9,invullijst!$A$11:$M$185,11,FALSE)=0," ",VLOOKUP($L9,invullijst!$A$11:$M$185,11,FALSE)),"") ->  | K9: =IF(VLOOKUP($L9,invullijst!$A$11:$M$226,4,FALSE)="","",VLOOKUP($L9,invullijst!$A$11:$M$226,4,FALSE)) -> vr | L9: 306 | M9: =IF(VLOOKUP($L9,invullijst!$A$11:$M$185,2,FALSE)="","",VLOOKUP($L9,invullijst!$A$11:$M$185,2,FALSE)) -> Ron Groot | O9: =IF(VLOOKUP($L9,invullijst!$A$11:$M$185,6,FALSE)=0,"",VLOOKUP($L9,invullijst!$A$11:$M$185,6,FALSE)) -> 76
A10: Totaal A korps | G10: =SUM(G6:G9) -> 311 | I10: Totaal A korps | O10: =SUM(O6:O9) -> 317
A12: 1 | B12: =IF($G$3="k",IF(VLOOKUP($D12,invullijst!$A$11:$M$185,11,FALSE)=0," ",VLOOKUP($D12,invullijst!$A$11:$M$185,11,FALSE)),"") ->  | C12: =IF(VLOOKUP(D12,invullijst!A$11:F$226,4,FALSE)="","",VLOOKUP(D12,invullijst!A$11:D$226,4,FALSE)) -> vr | D12: 517 | E12: =IF(VLOOKUP($D12,invullijst!$A$11:$M$185,2,FALSE)="","",VLOOKUP($D12,invullijst!$A$11:$M$185,2,FALSE)) -> Diny Vos | G12: =IF(VLOOKUP($D12,invullijst!$A$11:$M$185,6,FALSE)=0,"",VLOOKUP($D12,invullijst!$A$11:$M$185,6,FALSE)) -> 68 | I12: 1 | J12: =IF($O$3="k",IF(VLOOKUP($L12,invullijst!$A$11:$M$185,11,FALSE)=0," ",VLOOKUP($L12,invullijst!$A$11:$M$185,11,FALSE)),"") ->  | K12: =IF(VLOOKUP($L12,invullijst!$A$11:$M$226,4,FALSE)="","",VLOOKUP($L12,invullijst!$A$11:$M$226,4,FALSE)) -> 0 | M12: =IF(VLOOKUP($L12,invullijst!$A$11:$M$185,2,FALSE)="","",VLOOKUP($L12,invullijst!$A$11:$M$185,2,FALSE)) -> 0 | O12: =IF(VLOOKUP($L12,invullijst!$A$11:$M$185,6,FALSE)=0,"",VLOOKUP($L12,invullijst!$A$11:$M$185,6,FALSE)) -> 
A13: 2 | B13: =IF($G$3="k",IF(VLOOKUP($D13,invullijst!$A$11:$M$185,11,FALSE)=0," ",VLOOKUP($D13,invullijst!$A$11:$M$185,11,FALSE)),"") ->  | C13: =IF(VLOOKUP(D13,invullijst!A$11:F$226,4,FALSE)="","",VLOOKUP(D13,invullijst!A$11:D$226,4,FALSE)) -> 0 | E13: =IF(VLOOKUP($D13,invullijst!$A$11:$M$185,2,FALSE)="","",VLOOKUP($D13,invullijst!$A$11:$M$185,2,FALSE)) -> 0 | G13: =IF(VLOOKUP($D13,invullijst!$A$11:$M$185,6,FALSE)=0,"",VLOOKUP($D13,invullijst!$A$11:$M$185,6,FALSE)) ->  | I13: 2 | J13: =IF($O$3="k",IF(VLOOKUP($L13,invullijst!$A$11:$M$185,11,FALSE)=0," ",VLOOKUP($L13,invullijst!$A$11:$M$185,11,FALSE)),"") ->  | K13: =IF(VLOOKUP($L13,invullijst!$A$11:$M$226,4,FALSE)="","",VLOOKUP($L13,invullijst!$A$11:$M$226,4,FALSE)) -> 0 | M13: =IF(VLOOKUP($L13,invullijst!$A$11:$M$185,2,FALSE)="","",VLOOKUP($L13,invullijst!$A$11:$M$185,2,FALSE)) -> 0 | O13: =IF(VLOOKUP($L13,invullijst!$A$11:$M$185,6,FALSE)=0,"",VLOOKUP($L13,invullijst!$A$11:$M$185,6,FALSE)) -> 
A14: 3 | B14: =IF($G$3="k",IF(VLOOKUP($D14,invullijst!$A$11:$M$185,11,FALSE)=0," ",VLOOKUP($D14,invullijst!$A$11:$M$185,11,FALSE)),"") ->  | C14: =IF(VLOOKUP(D14,invullijst!A$11:F$226,4,FALSE)="","",VLOOKUP(D14,invullijst!A$11:D$226,4,FALSE)) -> 0 | E14: =IF(VLOOKUP($D14,invullijst!$A$11:$M$185,2,FALSE)="","",VLOOKUP($D14,invullijst!$A$11:$M$185,2,FALSE)) -> 0 | G14: =IF(VLOOKUP($D14,invullijst!$A$11:$M$185,6,FALSE)=0,"",VLOOKUP($D14,invullijst!$A$11:$M$185,6,FALSE)) ->  | I14: 3 | J14: =IF($O$3="k",IF(VLOOKUP($L14,invullijst!$A$11:$M$185,11,FALSE)=0," ",VLOOKUP($L14,invullijst!$A$11:$M$185,11,FALSE)),"") ->  | K14: =IF(VLOOKUP($L14,invullijst!$A$11:$M$226,4,FALSE)="","",VLOOKUP($L14,invullijst!$A$11:$M$226,4,FALSE)) -> 0 | M14: =IF(VLOOKUP($L14,invullijst!$A$11:$M$185,2,FALSE)="","",VLOOKUP($L14,invullijst!$A$11:$M$185,2,FALSE)) -> 0 | O14: =IF(VLOOKUP($L14,invullijst!$A$11:$M$185,6,FALSE)=0,"",VLOOKUP($L14,invullijst!$A$11:$M$185,6,FALSE)) -> 
A15: 4 | B15: =IF($G$3="k",IF(VLOOKUP($D15,invullijst!$A$11:$M$185,11,FALSE)=0," ",VLOOKUP($D15,invullijst!$A$11:$M$185,11,FALSE)),"") ->  | C15: =IF(VLOOKUP(D15,invullijst!A$11:F$226,4,FALSE)="","",VLOOKUP(D15,invullijst!A$11:D$226,4,FALSE)) -> 0 | E15: =IF(VLOOKUP($D15,invullijst!$A$11:$M$185,2,FALSE)="","",VLOOKUP($D15,invullijst!$A$11:$M$185,2,FALSE)) -> 0 | G15: =IF(VLOOKUP($D15,invullijst!$A$11:$M$185,6,FALSE)=0,"",VLOOKUP($D15,invullijst!$A$11:$M$185,6,FALSE)) ->  | I15: 4 | J15: =IF($O$3="k",IF(VLOOKUP($L15,invullijst!$A$11:$M$185,11,FALSE)=0," ",VLOOKUP($L15,invullijst!$A$11:$M$185,11,FALSE)),"") ->  | K15: =IF(VLOOKUP($L15,invullijst!$A$11:$M$226,4,FALSE)="","",VLOOKUP($L15,invullijst!$A$11:$M$226,4,FALSE)) -> 0 | M15: =IF(VLOOKUP($L15,invullijst!$A$11:$M$185,2,FALSE)="","",VLOOKUP($L15,invullijst!$A$11:$M$185,2,FALSE)) -> 0 | O15: =IF(VLOOKUP($L15,invullijst!$A$11:$M$185,6,FALSE)=0,"",VLOOKUP($L15,invullijst!$A$11:$M$185,6,FALSE)) -> 
A16: Totaal B1 korps | G16: =SUM(G12:G15) -> 68 | I16: Totaal B1 korps | O16: =SUM(O12:O15) -> 0
A18: 1 | B18: =IF($G$3="k",IF(VLOOKUP($D18,invullijst!$A$11:$M$185,11,FALSE)=0," ",VLOOKUP($D18,invullijst!$A$11:$M$185,11,FALSE)),"") ->  | C18: =IF(VLOOKUP(D18,invullijst!A$11:F$226,4,FALSE)="","",VLOOKUP(D18,invullijst!A$11:D$226,4,FALSE)) -> 0 | E18: =IF(VLOOKUP($D18,invullijst!$A$11:$M$185,2,FALSE)="","",VLOOKUP($D18,invullijst!$A$11:$M$185,2,FALSE)) -> 0 | G18: =IF(VLOOKUP($D18,invullijst!$A$11:$M$185,6,FALSE)=0,"",VLOOKUP($D18,invullijst!$A$11:$M$185,6,FALSE)) ->  | I18: 1 | J18: =IF($O$3="k",IF(VLOOKUP($L18,invullijst!$A$11:$M$185,11,FALSE)=0," ",VLOOKUP($L18,invullijst!$A$11:$M$185,11,FALSE)),"") ->  | K18: =IF(VLOOKUP($L18,invullijst!$A$11:$M$226,4,FALSE)="","",VLOOKUP($L18,invullijst!$A$11:$M$226,4,FALSE)) -> 0 | M18: =IF(VLOOKUP($L18,invullijst!$A$11:$M$185,2,FALSE)="","",VLOOKUP($L18,invullijst!$A$11:$M$185,2,FALSE)) -> 0 | O18: =IF(VLOOKUP($L18,invullijst!$A$11:$M$185,6,FALSE)=0,"",VLOOKUP($L18,invullijst!$A$11:$M$185,6,FALSE)) -> 
A19: 2 | B19: =IF($G$3="k",IF(VLOOKUP($D19,invullijst!$A$11:$M$185,11,FALSE)=0," ",VLOOKUP($D19,invullijst!$A$11:$M$185,11,FALSE)),"") ->  | C19: =IF(VLOOKUP(D19,invullijst!A$11:F$226,4,FALSE)="","",VLOOKUP(D19,invullijst!A$11:D$226,4,FALSE)) -> 0 | E19: =IF(VLOOKUP($D19,invullijst!$A$11:$M$185,2,FALSE)="","",VLOOKUP($D19,invullijst!$A$11:$M$185,2,FALSE)) -> 0 | G19: =IF(VLOOKUP($D19,invullijst!$A$11:$M$185,6,FALSE)=0,"",VLOOKUP($D19,invullijst!$A$11:$M$185,6,FALSE)) ->  | I19: 2 | J19: =IF($O$3="k",IF(VLOOKUP($L19,invullijst!$A$11:$M$185,11,FALSE)=0," ",VLOOKUP($L19,invullijst!$A$11:$M$185,11,FALSE)),"") ->  | K19: =IF(VLOOKUP($L19,invullijst!$A$11:$M$226,4,FALSE)="","",VLOOKUP($L19,invullijst!$A$11:$M$226,4,FALSE)) -> 0 | M19: =IF(VLOOKUP($L19,invullijst!$A$11:$M$185,2,FALSE)="","",VLOOKUP($L19,invullijst!$A$11:$M$185,2,FALSE)) -> 0 | O19: =IF(VLOOKUP($L19,invullijst!$A$11:$M$185,6,FALSE)=0,"",VLOOKUP($L19,invullijst!$A$11:$M$185,6,FALSE)) -> 
A20: 3 | B20: =IF($G$3="k",IF(VLOOKUP($D20,invullijst!$A$11:$M$185,11,FALSE)=0," ",VLOOKUP($D20,invullijst!$A$11:$M$185,11,FALSE)),"") ->  | C20: =IF(VLOOKUP(D20,invullijst!A$11:F$226,4,FALSE)="","",VLOOKUP(D20,invullijst!A$11:D$226,4,FALSE)) -> 0 | E20: =IF(VLOOKUP($D20,invullijst!$A$11:$M$185,2,FALSE)="","",VLOOKUP($D20,invullijst!$A$11:$M$185,2,FALSE)) -> 0 | G20: =IF(VLOOKUP($D20,invullijst!$A$11:$M$185,6,FALSE)=0,"",VLOOKUP($D20,invullijst!$A$11:$M$185,6,FALSE)) ->  | I20: 3 | J20: =IF($O$3="k",IF(VLOOKUP($L20,invullijst!$A$11:$M$185,11,FALSE)=0," ",VLOOKUP($L20,invullijst!$A$11:$M$185,11,FALSE)),"") ->  | K20: =IF(VLOOKUP($L20,invullijst!$A$11:$M$226,4,FALSE)="","",VLOOKUP($L20,invullijst!$A$11:$M$226,4,FALSE)) -> 0 | M20: =IF(VLOOKUP($L20,invullijst!$A$11:$M$185,2,FALSE)="","",VLOOKUP($L20,invullijst!$A$11:$M$185,2,FALSE)) -> 0 | O20: =IF(VLOOKUP($L20,invullijst!$A$11:$M$185,6,FALSE)=0,"",VLOOKUP($L20,invullijst!$A$11:$M$185,6,FALSE)) -> 
A21: 4 | B21: =IF($G$3="k",IF(VLOOKUP($D21,invullijst!$A$11:$M$185,11,FALSE)=0," ",VLOOKUP($D21,invullijst!$A$11:$M$185,11,FALSE)),"") ->  | C21: =IF(VLOOKUP(D21,invullijst!A$11:F$226,4,FALSE)="","",VLOOKUP(D21,invullijst!A$11:D$226,4,FALSE)) -> 0 | E21: =IF(VLOOKUP($D21,invullijst!$A$11:$M$185,2,FALSE)="","",VLOOKUP($D21,invullijst!$A$11:$M$185,2,FALSE)) -> 0 | G21: =IF(VLOOKUP($D21,invullijst!$A$11:$M$185,6,FALSE)=0,"",VLOOKUP($D21,invullijst!$A$11:$M$185,6,FALSE)) ->  | I21: 4 | J21: =IF($O$3="k",IF(VLOOKUP($L21,invullijst!$A$11:$M$185,11,FALSE)=0," ",VLOOKUP($L21,invullijst!$A$11:$M$185,11,FALSE)),"") ->  | K21: =IF(VLOOKUP($L21,invullijst!$A$11:$M$226,4,FALSE)="","",VLOOKUP($L21,invullijst!$A$11:$M$226,4,FALSE)) -> 0 | M21: =IF(VLOOKUP($L21,invullijst!$A$11:$M$185,2,FALSE)="","",VLOOKUP($L21,invullijst!$A$11:$M$185,2,FALSE)) -> 0 | O21: =IF(VLOOKUP($L21,invullijst!$A$11:$M$185,6,FALSE)=0,"",VLOOKUP($L21,invullijst!$A$11:$M$185,6,FALSE)) -> 
A22: DIVERSEN / INHAAL | I22: DIVERSEN / INHAAL
A24: OPGELEGD (Jeugd <16 en 65+)
A25: 1 | B25: =IF($G$3="k",IF(VLOOKUP($D25,invullijst!$A$11:$M$185,11,FALSE)=0," ",VLOOKUP($D25,invullijst!$A$11:$M$185,11,FALSE)),"") ->  | C25: =IF(VLOOKUP(D25,invullijst!A$11:F$226,4,FALSE)="","",VLOOKUP(D25,invullijst!A$11:D$226,4,FALSE)) -> 65+ | D25: 516 | E25: =IF(VLOOKUP($D25,invullijst!$A$11:$M$185,2,FALSE)="","",VLOOKUP($D25,invullijst!$A$11:$M$185,2,FALSE)) -> Henry Bergakker disp | G25: =IF(VLOOKUP($D25,invullijst!$A$11:$M$185,6,FALSE)=0,"",VLOOKUP($D25,invullijst!$A$11:$M$185,6,FALSE)) -> 90 | I25: 1 | J25: =IF($O$3="k",IF(VLOOKUP($L25,invullijst!$A$11:$M$185,11,FALSE)=0," ",VLOOKUP($L25,invullijst!$A$11:$M$185,11,FALSE)),"") ->  | K25: =IF(VLOOKUP($L25,invullijst!$A$11:$M$226,4,FALSE)="","",VLOOKUP($L25,invullijst!$A$11:$M$226,4,FALSE)) -> 65+ | L25: 307 | M25: =IF(VLOOKUP($L25,invullijst!$A$11:$M$185,2,FALSE)="","",VLOOKUP($L25,invullijst!$A$11:$M$185,2,FALSE)) -> Bert van Engelen | O25: =IF(VLOOKUP($L25,invullijst!$A$11:$M$185,6,FALSE)=0,"",VLOOKUP($L25,invullijst!$A$11:$M$185,6,FALSE)) -> 95
A26: 2 | B26: =IF($G$3="k",IF(VLOOKUP($D26,invullijst!$A$11:$M$185,11,FALSE)=0," ",VLOOKUP($D26,invullijst!$A$11:$M$185,11,FALSE)),"") ->  | C26: =IF(VLOOKUP(D26,invullijst!A$11:F$226,4,FALSE)="","",VLOOKUP(D26,invullijst!A$11:D$226,4,FALSE)) -> 65+ | D26: 509 | E26: =IF(VLOOKUP($D26,invullijst!$A$11:$M$185,2,FALSE)="","",VLOOKUP($D26,invullijst!$A$11:$M$185,2,FALSE)) -> Adwan de Pinth | G26: =IF(VLOOKUP($D26,invullijst!$A$11:$M$185,6,FALSE)=0,"",VLOOKUP($D26,invullijst!$A$11:$M$185,6,FALSE)) -> 90 | I26: 2 | J26: =IF($O$3="k",IF(VLOOKUP($L26,invullijst!$A$11:$M$185,11,FALSE)=0," ",VLOOKUP($L26,invullijst!$A$11:$M$185,11,FALSE)),"") ->  | K26: =IF(VLOOKUP($L26,invullijst!$A$11:$M$226,4,FALSE)="","",VLOOKUP($L26,invullijst!$A$11:$M$226,4,FALSE)) -> 65+ | L26: 310 | M26: =IF(VLOOKUP($L26,invullijst!$A$11:$M$185,2,FALSE)="","",VLOOKUP($L26,invullijst!$A$11:$M$185,2,FALSE)) -> Tiny Boom | O26: =IF(VLOOKUP($L26,invullijst!$A$11:$M$185,6,FALSE)=0,"",VLOOKUP($L26,invullijst!$A$11:$M$185,6,FALSE)) -> 92
A27: 3 | B27: =IF($G$3="k",IF(VLOOKUP($D27,invullijst!$A$11:$M$185,11,FALSE)=0," ",VLOOKUP($D27,invullijst!$A$11:$M$185,11,FALSE)),"") ->  | C27: =IF(VLOOKUP(D27,invullijst!A$11:F$226,4,FALSE)="","",VLOOKUP(D27,invullijst!A$11:D$226,4,FALSE)) -> 65+ | D27: 515 | E27: =IF(VLOOKUP($D27,invullijst!$A$11:$M$185,2,FALSE)="","",VLOOKUP($D27,invullijst!$A$11:$M$185,2,FALSE)) -> Ilona Bergakker disp | G27: =IF(VLOOKUP($D27,invullijst!$A$11:$M$185,6,FALSE)=0,"",VLOOKUP($D27,invullijst!$A$11:$M$185,6,FALSE)) -> 89 | I27: 3 | J27: =IF($O$3="k",IF(VLOOKUP($L27,invullijst!$A$11:$M$185,11,FALSE)=0," ",VLOOKUP($L27,invullijst!$A$11:$M$185,11,FALSE)),"") ->  | K27: =IF(VLOOKUP($L27,invullijst!$A$11:$M$226,4,FALSE)="","",VLOOKUP($L27,invullijst!$A$11:$M$226,4,FALSE)) -> J | L27: 312 | M27: =IF(VLOOKUP($L27,invullijst!$A$11:$M$185,2,FALSE)="","",VLOOKUP($L27,invullijst!$A$11:$M$185,2,FALSE)) -> Floor de Jong | O27: =IF(VLOOKUP($L27,invullijst!$A$11:$M$185,6,FALSE)=0,"",VLOOKUP($L27,invullijst!$A$11:$M$185,6,FALSE)) -> 95
A28: Totaal korps opgelegd A1 | G28: =SUM(G25:G27) -> 269 | I28: Totaal korps opgelegd A1 | O28: =SUM(O25:O27) -> 282
A30: 1 | B30: =IF($G$3="k",IF(VLOOKUP($D30,invullijst!$A$11:$M$185,11,FALSE)=0," ",VLOOKUP($D30,invullijst!$A$11:$M$185,11,FALSE)),"") ->  | C30: =IF(VLOOKUP(D30,invullijst!A$11:F$226,4,FALSE)="","",VLOOKUP(D30,invullijst!A$11:D$226,4,FALSE)) -> 65+ | D30: 503 | E30: =IF(VLOOKUP($D30,invullijst!$A$11:$M$185,2,FALSE)="","",VLOOKUP($D30,invullijst!$A$11:$M$185,2,FALSE)) -> Kees Vos | G30: =IF(VLOOKUP($D30,invullijst!$A$11:$M$185,6,FALSE)=0,"",VLOOKUP($D30,invullijst!$A$11:$M$185,6,FALSE)) -> 81 | I30: 1 | J30: =IF($O$3="k",IF(VLOOKUP($L30,invullijst!$A$11:$M$185,11,FALSE)=0," ",VLOOKUP($L30,invullijst!$A$11:$M$185,11,FALSE)),"") ->  | K30: =IF(VLOOKUP($L30,invullijst!$A$11:$M$226,4,FALSE)="","",VLOOKUP($L30,invullijst!$A$11:$M$226,4,FALSE)) -> 65+ | L30: 301 | M30: =IF(VLOOKUP($L30,invullijst!$A$11:$M$185,2,FALSE)="","",VLOOKUP($L30,invullijst!$A$11:$M$185,2,FALSE)) -> Arjen van Assem disp | O30: =IF(VLOOKUP($L30,invullijst!$A$11:$M$185,6,FALSE)=0,"",VLOOKUP($L30,invullijst!$A$11:$M$185,6,FALSE)) -> 89
A31: 2 | B31: =IF($G$3="k",IF(VLOOKUP($D31,invullijst!$A$11:$M$185,11,FALSE)=0," ",VLOOKUP($D31,invullijst!$A$11:$M$185,11,FALSE)),"") ->  | C31: =IF(VLOOKUP(D31,invullijst!A$11:F$226,4,FALSE)="","",VLOOKUP(D31,invullijst!A$11:D$226,4,FALSE)) -> 65+ | D31: 518 | E31: =IF(VLOOKUP($D31,invullijst!$A$11:$M$185,2,FALSE)="","",VLOOKUP($D31,invullijst!$A$11:$M$185,2,FALSE)) -> Ton Stanz | G31: =IF(VLOOKUP($D31,invullijst!$A$11:$M$185,6,FALSE)=0,"",VLOOKUP($D31,invullijst!$A$11:$M$185,6,FALSE)) -> 83 | I31: 2 | J31: =IF($O$3="k",IF(VLOOKUP($L31,invullijst!$A$11:$M$185,11,FALSE)=0," ",VLOOKUP($L31,invullijst!$A$11:$M$185,11,FALSE)),"") ->  | K31: =IF(VLOOKUP($L31,invullijst!$A$11:$M$226,4,FALSE)="","",VLOOKUP($L31,invullijst!$A$11:$M$226,4,FALSE)) -> 65+ | L31: 309 | M31: =IF(VLOOKUP($L31,invullijst!$A$11:$M$185,2,FALSE)="","",VLOOKUP($L31,invullijst!$A$11:$M$185,2,FALSE)) -> René de Jong | O31: =IF(VLOOKUP($L31,invullijst!$A$11:$M$185,6,FALSE)=0,"",VLOOKUP($L31,invullijst!$A$11:$M$185,6,FALSE)) -> 87
A32: 3 | B32: =IF($G$3="k",IF(VLOOKUP($D32,invullijst!$A$11:$M$185,11,FALSE)=0," ",VLOOKUP($D32,invullijst!$A$11:$M$185,11,FALSE)),"") ->  | C32: =IF(VLOOKUP(D32,invullijst!A$11:F$226,4,FALSE)="","",VLOOKUP(D32,invullijst!A$11:D$226,4,FALSE)) -> 0 | E32: =IF(VLOOKUP($D32,invullijst!$A$11:$M$185,2,FALSE)="","",VLOOKUP($D32,invullijst!$A$11:$M$185,2,FALSE)) -> 0 | G32: =IF(VLOOKUP($D32,invullijst!$A$11:$M$185,6,FALSE)=0,"",VLOOKUP($D32,invullijst!$A$11:$M$185,6,FALSE)) ->  | I32: 3 | J32: =IF($O$3="k",IF(VLOOKUP($L32,invullijst!$A$11:$M$185,11,FALSE)=0," ",VLOOKUP($L32,invullijst!$A$11:$M$185,11,FALSE)),"") ->  | K32: =IF(VLOOKUP($L32,invullijst!$A$11:$M$226,4,FALSE)="","",VLOOKUP($L32,invullijst!$A$11:$M$226,4,FALSE)) -> 0 | M32: =IF(VLOOKUP($L32,invullijst!$A$11:$M$185,2,FALSE)="","",VLOOKUP($L32,invullijst!$A$11:$M$185,2,FALSE)) -> 0 | O32: =IF(VLOOKUP($L32,invullijst!$A$11:$M$185,6,FALSE)=0,"",VLOOKUP($L32,invullijst!$A$11:$M$185,6,FALSE)) -> 
A33: Totaal korps opgelegd A2 | G33: =SUM(G30:G32) -> 164 | I33: Totaal korps opgelegd A2 | O33: =SUM(O30:O32) -> 176
A35: 1 | B35: =IF($G$3="k",IF(VLOOKUP($D35,invullijst!$A$11:$M$185,11,FALSE)=0," ",VLOOKUP($D35,invullijst!$A$11:$M$185,11,FALSE)),"") ->  | C35: =IF(VLOOKUP(D35,invullijst!A$11:F$226,4,FALSE)="","",VLOOKUP(D35,invullijst!A$11:D$226,4,FALSE)) -> 0 | E35: =IF(VLOOKUP($D35,invullijst!$A$11:$M$185,2,FALSE)="","",VLOOKUP($D35,invullijst!$A$11:$M$185,2,FALSE)) -> 0 | G35: =IF(VLOOKUP($D35,invullijst!$A$11:$M$185,6,FALSE)=0,"",VLOOKUP($D35,invullijst!$A$11:$M$185,6,FALSE)) ->  | I35: 1 | J35: =IF($O$3="k",IF(VLOOKUP($L35,invullijst!$A$11:$M$185,11,FALSE)=0," ",VLOOKUP($L35,invullijst!$A$11:$M$185,11,FALSE)),"") ->  | K35: =IF(VLOOKUP($L35,invullijst!$A$11:$M$226,4,FALSE)="","",VLOOKUP($L35,invullijst!$A$11:$M$226,4,FALSE)) -> 0 | M35: =IF(VLOOKUP($L35,invullijst!$A$11:$M$185,2,FALSE)="","",VLOOKUP($L35,invullijst!$A$11:$M$185,2,FALSE)) -> 0 | O35: =IF(VLOOKUP($L35,invullijst!$A$11:$M$185,6,FALSE)=0,"",VLOOKUP($L35,invullijst!$A$11:$M$185,6,FALSE)) -> 
A36: 2 | B36: =IF($G$3="k",IF(VLOOKUP($D36,invullijst!$A$11:$M$185,11,FALSE)=0," ",VLOOKUP($D36,invullijst!$A$11:$M$185,11,FALSE)),"") ->  | C36: =IF(VLOOKUP(D36,invullijst!A$11:F$226,4,FALSE)="","",VLOOKUP(D36,invullijst!A$11:D$226,4,FALSE)) -> 0 | E36: =IF(VLOOKUP($D36,invullijst!$A$11:$M$185,2,FALSE)="","",VLOOKUP($D36,invullijst!$A$11:$M$185,2,FALSE)) -> 0 | G36: =IF(VLOOKUP($D36,invullijst!$A$11:$M$185,6,FALSE)=0,"",VLOOKUP($D36,invullijst!$A$11:$M$185,6,FALSE)) ->  | I36: 2 | J36: =IF($O$3="k",IF(VLOOKUP($L36,invullijst!$A$11:$M$185,11,FALSE)=0," ",VLOOKUP($L36,invullijst!$A$11:$M$185,11,FALSE)),"") ->  | K36: =IF(VLOOKUP($L36,invullijst!$A$11:$M$226,4,FALSE)="","",VLOOKUP($L36,invullijst!$A$11:$M$226,4,FALSE)) -> 0 | M36: =IF(VLOOKUP($L36,invullijst!$A$11:$M$185,2,FALSE)="","",VLOOKUP($L36,invullijst!$A$11:$M$185,2,FALSE)) -> 0 | O36: =IF(VLOOKUP($L36,invullijst!$A$11:$M$185,6,FALSE)=0,"",VLOOKUP($L36,invullijst!$A$11:$M$185,6,FALSE)) -> 
A37: 3 | B37: =IF($G$3="k",IF(VLOOKUP($D37,invullijst!$A$11:$M$185,11,FALSE)=0," ",VLOOKUP($D37,invullijst!$A$11:$M$185,11,FALSE)),"") ->  | C37: =IF(VLOOKUP(D37,invullijst!A$11:F$226,4,FALSE)="","",VLOOKUP(D37,invullijst!A$11:D$226,4,FALSE)) -> 0 | E37: =IF(VLOOKUP($D37,invullijst!$A$11:$M$185,2,FALSE)="","",VLOOKUP($D37,invullijst!$A$11:$M$185,2,FALSE)) -> 0 | G37: =IF(VLOOKUP($D37,invullijst!$A$11:$M$185,6,FALSE)=0,"",VLOOKUP($D37,invullijst!$A$11:$M$185,6,FALSE)) ->  | I37: 3 | J37: =IF($O$3="k",IF(VLOOKUP($L37,invullijst!$A$11:$M$185,11,FALSE)=0," ",VLOOKUP($L37,invullijst!$A$11:$M$185,11,FALSE)),"") ->  | K37: =IF(VLOOKUP($L37,invullijst!$A$11:$M$226,4,FALSE)="","",VLOOKUP($L37,invullijst!$A$11:$M$226,4,FALSE)) -> 0 | M37: =IF(VLOOKUP($L37,invullijst!$A$11:$M$185,2,FALSE)="","",VLOOKUP($L37,invullijst!$A$11:$M$185,2,FALSE)) -> 0 | O37: =IF(VLOOKUP($L37,invullijst!$A$11:$M$185,6,FALSE)=0,"",VLOOKUP($L37,invullijst!$A$11:$M$185,6,FALSE)) -> 
A38: Totaal korps opgelegd A3 | G38: =SUM(G35:G37) -> 0 | I38: Totaal korps opgelegd A3 | O38: =IF(VLOOKUP($L38,invullijst!$A$11:$M$185,6,FALSE)=0,"",VLOOKUP($L38,invullijst!$A$11:$M$185,6,FALSE)) -> 

Sheet wedstrijd 1B
A1: =invullijst!F1 -> Organistatie | F1: =invullijst!H2 -> 2024 - 2025 | I1: =invullijst!F3 -> O.L.V. Schuts Elshout
A2: Datum: | M2: 2024-12-08
A3: 2 | B3: =IF(VLOOKUP(A3,invullijst!A1:F5,2,FALSE)="","",VLOOKUP(A3,invullijst!A1:F5,2,FALSE)) -> St. Crispinus & Crispinianus Besoijen | I3: 4 | J3: =IF(VLOOKUP(I3,invullijst!A1:C5,2,FALSE)="","",VLOOKUP(I3,invullijst!A1:C5,2,FALSE)) -> Sint Ambrosius Haarsteeg
A5: vrijehand
A6: 1 | B6: =IF($G$3="k",IF(VLOOKUP($D6,invullijst!$A$11:$M$185,11,FALSE)=0," ",VLOOKUP($D6,invullijst!$A$11:$M$185,11,FALSE)),"") ->  | C6: =IF(VLOOKUP(D6,invullijst!A$11:F$226,4,FALSE)="","",VLOOKUP(D6,invullijst!A$11:D$226,4,FALSE)) -> vr | D6: 210 | E6: =IF(VLOOKUP($D6,invullijst!$A$11:$M$185,2,FALSE)="","",VLOOKUP($D6,invullijst!$A$11:$M$185,2,FALSE)) -> Sander Oome | G6: =IF(VLOOKUP($D6,invullijst!$A$11:$M$185,6,FALSE)=0,"",VLOOKUP($D6,invullijst!$A$11:$M$185,6,FALSE)) -> 91 | I6: 1 | J6: =IF($O$3="k",IF(VLOOKUP($L6,invullijst!$A$11:$M$185,11,FALSE)=0," ",VLOOKUP($L6,invullijst!$A$11:$M$185,11,FALSE)),"") ->  | K6: =IF(VLOOKUP($L6,invullijst!$A$11:$M$226,4,FALSE)="","",VLOOKUP($L6,invullijst!$A$11:$M$226,4,FALSE)) -> vr | L6: 408 | M6: =IF(VLOOKUP($L6,invullijst!$A$11:$M$185,2,FALSE)="","",VLOOKUP($L6,invullijst!$A$11:$M$185,2,FALSE)) -> Rudy van Falier | O6: =IF(VLOOKUP($L6,invullijst!$A$11:$M$185,6,FALSE)=0,"",VLOOKUP($L6,invullijst!$A$11:$M$185,6,FALSE)) -> 81
A7: 2 | B7: =IF($G$3="k",IF(VLOOKUP($D7,invullijst!$A$11:$M$185,11,FALSE)=0," ",VLOOKUP($D7,invullijst!$A$11:$M$185,11,FALSE)),"") ->  | C7: =IF(VLOOKUP(D7,invullijst!A$11:F$226,4,FALSE)="","",VLOOKUP(D7,invullijst!A$11:D$226,4,FALSE)) -> vr | D7: 216 | E7: =IF(VLOOKUP($D7,invullijst!$A$11:$M$185,2,FALSE)="","",VLOOKUP($D7,invullijst!$A$11:$M$185,2,FALSE)) -> Pieter Laghuwitz | G7: =IF(VLOOKUP($D7,invullijst!$A$11:$M$185,6,FALSE)=0,"",VLOOKUP($D7,invullijst!$A$11:$M$185,6,FALSE)) -> 87 | I7: 2 | J7: =IF($O$3="k",IF(VLOOKUP($L7,invullijst!$A$11:$M$185,11,FALSE)=0," ",VLOOKUP($L7,invullijst!$A$11:$M$185,11,FALSE)),"") ->  | K7: =IF(VLOOKUP($L7,invullijst!$A$11:$M$226,4,FALSE)="","",VLOOKUP($L7,invullijst!$A$11:$M$226,4,FALSE)) -> vr | L7: 410 | M7: =IF(VLOOKUP($L7,invullijst!$A$11:$M$185,2,FALSE)="","",VLOOKUP($L7,invullijst!$A$11:$M$185,2,FALSE)) -> Tonnie Koks | O7: =IF(VLOOKUP($L7,invullijst!$A$11:$M$185,6,FALSE)=0,"",VLOOKUP($L7,invullijst!$A$11:$M$185,6,FALSE)) -> 88
A8: 3 | B8: =IF($G$3="k",IF(VLOOKUP($D8,invullijst!$A$11:$M$185,11,FALSE)=0," ",VLOOKUP($D8,invullijst!$A$11:$M$185,11,FALSE)),"") ->  | C8: =IF(VLOOKUP(D8,invullijst!A$11:F$226,4,FALSE)="","",VLOOKUP(D8,invullijst!A$11:D$226,4,FALSE)) -> vr | D8: 206 | E8: =IF(VLOOKUP($D8,invullijst!$A$11:$M$185,2,FALSE)="","",VLOOKUP($D8,invullijst!$A$11:$M$185,2,FALSE)) -> Kees van Hulten | G8: =IF(VLOOKUP($D8,invullijst!$A$11:$M$185,6,FALSE)=0,"",VLOOKUP($D8,invullijst!$A$11:$M$185,6,FALSE)) -> 73 | I8: 3 | J8: =IF($O$3="k",IF(VLOOKUP($L8,invullijst!$A$11:$M$185,11,FALSE)=0," ",VLOOKUP($L8,invullijst!$A$11:$M$185,11,FALSE)),"") ->  | K8: =IF(VLOOKUP($L8,invullijst!$A$11:$M$226,4,FALSE)="","",VLOOKUP($L8,invullijst!$A$11:$M$226,4,FALSE)) -> vr | L8: 402 | M8: =IF(VLOOKUP($L8,invullijst!$A$11:$M$185,2,FALSE)="","",VLOOKUP($L8,invullijst!$A$11:$M$185,2,FALSE)) -> Daniëlle v/d Lee | O8: =IF(VLOOKUP($L8,invullijst!$A$11:$M$185,6,FALSE)=0,"",VLOOKUP($L8,invullijst!$A$11:$M$185,6,FALSE)) -> 84
A9: 4 | B9: =IF($G$3="k",IF(VLOOKUP($D9,invullijst!$A$11:$M$185,11,FALSE)=0," ",VLOOKUP($D9,invullijst!$A$11:$M$185,11,FALSE)),"") ->  | C9: =IF(VLOOKUP(D9,invullijst!A$11:F$226,4,FALSE)="","",VLOOKUP(D9,invullijst!A$11:D$226,4,FALSE)) -> vr | D9: 207 | E9: =IF(VLOOKUP($D9,invullijst!$A$11:$M$185,2,FALSE)="","",VLOOKUP($D9,invullijst!$A$11:$M$185,2,FALSE)) -> Max de Louw | G9: =IF(VLOOKUP($D9,invullijst!$A$11:$M$185,6,FALSE)=0,"",VLOOKUP($D9,invullijst!$A$11:$M$185,6,FALSE)) -> 89 | I9: 4 | J9: =IF($O$3="k",IF(VLOOKUP($L9,invullijst!$A$11:$M$185,11,FALSE)=0," ",VLOOKUP($L9,invullijst!$A$11:$M$185,11,FALSE)),"") ->  | K9: =IF(VLOOKUP($L9,invullijst!$A$11:$M$226,4,FALSE)="","",VLOOKUP($L9,invullijst!$A$11:$M$226,4,FALSE)) -> vr | L9: 411 | M9: =IF(VLOOKUP($L9,invullijst!$A$11:$M$185,2,FALSE)="","",VLOOKUP($L9,invullijst!$A$11:$M$185,2,FALSE)) -> Wilma v/d Lee | O9: =IF(VLOOKUP($L9,invullijst!$A$11:$M$185,6,FALSE)=0,"",VLOOKUP($L9,invullijst!$A$11:$M$185,6,FALSE)) -> 61
A10: Totaal A korps | G10: =SUM(G6:G9) -> 340 | I10: Totaal A korps | O10: =SUM(O6:O9) -> 314
A12: 1 | B12: =IF($G$3="k",IF(VLOOKUP($D12,invullijst!$A$11:$M$185,11,FALSE)=0," ",VLOOKUP($D12,invullijst!$A$11:$M$185,11,FALSE)),"") ->  | C12: =IF(VLOOKUP(D12,invullijst!A$11:F$226,4,FALSE)="","",VLOOKUP(D12,invullijst!A$11:D$226,4,FALSE)) -> vr | D12: 203 | E12: =IF(VLOOKUP($D12,invullijst!$A$11:$M$185,2,FALSE)="","",VLOOKUP($D12,invullijst!$A$11:$M$185,2,FALSE)) -> Frank van den Houdt | G12: =IF(VLOOKUP($D12,invullijst!$A$11:$M$185,6,FALSE)=0,"",VLOOKUP($D12,invullijst!$A$11:$M$185,6,FALSE)) -> 86 | I12: 1 | J12: =IF($O$3="k",IF(VLOOKUP($L12,invullijst!$A$11:$M$185,11,FALSE)=0," ",VLOOKUP($L12,invullijst!$A$11:$M$185,11,FALSE)),"") ->  | K12: =IF(VLOOKUP($L12,invullijst!$A$11:$M$226,4,FALSE)="","",VLOOKUP($L12,invullijst!$A$11:$M$226,4,FALSE)) -> 0 | M12: =IF(VLOOKUP($L12,invullijst!$A$11:$M$185,2,FALSE)="","",VLOOKUP($L12,invullijst!$A$11:$M$185,2,FALSE)) -> 0 | O12: =IF(VLOOKUP($L12,invullijst!$A$11:$M$185,6,FALSE)=0,"",VLOOKUP($L12,invullijst!$A$11:$M$185,6,FALSE)) -> 
A13: 2 | B13: =IF($G$3="k",IF(VLOOKUP($D13,invullijst!$A$11:$M$185,11,FALSE)=0," ",VLOOKUP($D13,invullijst!$A$11:$M$185,11,FALSE)),"") ->  | C13: =IF(VLOOKUP(D13,invullijst!A$11:F$226,4,FALSE)="","",VLOOKUP(D13,invullijst!A$11:D$226,4,FALSE)) -> vr | D13: 205 | E13: =IF(VLOOKUP($D13,invullijst!$A$11:$M$185,2,FALSE)="","",VLOOKUP($D13,invullijst!$A$11:$M$185,2,FALSE)) -> Jos v/d Snepscheut | G13: =IF(VLOOKUP($D13,invullijst!$A$11:$M$185,6,FALSE)=0,"",VLOOKUP($D13,invullijst!$A$11:$M$185,6,FALSE)) -> 75 | I13: 2 | J13: =IF($O$3="k",IF(VLOOKUP($L13,invullijst!$A$11:$M$185,11,FALSE)=0," ",VLOOKUP($L13,invullijst!$A$11:$M$185,11,FALSE)),"") ->  | K13: =IF(VLOOKUP($L13,invullijst!$A$11:$M$226,4,FALSE)="","",VLOOKUP($L13,invullijst!$A$11:$M$226,4,FALSE)) -> 0 | M13: =IF(VLOOKUP($L13,invullijst!$A$11:$M$185,2,FALSE)="","",VLOOKUP($L13,invullijst!$A$11:$M$185,2,FALSE)) -> 0 | O13: =IF(VLOOKUP($L13,invullijst!$A$11:$M$185,6,FALSE)=0,"",VLOOKUP($L13,invullijst!$A$11:$M$185,6,FALSE)) -> 
A14: 3 | B14: =IF($G$3="k",IF(VLOOKUP($D14,invullijst!$A$11:$M$185,11,FALSE)=0," ",VLOOKUP($D14,invullijst!$A$11:$M$185,11,FALSE)),"") ->  | C14: =IF(VLOOKUP(D14,invullijst!A$11:F$226,4,FALSE)="","",VLOOKUP(D14,invullijst!A$11:D$226,4,FALSE)) -> vr | D14: 204 | E14: =IF(VLOOKUP($D14,invullijst!$A$11:$M$185,2,FALSE)="","",VLOOKUP($D14,invullijst!$A$11:$M$185,2,FALSE)) -> Harry de Louw | G14: =IF(VLOOKUP($D14,invullijst!$A$11:$M$185,6,FALSE)=0,"",VLOOKUP($D14,invullijst!$A$11:$M$185,6,FALSE)) -> 80 | I14: 3 | J14: =IF($O$3="k",IF(VLOOKUP($L14,invullijst!$A$11:$M$185,11,FALSE)=0," ",VLOOKUP($L14,invullijst!$A$11:$M$185,11,FALSE)),"") ->  | K14: =IF(VLOOKUP($L14,invullijst!$A$11:$M$226,4,FALSE)="","",VLOOKUP($L14,invullijst!$A$11:$M$226,4,FALSE)) -> 0 | M14: =IF(VLOOKUP($L14,invullijst!$A$11:$M$185,2,FALSE)="","",VLOOKUP($L14,invullijst!$A$11:$M$185,2,FALSE)) -> 0 | O14: =IF(VLOOKUP($L14,invullijst!$A$11:$M$185,6,FALSE)=0,"",VLOOKUP($L14,invullijst!$A$11:$M$185,6,FALSE)) -> 
A15: 4 | B15: =IF($G$3="k",IF(VLOOKUP($D15,invullijst!$A$11:$M$185,11,FALSE)=0," ",VLOOKUP($D15,invullijst!$A$11:$M$185,11,FALSE)),"") ->  | C15: =IF(VLOOKUP(D15,invullijst!A$11:F$226,4,FALSE)="","",VLOOKUP(D15,invullijst!A$11:D$226,4,FALSE)) -> vr | D15: 209 | E15: =IF(VLOOKUP($D15,invullijst!$A$11:$M$185,2,FALSE)="","",VLOOKUP($D15,invullijst!$A$11:$M$185,2,FALSE)) -> René van Kuijk | G15: =IF(VLOOKUP($D15,invullijst!$A$11:$M$185,6,FALSE)=0,"",VLOOKUP($D15,invullijst!$A$11:$M$185,6,FALSE)) -> 81 | I15: 4 | J15: =IF($O$3="k",IF(VLOOKUP($L15,invullijst!$A$11:$M$185,11,FALSE)=0," ",VLOOKUP($L15,invullijst!$A$11:$M$185,11,FALSE)),"") ->  | K15: =IF(VLOOKUP($L15,invullijst!$A$11:$M$226,4,FALSE)="","",VLOOKUP($L15,invullijst!$A$11:$M$226,4,FALSE)) -> 0 | M15: =IF(VLOOKUP($L15,invullijst!$A$11:$M$185,2,FALSE)="","",VLOOKUP($L15,invullijst!$A$11:$M$185,2,FALSE)) -> 0 | O15: =IF(VLOOKUP($L15,invullijst!$A$11:$M$185,6,FALSE)=0,"",VLOOKUP($L15,invullijst!$A$11:$M$185,6,FALSE)) -> 
A16: Totaal B1 korps | G16: =SUM(G12:G15) -> 322 | I16: Totaal B1 korps | O16: =SUM(O12:O15) -> 0
A18: 1 | B18: =IF($G$3="k",IF(VLOOKUP($D18,invullijst!$A$11:$M$185,11,FALSE)=0," ",VLOOKUP($D18,invullijst!$A$11:$M$185,11,FALSE)),"") ->  | C18: =IF(VLOOKUP(D18,invullijst!A$11:F$226,4,FALSE)="","",VLOOKUP(D18,invullijst!A$11:D$226,4,FALSE)) -> vr | D18: 208 | E18: =IF(VLOOKUP($D18,invullijst!$A$11:$M$185,2,FALSE)="","",VLOOKUP($D18,invullijst!$A$11:$M$185,2,FALSE)) -> Erin van Hulten | G18: =IF(VLOOKUP($D18,invullijst!$A$11:$M$185,6,FALSE)=0,"",VLOOKUP($D18,invullijst!$A$11:$M$185,6,FALSE)) -> 77 | I18: 1 | J18: =IF($O$3="k",IF(VLOOKUP($L18,invullijst!$A$11:$M$185,11,FALSE)=0," ",VLOOKUP($L18,invullijst!$A$11:$M$185,11,FALSE)),"") ->  | K18: =IF(VLOOKUP($L18,invullijst!$A$11:$M$226,4,FALSE)="","",VLOOKUP($L18,invullijst!$A$11:$M$226,4,FALSE)) -> 0 | M18: =IF(VLOOKUP($L18,invullijst!$A$11:$M$185,2,FALSE)="","",VLOOKUP($L18,invullijst!$A$11:$M$185,2,FALSE)) -> 0 | O18: =IF(VLOOKUP($L18,invullijst!$A$11:$M$185,6,FALSE)=0,"",VLOOKUP($L18,invullijst!$A$11:$M$185,6,FALSE)) -> 
A19: 2 | B19: =IF($G$3="k",IF(VLOOKUP($D19,invullijst!$A$11:$M$185,11,FALSE)=0," ",VLOOKUP($D19,invullijst!$A$11:$M$185,11,FALSE)),"") ->  | C19: =IF(VLOOKUP(D19,invullijst!A$11:F$226,4,FALSE)="","",VLOOKUP(D19,invullijst!A$11:D$226,4,FALSE)) -> vr | D19: 213 | E19: =IF(VLOOKUP($D19,invullijst!$A$11:$M$185,2,FALSE)="","",VLOOKUP($D19,invullijst!$A$11:$M$185,2,FALSE)) -> Roland van Delft | G19: =IF(VLOOKUP($D19,invullijst!$A$11:$M$185,6,FALSE)=0,"",VLOOKUP($D19,invullijst!$A$11:$M$185,6,FALSE)) -> 74 | I19: 2 | J19: =IF($O$3="k",IF(VLOOKUP($L19,invullijst!$A$11:$M$185,11,FALSE)=0," ",VLOOKUP($L19,invullijst!$A$11:$M$185,11,FALSE)),"") ->  | K19: =IF(VLOOKUP($L19,invullijst!$A$11:$M$226,4,FALSE)="","",VLOOKUP($L19,invullijst!$A$11:$M$226,4,FALSE)) -> 0 | M19: =IF(VLOOKUP($L19,invullijst!$A$11:$M$185,2,FALSE)="","",VLOOKUP($L19,invullijst!$A$11:$M$185,2,FALSE)) -> 0 | O19: =IF(VLOOKUP($L19,invullijst!$A$11:$M$185,6,FALSE)=0,"",VLOOKUP($L19,invullijst!$A$11:$M$185,6,FALSE)) -> 
A20: 3 | B20: =IF($G$3="k",IF(VLOOKUP($D20,invullijst!$A$11:$M$185,11,FALSE)=0," ",VLOOKUP($D20,invullijst!$A$11:$M$185,11,FALSE)),"") ->  | C20: =IF(VLOOKUP(D20,invullijst!A$11:F$226,4,FALSE)="","",VLOOKUP(D20,invullijst!A$11:D$226,4,FALSE)) -> vr | D20: 217 | E20: =IF(VLOOKUP($D20,invullijst!$A$11:$M$185,2,FALSE)="","",VLOOKUP($D20,invullijst!$A$11:$M$185,2,FALSE)) -> Hans Laghuwitz | G20: =IF(VLOOKUP($D20,invullijst!$A$11:$M$185,6,FALSE)=0,"",VLOOKUP($D20,invullijst!$A$11:$M$185,6,FALSE)) -> 76 | I20: 3 | J20: =IF($O$3="k",IF(VLOOKUP($L20,invullijst!$A$11:$M$185,11,FALSE)=0," ",VLOOKUP($L20,invullijst!$A$11:$M$185,11,FALSE)),"") ->  | K20: =IF(VLOOKUP($L20,invullijst!$A$11:$M$226,4,FALSE)="","",VLOOKUP($L20,invullijst!$A$11:$M$226,4,FALSE)) -> 0 | M20: =IF(VLOOKUP($L20,invullijst!$A$11:$M$185,2,FALSE)="","",VLOOKUP($L20,invullijst!$A$11:$M$185,2,FALSE)) -> 0 | O20: =IF(VLOOKUP($L20,invullijst!$A$11:$M$185,6,FALSE)=0,"",VLOOKUP($L20,invullijst!$A$11:$M$185,6,FALSE)) -> 
A21: 4 | B21: =IF($G$3="k",IF(VLOOKUP($D21,invullijst!$A$11:$M$185,11,FALSE)=0," ",VLOOKUP($D21,invullijst!$A$11:$M$185,11,FALSE)),"") ->  | C21: =IF(VLOOKUP(D21,invullijst!A$11:F$226,4,FALSE)="","",VLOOKUP(D21,invullijst!A$11:D$226,4,FALSE)) -> vr | D21: 202 | E21: =IF(VLOOKUP($D21,invullijst!$A$11:$M$185,2,FALSE)="","",VLOOKUP($D21,invullijst!$A$11:$M$185,2,FALSE)) -> Arco van Kuijk | G21: =IF(VLOOKUP($D21,invullijst!$A$11:$M$185,6,FALSE)=0,"",VLOOKUP($D21,invullijst!$A$11:$M$185,6,FALSE)) -> 73 | I21: 4 | J21: =IF($O$3="k",IF(VLOOKUP($L21,invullijst!$A$11:$M$185,11,FALSE)=0," ",VLOOKUP($L21,invullijst!$A$11:$M$185,11,FALSE)),"") ->  | K21: =IF(VLOOKUP($L21,invullijst!$A$11:$M$226,4,FALSE)="","",VLOOKUP($L21,invullijst!$A$11:$M$226,4,FALSE)) -> 0 | M21: =IF(VLOOKUP($L21,invullijst!$A$11:$M$185,2,FALSE)="","",VLOOKUP($L21,invullijst!$A$11:$M$185,2,FALSE)) -> 0 | O21: =IF(VLOOKUP($L21,invullijst!$A$11:$M$185,6,FALSE)=0,"",VLOOKUP($L21,invullijst!$A$11:$M$185,6,FALSE)) -> 
A22: DIVERSEN / INHAAL | G22: =SUM(G18:G21) -> 300 | I22: DIVERSEN / INHAAL
A24: OPGELEGD (Jeugd <16 en 65+)
A25: 1 | B25: =IF($G$3="k",IF(VLOOKUP($D25,invullijst!$A$11:$M$185,11,FALSE)=0," ",VLOOKUP($D25,invullijst!$A$11:$M$185,11,FALSE)),"") ->  | C25: =IF(VLOOKUP(D25,invullijst!A$11:F$226,4,FALSE)="","",VLOOKUP(D25,invullijst!A$11:D$226,4,FALSE)) -> 65+ | D25: 218 | E25: =IF(VLOOKUP($D25,invullijst!$A$11:$M$185,2,FALSE)="","",VLOOKUP($D25,invullijst!$A$11:$M$185,2,FALSE)) -> Jacob van de Werken | G25: =IF(VLOOKUP($D25,invullijst!$A$11:$M$185,6,FALSE)=0,"",VLOOKUP($D25,invullijst!$A$11:$M$185,6,FALSE)) -> 97 | I25: 1 | J25: =IF($O$3="k",IF(VLOOKUP($L25,invullijst!$A$11:$M$185,11,FALSE)=0," ",VLOOKUP($L25,invullijst!$A$11:$M$185,11,FALSE)),"") ->  | K25: =IF(VLOOKUP($L25,invullijst!$A$11:$M$226,4,FALSE)="","",VLOOKUP($L25,invullijst!$A$11:$M$226,4,FALSE)) -> 65+ | L25: 405 | M25: =IF(VLOOKUP($L25,invullijst!$A$11:$M$185,2,FALSE)="","",VLOOKUP($L25,invullijst!$A$11:$M$185,2,FALSE)) -> Jan de Vaan | O25: =IF(VLOOKUP($L25,invullijst!$A$11:$M$185,6,FALSE)=0,"",VLOOKUP($L25,invullijst!$A$11:$M$185,6,FALSE)) -> 98
A26: 2 | B26: =IF($G$3="k",IF(VLOOKUP($D26,invullijst!$A$11:$M$185,11,FALSE)=0," ",VLOOKUP($D26,invullijst!$A$11:$M$185,11,FALSE)),"") ->  | C26: =IF(VLOOKUP(D26,invullijst!A$11:F$226,4,FALSE)="","",VLOOKUP(D26,invullijst!A$11:D$226,4,FALSE)) -> 65+ | D26: 211 | E26: =IF(VLOOKUP($D26,invullijst!$A$11:$M$185,2,FALSE)="","",VLOOKUP($D26,invullijst!$A$11:$M$185,2,FALSE)) -> Ad van den houdt | G26: =IF(VLOOKUP($D26,invullijst!$A$11:$M$185,6,FALSE)=0,"",VLOOKUP($D26,invullijst!$A$11:$M$185,6,FALSE)) -> 92 | I26: 2 | J26: =IF($O$3="k",IF(VLOOKUP($L26,invullijst!$A$11:$M$185,11,FALSE)=0," ",VLOOKUP($L26,invullijst!$A$11:$M$185,11,FALSE)),"") ->  | K26: =IF(VLOOKUP($L26,invullijst!$A$11:$M$226,4,FALSE)="","",VLOOKUP($L26,invullijst!$A$11:$M$226,4,FALSE)) -> 65+ | L26: 401 | M26: =IF(VLOOKUP($L26,invullijst!$A$11:$M$185,2,FALSE)="","",VLOOKUP($L26,invullijst!$A$11:$M$185,2,FALSE)) -> Frans van Beurden | O26: =IF(VLOOKUP($L26,invullijst!$A$11:$M$185,6,FALSE)=0,"",VLOOKUP($L26,invullijst!$A$11:$M$185,6,FALSE)) -> 95
A27: 3 | B27: =IF($G$3="k",IF(VLOOKUP($D27,invullijst!$A$11:$M$185,11,FALSE)=0," ",VLOOKUP($D27,invullijst!$A$11:$M$185,11,FALSE)),"") ->  | C27: =IF(VLOOKUP(D27,invullijst!A$11:F$226,4,FALSE)="","",VLOOKUP(D27,invullijst!A$11:D$226,4,FALSE)) -> 65+ | D27: 219 | E27: =IF(VLOOKUP($D27,invullijst!$A$11:$M$185,2,FALSE)="","",VLOOKUP($D27,invullijst!$A$11:$M$185,2,FALSE)) -> Frans de Bont | G27: =IF(VLOOKUP($D27,invullijst!$A$11:$M$185,6,FALSE)=0,"",VLOOKUP($D27,invullijst!$A$11:$M$185,6,FALSE)) -> 95 | I27: 3 | J27: =IF($O$3="k",IF(VLOOKUP($L27,invullijst!$A$11:$M$185,11,FALSE)=0," ",VLOOKUP($L27,invullijst!$A$11:$M$185,11,FALSE)),"") ->  | K27: =IF(VLOOKUP($L27,invullijst!$A$11:$M$226,4,FALSE)="","",VLOOKUP($L27,invullijst!$A$11:$M$226,4,FALSE)) -> 65+ | L27: 413 | M27: =IF(VLOOKUP($L27,invullijst!$A$11:$M$185,2,FALSE)="","",VLOOKUP($L27,invullijst!$A$11:$M$185,2,FALSE)) -> Frans Mommersteeg | O27: =IF(VLOOKUP($L27,invullijst!$A$11:$M$185,6,FALSE)=0,"",VLOOKUP($L27,invullijst!$A$11:$M$185,6,FALSE)) -> 95
A28: Totaal korps opgelegd A1 | G28: =SUM(G25:G27) -> 284 | I28: Totaal korps opgelegd A1 | O28: =SUM(O25:O27) -> 288
A30: 1 | B30: =IF($G$3="k",IF(VLOOKUP($D30,invullijst!$A$11:$M$185,11,FALSE)=0," ",VLOOKUP($D30,invullijst!$A$11:$M$185,11,FALSE)),"") ->  | C30: =IF(VLOOKUP(D30,invullijst!A$11:F$226,4,FALSE)="","",VLOOKUP(D30,invullijst!A$11:D$226,4,FALSE)) -> 65+ | D30: 214 | E30: =IF(VLOOKUP($D30,invullijst!$A$11:$M$185,2,FALSE)="","",VLOOKUP($D30,invullijst!$A$11:$M$185,2,FALSE)) -> Andre de Vaan | G30: =IF(VLOOKUP($D30,invullijst!$A$11:$M$185,6,FALSE)=0,"",VLOOKUP($D30,invullijst!$A$11:$M$185,6,FALSE)) -> 87 | I30: 1 | J30: =IF($O$3="k",IF(VLOOKUP($L30,invullijst!$A$11:$M$185,11,FALSE)=0," ",VLOOKUP($L30,invullijst!$A$11:$M$185,11,FALSE)),"") ->  | K30: =IF(VLOOKUP($L30,invullijst!$A$11:$M$226,4,FALSE)="","",VLOOKUP($L30,invullijst!$A$11:$M$226,4,FALSE)) -> 65+ | L30: 404 | M30: =IF(VLOOKUP($L30,invullijst!$A$11:$M$185,2,FALSE)="","",VLOOKUP($L30,invullijst!$A$11:$M$185,2,FALSE)) -> Gerard van Beurden | O30: =IF(VLOOKUP($L30,invullijst!$A$11:$M$185,6,FALSE)=0,"",VLOOKUP($L30,invullijst!$A$11:$M$185,6,FALSE)) -> 94
A31: 2 | B31: =IF($G$3="k",IF(VLOOKUP($D31,invullijst!$A$11:$M$185,11,FALSE)=0," ",VLOOKUP($D31,invullijst!$A$11:$M$185,11,FALSE)),"") ->  | C31: =IF(VLOOKUP(D31,invullijst!A$11:F$226,4,FALSE)="","",VLOOKUP(D31,invullijst!A$11:D$226,4,FALSE)) -> 65+ | D31: 220 | E31: =IF(VLOOKUP($D31,invullijst!$A$11:$M$185,2,FALSE)="","",VLOOKUP($D31,invullijst!$A$11:$M$185,2,FALSE)) -> Kees Vos | G31: =IF(VLOOKUP($D31,invullijst!$A$11:$M$185,6,FALSE)=0,"",VLOOKUP($D31,invullijst!$A$11:$M$185,6,FALSE)) -> 90 | I31: 2 | J31: =IF($O$3="k",IF(VLOOKUP($L31,invullijst!$A$11:$M$185,11,FALSE)=0," ",VLOOKUP($L31,invullijst!$A$11:$M$185,11,FALSE)),"") ->  | K31: =IF(VLOOKUP($L31,invullijst!$A$11:$M$226,4,FALSE)="","",VLOOKUP($L31,invullijst!$A$11:$M$226,4,FALSE)) -> 65+ | L31: 412 | M31: =IF(VLOOKUP($L31,invullijst!$A$11:$M$185,2,FALSE)="","",VLOOKUP($L31,invullijst!$A$11:$M$185,2,FALSE)) -> Francien v/d Wiel | O31: =IF(VLOOKUP($L31,invullijst!$A$11:$M$185,6,FALSE)=0,"",VLOOKUP($L31,invullijst!$A$11:$M$185,6,FALSE)) -> 93
A32: 3 | B32: =IF($G$3="k",IF(VLOOKUP($D32,invullijst!$A$11:$M$185,11,FALSE)=0," ",VLOOKUP($D32,invullijst!$A$11:$M$185,11,FALSE)),"") ->  | C32: =IF(VLOOKUP(D32,invullijst!A$11:F$226,4,FALSE)="","",VLOOKUP(D32,invullijst!A$11:D$226,4,FALSE)) -> 65+ | D32: 212 | E32: =IF(VLOOKUP($D32,invullijst!$A$11:$M$185,2,FALSE)="","",VLOOKUP($D32,invullijst!$A$11:$M$185,2,FALSE)) -> René Duquesnoy | G32: =IF(VLOOKUP($D32,invullijst!$A$11:$M$185,6,FALSE)=0,"",VLOOKUP($D32,invullijst!$A$11:$M$185,6,FALSE)) -> 87 | I32: 3 | J32: =IF($O$3="k",IF(VLOOKUP($L32,invullijst!$A$11:$M$185,11,FALSE)=0," ",VLOOKUP($L32,invullijst!$A$11:$M$185,11,FALSE)),"") ->  | K32: =IF(VLOOKUP($L32,invullijst!$A$11:$M$226,4,FALSE)="","",VLOOKUP($L32,invullijst!$A$11:$M$226,4,FALSE)) -> 65+ | L32: 415 | M32: =IF(VLOOKUP($L32,invullijst!$A$11:$M$185,2,FALSE)="","",VLOOKUP($L32,invullijst!$A$11:$M$185,2,FALSE)) -> Wim de Gouw | O32: =IF(VLOOKUP($L32,invullijst!$A$11:$M$185,6,FALSE)=0,"",VLOOKUP($L32,invullijst!$A$11:$M$185,6,FALSE)) -> 96
A33: Totaal korps opgelegd A2 | G33: =SUM(G30:G32) -> 264 | I33: Totaal korps opgelegd A2 | O33: =SUM(O30:O32) -> 283
A35: 1 | B35: =IF($G$3="k",IF(VLOOKUP($D35,invullijst!$A$11:$M$185,11,FALSE)=0," ",VLOOKUP($D35,invullijst!$A$11:$M$185,11,FALSE)),"") ->  | C35: =IF(VLOOKUP(D35,invullijst!A$11:F$226,4,FALSE)="","",VLOOKUP(D35,invullijst!A$11:D$226,4,FALSE)) -> J | D35: 221 | E35: =IF(VLOOKUP($D35,invullijst!$A$11:$M$185,2,FALSE)="","",VLOOKUP($D35,invullijst!$A$11:$M$185,2,FALSE)) -> Mees Huijben | G35: =IF(VLOOKUP($D35,invullijst!$A$11:$M$185,6,FALSE)=0,"",VLOOKUP($D35,invullijst!$A$11:$M$185,6,FALSE)) -> 63 | I35: 1 | J35: =IF($O$3="k",IF(VLOOKUP($L35,invullijst!$A$11:$M$185,11,FALSE)=0," ",VLOOKUP($L35,invullijst!$A$11:$M$185,11,FALSE)),"") ->  | K35: =IF(VLOOKUP($L35,invullijst!$A$11:$M$226,4,FALSE)="","",VLOOKUP($L35,invullijst!$A$11:$M$226,4,FALSE)) -> 65+ | L35: 403 | M35: =IF(VLOOKUP($L35,invullijst!$A$11:$M$185,2,FALSE)="","",VLOOKUP($L35,invullijst!$A$11:$M$185,2,FALSE)) -> Dorien de Kort | O35: =IF(VLOOKUP($L35,invullijst!$A$11:$M$185,6,FALSE)=0,"",VLOOKUP($L35,invullijst!$A$11:$M$185,6,FALSE)) -> 88
A36: 2 | B36: =IF($G$3="k",IF(VLOOKUP($D36,invullijst!$A$11:$M$185,11,FALSE)=0," ",VLOOKUP($D36,invullijst!$A$11:$M$185,11,FALSE)),"") ->  | C36: =IF(VLOOKUP(D36,invullijst!A$11:F$226,4,FALSE)="","",VLOOKUP(D36,invullijst!A$11:D$226,4,FALSE)) -> vr | D36: 222 | E36: =IF(VLOOKUP($D36,invullijst!$A$11:$M$185,2,FALSE)="","",VLOOKUP($D36,invullijst!$A$11:$M$185,2,FALSE)) -> Nick de Vaan | G36: =IF(VLOOKUP($D36,invullijst!$A$11:$M$185,6,FALSE)=0,"",VLOOKUP($D36,invullijst!$A$11:$M$185,6,FALSE)) -> 72 | I36: 2 | J36: =IF($O$3="k",IF(VLOOKUP($L36,invullijst!$A$11:$M$185,11,FALSE)=0," ",VLOOKUP($L36,invullijst!$A$11:$M$185,11,FALSE)),"") ->  | K36: =IF(VLOOKUP($L36,invullijst!$A$11:$M$226,4,FALSE)="","",VLOOKUP($L36,invullijst!$A$11:$M$226,4,FALSE)) -> 0 | M36: =IF(VLOOKUP($L36,invullijst!$A$11:$M$185,2,FALSE)="","",VLOOKUP($L36,invullijst!$A$11:$M$185,2,FALSE)) -> 0 | O36: =IF(VLOOKUP($L36,invullijst!$A$11:$M$185,6,FALSE)=0,"",VLOOKUP($L36,invullijst!$A$11:$M$185,6,FALSE)) -> 
A37: 3 | B37: =IF($G$3="k",IF(VLOOKUP($D37,invullijst!$A$11:$M$185,11,FALSE)=0," ",VLOOKUP($D37,invullijst!$A$11:$M$185,11,FALSE)),"") ->  | C37: =IF(VLOOKUP(D37,invullijst!A$11:F$226,4,FALSE)="","",VLOOKUP(D37,invullijst!A$11:D$226,4,FALSE)) -> vr | D37: 223 | E37: =IF(VLOOKUP($D37,invullijst!$A$11:$M$185,2,FALSE)="","",VLOOKUP($D37,invullijst!$A$11:$M$185,2,FALSE)) -> Jänis Jakobsons | G37: =IF(VLOOKUP($D37,invullijst!$A$11:$M$185,6,FALSE)=0,"",VLOOKUP($D37,invullijst!$A$11:$M$185,6,FALSE)) -> 77 | I37: 3 | J37: =IF($O$3="k",IF(VLOOKUP($L37,invullijst!$A$11:$M$185,11,FALSE)=0," ",VLOOKUP($L37,invullijst!$A$11:$M$185,11,FALSE)),"") ->  | K37: =IF(VLOOKUP($L37,invullijst!$A$11:$M$226,4,FALSE)="","",VLOOKUP($L37,invullijst!$A$11:$M$226,4,FALSE)) -> 0 | M37: =IF(VLOOKUP($L37,invullijst!$A$11:$M$185,2,FALSE)="","",VLOOKUP($L37,invullijst!$A$11:$M$185,2,FALSE)) -> 0 | O37: =IF(VLOOKUP($L37,invullijst!$A$11:$M$185,6,FALSE)=0,"",VLOOKUP($L37,invullijst!$A$11:$M$185,6,FALSE)) -> 
A38: Diversen | I38: Totaal korps opgelegd A3 | O38: =SUM(O35:O37) -> 88

Sheet wedstrijd 2A
A1: =invullijst!F1 -> Organistatie | F1: =invullijst!H2 -> 2024 - 2025 | I1: =invullijst!F3 -> O.L.V. Schuts Elshout
A2: Datum: | M2: 2025-01-19
A3: 1 | B3: =IF(VLOOKUP(A3,invullijst!A1:F5,2,FALSE)="","",VLOOKUP(A3,invullijst!A1:F5,2,FALSE)) -> Sint Ambrosius Baardwijk | I3: 3 | J3: =IF(VLOOKUP(I3,invullijst!A1:C5,2,FALSE)="","",VLOOKUP(I3,invullijst!A1:C5,2,FALSE)) -> O.L.V. Schuts Elshout
A5: vrijehand
A6: 1 | B6: =IF($G$3="k",IF(VLOOKUP($D6,invullijst!$A$11:$M$185,11,FALSE)=0," ",VLOOKUP($D6,invullijst!$A$11:$M$185,11,FALSE)),"") ->  | C6: =IF(VLOOKUP(D6,invullijst!A$11:F$226,4,FALSE)="","",VLOOKUP(D6,invullijst!A$11:D$226,4,FALSE)) -> vr | D6: 105 | E6: =IF(VLOOKUP($D6,invullijst!$A$11:$M$185,2,FALSE)="","",VLOOKUP($D6,invullijst!$A$11:$M$185,2,FALSE)) -> René Klijn | G6: =IF(VLOOKUP($D6,invullijst!$A$11:$M$185,7,FALSE)=0,"",VLOOKUP($D6,invullijst!$A$11:$M$185,7,FALSE)) -> 85 | I6: 1 | J6: =IF($O$3="k",IF(VLOOKUP($L6,invullijst!$A$11:$M$185,11,FALSE)=0," ",VLOOKUP($L6,invullijst!$A$11:$M$185,11,FALSE)),"") ->  | K6: =IF(VLOOKUP($L6,invullijst!$A$11:$M$226,4,FALSE)="","",VLOOKUP($L6,invullijst!$A$11:$M$226,4,FALSE)) -> vr | L6: 302 | M6: =IF(VLOOKUP($L6,invullijst!$A$11:$M$185,2,FALSE)="","",VLOOKUP($L6,invullijst!$A$11:$M$185,2,FALSE)) -> Freek de Jong | O6: =IF(VLOOKUP($L6,invullijst!$A$11:$M$185,7,FALSE)=0,"",VLOOKUP($L6,invullijst!$A$11:$M$185,7,FALSE)) -> 90
A7: 2 | B7: =IF($G$3="k",IF(VLOOKUP($D7,invullijst!$A$11:$M$185,11,FALSE)=0," ",VLOOKUP($D7,invullijst!$A$11:$M$185,11,FALSE)),"") ->  | C7: =IF(VLOOKUP(D7,invullijst!A$11:F$226,4,FALSE)="","",VLOOKUP(D7,invullijst!A$11:D$226,4,FALSE)) -> vr | D7: 102 | E7: =IF(VLOOKUP($D7,invullijst!$A$11:$M$185,2,FALSE)="","",VLOOKUP($D7,invullijst!$A$11:$M$185,2,FALSE)) -> John de Jong | G7: =IF(VLOOKUP($D7,invullijst!$A$11:$M$185,7,FALSE)=0,"",VLOOKUP($D7,invullijst!$A$11:$M$185,7,FALSE)) -> 73 | I7: 2 | J7: =IF($O$3="k",IF(VLOOKUP($L7,invullijst!$A$11:$M$185,11,FALSE)=0," ",VLOOKUP($L7,invullijst!$A$11:$M$185,11,FALSE)),"") ->  | K7: =IF(VLOOKUP($L7,invullijst!$A$11:$M$226,4,FALSE)="","",VLOOKUP($L7,invullijst!$A$11:$M$226,4,FALSE)) -> vr | L7: 305 | M7: =IF(VLOOKUP($L7,invullijst!$A$11:$M$185,2,FALSE)="","",VLOOKUP($L7,invullijst!$A$11:$M$185,2,FALSE)) -> Johan Klerx | O7: =IF(VLOOKUP($L7,invullijst!$A$11:$M$185,7,FALSE)=0,"",VLOOKUP($L7,invullijst!$A$11:$M$185,7,FALSE)) -> 85
A8: 3 | B8: =IF($G$3="k",IF(VLOOKUP($D8,invullijst!$A$11:$M$185,11,FALSE)=0," ",VLOOKUP($D8,invullijst!$A$11:$M$185,11,FALSE)),"") ->  | C8: =IF(VLOOKUP(D8,invullijst!A$11:F$226,4,FALSE)="","",VLOOKUP(D8,invullijst!A$11:D$226,4,FALSE)) -> vr | D8: 108 | E8: =IF(VLOOKUP($D8,invullijst!$A$11:$M$185,2,FALSE)="","",VLOOKUP($D8,invullijst!$A$11:$M$185,2,FALSE)) -> Bram Pullens | G8: =IF(VLOOKUP($D8,invullijst!$A$11:$M$185,7,FALSE)=0,"",VLOOKUP($D8,invullijst!$A$11:$M$185,7,FALSE)) -> 77 | I8: 3 | J8: =IF($O$3="k",IF(VLOOKUP($L8,invullijst!$A$11:$M$185,11,FALSE)=0," ",VLOOKUP($L8,invullijst!$A$11:$M$185,11,FALSE)),"") ->  | K8: =IF(VLOOKUP($L8,invullijst!$A$11:$M$226,4,FALSE)="","",VLOOKUP($L8,invullijst!$A$11:$M$226,4,FALSE)) -> vr | L8: 306 | M8: =IF(VLOOKUP($L8,invullijst!$A$11:$M$185,2,FALSE)="","",VLOOKUP($L8,invullijst!$A$11:$M$185,2,FALSE)) -> Ron Groot | O8: =IF(VLOOKUP($L8,invullijst!$A$11:$M$185,7,FALSE)=0,"",VLOOKUP($L8,invullijst!$A$11:$M$185,7,FALSE)) -> 81
A9: 4 | B9: =IF($G$3="k",IF(VLOOKUP($D9,invullijst!$A$11:$M$185,11,FALSE)=0," ",VLOOKUP($D9,invullijst!$A$11:$M$185,11,FALSE)),"") ->  | C9: =IF(VLOOKUP(D9,invullijst!A$11:F$226,4,FALSE)="","",VLOOKUP(D9,invullijst!A$11:D$226,4,FALSE)) -> vr | D9: 106 | E9: =IF(VLOOKUP($D9,invullijst!$A$11:$M$185,2,FALSE)="","",VLOOKUP($D9,invullijst!$A$11:$M$185,2,FALSE)) -> René Pullens | G9: =IF(VLOOKUP($D9,invullijst!$A$11:$M$185,7,FALSE)=0,"",VLOOKUP($D9,invullijst!$A$11:$M$185,7,FALSE)) -> 76 | I9: 4 | J9: =IF($O$3="k",IF(VLOOKUP($L9,invullijst!$A$11:$M$185,11,FALSE)=0," ",VLOOKUP($L9,invullijst!$A$11:$M$185,11,FALSE)),"") ->  | K9: =IF(VLOOKUP($L9,invullijst!$A$11:$M$226,4,FALSE)="","",VLOOKUP($L9,invullijst!$A$11:$M$226,4,FALSE)) -> vr | L9: 304 | M9: =IF(VLOOKUP($L9,invullijst!$A$11:$M$185,2,FALSE)="","",VLOOKUP($L9,invullijst!$A$11:$M$185,2,FALSE)) -> Henk Bruurmijn | O9: =IF(VLOOKUP($L9,invullijst!$A$11:$M$185,7,FALSE)=0,"",VLOOKUP($L9,invullijst!$A$11:$M$185,7,FALSE)) -> 62
A10: Totaal A korps | G10: =SUM(G6:G9) -> 311 | I10: Totaal A korps | O10: =SUM(O6:O9) -> 318
A12: 1 | B12: =IF($G$3="k",IF(VLOOKUP($D12,invullijst!$A$11:$M$185,11,FALSE)=0," ",VLOOKUP($D12,invullijst!$A$11:$M$185,11,FALSE)),"") ->  | C12: =IF(VLOOKUP(D12,invullijst!A$11:F$226,4,FALSE)="","",VLOOKUP(D12,invullijst!A$11:D$226,4,FALSE)) -> vr | D12: 101 | E12: =IF(VLOOKUP($D12,invullijst!$A$11:$M$185,2,FALSE)="","",VLOOKUP($D12,invullijst!$A$11:$M$185,2,FALSE)) -> Antwan van Buul | G12: =IF(VLOOKUP($D12,invullijst!$A$11:$M$185,7,FALSE)=0,"",VLOOKUP($D12,invullijst!$A$11:$M$185,7,FALSE)) -> 68 | I12: 1 | J12: =IF($O$3="k",IF(VLOOKUP($L12,invullijst!$A$11:$M$185,11,FALSE)=0," ",VLOOKUP($L12,invullijst!$A$11:$M$185,11,FALSE)),"") ->  | K12: =IF(VLOOKUP($L12,invullijst!$A$11:$M$226,4,FALSE)="","",VLOOKUP($L12,invullijst!$A$11:$M$226,4,FALSE)) -> 0 | M12: =IF(VLOOKUP($L12,invullijst!$A$11:$M$185,2,FALSE)="","",VLOOKUP($L12,invullijst!$A$11:$M$185,2,FALSE)) -> 0 | O12: =IF(VLOOKUP($L12,invullijst!$A$11:$M$185,7,FALSE)=0,"",VLOOKUP($L12,invullijst!$A$11:$M$185,7,FALSE)) -> 
A13: 2 | B13: =IF($G$3="k",IF(VLOOKUP($D13,invullijst!$A$11:$M$185,11,FALSE)=0," ",VLOOKUP($D13,invullijst!$A$11:$M$185,11,FALSE)),"") ->  | C13: =IF(VLOOKUP(D13,invullijst!A$11:F$226,4,FALSE)="","",VLOOKUP(D13,invullijst!A$11:D$226,4,FALSE)) -> vr | D13: 109 | E13: =IF(VLOOKUP($D13,invullijst!$A$11:$M$185,2,FALSE)="","",VLOOKUP($D13,invullijst!$A$11:$M$185,2,FALSE)) -> Gijs Pullens | G13: =IF(VLOOKUP($D13,invullijst!$A$11:$M$185,7,FALSE)=0,"",VLOOKUP($D13,invullijst!$A$11:$M$185,7,FALSE)) -> 83 | I13: 2 | J13: =IF($O$3="k",IF(VLOOKUP($L13,invullijst!$A$11:$M$185,11,FALSE)=0," ",VLOOKUP($L13,invullijst!$A$11:$M$185,11,FALSE)),"") ->  | K13: =IF(VLOOKUP($L13,invullijst!$A$11:$M$226,4,FALSE)="","",VLOOKUP($L13,invullijst!$A$11:$M$226,4,FALSE)) -> 0 | M13: =IF(VLOOKUP($L13,invullijst!$A$11:$M$185,2,FALSE)="","",VLOOKUP($L13,invullijst!$A$11:$M$185,2,FALSE)) -> 0 | O13: =IF(VLOOKUP($L13,invullijst!$A$11:$M$185,7,FALSE)=0,"",VLOOKUP($L13,invullijst!$A$11:$M$185,7,FALSE)) -> 
A14: 3 | B14: =IF($G$3="k",IF(VLOOKUP($D14,invullijst!$A$11:$M$185,11,FALSE)=0," ",VLOOKUP($D14,invullijst!$A$11:$M$185,11,FALSE)),"") ->  | C14: =IF(VLOOKUP(D14,invullijst!A$11:F$226,4,FALSE)="","",VLOOKUP(D14,invullijst!A$11:D$226,4,FALSE)) -> vr | D14: 103 | E14: =IF(VLOOKUP($D14,invullijst!$A$11:$M$185,2,FALSE)="","",VLOOKUP($D14,invullijst!$A$11:$M$185,2,FALSE)) -> Norbert van Buul | G14: =IF(VLOOKUP($D14,invullijst!$A$11:$M$185,7,FALSE)=0,"",VLOOKUP($D14,invullijst!$A$11:$M$185,7,FALSE)) -> 55 | I14: 3 | J14: =IF($O$3="k",IF(VLOOKUP($L14,invullijst!$A$11:$M$185,11,FALSE)=0," ",VLOOKUP($L14,invullijst!$A$11:$M$185,11,FALSE)),"") ->  | K14: =IF(VLOOKUP($L14,invullijst!$A$11:$M$226,4,FALSE)="","",VLOOKUP($L14,invullijst!$A$11:$M$226,4,FALSE)) -> 0 | M14: =IF(VLOOKUP($L14,invullijst!$A$11:$M$185,2,FALSE)="","",VLOOKUP($L14,invullijst!$A$11:$M$185,2,FALSE)) -> 0 | O14: =IF(VLOOKUP($L14,invullijst!$A$11:$M$185,7,FALSE)=0,"",VLOOKUP($L14,invullijst!$A$11:$M$185,7,FALSE)) -> 
A15: 4 | B15: =IF($G$3="k",IF(VLOOKUP($D15,invullijst!$A$11:$M$185,11,FALSE)=0," ",VLOOKUP($D15,invullijst!$A$11:$M$185,11,FALSE)),"") ->  | C15: =IF(VLOOKUP(D15,invullijst!A$11:F$226,4,FALSE)="","",VLOOKUP(D15,invullijst!A$11:D$226,4,FALSE)) -> 0 | E15: =IF(VLOOKUP($D15,invullijst!$A$11:$M$185,2,FALSE)="","",VLOOKUP($D15,invullijst!$A$11:$M$185,2,FALSE)) -> 0 | G15: =IF(VLOOKUP($D15,invullijst!$A$11:$M$185,7,FALSE)=0,"",VLOOKUP($D15,invullijst!$A$11:$M$185,7,FALSE)) ->  | I15: 4 | J15: =IF($O$3="k",IF(VLOOKUP($L15,invullijst!$A$11:$M$185,11,FALSE)=0," ",VLOOKUP($L15,invullijst!$A$11:$M$185,11,FALSE)),"") ->  | K15: =IF(VLOOKUP($L15,invullijst!$A$11:$M$226,4,FALSE)="","",VLOOKUP($L15,invullijst!$A$11:$M$226,4,FALSE)) -> 0 | M15: =IF(VLOOKUP($L15,invullijst!$A$11:$M$185,2,FALSE)="","",VLOOKUP($L15,invullijst!$A$11:$M$185,2,FALSE)) -> 0 | O15: =IF(VLOOKUP($L15,invullijst!$A$11:$M$185,7,FALSE)=0,"",VLOOKUP($L15,invullijst!$A$11:$M$185,7,FALSE)) -> 
A16: Totaal B1 korps | G16: =SUM(G12:G15) -> 206 | I16: Totaal B1 korps | O16: =SUM(O12:O15) -> 0
A18: 1 | B18: =IF($G$3="k",IF(VLOOKUP($D18,invullijst!$A$11:$M$185,11,FALSE)=0," ",VLOOKUP($D18,invullijst!$A$11:$M$185,11,FALSE)),"") ->  | C18: =IF(VLOOKUP(D18,invullijst!A$11:F$226,4,FALSE)="","",VLOOKUP(D18,invullijst!A$11:D$226,4,FALSE)) -> 0 | E18: =IF(VLOOKUP($D18,invullijst!$A$11:$M$185,2,FALSE)="","",VLOOKUP($D18,invullijst!$A$11:$M$185,2,FALSE)) -> 0 | G18: =IF(VLOOKUP($D18,invullijst!$A$11:$M$185,7,FALSE)=0,"",VLOOKUP($D18,invullijst!$A$11:$M$185,7,FALSE)) ->  | I18: 1 | J18: =IF($O$3="k",IF(VLOOKUP($L18,invullijst!$A$11:$M$185,11,FALSE)=0," ",VLOOKUP($L18,invullijst!$A$11:$M$185,11,FALSE)),"") ->  | K18: =IF(VLOOKUP($L18,invullijst!$A$11:$M$226,4,FALSE)="","",VLOOKUP($L18,invullijst!$A$11:$M$226,4,FALSE)) -> 0 | M18: =IF(VLOOKUP($L18,invullijst!$A$11:$M$185,2,FALSE)="","",VLOOKUP($L18,invullijst!$A$11:$M$185,2,FALSE)) -> 0 | O18: =IF(VLOOKUP($L18,invullijst!$A$11:$M$185,7,FALSE)=0,"",VLOOKUP($L18,invullijst!$A$11:$M$185,7,FALSE)) -> 
A19: 2 | B19: =IF($G$3="k",IF(VLOOKUP($D19,invullijst!$A$11:$M$185,11,FALSE)=0," ",VLOOKUP($D19,invullijst!$A$11:$M$185,11,FALSE)),"") ->  | C19: =IF(VLOOKUP(D19,invullijst!A$11:F$226,4,FALSE)="","",VLOOKUP(D19,invullijst!A$11:D$226,4,FALSE)) -> 0 | E19: =IF(VLOOKUP($D19,invullijst!$A$11:$M$185,2,FALSE)="","",VLOOKUP($D19,invullijst!$A$11:$M$185,2,FALSE)) -> 0 | G19: =IF(VLOOKUP($D19,invullijst!$A$11:$M$185,7,FALSE)=0,"",VLOOKUP($D19,invullijst!$A$11:$M$185,7,FALSE)) ->  | I19: 2 | J19: =IF($O$3="k",IF(VLOOKUP($L19,invullijst!$A$11:$M$185,11,FALSE)=0," ",VLOOKUP($L19,invullijst!$A$11:$M$185,11,FALSE)),"") ->  | K19: =IF(VLOOKUP($L19,invullijst!$A$11:$M$226,4,FALSE)="","",VLOOKUP($L19,invullijst!$A$11:$M$226,4,FALSE)) -> 0 | M19: =IF(VLOOKUP($L19,invullijst!$A$11:$M$185,2,FALSE)="","",VLOOKUP($L19,invullijst!$A$11:$M$185,2,FALSE)) -> 0 | O19: =IF(VLOOKUP($L19,invullijst!$A$11:$M$185,7,FALSE)=0,"",VLOOKUP($L19,invullijst!$A$11:$M$185,7,FALSE)) -> 
A20: 3 | B20: =IF($G$3="k",IF(VLOOKUP($D20,invullijst!$A$11:$M$185,11,FALSE)=0," ",VLOOKUP($D20,invullijst!$A$11:$M$185,11,FALSE)),"") ->  | C20: =IF(VLOOKUP(D20,invullijst!A$11:F$226,4,FALSE)="","",VLOOKUP(D20,invullijst!A$11:D$226,4,FALSE)) -> 0 | E20: =IF(VLOOKUP($D20,invullijst!$A$11:$M$185,2,FALSE)="","",VLOOKUP($D20,invullijst!$A$11:$M$185,2,FALSE)) -> 0 | G20: =IF(VLOOKUP($D20,invullijst!$A$11:$M$185,7,FALSE)=0,"",VLOOKUP($D20,invullijst!$A$11:$M$185,7,FALSE)) ->  | I20: 3 | J20: =IF($O$3="k",IF(VLOOKUP($L20,invullijst!$A$11:$M$185,11,FALSE)=0," ",VLOOKUP($L20,invullijst!$A$11:$M$185,11,FALSE)),"") ->  | K20: =IF(VLOOKUP($L20,invullijst!$A$11:$M$226,4,FALSE)="","",VLOOKUP($L20,invullijst!$A$11:$M$226,4,FALSE)) -> 0 | M20: =IF(VLOOKUP($L20,invullijst!$A$11:$M$185,2,FALSE)="","",VLOOKUP($L20,invullijst!$A$11:$M$185,2,FALSE)) -> 0 | O20: =IF(VLOOKUP($L20,invullijst!$A$11:$M$185,7,FALSE)=0,"",VLOOKUP($L20,invullijst!$A$11:$M$185,7,FALSE)) -> 
A21: 4 | B21: =IF($G$3="k",IF(VLOOKUP($D21,invullijst!$A$11:$M$185,11,FALSE)=0," ",VLOOKUP($D21,invullijst!$A$11:$M$185,11,FALSE)),"") ->  | C21: =IF(VLOOKUP(D21,invullijst!A$11:F$226,4,FALSE)="","",VLOOKUP(D21,invullijst!A$11:D$226,4,FALSE)) -> 0 | E21: =IF(VLOOKUP($D21,invullijst!$A$11:$M$185,2,FALSE)="","",VLOOKUP($D21,invullijst!$A$11:$M$185,2,FALSE)) -> 0 | G21: =IF(VLOOKUP($D21,invullijst!$A$11:$M$185,7,FALSE)=0,"",VLOOKUP($D21,invullijst!$A$11:$M$185,7,FALSE)) ->  | I21: 4 | J21: =IF($O$3="k",IF(VLOOKUP($L21,invullijst!$A$11:$M$185,11,FALSE)=0," ",VLOOKUP($L21,invullijst!$A$11:$M$185,11,FALSE)),"") ->  | K21: =IF(VLOOKUP($L21,invullijst!$A$11:$M$226,4,FALSE)="","",VLOOKUP($L21,invullijst!$A$11:$M$226,4,FALSE)) -> 0 | M21: =IF(VLOOKUP($L21,invullijst!$A$11:$M$185,2,FALSE)="","",VLOOKUP($L21,invullijst!$A$11:$M$185,2,FALSE)) -> 0 | O21: =IF(VLOOKUP($L21,invullijst!$A$11:$M$185,7,FALSE)=0,"",VLOOKUP($L21,invullijst!$A$11:$M$185,7,FALSE)) -> 
A22: DIVERSEN / INHAAL | I22: DIVERSEN / INHAAL
A24: OPGELEGD (Jeugd <16 en 65+)
A25: 1 | B25: =IF($G$3="k",IF(VLOOKUP($D25,invullijst!$A$11:$M$185,11,FALSE)=0," ",VLOOKUP($D25,invullijst!$A$11:$M$185,11,FALSE)),"") ->  | C25: =IF(VLOOKUP(D25,invullijst!A$11:F$226,4,FALSE)="","",VLOOKUP(D25,invullijst!A$11:D$226,4,FALSE)) -> 65+ | D25: 104 | E25: =IF(VLOOKUP($D25,invullijst!$A$11:$M$185,2,FALSE)="","",VLOOKUP($D25,invullijst!$A$11:$M$185,2,FALSE)) -> Peter Brekelmans | G25: =IF(VLOOKUP($D25,invullijst!$A$11:$M$185,7,FALSE)=0,"",VLOOKUP($D25,invullijst!$A$11:$M$185,7,FALSE)) -> 79 | I25: 1 | J25: =IF($O$3="k",IF(VLOOKUP($L25,invullijst!$A$11:$M$185,11,FALSE)=0," ",VLOOKUP($L25,invullijst!$A$11:$M$185,11,FALSE)),"") ->  | K25: =IF(VLOOKUP($L25,invullijst!$A$11:$M$226,4,FALSE)="","",VLOOKUP($L25,invullijst!$A$11:$M$226,4,FALSE)) -> 65+ | L25: 307 | M25: =IF(VLOOKUP($L25,invullijst!$A$11:$M$185,2,FALSE)="","",VLOOKUP($L25,invullijst!$A$11:$M$185,2,FALSE)) -> Bert van Engelen | O25: =IF(VLOOKUP($L25,invullijst!$A$11:$M$185,7,FALSE)=0,"",VLOOKUP($L25,invullijst!$A$11:$M$185,7,FALSE)) -> 95
A26: 2 | B26: =IF($G$3="k",IF(VLOOKUP($D26,invullijst!$A$11:$M$185,11,FALSE)=0," ",VLOOKUP($D26,invullijst!$A$11:$M$185,11,FALSE)),"") ->  | C26: =IF(VLOOKUP(D26,invullijst!A$11:F$226,4,FALSE)="","",VLOOKUP(D26,invullijst!A$11:D$226,4,FALSE)) -> 65+ | D26: 112 | E26: =IF(VLOOKUP($D26,invullijst!$A$11:$M$185,2,FALSE)="","",VLOOKUP($D26,invullijst!$A$11:$M$185,2,FALSE)) -> Toon van Buul | G26: =IF(VLOOKUP($D26,invullijst!$A$11:$M$185,7,FALSE)=0,"",VLOOKUP($D26,invullijst!$A$11:$M$185,7,FALSE)) -> 58 | I26: 2 | J26: =IF($O$3="k",IF(VLOOKUP($L26,invullijst!$A$11:$M$185,11,FALSE)=0," ",VLOOKUP($L26,invullijst!$A$11:$M$185,11,FALSE)),"") ->  | K26: =IF(VLOOKUP($L26,invullijst!$A$11:$M$226,4,FALSE)="","",VLOOKUP($L26,invullijst!$A$11:$M$226,4,FALSE)) -> 65+ | L26: 310 | M26: =IF(VLOOKUP($L26,invullijst!$A$11:$M$185,2,FALSE)="","",VLOOKUP($L26,invullijst!$A$11:$M$185,2,FALSE)) -> Tiny Boom | O26: =IF(VLOOKUP($L26,invullijst!$A$11:$M$185,7,FALSE)=0,"",VLOOKUP($L26,invullijst!$A$11:$M$185,7,FALSE)) -> 92
A27: 3 | B27: =IF($G$3="k",IF(VLOOKUP($D27,invullijst!$A$11:$M$185,11,FALSE)=0," ",VLOOKUP($D27,invullijst!$A$11:$M$185,11,FALSE)),"") ->  | C27: =IF(VLOOKUP(D27,invullijst!A$11:F$226,4,FALSE)="","",VLOOKUP(D27,invullijst!A$11:D$226,4,FALSE)) -> 65+ | D27: 107 | E27: =IF(VLOOKUP($D27,invullijst!$A$11:$M$185,2,FALSE)="","",VLOOKUP($D27,invullijst!$A$11:$M$185,2,FALSE)) -> Cees Coppens | G27: =IF(VLOOKUP($D27,invullijst!$A$11:$M$185,7,FALSE)=0,"",VLOOKUP($D27,invullijst!$A$11:$M$185,7,FALSE)) -> 86 | I27: 3 | J27: =IF($O$3="k",IF(VLOOKUP($L27,invullijst!$A$11:$M$185,11,FALSE)=0," ",VLOOKUP($L27,invullijst!$A$11:$M$185,11,FALSE)),"") ->  | K27: =IF(VLOOKUP($L27,invullijst!$A$11:$M$226,4,FALSE)="","",VLOOKUP($L27,invullijst!$A$11:$M$226,4,FALSE)) -> 65+ | L27: 309 | M27: =IF(VLOOKUP($L27,invullijst!$A$11:$M$185,2,FALSE)="","",VLOOKUP($L27,invullijst!$A$11:$M$185,2,FALSE)) -> René de Jong | O27: =IF(VLOOKUP($L27,invullijst!$A$11:$M$185,7,FALSE)=0,"",VLOOKUP($L27,invullijst!$A$11:$M$185,7,FALSE)) -> 81
A28: Totaal korps opgelegd A1 | G28: =SUM(G25:G27) -> 223 | I28: Totaal korps opgelegd A1 | O28: =SUM(O25:O27) -> 268
A30: 1 | B30: =IF($G$3="k",IF(VLOOKUP($D30,invullijst!$A$11:$M$185,11,FALSE)=0," ",VLOOKUP($D30,invullijst!$A$11:$M$185,11,FALSE)),"") ->  | C30: =IF(VLOOKUP(D30,invullijst!A$11:F$226,4,FALSE)="","",VLOOKUP(D30,invullijst!A$11:D$226,4,FALSE)) -> 0 | E30: =IF(VLOOKUP($D30,invullijst!$A$11:$M$185,2,FALSE)="","",VLOOKUP($D30,invullijst!$A$11:$M$185,2,FALSE)) -> 0 | G30: =IF(VLOOKUP($D30,invullijst!$A$11:$M$185,7,FALSE)=0,"",VLOOKUP($D30,invullijst!$A$11:$M$185,7,FALSE)) ->  | I30: 1 | J30: =IF($O$3="k",IF(VLOOKUP($L30,invullijst!$A$11:$M$185,11,FALSE)=0," ",VLOOKUP($L30,invullijst!$A$11:$M$185,11,FALSE)),"") ->  | K30: =IF(VLOOKUP($L30,invullijst!$A$11:$M$226,4,FALSE)="","",VLOOKUP($L30,invullijst!$A$11:$M$226,4,FALSE)) -> J | L30: 312 | M30: =IF(VLOOKUP($L30,invullijst!$A$11:$M$185,2,FALSE)="","",VLOOKUP($L30,invullijst!$A$11:$M$185,2,FALSE)) -> Floor de Jong | O30: =IF(VLOOKUP($L30,invullijst!$A$11:$M$185,7,FALSE)=0,"",VLOOKUP($L30,invullijst!$A$11:$M$185,7,FALSE)) -> 91
A31: 2 | B31: =IF($G$3="k",IF(VLOOKUP($D31,invullijst!$A$11:$M$185,11,FALSE)=0," ",VLOOKUP($D31,invullijst!$A$11:$M$185,11,FALSE)),"") ->  | C31: =IF(VLOOKUP(D31,invullijst!A$11:F$226,4,FALSE)="","",VLOOKUP(D31,invullijst!A$11:D$226,4,FALSE)) -> 0 | E31: =IF(VLOOKUP($D31,invullijst!$A$11:$M$185,2,FALSE)="","",VLOOKUP($D31,invullijst!$A$11:$M$185,2,FALSE)) -> 0 | G31: =IF(VLOOKUP($D31,invullijst!$A$11:$M$185,7,FALSE)=0,"",VLOOKUP($D31,invullijst!$A$11:$M$185,7,FALSE)) ->  | I31: 2 | J31: =IF($O$3="k",IF(VLOOKUP($L31,invullijst!$A$11:$M$185,11,FALSE)=0," ",VLOOKUP($L31,invullijst!$A$11:$M$185,11,FALSE)),"") ->  | K31: =IF(VLOOKUP($L31,invullijst!$A$11:$M$226,4,FALSE)="","",VLOOKUP($L31,invullijst!$A$11:$M$226,4,FALSE)) -> 65+ | L31: 301 | M31: =IF(VLOOKUP($L31,invullijst!$A$11:$M$185,2,FALSE)="","",VLOOKUP($L31,invullijst!$A$11:$M$185,2,FALSE)) -> Arjen van Assem disp | O31: =IF(VLOOKUP($L31,invullijst!$A$11:$M$185,7,FALSE)=0,"",VLOOKUP($L31,invullijst!$A$11:$M$185,7,FALSE)) -> 90
A32: 3 | B32: =IF($G$3="k",IF(VLOOKUP($D32,invullijst!$A$11:$M$185,11,FALSE)=0," ",VLOOKUP($D32,invullijst!$A$11:$M$185,11,FALSE)),"") ->  | C32: =IF(VLOOKUP(D32,invullijst!A$11:F$226,4,FALSE)="","",VLOOKUP(D32,invullijst!A$11:D$226,4,FALSE)) -> 0 | E32: =IF(VLOOKUP($D32,invullijst!$A$11:$M$185,2,FALSE)="","",VLOOKUP($D32,invullijst!$A$11:$M$185,2,FALSE)) -> 0 | G32: =IF(VLOOKUP($D32,invullijst!$A$11:$M$185,7,FALSE)=0,"",VLOOKUP($D32,invullijst!$A$11:$M$185,7,FALSE)) ->  | I32: 3 | J32: =IF($O$3="k",IF(VLOOKUP($L32,invullijst!$A$11:$M$185,11,FALSE)=0," ",VLOOKUP($L32,invullijst!$A$11:$M$185,11,FALSE)),"") ->  | K32: =IF(VLOOKUP($L32,invullijst!$A$11:$M$226,4,FALSE)="","",VLOOKUP($L32,invullijst!$A$11:$M$226,4,FALSE)) -> 0 | M32: =IF(VLOOKUP($L32,invullijst!$A$11:$M$185,2,FALSE)="","",VLOOKUP($L32,invullijst!$A$11:$M$185,2,FALSE)) -> 0 | O32: =IF(VLOOKUP($L32,invullijst!$A$11:$M$185,7,FALSE)=0,"",VLOOKUP($L32,invullijst!$A$11:$M$185,7,FALSE)) -> 
A33: Totaal korps opgelegd A2 | G33: =SUM(G30:G32) -> 0 | I33: Totaal korps opgelegd A2 | O33: =SUM(O30:O32) -> 181
A35: 1 | B35: =IF($G$3="k",IF(VLOOKUP($D35,invullijst!$A$11:$M$185,11,FALSE)=0," ",VLOOKUP($D35,invullijst!$A$11:$M$185,11,FALSE)),"") ->  | C35: =IF(VLOOKUP(D35,invullijst!A$11:F$226,4,FALSE)="","",VLOOKUP(D35,invullijst!A$11:D$226,4,FALSE)) -> 0 | E35: =IF(VLOOKUP($D35,invullijst!$A$11:$M$185,2,FALSE)="","",VLOOKUP($D35,invullijst!$A$11:$M$185,2,FALSE)) -> 0 | G35: =IF(VLOOKUP($D35,invullijst!$A$11:$M$185,7,FALSE)=0,"",VLOOKUP($D35,invullijst!$A$11:$M$185,7,FALSE)) ->  | I35: 1 | J35: =IF($O$3="k",IF(VLOOKUP($L35,invullijst!$A$11:$M$185,11,FALSE)=0," ",VLOOKUP($L35,invullijst!$A$11:$M$185,11,FALSE)),"") ->  | K35: =IF(VLOOKUP($L35,invullijst!$A$11:$M$226,4,FALSE)="","",VLOOKUP($L35,invullijst!$A$11:$M$226,4,FALSE)) -> 0 | M35: =IF(VLOOKUP($L35,invullijst!$A$11:$M$185,2,FALSE)="","",VLOOKUP($L35,invullijst!$A$11:$M$185,2,FALSE)) -> 0 | O35: =IF(VLOOKUP($L35,invullijst!$A$11:$M$185,7,FALSE)=0,"",VLOOKUP($L35,invullijst!$A$11:$M$185,7,FALSE)) -> 
A36: 2 | B36: =IF($G$3="k",IF(VLOOKUP($D36,invullijst!$A$11:$M$185,11,FALSE)=0," ",VLOOKUP($D36,invullijst!$A$11:$M$185,11,FALSE)),"") ->  | C36: =IF(VLOOKUP(D36,invullijst!A$11:F$226,4,FALSE)="","",VLOOKUP(D36,invullijst!A$11:D$226,4,FALSE)) -> 0 | E36: =IF(VLOOKUP($D36,invullijst!$A$11:$M$185,2,FALSE)="","",VLOOKUP($D36,invullijst!$A$11:$M$185,2,FALSE)) -> 0 | G36: =IF(VLOOKUP($D36,invullijst!$A$11:$M$185,7,FALSE)=0,"",VLOOKUP($D36,invullijst!$A$11:$M$185,7,FALSE)) ->  | I36: 2 | J36: =IF($O$3="k",IF(VLOOKUP($L36,invullijst!$A$11:$M$185,11,FALSE)=0," ",VLOOKUP($L36,invullijst!$A$11:$M$185,11,FALSE)),"") ->  | K36: =IF(VLOOKUP($L36,invullijst!$A$11:$M$226,4,FALSE)="","",VLOOKUP($L36,invullijst!$A$11:$M$226,4,FALSE)) -> 0 | M36: =IF(VLOOKUP($L36,invullijst!$A$11:$M$185,2,FALSE)="","",VLOOKUP($L36,invullijst!$A$11:$M$185,2,FALSE)) -> 0 | O36: =IF(VLOOKUP($L36,invullijst!$A$11:$M$185,7,FALSE)=0,"",VLOOKUP($L36,invullijst!$A$11:$M$185,7,FALSE)) -> 
A37: 3 | B37: =IF($G$3="k",IF(VLOOKUP($D37,invullijst!$A$11:$M$185,11,FALSE)=0," ",VLOOKUP($D37,invullijst!$A$11:$M$185,11,FALSE)),"") ->  | C37: =IF(VLOOKUP(D37,invullijst!A$11:F$226,4,FALSE)="","",VLOOKUP(D37,invullijst!A$11:D$226,4,FALSE)) -> 0 | E37: =IF(VLOOKUP($D37,invullijst!$A$11:$M$185,2,FALSE)="","",VLOOKUP($D37,invullijst!$A$11:$M$185,2,FALSE)) -> 0 | G37: =IF(VLOOKUP($D37,invullijst!$A$11:$M$185,7,FALSE)=0,"",VLOOKUP($D37,invullijst!$A$11:$M$185,7,FALSE)) ->  | I37: 3 | J37: =IF($O$3="k",IF(VLOOKUP($L37,invullijst!$A$11:$M$185,11,FALSE)=0," ",VLOOKUP($L37,invullijst!$A$11:$M$185,11,FALSE)),"") ->  | K37: =IF(VLOOKUP($L37,invullijst!$A$11:$M$226,4,FALSE)="","",VLOOKUP($L37,invullijst!$A$11:$M$226,4,FALSE)) -> 0 | M37: =IF(VLOOKUP($L37,invullijst!$A$11:$M$185,2,FALSE)="","",VLOOKUP($L37,invullijst!$A$11:$M$185,2,FALSE)) -> 0 | O37: =IF(VLOOKUP($L37,invullijst!$A$11:$M$185,7,FALSE)=0,"",VLOOKUP($L37,invullijst!$A$11:$M$185,7,FALSE)) -> 
A38: Totaal korps opgelegd A3 | G38: =SUM(G35:G37) -> 0 | I38: Totaal korps opgelegd A3 | O38: =SUM(O35:O37) -> 0

Sheet wedstrijd 2B
A1: =invullijst!F1 -> Organistatie | F1: =invullijst!H2 -> 2024 - 2025 | I1: =invullijst!F3 -> O.L.V. Schuts Elshout
A2: Datum: | M2: 2025-01-19
A3: 5 | B3: =IF(VLOOKUP(A3,invullijst!A1:F5,2,FALSE)="","",VLOOKUP(A3,invullijst!A1:F5,2,FALSE)) -> Sint Jan Baptist Kaatsheuvel | I3: 2 | J3: =IF(VLOOKUP(I3,invullijst!A1:C5,2,FALSE)="","",VLOOKUP(I3,invullijst!A1:C5,2,FALSE)) -> St. Crispinus & Crispinianus Besoijen
A5: vrijehand
A6: 1 | B6: =IF($G$3="k",IF(VLOOKUP($D6,invullijst!$A$11:$M$185,11,FALSE)=0," ",VLOOKUP($D6,invullijst!$A$11:$M$185,11,FALSE)),"") ->  | C6: =IF(VLOOKUP(D6,invullijst!A$11:F$226,4,FALSE)="","",VLOOKUP(D6,invullijst!A$11:D$226,4,FALSE)) -> vr | D6: 506 | E6: =IF(VLOOKUP($D6,invullijst!$A$11:$M$185,2,FALSE)="","",VLOOKUP($D6,invullijst!$A$11:$M$185,2,FALSE)) -> Maikel Monden | G6: =IF(VLOOKUP($D6,invullijst!$A$11:$M$185,7,FALSE)=0,"",VLOOKUP($D6,invullijst!$A$11:$M$185,7,FALSE)) -> 81 | I6: 1 | J6: =IF($O$3="k",IF(VLOOKUP($L6,invullijst!$A$11:$M$185,11,FALSE)=0," ",VLOOKUP($L6,invullijst!$A$11:$M$185,11,FALSE)),"") ->  | K6: =IF(VLOOKUP($L6,invullijst!$A$11:$M$226,4,FALSE)="","",VLOOKUP($L6,invullijst!$A$11:$M$226,4,FALSE)) -> vr | L6: 210 | M6: =IF(VLOOKUP($L6,invullijst!$A$11:$M$185,2,FALSE)="","",VLOOKUP($L6,invullijst!$A$11:$M$185,2,FALSE)) -> Sander Oome | O6: =IF(VLOOKUP($L6,invullijst!$A$11:$M$185,7,FALSE)=0,"",VLOOKUP($L6,invullijst!$A$11:$M$185,7,FALSE)) -> 87
A7: 2 | B7: =IF($G$3="k",IF(VLOOKUP($D7,invullijst!$A$11:$M$185,11,FALSE)=0," ",VLOOKUP($D7,invullijst!$A$11:$M$185,11,FALSE)),"") ->  | C7: =IF(VLOOKUP(D7,invullijst!A$11:F$226,4,FALSE)="","",VLOOKUP(D7,invullijst!A$11:D$226,4,FALSE)) -> vr | D7: 507 | E7: =IF(VLOOKUP($D7,invullijst!$A$11:$M$185,2,FALSE)="","",VLOOKUP($D7,invullijst!$A$11:$M$185,2,FALSE)) -> Michael Blaauwbroek | G7: =IF(VLOOKUP($D7,invullijst!$A$11:$M$185,7,FALSE)=0,"",VLOOKUP($D7,invullijst!$A$11:$M$185,7,FALSE)) -> 74 | I7: 2 | J7: =IF($O$3="k",IF(VLOOKUP($L7,invullijst!$A$11:$M$185,11,FALSE)=0," ",VLOOKUP($L7,invullijst!$A$11:$M$185,11,FALSE)),"") ->  | K7: =IF(VLOOKUP($L7,invullijst!$A$11:$M$226,4,FALSE)="","",VLOOKUP($L7,invullijst!$A$11:$M$226,4,FALSE)) -> vr | L7: 207 | M7: =IF(VLOOKUP($L7,invullijst!$A$11:$M$185,2,FALSE)="","",VLOOKUP($L7,invullijst!$A$11:$M$185,2,FALSE)) -> Max de Louw | O7: =IF(VLOOKUP($L7,invullijst!$A$11:$M$185,7,FALSE)=0,"",VLOOKUP($L7,invullijst!$A$11:$M$185,7,FALSE)) -> 88
A8: 3 | B8: =IF($G$3="k",IF(VLOOKUP($D8,invullijst!$A$11:$M$185,11,FALSE)=0," ",VLOOKUP($D8,invullijst!$A$11:$M$185,11,FALSE)),"") ->  | C8: =IF(VLOOKUP(D8,invullijst!A$11:F$226,4,FALSE)="","",VLOOKUP(D8,invullijst!A$11:D$226,4,FALSE)) -> vr | D8: 512 | E8: =IF(VLOOKUP($D8,invullijst!$A$11:$M$185,2,FALSE)="","",VLOOKUP($D8,invullijst!$A$11:$M$185,2,FALSE)) -> Hans Bergakker | G8: =IF(VLOOKUP($D8,invullijst!$A$11:$M$185,7,FALSE)=0,"",VLOOKUP($D8,invullijst!$A$11:$M$185,7,FALSE)) -> 78 | I8: 3 | J8: =IF($O$3="k",IF(VLOOKUP($L8,invullijst!$A$11:$M$185,11,FALSE)=0," ",VLOOKUP($L8,invullijst!$A$11:$M$185,11,FALSE)),"") ->  | K8: =IF(VLOOKUP($L8,invullijst!$A$11:$M$226,4,FALSE)="","",VLOOKUP($L8,invullijst!$A$11:$M$226,4,FALSE)) -> vr | L8: 216 | M8: =IF(VLOOKUP($L8,invullijst!$A$11:$M$185,2,FALSE)="","",VLOOKUP($L8,invullijst!$A$11:$M$185,2,FALSE)) -> Pieter Laghuwitz | O8: =IF(VLOOKUP($L8,invullijst!$A$11:$M$185,7,FALSE)=0,"",VLOOKUP($L8,invullijst!$A$11:$M$185,7,FALSE)) -> 87
A9: 4 | B9: =IF($G$3="k",IF(VLOOKUP($D9,invullijst!$A$11:$M$185,11,FALSE)=0," ",VLOOKUP($D9,invullijst!$A$11:$M$185,11,FALSE)),"") ->  | C9: =IF(VLOOKUP(D9,invullijst!A$11:F$226,4,FALSE)="","",VLOOKUP(D9,invullijst!A$11:D$226,4,FALSE)) -> vr | D9: 501 | E9: =IF(VLOOKUP($D9,invullijst!$A$11:$M$185,2,FALSE)="","",VLOOKUP($D9,invullijst!$A$11:$M$185,2,FALSE)) -> Annette Vos | G9: =IF(VLOOKUP($D9,invullijst!$A$11:$M$185,7,FALSE)=0,"",VLOOKUP($D9,invullijst!$A$11:$M$185,7,FALSE)) -> 78 | I9: 4 | J9: =IF($O$3="k",IF(VLOOKUP($L9,invullijst!$A$11:$M$185,11,FALSE)=0," ",VLOOKUP($L9,invullijst!$A$11:$M$185,11,FALSE)),"") ->  | K9: =IF(VLOOKUP($L9,invullijst!$A$11:$M$226,4,FALSE)="","",VLOOKUP($L9,invullijst!$A$11:$M$226,4,FALSE)) -> vr | L9: 204 | M9: =IF(VLOOKUP($L9,invullijst!$A$11:$M$185,2,FALSE)="","",VLOOKUP($L9,invullijst!$A$11:$M$185,2,FALSE)) -> Harry de Louw | O9: =IF(VLOOKUP($L9,invullijst!$A$11:$M$185,7,FALSE)=0,"",VLOOKUP($L9,invullijst!$A$11:$M$185,7,FALSE)) -> 85
A10: Totaal A korps | G10: =SUM(G6:G9) -> 311 | I10: Totaal A korps | O10: =SUM(O6:O9) -> 347
A12: 1 | B12: =IF($G$3="k",IF(VLOOKUP($D12,invullijst!$A$11:$M$185,11,FALSE)=0," ",VLOOKUP($D12,invullijst!$A$11:$M$185,11,FALSE)),"") ->  | C12: =IF(VLOOKUP(D12,invullijst!A$11:F$226,4,FALSE)="","",VLOOKUP(D12,invullijst!A$11:D$226,4,FALSE)) -> vr | D12: 517 | E12: =IF(VLOOKUP($D12,invullijst!$A$11:$M$185,2,FALSE)="","",VLOOKUP($D12,invullijst!$A$11:$M$185,2,FALSE)) -> Diny Vos | G12: =IF(VLOOKUP($D12,invullijst!$A$11:$M$185,7,FALSE)=0,"",VLOOKUP($D12,invullijst!$A$11:$M$185,7,FALSE)) -> 75 | I12: 1 | J12: =IF($O$3="k",IF(VLOOKUP($L12,invullijst!$A$11:$M$185,11,FALSE)=0," ",VLOOKUP($L12,invullijst!$A$11:$M$185,11,FALSE)),"") ->  | K12: =IF(VLOOKUP($L12,invullijst!$A$11:$M$226,4,FALSE)="","",VLOOKUP($L12,invullijst!$A$11:$M$226,4,FALSE)) -> vr | L12: 203 | M12: =IF(VLOOKUP($L12,invullijst!$A$11:$M$185,2,FALSE)="","",VLOOKUP($L12,invullijst!$A$11:$M$185,2,FALSE)) -> Frank van den Houdt | O12: =IF(VLOOKUP($L12,invullijst!$A$11:$M$185,7,FALSE)=0,"",VLOOKUP($L12,invullijst!$A$11:$M$185,7,FALSE)) -> 84
A13: 2 | B13: =IF($G$3="k",IF(VLOOKUP($D13,invullijst!$A$11:$M$185,11,FALSE)=0," ",VLOOKUP($D13,invullijst!$A$11:$M$185,11,FALSE)),"") ->  | C13: =IF(VLOOKUP(D13,invullijst!A$11:F$226,4,FALSE)="","",VLOOKUP(D13,invullijst!A$11:D$226,4,FALSE)) -> vr | D13: 508 | E13: =IF(VLOOKUP($D13,invullijst!$A$11:$M$185,2,FALSE)="","",VLOOKUP($D13,invullijst!$A$11:$M$185,2,FALSE)) -> Rowan Dobbelsteen | G13: =IF(VLOOKUP($D13,invullijst!$A$11:$M$185,7,FALSE)=0,"",VLOOKUP($D13,invullijst!$A$11:$M$185,7,FALSE)) -> 75 | I13: 2 | J13: =IF($O$3="k",IF(VLOOKUP($L13,invullijst!$A$11:$M$185,11,FALSE)=0," ",VLOOKUP($L13,invullijst!$A$11:$M$185,11,FALSE)),"") ->  | K13: =IF(VLOOKUP($L13,invullijst!$A$11:$M$226,4,FALSE)="","",VLOOKUP($L13,invullijst!$A$11:$M$226,4,FALSE)) -> vr | L13: 205 | M13: =IF(VLOOKUP($L13,invullijst!$A$11:$M$185,2,FALSE)="","",VLOOKUP($L13,invullijst!$A$11:$M$185,2,FALSE)) -> Jos v/d Snepscheut | O13: =IF(VLOOKUP($L13,invullijst!$A$11:$M$185,7,FALSE)=0,"",VLOOKUP($L13,invullijst!$A$11:$M$185,7,FALSE)) -> 80
A14: 3 | B14: =IF($G$3="k",IF(VLOOKUP($D14,invullijst!$A$11:$M$185,11,FALSE)=0," ",VLOOKUP($D14,invullijst!$A$11:$M$185,11,FALSE)),"") ->  | C14: =IF(VLOOKUP(D14,invullijst!A$11:F$226,4,FALSE)="","",VLOOKUP(D14,invullijst!A$11:D$226,4,FALSE)) -> vr | D14: 513 | E14: =IF(VLOOKUP($D14,invullijst!$A$11:$M$185,2,FALSE)="","",VLOOKUP($D14,invullijst!$A$11:$M$185,2,FALSE)) -> Mark van Delft | G14: =IF(VLOOKUP($D14,invullijst!$A$11:$M$185,7,FALSE)=0,"",VLOOKUP($D14,invullijst!$A$11:$M$185,7,FALSE)) -> 77 | I14: 3 | J14: =IF($O$3="k",IF(VLOOKUP($L14,invullijst!$A$11:$M$185,11,FALSE)=0," ",VLOOKUP($L14,invullijst!$A$11:$M$185,11,FALSE)),"") ->  | K14: =IF(VLOOKUP($L14,invullijst!$A$11:$M$226,4,FALSE)="","",VLOOKUP($L14,invullijst!$A$11:$M$226,4,FALSE)) -> vr | L14: 209 | M14: =IF(VLOOKUP($L14,invullijst!$A$11:$M$185,2,FALSE)="","",VLOOKUP($L14,invullijst!$A$11:$M$185,2,FALSE)) -> René van Kuijk | O14: =IF(VLOOKUP($L14,invullijst!$A$11:$M$185,7,FALSE)=0,"",VLOOKUP($L14,invullijst!$A$11:$M$185,7,FALSE)) -> 82
A15: 4 | B15: =IF($G$3="k",IF(VLOOKUP($D15,invullijst!$A$11:$M$185,11,FALSE)=0," ",VLOOKUP($D15,invullijst!$A$11:$M$185,11,FALSE)),"") ->  | C15: =IF(VLOOKUP(D15,invullijst!A$11:F$226,4,FALSE)="","",VLOOKUP(D15,invullijst!A$11:D$226,4,FALSE)) -> 0 | E15: =IF(VLOOKUP($D15,invullijst!$A$11:$M$185,2,FALSE)="","",VLOOKUP($D15,invullijst!$A$11:$M$185,2,FALSE)) -> 0 | G15: =IF(VLOOKUP($D15,invullijst!$A$11:$M$185,7,FALSE)=0,"",VLOOKUP($D15,invullijst!$A$11:$M$185,7,FALSE)) ->  | I15: 4 | J15: =IF($O$3="k",IF(VLOOKUP($L15,invullijst!$A$11:$M$185,11,FALSE)=0," ",VLOOKUP($L15,invullijst!$A$11:$M$185,11,FALSE)),"") ->  | K15: =IF(VLOOKUP($L15,invullijst!$A$11:$M$226,4,FALSE)="","",VLOOKUP($L15,invullijst!$A$11:$M$226,4,FALSE)) -> vr | L15: 208 | M15: =IF(VLOOKUP($L15,invullijst!$A$11:$M$185,2,FALSE)="","",VLOOKUP($L15,invullijst!$A$11:$M$185,2,FALSE)) -> Erin van Hulten | O15: =IF(VLOOKUP($L15,invullijst!$A$11:$M$185,7,FALSE)=0,"",VLOOKUP($L15,invullijst!$A$11:$M$185,7,FALSE)) -> 82
A16: Totaal B1 korps | G16: =SUM(G12:G15) -> 227 | I16: Totaal B1 korps | O16: =SUM(O12:O15) -> 328
A18: 1 | B18: =IF($G$3="k",IF(VLOOKUP($D18,invullijst!$A$11:$M$185,11,FALSE)=0," ",VLOOKUP($D18,invullijst!$A$11:$M$185,11,FALSE)),"") ->  | C18: =IF(VLOOKUP(D18,invullijst!A$11:F$226,4,FALSE)="","",VLOOKUP(D18,invullijst!A$11:D$226,4,FALSE)) -> 0 | E18: =IF(VLOOKUP($D18,invullijst!$A$11:$M$185,2,FALSE)="","",VLOOKUP($D18,invullijst!$A$11:$M$185,2,FALSE)) -> 0 | G18: =IF(VLOOKUP($D18,invullijst!$A$11:$M$185,7,FALSE)=0,"",VLOOKUP($D18,invullijst!$A$11:$M$185,7,FALSE)) ->  | I18: 1 | J18: =IF($O$3="k",IF(VLOOKUP($L18,invullijst!$A$11:$M$185,11,FALSE)=0," ",VLOOKUP($L18,invullijst!$A$11:$M$185,11,FALSE)),"") ->  | K18: =IF(VLOOKUP($L18,invullijst!$A$11:$M$226,4,FALSE)="","",VLOOKUP($L18,invullijst!$A$11:$M$226,4,FALSE)) -> vr | L18: 213 | M18: =IF(VLOOKUP($L18,invullijst!$A$11:$M$185,2,FALSE)="","",VLOOKUP($L18,invullijst!$A$11:$M$185,2,FALSE)) -> Roland van Delft | O18: =IF(VLOOKUP($L18,invullijst!$A$11:$M$185,7,FALSE)=0,"",VLOOKUP($L18,invullijst!$A$11:$M$185,7,FALSE)) -> 71
A19: 2 | B19: =IF($G$3="k",IF(VLOOKUP($D19,invullijst!$A$11:$M$185,11,FALSE)=0," ",VLOOKUP($D19,invullijst!$A$11:$M$185,11,FALSE)),"") ->  | C19: =IF(VLOOKUP(D19,invullijst!A$11:F$226,4,FALSE)="","",VLOOKUP(D19,invullijst!A$11:D$226,4,FALSE)) -> 0 | E19: =IF(VLOOKUP($D19,invullijst!$A$11:$M$185,2,FALSE)="","",VLOOKUP($D19,invullijst!$A$11:$M$185,2,FALSE)) -> 0 | G19: =IF(VLOOKUP($D19,invullijst!$A$11:$M$185,7,FALSE)=0,"",VLOOKUP($D19,invullijst!$A$11:$M$185,7,FALSE)) ->  | I19: 2 | J19: =IF($O$3="k",IF(VLOOKUP($L19,invullijst!$A$11:$M$185,11,FALSE)=0," ",VLOOKUP($L19,invullijst!$A$11:$M$185,11,FALSE)),"") ->  | K19: =IF(VLOOKUP($L19,invullijst!$A$11:$M$226,4,FALSE)="","",VLOOKUP($L19,invullijst!$A$11:$M$226,4,FALSE)) -> vr | L19: 217 | M19: =IF(VLOOKUP($L19,invullijst!$A$11:$M$185,2,FALSE)="","",VLOOKUP($L19,invullijst!$A$11:$M$185,2,FALSE)) -> Hans Laghuwitz | O19: =IF(VLOOKUP($L19,invullijst!$A$11:$M$185,7,FALSE)=0,"",VLOOKUP($L19,invullijst!$A$11:$M$185,7,FALSE)) -> 81
A20: 3 | B20: INH | C20: =IF(VLOOKUP(D20,invullijst!A$11:F$226,4,FALSE)="","",VLOOKUP(D20,invullijst!A$11:D$226,4,FALSE)) -> vr | D20: 507 | E20: =IF(VLOOKUP($D20,invullijst!$A$11:$M$185,2,FALSE)="","",VLOOKUP($D20,invullijst!$A$11:$M$185,2,FALSE)) -> Michael Blaauwbroek | G20: 76 | I20: 3 | J20: =IF($O$3="k",IF(VLOOKUP($L20,invullijst!$A$11:$M$185,11,FALSE)=0," ",VLOOKUP($L20,invullijst!$A$11:$M$185,11,FALSE)),"") ->  | K20: =IF(VLOOKUP($L20,invullijst!$A$11:$M$226,4,FALSE)="","",VLOOKUP($L20,invullijst!$A$11:$M$226,4,FALSE)) -> vr | L20: 222 | M20: =IF(VLOOKUP($L20,invullijst!$A$11:$M$185,2,FALSE)="","",VLOOKUP($L20,invullijst!$A$11:$M$185,2,FALSE)) -> Nick de Vaan | O20: =IF(VLOOKUP($L20,invullijst!$A$11:$M$185,7,FALSE)=0,"",VLOOKUP($L20,invullijst!$A$11:$M$185,7,FALSE)) -> 75
A21: 4 | B21: INH | C21: =IF(VLOOKUP(D21,invullijst!A$11:F$226,4,FALSE)="","",VLOOKUP(D21,invullijst!A$11:D$226,4,FALSE)) -> vr | D21: 501 | E21: =IF(VLOOKUP($D21,invullijst!$A$11:$M$185,2,FALSE)="","",VLOOKUP($D21,invullijst!$A$11:$M$185,2,FALSE)) -> Annette Vos | G21: 85 | I21: 4 | J21: =IF($O$3="k",IF(VLOOKUP($L21,invullijst!$A$11:$M$185,11,FALSE)=0," ",VLOOKUP($L21,invullijst!$A$11:$M$185,11,FALSE)),"") ->  | K21: =IF(VLOOKUP($L21,invullijst!$A$11:$M$226,4,FALSE)="","",VLOOKUP($L21,invullijst!$A$11:$M$226,4,FALSE)) -> vr | L21: 202 | M21: =IF(VLOOKUP($L21,invullijst!$A$11:$M$185,2,FALSE)="","",VLOOKUP($L21,invullijst!$A$11:$M$185,2,FALSE)) -> Arco van Kuijk | O21: =IF(VLOOKUP($L21,invullijst!$A$11:$M$185,7,FALSE)=0,"",VLOOKUP($L21,invullijst!$A$11:$M$185,7,FALSE)) -> 81
A22: DIVERSE / INHAAL | I22: DIVERSE / INHAAL | O22: =SUM(O18:O21) -> 308
A24: OPGELEGD (Jeugd <16 en 65+)
A25: 1 | B25: =IF($G$3="k",IF(VLOOKUP($D25,invullijst!$A$11:$M$185,11,FALSE)=0," ",VLOOKUP($D25,invullijst!$A$11:$M$185,11,FALSE)),"") ->  | C25: =IF(VLOOKUP(D25,invullijst!A$11:F$226,4,FALSE)="","",VLOOKUP(D25,invullijst!A$11:D$226,4,FALSE)) -> 65+ | D25: 516 | E25: =IF(VLOOKUP($D25,invullijst!$A$11:$M$185,2,FALSE)="","",VLOOKUP($D25,invullijst!$A$11:$M$185,2,FALSE)) -> Henry Bergakker disp | G25: =IF(VLOOKUP($D25,invullijst!$A$11:$M$185,7,FALSE)=0,"",VLOOKUP($D25,invullijst!$A$11:$M$185,7,FALSE)) -> 92 | I25: 1 | J25: =IF($O$3="k",IF(VLOOKUP($L25,invullijst!$A$11:$M$185,11,FALSE)=0," ",VLOOKUP($L25,invullijst!$A$11:$M$185,11,FALSE)),"") ->  | K25: =IF(VLOOKUP($L25,invullijst!$A$11:$M$226,4,FALSE)="","",VLOOKUP($L25,invullijst!$A$11:$M$226,4,FALSE)) -> 65+ | L25: 218 | M25: =IF(VLOOKUP($L25,invullijst!$A$11:$M$185,2,FALSE)="","",VLOOKUP($L25,invullijst!$A$11:$M$185,2,FALSE)) -> Jacob van de Werken | O25: =IF(VLOOKUP($L25,invullijst!$A$11:$M$185,7,FALSE)=0,"",VLOOKUP($L25,invullijst!$A$11:$M$185,7,FALSE)) -> 97
A26: 2 | B26: =IF($G$3="k",IF(VLOOKUP($D26,invullijst!$A$11:$M$185,11,FALSE)=0," ",VLOOKUP($D26,invullijst!$A$11:$M$185,11,FALSE)),"") ->  | C26: =IF(VLOOKUP(D26,invullijst!A$11:F$226,4,FALSE)="","",VLOOKUP(D26,invullijst!A$11:D$226,4,FALSE)) -> 65+ | D26: 509 | E26: =IF(VLOOKUP($D26,invullijst!$A$11:$M$185,2,FALSE)="","",VLOOKUP($D26,invullijst!$A$11:$M$185,2,FALSE)) -> Adwan de Pinth | G26: =IF(VLOOKUP($D26,invullijst!$A$11:$M$185,7,FALSE)=0,"",VLOOKUP($D26,invullijst!$A$11:$M$185,7,FALSE)) -> 94 | I26: 2 | J26: =IF($O$3="k",IF(VLOOKUP($L26,invullijst!$A$11:$M$185,11,FALSE)=0," ",VLOOKUP($L26,invullijst!$A$11:$M$185,11,FALSE)),"") ->  | K26: =IF(VLOOKUP($L26,invullijst!$A$11:$M$226,4,FALSE)="","",VLOOKUP($L26,invullijst!$A$11:$M$226,4,FALSE)) -> 65+ | L26: 220 | M26: =IF(VLOOKUP($L26,invullijst!$A$11:$M$185,2,FALSE)="","",VLOOKUP($L26,invullijst!$A$11:$M$185,2,FALSE)) -> Kees Vos | O26: =IF(VLOOKUP($L26,invullijst!$A$11:$M$185,7,FALSE)=0,"",VLOOKUP($L26,invullijst!$A$11:$M$185,7,FALSE)) -> 93
A27: 3 | B27: =IF($G$3="k",IF(VLOOKUP($D27,invullijst!$A$11:$M$185,11,FALSE)=0," ",VLOOKUP($D27,invullijst!$A$11:$M$185,11,FALSE)),"") ->  | C27: =IF(VLOOKUP(D27,invullijst!A$11:F$226,4,FALSE)="","",VLOOKUP(D27,invullijst!A$11:D$226,4,FALSE)) -> 65+ | D27: 515 | E27: =IF(VLOOKUP($D27,invullijst!$A$11:$M$185,2,FALSE)="","",VLOOKUP($D27,invullijst!$A$11:$M$185,2,FALSE)) -> Ilona Bergakker disp | G27: =IF(VLOOKUP($D27,invullijst!$A$11:$M$185,7,FALSE)=0,"",VLOOKUP($D27,invullijst!$A$11:$M$185,7,FALSE)) -> 87 | I27: 3 | J27: =IF($O$3="k",IF(VLOOKUP($L27,invullijst!$A$11:$M$185,11,FALSE)=0," ",VLOOKUP($L27,invullijst!$A$11:$M$185,11,FALSE)),"") ->  | K27: =IF(VLOOKUP($L27,invullijst!$A$11:$M$226,4,FALSE)="","",VLOOKUP($L27,invullijst!$A$11:$M$226,4,FALSE)) -> 65+ | L27: 219 | M27: =IF(VLOOKUP($L27,invullijst!$A$11:$M$185,2,FALSE)="","",VLOOKUP($L27,invullijst!$A$11:$M$185,2,FALSE)) -> Frans de Bont | O27: =IF(VLOOKUP($L27,invullijst!$A$11:$M$185,7,FALSE)=0,"",VLOOKUP($L27,invullijst!$A$11:$M$185,7,FALSE)) -> 93
A28: Totaal korps opgelegd A1 | G28: =SUM(G25:G27) -> 273 | I28: Totaal korps opgelegd A1 | O28: =SUM(O25:O27) -> 283
A30: 1 | B30: =IF($G$3="k",IF(VLOOKUP($D30,invullijst!$A$11:$M$185,11,FALSE)=0," ",VLOOKUP($D30,invullijst!$A$11:$M$185,11,FALSE)),"") ->  | C30: =IF(VLOOKUP(D30,invullijst!A$11:F$226,4,FALSE)="","",VLOOKUP(D30,invullijst!A$11:D$226,4,FALSE)) -> 65+ | D30: 518 | E30: =IF(VLOOKUP($D30,invullijst!$A$11:$M$185,2,FALSE)="","",VLOOKUP($D30,invullijst!$A$11:$M$185,2,FALSE)) -> Ton Stanz | G30: =IF(VLOOKUP($D30,invullijst!$A$11:$M$185,7,FALSE)=0,"",VLOOKUP($D30,invullijst!$A$11:$M$185,7,FALSE)) -> 84 | I30: 1 | J30: =IF($O$3="k",IF(VLOOKUP($L30,invullijst!$A$11:$M$185,11,FALSE)=0," ",VLOOKUP($L30,invullijst!$A$11:$M$185,11,FALSE)),"") ->  | K30: =IF(VLOOKUP($L30,invullijst!$A$11:$M$226,4,FALSE)="","",VLOOKUP($L30,invullijst!$A$11:$M$226,4,FALSE)) -> 65+ | L30: 214 | M30: =IF(VLOOKUP($L30,invullijst!$A$11:$M$185,2,FALSE)="","",VLOOKUP($L30,invullijst!$A$11:$M$185,2,FALSE)) -> Andre de Vaan | O30: =IF(VLOOKUP($L30,invullijst!$A$11:$M$185,7,FALSE)=0,"",VLOOKUP($L30,invullijst!$A$11:$M$185,7,FALSE)) -> 86
A31: 2 | B31: =IF($G$3="k",IF(VLOOKUP($D31,invullijst!$A$11:$M$185,11,FALSE)=0," ",VLOOKUP($D31,invullijst!$A$11:$M$185,11,FALSE)),"") ->  | C31: =IF(VLOOKUP(D31,invullijst!A$11:F$226,4,FALSE)="","",VLOOKUP(D31,invullijst!A$11:D$226,4,FALSE)) -> 0 | E31: =IF(VLOOKUP($D31,invullijst!$A$11:$M$185,2,FALSE)="","",VLOOKUP($D31,invullijst!$A$11:$M$185,2,FALSE)) -> 0 | G31: =IF(VLOOKUP($D31,invullijst!$A$11:$M$185,7,FALSE)=0,"",VLOOKUP($D31,invullijst!$A$11:$M$185,7,FALSE)) ->  | I31: 2 | J31: =IF($O$3="k",IF(VLOOKUP($L31,invullijst!$A$11:$M$185,11,FALSE)=0," ",VLOOKUP($L31,invullijst!$A$11:$M$185,11,FALSE)),"") ->  | K31: =IF(VLOOKUP($L31,invullijst!$A$11:$M$226,4,FALSE)="","",VLOOKUP($L31,invullijst!$A$11:$M$226,4,FALSE)) -> 65+ | L31: 212 | M31: =IF(VLOOKUP($L31,invullijst!$A$11:$M$185,2,FALSE)="","",VLOOKUP($L31,invullijst!$A$11:$M$185,2,FALSE)) -> René Duquesnoy | O31: =IF(VLOOKUP($L31,invullijst!$A$11:$M$185,7,FALSE)=0,"",VLOOKUP($L31,invullijst!$A$11:$M$185,7,FALSE)) -> 80
A32: 3 | B32: =IF($G$3="k",IF(VLOOKUP($D32,invullijst!$A$11:$M$185,11,FALSE)=0," ",VLOOKUP($D32,invullijst!$A$11:$M$185,11,FALSE)),"") ->  | C32: =IF(VLOOKUP(D32,invullijst!A$11:F$226,4,FALSE)="","",VLOOKUP(D32,invullijst!A$11:D$226,4,FALSE)) -> 0 | E32: =IF(VLOOKUP($D32,invullijst!$A$11:$M$185,2,FALSE)="","",VLOOKUP($D32,invullijst!$A$11:$M$185,2,FALSE)) -> 0 | G32: =IF(VLOOKUP($D32,invullijst!$A$11:$M$185,7,FALSE)=0,"",VLOOKUP($D32,invullijst!$A$11:$M$185,7,FALSE)) ->  | I32: 3 | J32: =IF($O$3="k",IF(VLOOKUP($L32,invullijst!$A$11:$M$185,11,FALSE)=0," ",VLOOKUP($L32,invullijst!$A$11:$M$185,11,FALSE)),"") ->  | K32: =IF(VLOOKUP($L32,invullijst!$A$11:$M$226,4,FALSE)="","",VLOOKUP($L32,invullijst!$A$11:$M$226,4,FALSE)) -> 65+ | L32: 211 | M32: =IF(VLOOKUP($L32,invullijst!$A$11:$M$185,2,FALSE)="","",VLOOKUP($L32,invullijst!$A$11:$M$185,2,FALSE)) -> Ad van den houdt | O32: =IF(VLOOKUP($L32,invullijst!$A$11:$M$185,7,FALSE)=0,"",VLOOKUP($L32,invullijst!$A$11:$M$185,7,FALSE)) -> 91
A33: Totaal korps opgelegd A2 | G33: =SUM(G30:G32) -> 84 | I33: Totaal korps opgelegd A2 | O33: =SUM(O30:O32) -> 257
A35: 1 | B35: =IF($G$3="k",IF(VLOOKUP($D35,invullijst!$A$11:$M$185,11,FALSE)=0," ",VLOOKUP($D35,invullijst!$A$11:$M$185,11,FALSE)),"") ->  | C35: =IF(VLOOKUP(D35,invullijst!A$11:F$226,4,FALSE)="","",VLOOKUP(D35,invullijst!A$11:D$226,4,FALSE)) -> 0 | E35: =IF(VLOOKUP($D35,invullijst!$A$11:$M$185,2,FALSE)="","",VLOOKUP($D35,invullijst!$A$11:$M$185,2,FALSE)) -> 0 | G35: =IF(VLOOKUP($D35,invullijst!$A$11:$M$185,7,FALSE)=0,"",VLOOKUP($D35,invullijst!$A$11:$M$185,7,FALSE)) ->  | I35: 1 | J35: =IF($O$3="k",IF(VLOOKUP($L35,invullijst!$A$11:$M$185,11,FALSE)=0," ",VLOOKUP($L35,invullijst!$A$11:$M$185,11,FALSE)),"") ->  | K35: =IF(VLOOKUP($L35,invullijst!$A$11:$M$226,4,FALSE)="","",VLOOKUP($L35,invullijst!$A$11:$M$226,4,FALSE)) -> J | L35: 221 | M35: =IF(VLOOKUP($L35,invullijst!$A$11:$M$185,2,FALSE)="","",VLOOKUP($L35,invullijst!$A$11:$M$185,2,FALSE)) -> Mees Huijben | O35: =IF(VLOOKUP($L35,invullijst!$A$11:$M$185,7,FALSE)=0,"",VLOOKUP($L35,invullijst!$A$11:$M$185,7,FALSE)) -> 79
A36: 2 | B36: =IF($G$3="k",IF(VLOOKUP($D36,invullijst!$A$11:$M$185,11,FALSE)=0," ",VLOOKUP($D36,invullijst!$A$11:$M$185,11,FALSE)),"") ->  | C36: =IF(VLOOKUP(D36,invullijst!A$11:F$226,4,FALSE)="","",VLOOKUP(D36,invullijst!A$11:D$226,4,FALSE)) -> 0 | E36: =IF(VLOOKUP($D36,invullijst!$A$11:$M$185,2,FALSE)="","",VLOOKUP($D36,invullijst!$A$11:$M$185,2,FALSE)) -> 0 | G36: =IF(VLOOKUP($D36,invullijst!$A$11:$M$185,7,FALSE)=0,"",VLOOKUP($D36,invullijst!$A$11:$M$185,7,FALSE)) ->  | I36: 2 | J36: =IF($O$3="k",IF(VLOOKUP($L36,invullijst!$A$11:$M$185,11,FALSE)=0," ",VLOOKUP($L36,invullijst!$A$11:$M$185,11,FALSE)),"") ->  | K36: =IF(VLOOKUP($L36,invullijst!$A$11:$M$226,4,FALSE)="","",VLOOKUP($L36,invullijst!$A$11:$M$226,4,FALSE)) -> vr | L36: 223 | M36: =IF(VLOOKUP($L36,invullijst!$A$11:$M$185,2,FALSE)="","",VLOOKUP($L36,invullijst!$A$11:$M$185,2,FALSE)) -> Jänis Jakobsons | O36: =IF(VLOOKUP($L36,invullijst!$A$11:$M$185,7,FALSE)=0,"",VLOOKUP($L36,invullijst!$A$11:$M$185,7,FALSE)) -> 81
A37: 3 | B37: =IF($G$3="k",IF(VLOOKUP($D37,invullijst!$A$11:$M$185,11,FALSE)=0," ",VLOOKUP($D37,invullijst!$A$11:$M$185,11,FALSE)),"") ->  | C37: =IF(VLOOKUP(D37,invullijst!A$11:F$226,4,FALSE)="","",VLOOKUP(D37,invullijst!A$11:D$226,4,FALSE)) -> 0 | E37: =IF(VLOOKUP($D37,invullijst!$A$11:$M$185,2,FALSE)="","",VLOOKUP($D37,invullijst!$A$11:$M$185,2,FALSE)) -> 0 | G37: =IF(VLOOKUP($D37,invullijst!$A$11:$M$185,7,FALSE)=0,"",VLOOKUP($D37,invullijst!$A$11:$M$185,7,FALSE)) ->  | I37: 3 | J37: =IF($O$3="k",IF(VLOOKUP($L37,invullijst!$A$11:$M$185,11,FALSE)=0," ",VLOOKUP($L37,invullijst!$A$11:$M$185,11,FALSE)),"") ->  | K37: =IF(VLOOKUP($L37,invullijst!$A$11:$M$226,4,FALSE)="","",VLOOKUP($L37,invullijst!$A$11:$M$226,4,FALSE)) -> 0 | M37: =IF(VLOOKUP($L37,invullijst!$A$11:$M$185,2,FALSE)="","",VLOOKUP($L37,invullijst!$A$11:$M$185,2,FALSE)) -> 0 | O37: =IF(VLOOKUP($L37,invullijst!$A$11:$M$185,7,FALSE)=0,"",VLOOKUP($L37,invullijst!$A$11:$M$185,7,FALSE)) -> 
A38: Totaal korps opgelegd A3 | G38: =SUM(G35:G37) -> 0 | I38: Totaal korps opgelegd A3

Sheet wedstrijd 3A
A1: =invullijst!F1 -> Organistatie | F1: =invullijst!H2 -> 2024 - 2025 | I1: =invullijst!F3 -> O.L.V. Schuts Elshout
A2: Datum: | M2: 2025-02-02
A3: 2 | B3: =IF(VLOOKUP(A3,invullijst!A1:F5,2,FALSE)="","",VLOOKUP(A3,invullijst!A1:F5,2,FALSE)) -> St. Crispinus & Crispinianus Besoijen | G3: K | I3: 3 | J3: =IF(VLOOKUP(I3,invullijst!A1:C5,2,FALSE)="","",VLOOKUP(I3,invullijst!A1:C5,2,FALSE)) -> O.L.V. Schuts Elshout | O3: K
A5: vrijehand
A6: 1 | B6: =IF($G$3="k",IF(VLOOKUP($D6,invullijst!$A$11:$M$185,11,FALSE)=0," ",VLOOKUP($D6,invullijst!$A$11:$M$185,11,FALSE)),"") -> 40 | C6: =IF(VLOOKUP(D6,invullijst!A$11:F$226,4,FALSE)="","",VLOOKUP(D6,invullijst!A$11:D$226,4,FALSE)) -> vr | D6: 210 | E6: =IF(VLOOKUP($D6,invullijst!$A$11:$M$185,2,FALSE)="","",VLOOKUP($D6,invullijst!$A$11:$M$185,2,FALSE)) -> Sander Oome | G6: =IF(VLOOKUP($D6,invullijst!$A$11:$M$185,8,FALSE)=0,"",VLOOKUP($D6,invullijst!$A$11:$M$185,8,FALSE)) -> 90 | I6: 1 | J6: =IF($O$3="k",IF(VLOOKUP($L6,invullijst!$A$11:$M$185,11,FALSE)=0," ",VLOOKUP($L6,invullijst!$A$11:$M$185,11,FALSE)),"") -> 40 | K6: =IF(VLOOKUP($L6,invullijst!$A$11:$M$226,4,FALSE)="","",VLOOKUP($L6,invullijst!$A$11:$M$226,4,FALSE)) -> vr | L6: 302 | M6: =IF(VLOOKUP($L6,invullijst!$A$11:$M$185,2,FALSE)="","",VLOOKUP($L6,invullijst!$A$11:$M$185,2,FALSE)) -> Freek de Jong | O6: =IF(VLOOKUP($L6,invullijst!$A$11:$M$185,8,FALSE)=0,"",VLOOKUP($L6,invullijst!$A$11:$M$185,8,FALSE)) -> 80
A7: 2 | B7: =IF($G$3="k",IF(VLOOKUP($D7,invullijst!$A$11:$M$185,11,FALSE)=0," ",VLOOKUP($D7,invullijst!$A$11:$M$185,11,FALSE)),"") -> 45 | C7: =IF(VLOOKUP(D7,invullijst!A$11:F$226,4,FALSE)="","",VLOOKUP(D7,invullijst!A$11:D$226,4,FALSE)) -> vr | D7: 216 | E7: =IF(VLOOKUP($D7,invullijst!$A$11:$M$185,2,FALSE)="","",VLOOKUP($D7,invullijst!$A$11:$M$185,2,FALSE)) -> Pieter Laghuwitz | G7: =IF(VLOOKUP($D7,invullijst!$A$11:$M$185,8,FALSE)=0,"",VLOOKUP($D7,invullijst!$A$11:$M$185,8,FALSE)) -> 86 | I7: 2 | J7: =IF($O$3="k",IF(VLOOKUP($L7,invullijst!$A$11:$M$185,11,FALSE)=0," ",VLOOKUP($L7,invullijst!$A$11:$M$185,11,FALSE)),"") -> 42 | K7: =IF(VLOOKUP($L7,invullijst!$A$11:$M$226,4,FALSE)="","",VLOOKUP($L7,invullijst!$A$11:$M$226,4,FALSE)) -> vr | L7: 305 | M7: =IF(VLOOKUP($L7,invullijst!$A$11:$M$185,2,FALSE)="","",VLOOKUP($L7,invullijst!$A$11:$M$185,2,FALSE)) -> Johan Klerx | O7: =IF(VLOOKUP($L7,invullijst!$A$11:$M$185,8,FALSE)=0,"",VLOOKUP($L7,invullijst!$A$11:$M$185,8,FALSE)) -> 86
A8: 3 | B8: =IF($G$3="k",IF(VLOOKUP($D8,invullijst!$A$11:$M$185,11,FALSE)=0," ",VLOOKUP($D8,invullijst!$A$11:$M$185,11,FALSE)),"") -> 39 | C8: =IF(VLOOKUP(D8,invullijst!A$11:F$226,4,FALSE)="","",VLOOKUP(D8,invullijst!A$11:D$226,4,FALSE)) -> vr | D8: 204 | E8: =IF(VLOOKUP($D8,invullijst!$A$11:$M$185,2,FALSE)="","",VLOOKUP($D8,invullijst!$A$11:$M$185,2,FALSE)) -> Harry de Louw | G8: =IF(VLOOKUP($D8,invullijst!$A$11:$M$185,8,FALSE)=0,"",VLOOKUP($D8,invullijst!$A$11:$M$185,8,FALSE)) -> 80 | I8: 3 | J8: =IF($O$3="k",IF(VLOOKUP($L8,invullijst!$A$11:$M$185,11,FALSE)=0," ",VLOOKUP($L8,invullijst!$A$11:$M$185,11,FALSE)),"") -> 39 | K8: =IF(VLOOKUP($L8,invullijst!$A$11:$M$226,4,FALSE)="","",VLOOKUP($L8,invullijst!$A$11:$M$226,4,FALSE)) -> vr | L8: 306 | M8: =IF(VLOOKUP($L8,invullijst!$A$11:$M$185,2,FALSE)="","",VLOOKUP($L8,invullijst!$A$11:$M$185,2,FALSE)) -> Ron Groot | O8: =IF(VLOOKUP($L8,invullijst!$A$11:$M$185,8,FALSE)=0,"",VLOOKUP($L8,invullijst!$A$11:$M$185,8,FALSE)) -> 89
A9: 4 | B9: =IF($G$3="k",IF(VLOOKUP($D9,invullijst!$A$11:$M$185,11,FALSE)=0," ",VLOOKUP($D9,invullijst!$A$11:$M$185,11,FALSE)),"") -> 42 | C9: =IF(VLOOKUP(D9,invullijst!A$11:F$226,4,FALSE)="","",VLOOKUP(D9,invullijst!A$11:D$226,4,FALSE)) -> vr | D9: 207 | E9: =IF(VLOOKUP($D9,invullijst!$A$11:$M$185,2,FALSE)="","",VLOOKUP($D9,invullijst!$A$11:$M$185,2,FALSE)) -> Max de Louw | G9: =IF(VLOOKUP($D9,invullijst!$A$11:$M$185,8,FALSE)=0,"",VLOOKUP($D9,invullijst!$A$11:$M$185,8,FALSE)) -> 92 | I9: 4 | J9: =IF($O$3="k",IF(VLOOKUP($L9,invullijst!$A$11:$M$185,11,FALSE)=0," ",VLOOKUP($L9,invullijst!$A$11:$M$185,11,FALSE)),"") -> 43 | K9: =IF(VLOOKUP($L9,invullijst!$A$11:$M$226,4,FALSE)="","",VLOOKUP($L9,invullijst!$A$11:$M$226,4,FALSE)) -> vr | L9: 304 | M9: =IF(VLOOKUP($L9,invullijst!$A$11:$M$185,2,FALSE)="","",VLOOKUP($L9,invullijst!$A$11:$M$185,2,FALSE)) -> Henk Bruurmijn | O9: =IF(VLOOKUP($L9,invullijst!$A$11:$M$185,8,FALSE)=0,"",VLOOKUP($L9,invullijst!$A$11:$M$185,8,FALSE)) -> 78
A10: Totaal A korps | G10: =SUM(G6:G9) -> 348 | I10: Totaal A korps | O10: =SUM(O6:O9) -> 333
A12: 1 | B12: =IF($G$3="k",IF(VLOOKUP($D12,invullijst!$A$11:$M$185,11,FALSE)=0," ",VLOOKUP($D12,invullijst!$A$11:$M$185,11,FALSE)),"") -> 37 | C12: =IF(VLOOKUP(D12,invullijst!A$11:F$226,4,FALSE)="","",VLOOKUP(D12,invullijst!A$11:D$226,4,FALSE)) -> vr | D12: 203 | E12: =IF(VLOOKUP($D12,invullijst!$A$11:$M$185,2,FALSE)="","",VLOOKUP($D12,invullijst!$A$11:$M$185,2,FALSE)) -> Frank van den Houdt | G12: =IF(VLOOKUP($D12,invullijst!$A$11:$M$185,8,FALSE)=0,"",VLOOKUP($D12,invullijst!$A$11:$M$185,8,FALSE)) -> 79 | I12: 1 | J12: =IF($O$3="k",IF(VLOOKUP($L12,invullijst!$A$11:$M$185,11,FALSE)=0," ",VLOOKUP($L12,invullijst!$A$11:$M$185,11,FALSE)),"") ->  | K12: =IF(VLOOKUP($L12,invullijst!$A$11:$M$226,4,FALSE)="","",VLOOKUP($L12,invullijst!$A$11:$M$226,4,FALSE)) -> 0 | M12: =IF(VLOOKUP($L12,invullijst!$A$11:$M$185,2,FALSE)="","",VLOOKUP($L12,invullijst!$A$11:$M$185,2,FALSE)) -> 0 | O12: =IF(VLOOKUP($L12,invullijst!$A$11:$M$185,8,FALSE)=0,"",VLOOKUP($L12,invullijst!$A$11:$M$185,8,FALSE)) -> 
A13: 2 | B13: =IF($G$3="k",IF(VLOOKUP($D13,invullijst!$A$11:$M$185,11,FALSE)=0," ",VLOOKUP($D13,invullijst!$A$11:$M$185,11,FALSE)),"") -> 42 | C13: =IF(VLOOKUP(D13,invullijst!A$11:F$226,4,FALSE)="","",VLOOKUP(D13,invullijst!A$11:D$226,4,FALSE)) -> vr | D13: 205 | E13: =IF(VLOOKUP($D13,invullijst!$A$11:$M$185,2,FALSE)="","",VLOOKUP($D13,invullijst!$A$11:$M$185,2,FALSE)) -> Jos v/d Snepscheut | G13: =IF(VLOOKUP($D13,invullijst!$A$11:$M$185,8,FALSE)=0,"",VLOOKUP($D13,invullijst!$A$11:$M$185,8,FALSE)) -> 73 | I13: 2 | J13: =IF($O$3="k",IF(VLOOKUP($L13,invullijst!$A$11:$M$185,11,FALSE)=0," ",VLOOKUP($L13,invullijst!$A$11:$M$185,11,FALSE)),"") ->  | K13: =IF(VLOOKUP($L13,invullijst!$A$11:$M$226,4,FALSE)="","",VLOOKUP($L13,invullijst!$A$11:$M$226,4,FALSE)) -> 0 | M13: =IF(VLOOKUP($L13,invullijst!$A$11:$M$185,2,FALSE)="","",VLOOKUP($L13,invullijst!$A$11:$M$185,2,FALSE)) -> 0 | O13: =IF(VLOOKUP($L13,invullijst!$A$11:$M$185,8,FALSE)=0,"",VLOOKUP($L13,invullijst!$A$11:$M$185,8,FALSE)) -> 
A14: 3 | B14: =IF($G$3="k",IF(VLOOKUP($D14,invullijst!$A$11:$M$185,11,FALSE)=0," ",VLOOKUP($D14,invullijst!$A$11:$M$185,11,FALSE)),"") -> 39 | C14: =IF(VLOOKUP(D14,invullijst!A$11:F$226,4,FALSE)="","",VLOOKUP(D14,invullijst!A$11:D$226,4,FALSE)) -> vr | D14: 209 | E14: =IF(VLOOKUP($D14,invullijst!$A$11:$M$185,2,FALSE)="","",VLOOKUP($D14,invullijst!$A$11:$M$185,2,FALSE)) -> René van Kuijk | G14: =IF(VLOOKUP($D14,invullijst!$A$11:$M$185,8,FALSE)=0,"",VLOOKUP($D14,invullijst!$A$11:$M$185,8,FALSE)) -> 83 | I14: 3 | J14: =IF($O$3="k",IF(VLOOKUP($L14,invullijst!$A$11:$M$185,11,FALSE)=0," ",VLOOKUP($L14,invullijst!$A$11:$M$185,11,FALSE)),"") ->  | K14: =IF(VLOOKUP($L14,invullijst!$A$11:$M$226,4,FALSE)="","",VLOOKUP($L14,invullijst!$A$11:$M$226,4,FALSE)) -> 0 | M14: =IF(VLOOKUP($L14,invullijst!$A$11:$M$185,2,FALSE)="","",VLOOKUP($L14,invullijst!$A$11:$M$185,2,FALSE)) -> 0 | O14: =IF(VLOOKUP($L14,invullijst!$A$11:$M$185,8,FALSE)=0,"",VLOOKUP($L14,invullijst!$A$11:$M$185,8,FALSE)) -> 
A15: 4 | B15: =IF($G$3="k",IF(VLOOKUP($D15,invullijst!$A$11:$M$185,11,FALSE)=0," ",VLOOKUP($D15,invullijst!$A$11:$M$185,11,FALSE)),"") -> 41 | C15: =IF(VLOOKUP(D15,invullijst!A$11:F$226,4,FALSE)="","",VLOOKUP(D15,invullijst!A$11:D$226,4,FALSE)) -> vr | D15: 206 | E15: =IF(VLOOKUP($D15,invullijst!$A$11:$M$185,2,FALSE)="","",VLOOKUP($D15,invullijst!$A$11:$M$185,2,FALSE)) -> Kees van Hulten | G15: =IF(VLOOKUP($D15,invullijst!$A$11:$M$185,8,FALSE)=0,"",VLOOKUP($D15,invullijst!$A$11:$M$185,8,FALSE)) -> 78 | I15: 4 | J15: =IF($O$3="k",IF(VLOOKUP($L15,invullijst!$A$11:$M$185,11,FALSE)=0," ",VLOOKUP($L15,invullijst!$A$11:$M$185,11,FALSE)),"") ->  | K15: =IF(VLOOKUP($L15,invullijst!$A$11:$M$226,4,FALSE)="","",VLOOKUP($L15,invullijst!$A$11:$M$226,4,FALSE)) -> 0 | M15: =IF(VLOOKUP($L15,invullijst!$A$11:$M$185,2,FALSE)="","",VLOOKUP($L15,invullijst!$A$11:$M$185,2,FALSE)) -> 0 | O15: =IF(VLOOKUP($L15,invullijst!$A$11:$M$185,8,FALSE)=0,"",VLOOKUP($L15,invullijst!$A$11:$M$185,8,FALSE)) -> 
A16: Totaal B1 korps | G16: =SUM(G12:G15) -> 313 | I16: Totaal B1 korps | O16: =SUM(O12:O15) -> 0
A18: 1 | B18: =IF($G$3="k",IF(VLOOKUP($D18,invullijst!$A$11:$M$185,11,FALSE)=0," ",VLOOKUP($D18,invullijst!$A$11:$M$185,11,FALSE)),"") -> 35 | C18: =IF(VLOOKUP(D18,invullijst!A$11:F$226,4,FALSE)="","",VLOOKUP(D18,invullijst!A$11:D$226,4,FALSE)) -> vr | D18: 217 | E18: =IF(VLOOKUP($D18,invullijst!$A$11:$M$185,2,FALSE)="","",VLOOKUP($D18,invullijst!$A$11:$M$185,2,FALSE)) -> Hans Laghuwitz | G18: =IF(VLOOKUP($D18,invullijst!$A$11:$M$185,8,FALSE)=0,"",VLOOKUP($D18,invullijst!$A$11:$M$185,8,FALSE)) -> 79 | I18: 1 | J18: =IF($O$3="k",IF(VLOOKUP($L18,invullijst!$A$11:$M$185,11,FALSE)=0," ",VLOOKUP($L18,invullijst!$A$11:$M$185,11,FALSE)),"") ->  | K18: =IF(VLOOKUP($L18,invullijst!$A$11:$M$226,4,FALSE)="","",VLOOKUP($L18,invullijst!$A$11:$M$226,4,FALSE)) -> 0 | M18: =IF(VLOOKUP($L18,invullijst!$A$11:$M$185,2,FALSE)="","",VLOOKUP($L18,invullijst!$A$11:$M$185,2,FALSE)) -> 0 | O18: =IF(VLOOKUP($L18,invullijst!$A$11:$M$185,8,FALSE)=0,"",VLOOKUP($L18,invullijst!$A$11:$M$185,8,FALSE)) -> 
A19: 2 | B19: =IF($G$3="k",IF(VLOOKUP($D19,invullijst!$A$11:$M$185,11,FALSE)=0," ",VLOOKUP($D19,invullijst!$A$11:$M$185,11,FALSE)),"") -> 41 | C19: =IF(VLOOKUP(D19,invullijst!A$11:F$226,4,FALSE)="","",VLOOKUP(D19,invullijst!A$11:D$226,4,FALSE)) -> vr | D19: 208 | E19: =IF(VLOOKUP($D19,invullijst!$A$11:$M$185,2,FALSE)="","",VLOOKUP($D19,invullijst!$A$11:$M$185,2,FALSE)) -> Erin van Hulten | G19: =IF(VLOOKUP($D19,invullijst!$A$11:$M$185,8,FALSE)=0,"",VLOOKUP($D19,invullijst!$A$11:$M$185,8,FALSE)) -> 87 | I19: 2 | J19: =IF($O$3="k",IF(VLOOKUP($L19,invullijst!$A$11:$M$185,11,FALSE)=0," ",VLOOKUP($L19,invullijst!$A$11:$M$185,11,FALSE)),"") ->  | K19: =IF(VLOOKUP($L19,invullijst!$A$11:$M$226,4,FALSE)="","",VLOOKUP($L19,invullijst!$A$11:$M$226,4,FALSE)) -> 0 | M19: =IF(VLOOKUP($L19,invullijst!$A$11:$M$185,2,FALSE)="","",VLOOKUP($L19,invullijst!$A$11:$M$185,2,FALSE)) -> 0 | O19: =IF(VLOOKUP($L19,invullijst!$A$11:$M$185,8,FALSE)=0,"",VLOOKUP($L19,invullijst!$A$11:$M$185,8,FALSE)) -> 
A20: 3 | B20: =IF($G$3="k",IF(VLOOKUP($D20,invullijst!$A$11:$M$185,11,FALSE)=0," ",VLOOKUP($D20,invullijst!$A$11:$M$185,11,FALSE)),"") -> 35 | C20: =IF(VLOOKUP(D20,invullijst!A$11:F$226,4,FALSE)="","",VLOOKUP(D20,invullijst!A$11:D$226,4,FALSE)) -> vr | D20: 213 | E20: =IF(VLOOKUP($D20,invullijst!$A$11:$M$185,2,FALSE)="","",VLOOKUP($D20,invullijst!$A$11:$M$185,2,FALSE)) -> Roland van Delft | G20: =IF(VLOOKUP($D20,invullijst!$A$11:$M$185,8,FALSE)=0,"",VLOOKUP($D20,invullijst!$A$11:$M$185,8,FALSE)) -> 69 | I20: 3 | J20: =IF($O$3="k",IF(VLOOKUP($L20,invullijst!$A$11:$M$185,11,FALSE)=0," ",VLOOKUP($L20,invullijst!$A$11:$M$185,11,FALSE)),"") ->  | K20: =IF(VLOOKUP($L20,invullijst!$A$11:$M$226,4,FALSE)="","",VLOOKUP($L20,invullijst!$A$11:$M$226,4,FALSE)) -> 0 | M20: =IF(VLOOKUP($L20,invullijst!$A$11:$M$185,2,FALSE)="","",VLOOKUP($L20,invullijst!$A$11:$M$185,2,FALSE)) -> 0 | O20: =IF(VLOOKUP($L20,invullijst!$A$11:$M$185,8,FALSE)=0,"",VLOOKUP($L20,invullijst!$A$11:$M$185,8,FALSE)) -> 
A21: 4 | B21: =IF($G$3="k",IF(VLOOKUP($D21,invullijst!$A$11:$M$185,11,FALSE)=0," ",VLOOKUP($D21,invullijst!$A$11:$M$185,11,FALSE)),"") -> 27 | C21: =IF(VLOOKUP(D21,invullijst!A$11:F$226,4,FALSE)="","",VLOOKUP(D21,invullijst!A$11:D$226,4,FALSE)) -> vr | D21: 223 | E21: =IF(VLOOKUP($D21,invullijst!$A$11:$M$185,2,FALSE)="","",VLOOKUP($D21,invullijst!$A$11:$M$185,2,FALSE)) -> Jänis Jakobsons | G21: =IF(VLOOKUP($D21,invullijst!$A$11:$M$185,8,FALSE)=0,"",VLOOKUP($D21,invullijst!$A$11:$M$185,8,FALSE)) -> 84 | I21: 4 | J21: =IF($O$3="k",IF(VLOOKUP($L21,invullijst!$A$11:$M$185,11,FALSE)=0," ",VLOOKUP($L21,invullijst!$A$11:$M$185,11,FALSE)),"") ->  | K21: =IF(VLOOKUP($L21,invullijst!$A$11:$M$226,4,FALSE)="","",VLOOKUP($L21,invullijst!$A$11:$M$226,4,FALSE)) -> 0 | M21: =IF(VLOOKUP($L21,invullijst!$A$11:$M$185,2,FALSE)="","",VLOOKUP($L21,invullijst!$A$11:$M$185,2,FALSE)) -> 0 | O21: =IF(VLOOKUP($L21,invullijst!$A$11:$M$185,8,FALSE)=0,"",VLOOKUP($L21,invullijst!$A$11:$M$185,8,FALSE)) -> 
A22: DIVERSEN / INHAAL | G22: =SUM(G18:G21) -> 319 | I22: DIVERSEN / INHAAL
A24: OPGELEGD (Jeugd <16 en 65+)
A25: 1 | B25: =IF($G$3="k",IF(VLOOKUP($D25,invullijst!$A$11:$M$185,11,FALSE)=0," ",VLOOKUP($D25,invullijst!$A$11:$M$185,11,FALSE)),"") -> 46 | C25: =IF(VLOOKUP(D25,invullijst!A$11:F$226,4,FALSE)="","",VLOOKUP(D25,invullijst!A$11:D$226,4,FALSE)) -> 65+ | D25: 218 | E25: =IF(VLOOKUP($D25,invullijst!$A$11:$M$185,2,FALSE)="","",VLOOKUP($D25,invullijst!$A$11:$M$185,2,FALSE)) -> Jacob van de Werken | G25: =IF(VLOOKUP($D25,invullijst!$A$11:$M$185,8,FALSE)=0,"",VLOOKUP($D25,invullijst!$A$11:$M$185,8,FALSE)) -> 94 | I25: 1 | J25: =IF($O$3="k",IF(VLOOKUP($L25,invullijst!$A$11:$M$185,11,FALSE)=0," ",VLOOKUP($L25,invullijst!$A$11:$M$185,11,FALSE)),"") -> 45 | K25: =IF(VLOOKUP($L25,invullijst!$A$11:$M$226,4,FALSE)="","",VLOOKUP($L25,invullijst!$A$11:$M$226,4,FALSE)) -> 65+ | L25: 310 | M25: =IF(VLOOKUP($L25,invullijst!$A$11:$M$185,2,FALSE)="","",VLOOKUP($L25,invullijst!$A$11:$M$185,2,FALSE)) -> Tiny Boom | O25: =IF(VLOOKUP($L25,invullijst!$A$11:$M$185,8,FALSE)=0,"",VLOOKUP($L25,invullijst!$A$11:$M$185,8,FALSE)) -> 91
A26: 2 | B26: =IF($G$3="k",IF(VLOOKUP($D26,invullijst!$A$11:$M$185,11,FALSE)=0," ",VLOOKUP($D26,invullijst!$A$11:$M$185,11,FALSE)),"") -> 46 | C26: =IF(VLOOKUP(D26,invullijst!A$11:F$226,4,FALSE)="","",VLOOKUP(D26,invullijst!A$11:D$226,4,FALSE)) -> 65+ | D26: 220 | E26: =IF(VLOOKUP($D26,invullijst!$A$11:$M$185,2,FALSE)="","",VLOOKUP($D26,invullijst!$A$11:$M$185,2,FALSE)) -> Kees Vos | G26: =IF(VLOOKUP($D26,invullijst!$A$11:$M$185,8,FALSE)=0,"",VLOOKUP($D26,invullijst!$A$11:$M$185,8,FALSE)) -> 91 | I26: 2 | J26: =IF($O$3="k",IF(VLOOKUP($L26,invullijst!$A$11:$M$185,11,FALSE)=0," ",VLOOKUP($L26,invullijst!$A$11:$M$185,11,FALSE)),"") -> 44 | K26: =IF(VLOOKUP($L26,invullijst!$A$11:$M$226,4,FALSE)="","",VLOOKUP($L26,invullijst!$A$11:$M$226,4,FALSE)) -> J | L26: 312 | M26: =IF(VLOOKUP($L26,invullijst!$A$11:$M$185,2,FALSE)="","",VLOOKUP($L26,invullijst!$A$11:$M$185,2,FALSE)) -> Floor de Jong | O26: =IF(VLOOKUP($L26,invullijst!$A$11:$M$185,8,FALSE)=0,"",VLOOKUP($L26,invullijst!$A$11:$M$185,8,FALSE)) -> 92
A27: 3 | B27: =IF($G$3="k",IF(VLOOKUP($D27,invullijst!$A$11:$M$185,11,FALSE)=0," ",VLOOKUP($D27,invullijst!$A$11:$M$185,11,FALSE)),"") -> 46 | C27: =IF(VLOOKUP(D27,invullijst!A$11:F$226,4,FALSE)="","",VLOOKUP(D27,invullijst!A$11:D$226,4,FALSE)) -> 65+ | D27: 219 | E27: =IF(VLOOKUP($D27,invullijst!$A$11:$M$185,2,FALSE)="","",VLOOKUP($D27,invullijst!$A$11:$M$185,2,FALSE)) -> Frans de Bont | G27: =IF(VLOOKUP($D27,invullijst!$A$11:$M$185,8,FALSE)=0,"",VLOOKUP($D27,invullijst!$A$11:$M$185,8,FALSE)) -> 94 | I27: 3 | J27: =IF($O$3="k",IF(VLOOKUP($L27,invullijst!$A$11:$M$185,11,FALSE)=0," ",VLOOKUP($L27,invullijst!$A$11:$M$185,11,FALSE)),"") -> 39 | K27: =IF(VLOOKUP($L27,invullijst!$A$11:$M$226,4,FALSE)="","",VLOOKUP($L27,invullijst!$A$11:$M$226,4,FALSE)) -> 65+ | L27: 309 | M27: =IF(VLOOKUP($L27,invullijst!$A$11:$M$185,2,FALSE)="","",VLOOKUP($L27,invullijst!$A$11:$M$185,2,FALSE)) -> René de Jong | O27: =IF(VLOOKUP($L27,invullijst!$A$11:$M$185,8,FALSE)=0,"",VLOOKUP($L27,invullijst!$A$11:$M$185,8,FALSE)) -> 88
A28: Totaal korps opgelegd A1 | G28: =SUM(G25:G27) -> 279 | I28: Totaal korps opgelegd A1 | O28: =SUM(O25:O27) -> 271
A30: 1 | B30: =IF($G$3="k",IF(VLOOKUP($D30,invullijst!$A$11:$M$185,11,FALSE)=0," ",VLOOKUP($D30,invullijst!$A$11:$M$185,11,FALSE)),"") -> 44 | C30: =IF(VLOOKUP(D30,invullijst!A$11:F$226,4,FALSE)="","",VLOOKUP(D30,invullijst!A$11:D$226,4,FALSE)) -> 65+ | D30: 214 | E30: =IF(VLOOKUP($D30,invullijst!$A$11:$M$185,2,FALSE)="","",VLOOKUP($D30,invullijst!$A$11:$M$185,2,FALSE)) -> Andre de Vaan | G30: =IF(VLOOKUP($D30,invullijst!$A$11:$M$185,8,FALSE)=0,"",VLOOKUP($D30,invullijst!$A$11:$M$185,8,FALSE)) -> 89 | I30: 1 | J30: =IF($O$3="k",IF(VLOOKUP($L30,invullijst!$A$11:$M$185,11,FALSE)=0," ",VLOOKUP($L30,invullijst!$A$11:$M$185,11,FALSE)),"") -> 45 | K30: =IF(VLOOKUP($L30,invullijst!$A$11:$M$226,4,FALSE)="","",VLOOKUP($L30,invullijst!$A$11:$M$226,4,FALSE)) -> 65+ | L30: 301 | M30: =IF(VLOOKUP($L30,invullijst!$A$11:$M$185,2,FALSE)="","",VLOOKUP($L30,invullijst!$A$11:$M$185,2,FALSE)) -> Arjen van Assem disp | O30: =IF(VLOOKUP($L30,invullijst!$A$11:$M$185,8,FALSE)=0,"",VLOOKUP($L30,invullijst!$A$11:$M$185,8,FALSE)) -> 89
A31: 2 | B31: =IF($G$3="k",IF(VLOOKUP($D31,invullijst!$A$11:$M$185,11,FALSE)=0," ",VLOOKUP($D31,invullijst!$A$11:$M$185,11,FALSE)),"") -> 46 | C31: =IF(VLOOKUP(D31,invullijst!A$11:F$226,4,FALSE)="","",VLOOKUP(D31,invullijst!A$11:D$226,4,FALSE)) -> 65+ | D31: 211 | E31: =IF(VLOOKUP($D31,invullijst!$A$11:$M$185,2,FALSE)="","",VLOOKUP($D31,invullijst!$A$11:$M$185,2,FALSE)) -> Ad van den houdt | G31: =IF(VLOOKUP($D31,invullijst!$A$11:$M$185,8,FALSE)=0,"",VLOOKUP($D31,invullijst!$A$11:$M$185,8,FALSE)) -> 89 | I31: 2 | J31: =IF($O$3="k",IF(VLOOKUP($L31,invullijst!$A$11:$M$185,11,FALSE)=0," ",VLOOKUP($L31,invullijst!$A$11:$M$185,11,FALSE)),"") ->  | K31: =IF(VLOOKUP($L31,invullijst!$A$11:$M$226,4,FALSE)="","",VLOOKUP($L31,invullijst!$A$11:$M$226,4,FALSE)) -> 0 | M31: =IF(VLOOKUP($L31,invullijst!$A$11:$M$185,2,FALSE)="","",VLOOKUP($L31,invullijst!$A$11:$M$185,2,FALSE)) -> 0 | O31: =IF(VLOOKUP($L31,invullijst!$A$11:$M$185,8,FALSE)=0,"",VLOOKUP($L31,invullijst!$A$11:$M$185,8,FALSE)) -> 
A32: 3 | B32: =IF($G$3="k",IF(VLOOKUP($D32,invullijst!$A$11:$M$185,11,FALSE)=0," ",VLOOKUP($D32,invullijst!$A$11:$M$185,11,FALSE)),"") -> 45 | C32: =IF(VLOOKUP(D32,invullijst!A$11:F$226,4,FALSE)="","",VLOOKUP(D32,invullijst!A$11:D$226,4,FALSE)) -> 65+ | D32: 212 | E32: =IF(VLOOKUP($D32,invullijst!$A$11:$M$185,2,FALSE)="","",VLOOKUP($D32,invullijst!$A$11:$M$185,2,FALSE)) -> René Duquesnoy | G32: =IF(VLOOKUP($D32,invullijst!$A$11:$M$185,8,FALSE)=0,"",VLOOKUP($D32,invullijst!$A$11:$M$185,8,FALSE)) -> 89 | I32: 3 | J32: =IF($O$3="k",IF(VLOOKUP($L32,invullijst!$A$11:$M$185,11,FALSE)=0," ",VLOOKUP($L32,invullijst!$A$11:$M$185,11,FALSE)),"") ->  | K32: =IF(VLOOKUP($L32,invullijst!$A$11:$M$226,4,FALSE)="","",VLOOKUP($L32,invullijst!$A$11:$M$226,4,FALSE)) -> 0 | M32: =IF(VLOOKUP($L32,invullijst!$A$11:$M$185,2,FALSE)="","",VLOOKUP($L32,invullijst!$A$11:$M$185,2,FALSE)) -> 0 | O32: =IF(VLOOKUP($L32,invullijst!$A$11:$M$185,8,FALSE)=0,"",VLOOKUP($L32,invullijst!$A$11:$M$185,8,FALSE)) -> 
A33: Totaal korps opgelegd A2 | G33: =SUM(G30:G32) -> 267 | I33: Totaal korps opgelegd A2 | O33: =SUM(O30:O32) -> 89
A35: 1 | B35: =IF($G$3="k",IF(VLOOKUP($D35,invullijst!$A$11:$M$185,11,FALSE)=0," ",VLOOKUP($D35,invullijst!$A$11:$M$185,11,FALSE)),"") -> 36 | C35: =IF(VLOOKUP(D35,invullijst!A$11:F$226,4,FALSE)="","",VLOOKUP(D35,invullijst!A$11:D$226,4,FALSE)) -> J | D35: 221 | E35: =IF(VLOOKUP($D35,invullijst!$A$11:$M$185,2,FALSE)="","",VLOOKUP($D35,invullijst!$A$11:$M$185,2,FALSE)) -> Mees Huijben | G35: =IF(VLOOKUP($D35,invullijst!$A$11:$M$185,8,FALSE)=0,"",VLOOKUP($D35,invullijst!$A$11:$M$185,8,FALSE)) -> 74 | I35: 1 | J35: =IF($O$3="k",IF(VLOOKUP($L35,invullijst!$A$11:$M$185,11,FALSE)=0," ",VLOOKUP($L35,invullijst!$A$11:$M$185,11,FALSE)),"") ->  | K35: =IF(VLOOKUP($L35,invullijst!$A$11:$M$226,4,FALSE)="","",VLOOKUP($L35,invullijst!$A$11:$M$226,4,FALSE)) -> 0 | M35: =IF(VLOOKUP($L35,invullijst!$A$11:$M$185,2,FALSE)="","",VLOOKUP($L35,invullijst!$A$11:$M$185,2,FALSE)) -> 0 | O35: =IF(VLOOKUP($L35,invullijst!$A$11:$M$185,8,FALSE)=0,"",VLOOKUP($L35,invullijst!$A$11:$M$185,8,FALSE)) -> 
A36: 2 | B36: =IF($G$3="k",IF(VLOOKUP($D36,invullijst!$A$11:$M$185,11,FALSE)=0," ",VLOOKUP($D36,invullijst!$A$11:$M$185,11,FALSE)),"") -> 31 | C36: =IF(VLOOKUP(D36,invullijst!A$11:F$226,4,FALSE)="","",VLOOKUP(D36,invullijst!A$11:D$226,4,FALSE)) -> vr | D36: 202 | E36: =IF(VLOOKUP($D36,invullijst!$A$11:$M$185,2,FALSE)="","",VLOOKUP($D36,invullijst!$A$11:$M$185,2,FALSE)) -> Arco van Kuijk | G36: =IF(VLOOKUP($D36,invullijst!$A$11:$M$185,8,FALSE)=0,"",VLOOKUP($D36,invullijst!$A$11:$M$185,8,FALSE)) -> 81 | I36: 2 | J36: =IF($O$3="k",IF(VLOOKUP($L36,invullijst!$A$11:$M$185,11,FALSE)=0," ",VLOOKUP($L36,invullijst!$A$11:$M$185,11,FALSE)),"") ->  | K36: =IF(VLOOKUP($L36,invullijst!$A$11:$M$226,4,FALSE)="","",VLOOKUP($L36,invullijst!$A$11:$M$226,4,FALSE)) -> 0 | M36: =IF(VLOOKUP($L36,invullijst!$A$11:$M$185,2,FALSE)="","",VLOOKUP($L36,invullijst!$A$11:$M$185,2,FALSE)) -> 0 | O36: =IF(VLOOKUP($L36,invullijst!$A$11:$M$185,8,FALSE)=0,"",VLOOKUP($L36,invullijst!$A$11:$M$185,8,FALSE)) -> 
A37: 3 | B37: =IF($G$3="k",IF(VLOOKUP($D37,invullijst!$A$11:$M$185,11,FALSE)=0," ",VLOOKUP($D37,invullijst!$A$11:$M$185,11,FALSE)),"") -> 41 | C37: inh | D37: 206 | E37: =IF(VLOOKUP($D37,invullijst!$A$11:$M$185,2,FALSE)="","",VLOOKUP($D37,invullijst!$A$11:$M$185,2,FALSE)) -> Kees van Hulten | G37: =IF(VLOOKUP($D37,invullijst!$A$11:$M$185,8,FALSE)=0,"",VLOOKUP($D37,invullijst!$A$11:$M$185,8,FALSE)) -> 78 | I37: 3 | J37: =IF($O$3="k",IF(VLOOKUP($L37,invullijst!$A$11:$M$185,11,FALSE)=0," ",VLOOKUP($L37,invullijst!$A$11:$M$185,11,FALSE)),"") ->  | K37: =IF(VLOOKUP($L37,invullijst!$A$11:$M$226,4,FALSE)="","",VLOOKUP($L37,invullijst!$A$11:$M$226,4,FALSE)) -> 0 | M37: =IF(VLOOKUP($L37,invullijst!$A$11:$M$185,2,FALSE)="","",VLOOKUP($L37,invullijst!$A$11:$M$185,2,FALSE)) -> 0 | O37: =IF(VLOOKUP($L37,invullijst!$A$11:$M$185,8,FALSE)=0,"",VLOOKUP($L37,invullijst!$A$11:$M$185,8,FALSE)) -> 
A38: Totaal korps opgelegd A3 | G38: =G35 -> 74 | I38: Totaal korps opgelegd A3 | O38: =SUM(O35:O37) -> 0

Sheet wedstrijd 3B
A1: =invullijst!F1 -> Organistatie | F1: =invullijst!H2 -> 2024 - 2025 | I1: =invullijst!F3 -> O.L.V. Schuts Elshout
A2: Datum: | M2: 2025-02-02
A3: 4 | B3: =IF(VLOOKUP(A3,invullijst!A1:F5,2,FALSE)="","",VLOOKUP(A3,invullijst!A1:F5,2,FALSE)) -> Sint Ambrosius Haarsteeg | I3: 1 | J3: =IF(VLOOKUP(I3,invullijst!A1:C5,2,FALSE)="","",VLOOKUP(I3,invullijst!A1:C5,2,FALSE)) -> Sint Ambrosius Baardwijk
A5: vrijehand
A6: 1 | B6: =IF($G$3="k",IF(VLOOKUP($D6,invullijst!$A$11:$M$185,11,FALSE)=0," ",VLOOKUP($D6,invullijst!$A$11:$M$185,11,FALSE)),"") ->  | C6: =IF(VLOOKUP(D6,invullijst!A$11:F$226,4,FALSE)="","",VLOOKUP(D6,invullijst!A$11:D$226,4,FALSE)) -> vr | D6: 406 | E6: =IF(VLOOKUP($D6,invullijst!$A$11:$M$185,2,FALSE)="","",VLOOKUP($D6,invullijst!$A$11:$M$185,2,FALSE)) -> Jeroen van Oss | G6: =IF(VLOOKUP($D6,invullijst!$A$11:$M$185,8,FALSE)=0,"",VLOOKUP($D6,invullijst!$A$11:$M$185,8,FALSE)) -> 86 | I6: 1 | J6: =IF($O$3="k",IF(VLOOKUP($L6,invullijst!$A$11:$M$185,11,FALSE)=0," ",VLOOKUP($L6,invullijst!$A$11:$M$185,11,FALSE)),"") ->  | K6: =IF(VLOOKUP($L6,invullijst!$A$11:$M$226,4,FALSE)="","",VLOOKUP($L6,invullijst!$A$11:$M$226,4,FALSE)) -> vr | L6: 105 | M6: =IF(VLOOKUP($L6,invullijst!$A$11:$M$185,2,FALSE)="","",VLOOKUP($L6,invullijst!$A$11:$M$185,2,FALSE)) -> René Klijn | O6: =IF(VLOOKUP($L6,invullijst!$A$11:$M$185,8,FALSE)=0,"",VLOOKUP($L6,invullijst!$A$11:$M$185,8,FALSE)) -> 80
A7: 2 | B7: =IF($G$3="k",IF(VLOOKUP($D7,invullijst!$A$11:$M$185,11,FALSE)=0," ",VLOOKUP($D7,invullijst!$A$11:$M$185,11,FALSE)),"") ->  | C7: =IF(VLOOKUP(D7,invullijst!A$11:F$226,4,FALSE)="","",VLOOKUP(D7,invullijst!A$11:D$226,4,FALSE)) -> vr | D7: 408 | E7: =IF(VLOOKUP($D7,invullijst!$A$11:$M$185,2,FALSE)="","",VLOOKUP($D7,invullijst!$A$11:$M$185,2,FALSE)) -> Rudy van Falier | G7: =IF(VLOOKUP($D7,invullijst!$A$11:$M$185,8,FALSE)=0,"",VLOOKUP($D7,invullijst!$A$11:$M$185,8,FALSE)) -> 84 | I7: 2 | J7: =IF($O$3="k",IF(VLOOKUP($L7,invullijst!$A$11:$M$185,11,FALSE)=0," ",VLOOKUP($L7,invullijst!$A$11:$M$185,11,FALSE)),"") ->  | K7: =IF(VLOOKUP($L7,invullijst!$A$11:$M$226,4,FALSE)="","",VLOOKUP($L7,invullijst!$A$11:$M$226,4,FALSE)) -> vr | L7: 106 | M7: =IF(VLOOKUP($L7,invullijst!$A$11:$M$185,2,FALSE)="","",VLOOKUP($L7,invullijst!$A$11:$M$185,2,FALSE)) -> René Pullens | O7: =IF(VLOOKUP($L7,invullijst!$A$11:$M$185,8,FALSE)=0,"",VLOOKUP($L7,invullijst!$A$11:$M$185,8,FALSE)) -> 82
A8: 3 | B8: =IF($G$3="k",IF(VLOOKUP($D8,invullijst!$A$11:$M$185,11,FALSE)=0," ",VLOOKUP($D8,invullijst!$A$11:$M$185,11,FALSE)),"") ->  | C8: =IF(VLOOKUP(D8,invullijst!A$11:F$226,4,FALSE)="","",VLOOKUP(D8,invullijst!A$11:D$226,4,FALSE)) -> vr | D8: 410 | E8: =IF(VLOOKUP($D8,invullijst!$A$11:$M$185,2,FALSE)="","",VLOOKUP($D8,invullijst!$A$11:$M$185,2,FALSE)) -> Tonnie Koks | G8: =IF(VLOOKUP($D8,invullijst!$A$11:$M$185,8,FALSE)=0,"",VLOOKUP($D8,invullijst!$A$11:$M$185,8,FALSE)) -> 88 | I8: 3 | J8: =IF($O$3="k",IF(VLOOKUP($L8,invullijst!$A$11:$M$185,11,FALSE)=0," ",VLOOKUP($L8,invullijst!$A$11:$M$185,11,FALSE)),"") ->  | K8: =IF(VLOOKUP($L8,invullijst!$A$11:$M$226,4,FALSE)="","",VLOOKUP($L8,invullijst!$A$11:$M$226,4,FALSE)) -> vr | L8: 108 | M8: =IF(VLOOKUP($L8,invullijst!$A$11:$M$185,2,FALSE)="","",VLOOKUP($L8,invullijst!$A$11:$M$185,2,FALSE)) -> Bram Pullens | O8: =IF(VLOOKUP($L8,invullijst!$A$11:$M$185,8,FALSE)=0,"",VLOOKUP($L8,invullijst!$A$11:$M$185,8,FALSE)) -> 78
A9: 4 | B9: =IF($G$3="k",IF(VLOOKUP($D9,invullijst!$A$11:$M$185,11,FALSE)=0," ",VLOOKUP($D9,invullijst!$A$11:$M$185,11,FALSE)),"") ->  | C9: =IF(VLOOKUP(D9,invullijst!A$11:F$226,4,FALSE)="","",VLOOKUP(D9,invullijst!A$11:D$226,4,FALSE)) -> vr | D9: 402 | E9: =IF(VLOOKUP($D9,invullijst!$A$11:$M$185,2,FALSE)="","",VLOOKUP($D9,invullijst!$A$11:$M$185,2,FALSE)) -> Daniëlle v/d Lee | G9: =IF(VLOOKUP($D9,invullijst!$A$11:$M$185,8,FALSE)=0,"",VLOOKUP($D9,invullijst!$A$11:$M$185,8,FALSE)) -> 80 | I9: 4 | J9: =IF($O$3="k",IF(VLOOKUP($L9,invullijst!$A$11:$M$185,11,FALSE)=0," ",VLOOKUP($L9,invullijst!$A$11:$M$185,11,FALSE)),"") ->  | K9: =IF(VLOOKUP($L9,invullijst!$A$11:$M$226,4,FALSE)="","",VLOOKUP($L9,invullijst!$A$11:$M$226,4,FALSE)) -> vr | L9: 109 | M9: =IF(VLOOKUP($L9,invullijst!$A$11:$M$185,2,FALSE)="","",VLOOKUP($L9,invullijst!$A$11:$M$185,2,FALSE)) -> Gijs Pullens | O9: =IF(VLOOKUP($L9,invullijst!$A$11:$M$185,8,FALSE)=0,"",VLOOKUP($L9,invullijst!$A$11:$M$185,8,FALSE)) -> 83
A10: Totaal A korps | G10: =SUM(G6:G9) -> 338 | I10: Totaal A korps | O10: =SUM(O6:O9) -> 323
A12: 1 | B12: =IF($G$3="k",IF(VLOOKUP($D12,invullijst!$A$11:$M$185,11,FALSE)=0," ",VLOOKUP($D12,invullijst!$A$11:$M$185,11,FALSE)),"") ->  | C12: =IF(VLOOKUP(D12,invullijst!A$11:F$226,4,FALSE)="","",VLOOKUP(D12,invullijst!A$11:D$226,4,FALSE)) -> vr | D12: 411 | E12: =IF(VLOOKUP($D12,invullijst!$A$11:$M$185,2,FALSE)="","",VLOOKUP($D12,invullijst!$A$11:$M$185,2,FALSE)) -> Wilma v/d Lee | G12: =IF(VLOOKUP($D12,invullijst!$A$11:$M$185,8,FALSE)=0,"",VLOOKUP($D12,invullijst!$A$11:$M$185,8,FALSE)) -> 53 | I12: 1 | J12: =IF($O$3="k",IF(VLOOKUP($L12,invullijst!$A$11:$M$185,11,FALSE)=0," ",VLOOKUP($L12,invullijst!$A$11:$M$185,11,FALSE)),"") ->  | K12: =IF(VLOOKUP($L12,invullijst!$A$11:$M$226,4,FALSE)="","",VLOOKUP($L12,invullijst!$A$11:$M$226,4,FALSE)) -> vr | L12: 102 | M12: =IF(VLOOKUP($L12,invullijst!$A$11:$M$185,2,FALSE)="","",VLOOKUP($L12,invullijst!$A$11:$M$185,2,FALSE)) -> John de Jong | O12: =IF(VLOOKUP($L12,invullijst!$A$11:$M$185,8,FALSE)=0,"",VLOOKUP($L12,invullijst!$A$11:$M$185,8,FALSE)) -> 63
A13: 2 | B13: =IF($G$3="k",IF(VLOOKUP($D13,invullijst!$A$11:$M$185,11,FALSE)=0," ",VLOOKUP($D13,invullijst!$A$11:$M$185,11,FALSE)),"") ->  | C13: =IF(VLOOKUP(D13,invullijst!A$11:F$226,4,FALSE)="","",VLOOKUP(D13,invullijst!A$11:D$226,4,FALSE)) -> 0 | E13: =IF(VLOOKUP($D13,invullijst!$A$11:$M$185,2,FALSE)="","",VLOOKUP($D13,invullijst!$A$11:$M$185,2,FALSE)) -> 0 | G13: =IF(VLOOKUP($D13,invullijst!$A$11:$M$185,8,FALSE)=0,"",VLOOKUP($D13,invullijst!$A$11:$M$185,8,FALSE)) ->  | I13: 2 | J13: =IF($O$3="k",IF(VLOOKUP($L13,invullijst!$A$11:$M$185,11,FALSE)=0," ",VLOOKUP($L13,invullijst!$A$11:$M$185,11,FALSE)),"") ->  | K13: =IF(VLOOKUP($L13,invullijst!$A$11:$M$226,4,FALSE)="","",VLOOKUP($L13,invullijst!$A$11:$M$226,4,FALSE)) -> vr | L13: 103 | M13: =IF(VLOOKUP($L13,invullijst!$A$11:$M$185,2,FALSE)="","",VLOOKUP($L13,invullijst!$A$11:$M$185,2,FALSE)) -> Norbert van Buul | O13: =IF(VLOOKUP($L13,invullijst!$A$11:$M$185,8,FALSE)=0,"",VLOOKUP($L13,invullijst!$A$11:$M$185,8,FALSE)) -> 65
A14: 3 | B14: =IF($G$3="k",IF(VLOOKUP($D14,invullijst!$A$11:$M$185,11,FALSE)=0," ",VLOOKUP($D14,invullijst!$A$11:$M$185,11,FALSE)),"") ->  | C14: =IF(VLOOKUP(D14,invullijst!A$11:F$226,4,FALSE)="","",VLOOKUP(D14,invullijst!A$11:D$226,4,FALSE)) -> 0 | E14: =IF(VLOOKUP($D14,invullijst!$A$11:$M$185,2,FALSE)="","",VLOOKUP($D14,invullijst!$A$11:$M$185,2,FALSE)) -> 0 | G14: =IF(VLOOKUP($D14,invullijst!$A$11:$M$185,8,FALSE)=0,"",VLOOKUP($D14,invullijst!$A$11:$M$185,8,FALSE)) ->  | I14: 3 | J14: =IF($O$3="k",IF(VLOOKUP($L14,invullijst!$A$11:$M$185,11,FALSE)=0," ",VLOOKUP($L14,invullijst!$A$11:$M$185,11,FALSE)),"") ->  | K14: =IF(VLOOKUP($L14,invullijst!$A$11:$M$226,4,FALSE)="","",VLOOKUP($L14,invullijst!$A$11:$M$226,4,FALSE)) -> 0 | M14: =IF(VLOOKUP($L14,invullijst!$A$11:$M$185,2,FALSE)="","",VLOOKUP($L14,invullijst!$A$11:$M$185,2,FALSE)) -> 0 | O14: =IF(VLOOKUP($L14,invullijst!$A$11:$M$185,8,FALSE)=0,"",VLOOKUP($L14,invullijst!$A$11:$M$185,8,FALSE)) -> 
A15: 4 | B15: =IF($G$3="k",IF(VLOOKUP($D15,invullijst!$A$11:$M$185,11,FALSE)=0," ",VLOOKUP($D15,invullijst!$A$11:$M$185,11,FALSE)),"") ->  | C15: =IF(VLOOKUP(D15,invullijst!A$11:F$226,4,FALSE)="","",VLOOKUP(D15,invullijst!A$11:D$226,4,FALSE)) -> 0 | E15: =IF(VLOOKUP($D15,invullijst!$A$11:$M$185,2,FALSE)="","",VLOOKUP($D15,invullijst!$A$11:$M$185,2,FALSE)) -> 0 | G15: =IF(VLOOKUP($D15,invullijst!$A$11:$M$185,8,FALSE)=0,"",VLOOKUP($D15,invullijst!$A$11:$M$185,8,FALSE)) ->  | I15: 4 | J15: =IF($O$3="k",IF(VLOOKUP($L15,invullijst!$A$11:$M$185,11,FALSE)=0," ",VLOOKUP($L15,invullijst!$A$11:$M$185,11,FALSE)),"") ->  | K15: =IF(VLOOKUP($L15,invullijst!$A$11:$M$226,4,FALSE)="","",VLOOKUP($L15,invullijst!$A$11:$M$226,4,FALSE)) -> 0 | M15: =IF(VLOOKUP($L15,invullijst!$A$11:$M$185,2,FALSE)="","",VLOOKUP($L15,invullijst!$A$11:$M$185,2,FALSE)) -> 0 | O15: =IF(VLOOKUP($L15,invullijst!$A$11:$M$185,8,FALSE)=0,"",VLOOKUP($L15,invullijst!$A$11:$M$185,8,FALSE)) -> 
A16: Totaal B1 korps | G16: =SUM(G12:G15) -> 53 | I16: Totaal B1 korps | O16: =SUM(O12:O15) -> 128
A18: 1 | B18: =IF($G$3="k",IF(VLOOKUP($D18,invullijst!$A$11:$M$185,11,FALSE)=0," ",VLOOKUP($D18,invullijst!$A$11:$M$185,11,FALSE)),"") ->  | C18: =IF(VLOOKUP(D18,invullijst!A$11:F$226,4,FALSE)="","",VLOOKUP(D18,invullijst!A$11:D$226,4,FALSE)) -> 0 | E18: =IF(VLOOKUP($D18,invullijst!$A$11:$M$185,2,FALSE)="","",VLOOKUP($D18,invullijst!$A$11:$M$185,2,FALSE)) -> 0 | G18: =IF(VLOOKUP($D18,invullijst!$A$11:$M$185,8,FALSE)=0,"",VLOOKUP($D18,invullijst!$A$11:$M$185,8,FALSE)) ->  | I18: 1 | J18: =IF($O$3="k",IF(VLOOKUP($L18,invullijst!$A$11:$M$185,11,FALSE)=0," ",VLOOKUP($L18,invullijst!$A$11:$M$185,11,FALSE)),"") ->  | K18: =IF(VLOOKUP($L18,invullijst!$A$11:$M$226,4,FALSE)="","",VLOOKUP($L18,invullijst!$A$11:$M$226,4,FALSE)) -> 0 | M18: =IF(VLOOKUP($L18,invullijst!$A$11:$M$185,2,FALSE)="","",VLOOKUP($L18,invullijst!$A$11:$M$185,2,FALSE)) -> 0 | O18: =IF(VLOOKUP($L18,invullijst!$A$11:$M$185,8,FALSE)=0,"",VLOOKUP($L18,invullijst!$A$11:$M$185,8,FALSE)) -> 
A19: 2 | B19: =IF($G$3="k",IF(VLOOKUP($D19,invullijst!$A$11:$M$185,11,FALSE)=0," ",VLOOKUP($D19,invullijst!$A$11:$M$185,11,FALSE)),"") ->  | C19: =IF(VLOOKUP(D19,invullijst!A$11:F$226,4,FALSE)="","",VLOOKUP(D19,invullijst!A$11:D$226,4,FALSE)) -> 0 | E19: =IF(VLOOKUP($D19,invullijst!$A$11:$M$185,2,FALSE)="","",VLOOKUP($D19,invullijst!$A$11:$M$185,2,FALSE)) -> 0 | G19: =IF(VLOOKUP($D19,invullijst!$A$11:$M$185,8,FALSE)=0,"",VLOOKUP($D19,invullijst!$A$11:$M$185,8,FALSE)) ->  | I19: 2 | J19: =IF($O$3="k",IF(VLOOKUP($L19,invullijst!$A$11:$M$185,11,FALSE)=0," ",VLOOKUP($L19,invullijst!$A$11:$M$185,11,FALSE)),"") ->  | K19: =IF(VLOOKUP($L19,invullijst!$A$11:$M$226,4,FALSE)="","",VLOOKUP($L19,invullijst!$A$11:$M$226,4,FALSE)) -> 0 | M19: =IF(VLOOKUP($L19,invullijst!$A$11:$M$185,2,FALSE)="","",VLOOKUP($L19,invullijst!$A$11:$M$185,2,FALSE)) -> 0 | O19: =IF(VLOOKUP($L19,invullijst!$A$11:$M$185,8,FALSE)=0,"",VLOOKUP($L19,invullijst!$A$11:$M$185,8,FALSE)) -> 
A20: 3 | B20: =IF($G$3="k",IF(VLOOKUP($D20,invullijst!$A$11:$M$185,11,FALSE)=0," ",VLOOKUP($D20,invullijst!$A$11:$M$185,11,FALSE)),"") ->  | C20: =IF(VLOOKUP(D20,invullijst!A$11:F$226,4,FALSE)="","",VLOOKUP(D20,invullijst!A$11:D$226,4,FALSE)) -> 0 | E20: =IF(VLOOKUP($D20,invullijst!$A$11:$M$185,2,FALSE)="","",VLOOKUP($D20,invullijst!$A$11:$M$185,2,FALSE)) -> 0 | G20: =IF(VLOOKUP($D20,invullijst!$A$11:$M$185,8,FALSE)=0,"",VLOOKUP($D20,invullijst!$A$11:$M$185,8,FALSE)) ->  | I20: 3 | J20: =IF($O$3="k",IF(VLOOKUP($L20,invullijst!$A$11:$M$185,11,FALSE)=0," ",VLOOKUP($L20,invullijst!$A$11:$M$185,11,FALSE)),"") ->  | K20: =IF(VLOOKUP($L20,invullijst!$A$11:$M$226,4,FALSE)="","",VLOOKUP($L20,invullijst!$A$11:$M$226,4,FALSE)) -> 0 | M20: =IF(VLOOKUP($L20,invullijst!$A$11:$M$185,2,FALSE)="","",VLOOKUP($L20,invullijst!$A$11:$M$185,2,FALSE)) -> 0 | O20: =IF(VLOOKUP($L20,invullijst!$A$11:$M$185,8,FALSE)=0,"",VLOOKUP($L20,invullijst!$A$11:$M$185,8,FALSE)) -> 
A21: 4 | B21: inh | C21: =IF(VLOOKUP(D21,invullijst!A$11:F$226,4,FALSE)="","",VLOOKUP(D21,invullijst!A$11:D$226,4,FALSE)) -> vr | D21: 406 | E21: =IF(VLOOKUP($D21,invullijst!$A$11:$M$185,2,FALSE)="","",VLOOKUP($D21,invullijst!$A$11:$M$185,2,FALSE)) -> Jeroen van Oss | G21: 82 | I21: 4 | J21: =IF($O$3="k",IF(VLOOKUP($L21,invullijst!$A$11:$M$185,11,FALSE)=0," ",VLOOKUP($L21,invullijst!$A$11:$M$185,11,FALSE)),"") ->  | K21: =IF(VLOOKUP($L21,invullijst!$A$11:$M$226,4,FALSE)="","",VLOOKUP($L21,invullijst!$A$11:$M$226,4,FALSE)) -> 0 | M21: =IF(VLOOKUP($L21,invullijst!$A$11:$M$185,2,FALSE)="","",VLOOKUP($L21,invullijst!$A$11:$M$185,2,FALSE)) -> 0 | O21: =IF(VLOOKUP($L21,invullijst!$A$11:$M$185,8,FALSE)=0,"",VLOOKUP($L21,invullijst!$A$11:$M$185,8,FALSE)) -> 
A22: DIVERSEN / INHAAL | I22: DIVERSEN / INHAAL
A24: OPGELEGD (Jeugd <16 en 65+)
A25: 1 | B25: =IF($G$3="k",IF(VLOOKUP($D25,invullijst!$A$11:$M$185,11,FALSE)=0," ",VLOOKUP($D25,invullijst!$A$11:$M$185,11,FALSE)),"") ->  | C25: =IF(VLOOKUP(D25,invullijst!A$11:F$226,4,FALSE)="","",VLOOKUP(D25,invullijst!A$11:D$226,4,FALSE)) -> 65+ | D25: 405 | E25: =IF(VLOOKUP($D25,invullijst!$A$11:$M$185,2,FALSE)="","",VLOOKUP($D25,invullijst!$A$11:$M$185,2,FALSE)) -> Jan de Vaan | G25: =IF(VLOOKUP($D25,invullijst!$A$11:$M$185,8,FALSE)=0,"",VLOOKUP($D25,invullijst!$A$11:$M$185,8,FALSE)) -> 97 | I25: 1 | J25: =IF($O$3="k",IF(VLOOKUP($L25,invullijst!$A$11:$M$185,11,FALSE)=0," ",VLOOKUP($L25,invullijst!$A$11:$M$185,11,FALSE)),"") ->  | K25: =IF(VLOOKUP($L25,invullijst!$A$11:$M$226,4,FALSE)="","",VLOOKUP($L25,invullijst!$A$11:$M$226,4,FALSE)) -> 65+ | L25: 107 | M25: =IF(VLOOKUP($L25,invullijst!$A$11:$M$185,2,FALSE)="","",VLOOKUP($L25,invullijst!$A$11:$M$185,2,FALSE)) -> Cees Coppens | O25: =IF(VLOOKUP($L25,invullijst!$A$11:$M$185,8,FALSE)=0,"",VLOOKUP($L25,invullijst!$A$11:$M$185,8,FALSE)) -> 80
A26: 2 | B26: =IF($G$3="k",IF(VLOOKUP($D26,invullijst!$A$11:$M$185,11,FALSE)=0," ",VLOOKUP($D26,invullijst!$A$11:$M$185,11,FALSE)),"") ->  | C26: =IF(VLOOKUP(D26,invullijst!A$11:F$226,4,FALSE)="","",VLOOKUP(D26,invullijst!A$11:D$226,4,FALSE)) -> 65+ | D26: 401 | E26: =IF(VLOOKUP($D26,invullijst!$A$11:$M$185,2,FALSE)="","",VLOOKUP($D26,invullijst!$A$11:$M$185,2,FALSE)) -> Frans van Beurden | G26: =IF(VLOOKUP($D26,invullijst!$A$11:$M$185,8,FALSE)=0,"",VLOOKUP($D26,invullijst!$A$11:$M$185,8,FALSE)) -> 98 | I26: 2 | J26: =IF($O$3="k",IF(VLOOKUP($L26,invullijst!$A$11:$M$185,11,FALSE)=0," ",VLOOKUP($L26,invullijst!$A$11:$M$185,11,FALSE)),"") ->  | K26: =IF(VLOOKUP($L26,invullijst!$A$11:$M$226,4,FALSE)="","",VLOOKUP($L26,invullijst!$A$11:$M$226,4,FALSE)) -> 65+ | L26: 104 | M26: =IF(VLOOKUP($L26,invullijst!$A$11:$M$185,2,FALSE)="","",VLOOKUP($L26,invullijst!$A$11:$M$185,2,FALSE)) -> Peter Brekelmans | O26: =IF(VLOOKUP($L26,invullijst!$A$11:$M$185,8,FALSE)=0,"",VLOOKUP($L26,invullijst!$A$11:$M$185,8,FALSE)) -> 73
A27: 3 | B27: =IF($G$3="k",IF(VLOOKUP($D27,invullijst!$A$11:$M$185,11,FALSE)=0," ",VLOOKUP($D27,invullijst!$A$11:$M$185,11,FALSE)),"") ->  | C27: =IF(VLOOKUP(D27,invullijst!A$11:F$226,4,FALSE)="","",VLOOKUP(D27,invullijst!A$11:D$226,4,FALSE)) -> 65+ | D27: 404 | E27: =IF(VLOOKUP($D27,invullijst!$A$11:$M$185,2,FALSE)="","",VLOOKUP($D27,invullijst!$A$11:$M$185,2,FALSE)) -> Gerard van Beurden | G27: =IF(VLOOKUP($D27,invullijst!$A$11:$M$185,8,FALSE)=0,"",VLOOKUP($D27,invullijst!$A$11:$M$185,8,FALSE)) -> 98 | I27: 3 | J27: =IF($O$3="k",IF(VLOOKUP($L27,invullijst!$A$11:$M$185,11,FALSE)=0," ",VLOOKUP($L27,invullijst!$A$11:$M$185,11,FALSE)),"") ->  | K27: =IF(VLOOKUP($L27,invullijst!$A$11:$M$226,4,FALSE)="","",VLOOKUP($L27,invullijst!$A$11:$M$226,4,FALSE)) -> 0 | M27: =IF(VLOOKUP($L27,invullijst!$A$11:$M$185,2,FALSE)="","",VLOOKUP($L27,invullijst!$A$11:$M$185,2,FALSE)) -> 0 | O27: =IF(VLOOKUP($L27,invullijst!$A$11:$M$185,8,FALSE)=0,"",VLOOKUP($L27,invullijst!$A$11:$M$185,8,FALSE)) -> 
A28: Totaal korps opgelegd A1 | G28: =SUM(G25:G27) -> 293 | I28: Totaal korps opgelegd A1 | O28: =SUM(O25:O27) -> 153
A30: 1 | B30: =IF($G$3="k",IF(VLOOKUP($D30,invullijst!$A$11:$M$185,11,FALSE)=0," ",VLOOKUP($D30,invullijst!$A$11:$M$185,11,FALSE)),"") ->  | C30: =IF(VLOOKUP(D30,invullijst!A$11:F$226,4,FALSE)="","",VLOOKUP(D30,invullijst!A$11:D$226,4,FALSE)) -> 65+ | D30: 413 | E30: =IF(VLOOKUP($D30,invullijst!$A$11:$M$185,2,FALSE)="","",VLOOKUP($D30,invullijst!$A$11:$M$185,2,FALSE)) -> Frans Mommersteeg | G30: =IF(VLOOKUP($D30,invullijst!$A$11:$M$185,8,FALSE)=0,"",VLOOKUP($D30,invullijst!$A$11:$M$185,8,FALSE)) -> 96 | I30: 1 | J30: =IF($O$3="k",IF(VLOOKUP($L30,invullijst!$A$11:$M$185,11,FALSE)=0," ",VLOOKUP($L30,invullijst!$A$11:$M$185,11,FALSE)),"") ->  | K30: =IF(VLOOKUP($L30,invullijst!$A$11:$M$226,4,FALSE)="","",VLOOKUP($L30,invullijst!$A$11:$M$226,4,FALSE)) -> 0 | M30: =IF(VLOOKUP($L30,invullijst!$A$11:$M$185,2,FALSE)="","",VLOOKUP($L30,invullijst!$A$11:$M$185,2,FALSE)) -> 0 | O30: =IF(VLOOKUP($L30,invullijst!$A$11:$M$185,8,FALSE)=0,"",VLOOKUP($L30,invullijst!$A$11:$M$185,8,FALSE)) -> 
A31: 2 | B31: =IF($G$3="k",IF(VLOOKUP($D31,invullijst!$A$11:$M$185,11,FALSE)=0," ",VLOOKUP($D31,invullijst!$A$11:$M$185,11,FALSE)),"") ->  | C31: =IF(VLOOKUP(D31,invullijst!A$11:F$226,4,FALSE)="","",VLOOKUP(D31,invullijst!A$11:D$226,4,FALSE)) -> 65+ | D31: 415 | E31: =IF(VLOOKUP($D31,invullijst!$A$11:$M$185,2,FALSE)="","",VLOOKUP($D31,invullijst!$A$11:$M$185,2,FALSE)) -> Wim de Gouw | G31: =IF(VLOOKUP($D31,invullijst!$A$11:$M$185,8,FALSE)=0,"",VLOOKUP($D31,invullijst!$A$11:$M$185,8,FALSE)) -> 95 | I31: 2 | J31: =IF($O$3="k",IF(VLOOKUP($L31,invullijst!$A$11:$M$185,11,FALSE)=0," ",VLOOKUP($L31,invullijst!$A$11:$M$185,11,FALSE)),"") ->  | K31: =IF(VLOOKUP($L31,invullijst!$A$11:$M$226,4,FALSE)="","",VLOOKUP($L31,invullijst!$A$11:$M$226,4,FALSE)) -> 0 | M31: =IF(VLOOKUP($L31,invullijst!$A$11:$M$185,2,FALSE)="","",VLOOKUP($L31,invullijst!$A$11:$M$185,2,FALSE)) -> 0 | O31: =IF(VLOOKUP($L31,invullijst!$A$11:$M$185,8,FALSE)=0,"",VLOOKUP($L31,invullijst!$A$11:$M$185,8,FALSE)) -> 
A32: 3 | B32: =IF($G$3="k",IF(VLOOKUP($D32,invullijst!$A$11:$M$185,11,FALSE)=0," ",VLOOKUP($D32,invullijst!$A$11:$M$185,11,FALSE)),"") ->  | C32: =IF(VLOOKUP(D32,invullijst!A$11:F$226,4,FALSE)="","",VLOOKUP(D32,invullijst!A$11:D$226,4,FALSE)) -> 65+ | D32: 403 | E32: =IF(VLOOKUP($D32,invullijst!$A$11:$M$185,2,FALSE)="","",VLOOKUP($D32,invullijst!$A$11:$M$185,2,FALSE)) -> Dorien de Kort | G32: =IF(VLOOKUP($D32,invullijst!$A$11:$M$185,8,FALSE)=0,"",VLOOKUP($D32,invullijst!$A$11:$M$185,8,FALSE)) -> 95 | I32: 3 | J32: =IF($O$3="k",IF(VLOOKUP($L32,invullijst!$A$11:$M$185,11,FALSE)=0," ",VLOOKUP($L32,invullijst!$A$11:$M$185,11,FALSE)),"") ->  | K32: =IF(VLOOKUP($L32,invullijst!$A$11:$M$226,4,FALSE)="","",VLOOKUP($L32,invullijst!$A$11:$M$226,4,FALSE)) -> 0 | M32: =IF(VLOOKUP($L32,invullijst!$A$11:$M$185,2,FALSE)="","",VLOOKUP($L32,invullijst!$A$11:$M$185,2,FALSE)) -> 0 | O32: =IF(VLOOKUP($L32,invullijst!$A$11:$M$185,8,FALSE)=0,"",VLOOKUP($L32,invullijst!$A$11:$M$185,8,FALSE)) -> 
A33: Totaal korps opgelegd A2 | G33: =SUM(G30:G32) -> 286 | I33: Totaal korps opgelegd A2 | O33: =SUM(O30:O32) -> 0
A35: 1 | B35: =IF($G$3="k",IF(VLOOKUP($D35,invullijst!$A$11:$M$185,11,FALSE)=0," ",VLOOKUP($D35,invullijst!$A$11:$M$185,11,FALSE)),"") ->  | C35: =IF(VLOOKUP(D35,invullijst!A$11:F$226,4,FALSE)="","",VLOOKUP(D35,invullijst!A$11:D$226,4,FALSE)) -> 65+ | D35: 412 | E35: =IF(VLOOKUP($D35,invullijst!$A$11:$M$185,2,FALSE)="","",VLOOKUP($D35,invullijst!$A$11:$M$185,2,FALSE)) -> Francien v/d Wiel | G35: =IF(VLOOKUP($D35,invullijst!$A$11:$M$185,8,FALSE)=0,"",VLOOKUP($D35,invullijst!$A$11:$M$185,8,FALSE)) -> 96 | I35: 1 | J35: =IF($O$3="k",IF(VLOOKUP($L35,invullijst!$A$11:$M$185,11,FALSE)=0," ",VLOOKUP($L35,invullijst!$A$11:$M$185,11,FALSE)),"") ->  | K35: =IF(VLOOKUP($L35,invullijst!$A$11:$M$226,4,FALSE)="","",VLOOKUP($L35,invullijst!$A$11:$M$226,4,FALSE)) -> 0 | M35: =IF(VLOOKUP($L35,invullijst!$A$11:$M$185,2,FALSE)="","",VLOOKUP($L35,invullijst!$A$11:$M$185,2,FALSE)) -> 0 | O35: =IF(VLOOKUP($L35,invullijst!$A$11:$M$185,8,FALSE)=0,"",VLOOKUP($L35,invullijst!$A$11:$M$185,8,FALSE)) -> 
A36: 2 | B36: =IF($G$3="k",IF(VLOOKUP($D36,invullijst!$A$11:$M$185,11,FALSE)=0," ",VLOOKUP($D36,invullijst!$A$11:$M$185,11,FALSE)),"") ->  | C36: =IF(VLOOKUP(D36,invullijst!A$11:F$226,4,FALSE)="","",VLOOKUP(D36,invullijst!A$11:D$226,4,FALSE)) -> 0 | E36: =IF(VLOOKUP($D36,invullijst!$A$11:$M$185,2,FALSE)="","",VLOOKUP($D36,invullijst!$A$11:$M$185,2,FALSE)) -> 0 | G36: =IF(VLOOKUP($D36,invullijst!$A$11:$M$185,8,FALSE)=0,"",VLOOKUP($D36,invullijst!$A$11:$M$185,8,FALSE)) ->  | I36: 2 | J36: =IF($O$3="k",IF(VLOOKUP($L36,invullijst!$A$11:$M$185,11,FALSE)=0," ",VLOOKUP($L36,invullijst!$A$11:$M$185,11,FALSE)),"") ->  | K36: =IF(VLOOKUP($L36,invullijst!$A$11:$M$226,4,FALSE)="","",VLOOKUP($L36,invullijst!$A$11:$M$226,4,FALSE)) -> 0 | M36: =IF(VLOOKUP($L36,invullijst!$A$11:$M$185,2,FALSE)="","",VLOOKUP($L36,invullijst!$A$11:$M$185,2,FALSE)) -> 0 | O36: =IF(VLOOKUP($L36,invullijst!$A$11:$M$185,8,FALSE)=0,"",VLOOKUP($L36,invullijst!$A$11:$M$185,8,FALSE)) -> 
A37: 3 | B37: =IF($G$3="k",IF(VLOOKUP($D37,invullijst!$A$11:$M$185,11,FALSE)=0," ",VLOOKUP($D37,invullijst!$A$11:$M$185,11,FALSE)),"") ->  | C37: =IF(VLOOKUP(D37,invullijst!A$11:F$226,4,FALSE)="","",VLOOKUP(D37,invullijst!A$11:D$226,4,FALSE)) -> 0 | E37: =IF(VLOOKUP($D37,invullijst!$A$11:$M$185,2,FALSE)="","",VLOOKUP($D37,invullijst!$A$11:$M$185,2,FALSE)) -> 0 | G37: =IF(VLOOKUP($D37,invullijst!$A$11:$M$185,8,FALSE)=0,"",VLOOKUP($D37,invullijst!$A$11:$M$185,8,FALSE)) ->  | I37: 3 | J37: =IF($O$3="k",IF(VLOOKUP($L37,invullijst!$A$11:$M$185,11,FALSE)=0," ",VLOOKUP($L37,invullijst!$A$11:$M$185,11,FALSE)),"") ->  | K37: =IF(VLOOKUP($L37,invullijst!$A$11:$M$226,4,FALSE)="","",VLOOKUP($L37,invullijst!$A$11:$M$226,4,FALSE)) -> 0 | M37: =IF(VLOOKUP($L37,invullijst!$A$11:$M$185,2,FALSE)="","",VLOOKUP($L37,invullijst!$A$11:$M$185,2,FALSE)) -> 0 | O37: =IF(VLOOKUP($L37,invullijst!$A$11:$M$185,8,FALSE)=0,"",VLOOKUP($L37,invullijst!$A$11:$M$185,8,FALSE)) -> 
A38: Totaal korps opgelegd A3 | G38: =SUM(G35:G37) -> 96 | I38: Totaal korps opgelegd A3 | O38: =SUM(O35:O37) -> 0

Sheet wedstrijd 4A
A1: =invullijst!F1 -> Organistatie | F1: =invullijst!H2 -> 2024 - 2025 | I1: =invullijst!F3 -> O.L.V. Schuts Elshout
A2: Datum: | M2: 2025-02-23
A3: 4 | B3: =IF(VLOOKUP(A3,invullijst!A1:F5,2,FALSE)="","",VLOOKUP(A3,invullijst!A1:F5,2,FALSE)) -> Sint Ambrosius Haarsteeg | G3: k | I3: 3 | J3: =IF(VLOOKUP(I3,invullijst!A1:C5,2,FALSE)="","",VLOOKUP(I3,invullijst!A1:C5,2,FALSE)) -> O.L.V. Schuts Elshout
A5: vrijehand
A6: 1 | B6: =IF($G$3="k",IF(VLOOKUP($D6,invullijst!$A$11:$M$185,11,FALSE)=0," ",VLOOKUP($D6,invullijst!$A$11:$M$185,11,FALSE)),"") -> 43 | C6: =IF(VLOOKUP(D6,invullijst!A$11:F$226,4,FALSE)="","",VLOOKUP(D6,invullijst!A$11:D$226,4,FALSE)) -> vr | D6: 402 | E6: =IF(VLOOKUP($D6,invullijst!$A$11:$M$185,2,FALSE)="","",VLOOKUP($D6,invullijst!$A$11:$M$185,2,FALSE)) -> Daniëlle v/d Lee | G6: =IF(VLOOKUP($D6,invullijst!$A$11:$M$185,9,FALSE)=0,"",VLOOKUP($D6,invullijst!$A$11:$M$185,9,FALSE)) -> 84 | I6: 1 | J6: =IF($O$3="k",IF(VLOOKUP($L6,invullijst!$A$11:$M$185,11,FALSE)=0," ",VLOOKUP($L6,invullijst!$A$11:$M$185,11,FALSE)),"") ->  | K6: =IF(VLOOKUP($L6,invullijst!$A$11:$M$226,4,FALSE)="","",VLOOKUP($L6,invullijst!$A$11:$M$226,4,FALSE)) -> vr | L6: 302 | M6: =IF(VLOOKUP($L6,invullijst!$A$11:$M$185,2,FALSE)="","",VLOOKUP($L6,invullijst!$A$11:$M$185,2,FALSE)) -> Freek de Jong | O6: =IF(VLOOKUP($L6,invullijst!$A$11:$M$185,9,FALSE)=0,"",VLOOKUP($L6,invullijst!$A$11:$M$185,9,FALSE)) -> 88
A7: 2 | B7: =IF($G$3="k",IF(VLOOKUP($D7,invullijst!$A$11:$M$185,11,FALSE)=0," ",VLOOKUP($D7,invullijst!$A$11:$M$185,11,FALSE)),"") -> 40 | C7: =IF(VLOOKUP(D7,invullijst!A$11:F$226,4,FALSE)="","",VLOOKUP(D7,invullijst!A$11:D$226,4,FALSE)) -> vr | D7: 410 | E7: =IF(VLOOKUP($D7,invullijst!$A$11:$M$185,2,FALSE)="","",VLOOKUP($D7,invullijst!$A$11:$M$185,2,FALSE)) -> Tonnie Koks | G7: =IF(VLOOKUP($D7,invullijst!$A$11:$M$185,9,FALSE)=0,"",VLOOKUP($D7,invullijst!$A$11:$M$185,9,FALSE)) -> 83 | I7: 2 | J7: =IF($O$3="k",IF(VLOOKUP($L7,invullijst!$A$11:$M$185,11,FALSE)=0," ",VLOOKUP($L7,invullijst!$A$11:$M$185,11,FALSE)),"") ->  | K7: =IF(VLOOKUP($L7,invullijst!$A$11:$M$226,4,FALSE)="","",VLOOKUP($L7,invullijst!$A$11:$M$226,4,FALSE)) -> vr | L7: 305 | M7: =IF(VLOOKUP($L7,invullijst!$A$11:$M$185,2,FALSE)="","",VLOOKUP($L7,invullijst!$A$11:$M$185,2,FALSE)) -> Johan Klerx | O7: =IF(VLOOKUP($L7,invullijst!$A$11:$M$185,9,FALSE)=0,"",VLOOKUP($L7,invullijst!$A$11:$M$185,9,FALSE)) -> 84
A8: 3 | B8: =IF($G$3="k",IF(VLOOKUP($D8,invullijst!$A$11:$M$185,11,FALSE)=0," ",VLOOKUP($D8,invullijst!$A$11:$M$185,11,FALSE)),"") -> 38 | C8: =IF(VLOOKUP(D8,invullijst!A$11:F$226,4,FALSE)="","",VLOOKUP(D8,invullijst!A$11:D$226,4,FALSE)) -> vr | D8: 408 | E8: =IF(VLOOKUP($D8,invullijst!$A$11:$M$185,2,FALSE)="","",VLOOKUP($D8,invullijst!$A$11:$M$185,2,FALSE)) -> Rudy van Falier | G8: =IF(VLOOKUP($D8,invullijst!$A$11:$M$185,9,FALSE)=0,"",VLOOKUP($D8,invullijst!$A$11:$M$185,9,FALSE)) -> 82 | I8: 3 | J8: =IF($O$3="k",IF(VLOOKUP($L8,invullijst!$A$11:$M$185,11,FALSE)=0," ",VLOOKUP($L8,invullijst!$A$11:$M$185,11,FALSE)),"") ->  | K8: =IF(VLOOKUP($L8,invullijst!$A$11:$M$226,4,FALSE)="","",VLOOKUP($L8,invullijst!$A$11:$M$226,4,FALSE)) -> vr | L8: 304 | M8: =IF(VLOOKUP($L8,invullijst!$A$11:$M$185,2,FALSE)="","",VLOOKUP($L8,invullijst!$A$11:$M$185,2,FALSE)) -> Henk Bruurmijn | O8: =IF(VLOOKUP($L8,invullijst!$A$11:$M$185,9,FALSE)=0,"",VLOOKUP($L8,invullijst!$A$11:$M$185,9,FALSE)) -> 82
A9: 4 | B9: =IF($G$3="k",IF(VLOOKUP($D9,invullijst!$A$11:$M$185,11,FALSE)=0," ",VLOOKUP($D9,invullijst!$A$11:$M$185,11,FALSE)),"") -> 40 | C9: =IF(VLOOKUP(D9,invullijst!A$11:F$226,4,FALSE)="","",VLOOKUP(D9,invullijst!A$11:D$226,4,FALSE)) -> vr | D9: 406 | E9: =IF(VLOOKUP($D9,invullijst!$A$11:$M$185,2,FALSE)="","",VLOOKUP($D9,invullijst!$A$11:$M$185,2,FALSE)) -> Jeroen van Oss | G9: =IF(VLOOKUP($D9,invullijst!$A$11:$M$185,9,FALSE)=0,"",VLOOKUP($D9,invullijst!$A$11:$M$185,9,FALSE)) -> 78 | I9: 4 | J9: =IF($O$3="k",IF(VLOOKUP($L9,invullijst!$A$11:$M$185,11,FALSE)=0," ",VLOOKUP($L9,invullijst!$A$11:$M$185,11,FALSE)),"") ->  | K9: =IF(VLOOKUP($L9,invullijst!$A$11:$M$226,4,FALSE)="","",VLOOKUP($L9,invullijst!$A$11:$M$226,4,FALSE)) -> vr | L9: 306 | M9: =IF(VLOOKUP($L9,invullijst!$A$11:$M$185,2,FALSE)="","",VLOOKUP($L9,invullijst!$A$11:$M$185,2,FALSE)) -> Ron Groot | O9: =IF(VLOOKUP($L9,invullijst!$A$11:$M$185,9,FALSE)=0,"",VLOOKUP($L9,invullijst!$A$11:$M$185,9,FALSE)) -> 82
A10: Totaal A korps | G10: =SUM(G6:G9) -> 327 | I10: Totaal A korps | O10: =SUM(O6:O9) -> 336
A12: 1 | B12: =IF($G$3="k",IF(VLOOKUP($D12,invullijst!$A$11:$M$185,11,FALSE)=0," ",VLOOKUP($D12,invullijst!$A$11:$M$185,11,FALSE)),"") -> 32 | C12: =IF(VLOOKUP(D12,invullijst!A$11:F$226,4,FALSE)="","",VLOOKUP(D12,invullijst!A$11:D$226,4,FALSE)) -> vr | D12: 411 | E12: =IF(VLOOKUP($D12,invullijst!$A$11:$M$185,2,FALSE)="","",VLOOKUP($D12,invullijst!$A$11:$M$185,2,FALSE)) -> Wilma v/d Lee | G12: =IF(VLOOKUP($D12,invullijst!$A$11:$M$185,9,FALSE)=0,"",VLOOKUP($D12,invullijst!$A$11:$M$185,9,FALSE)) -> 76 | I12: 1 | J12: =IF($O$3="k",IF(VLOOKUP($L12,invullijst!$A$11:$M$185,11,FALSE)=0," ",VLOOKUP($L12,invullijst!$A$11:$M$185,11,FALSE)),"") ->  | K12: =IF(VLOOKUP($L12,invullijst!$A$11:$M$226,4,FALSE)="","",VLOOKUP($L12,invullijst!$A$11:$M$226,4,FALSE)) -> 0 | M12: =IF(VLOOKUP($L12,invullijst!$A$11:$M$185,2,FALSE)="","",VLOOKUP($L12,invullijst!$A$11:$M$185,2,FALSE)) -> 0 | O12: =IF(VLOOKUP($L12,invullijst!$A$11:$M$185,9,FALSE)=0,"",VLOOKUP($L12,invullijst!$A$11:$M$185,9,FALSE)) -> 
A13: 2 | B13: =IF($G$3="k",IF(VLOOKUP($D13,invullijst!$A$11:$M$185,11,FALSE)=0," ",VLOOKUP($D13,invullijst!$A$11:$M$185,11,FALSE)),"") ->  | C13: =IF(VLOOKUP(D13,invullijst!A$11:F$226,4,FALSE)="","",VLOOKUP(D13,invullijst!A$11:D$226,4,FALSE)) -> 0 | E13: =IF(VLOOKUP($D13,invullijst!$A$11:$M$185,2,FALSE)="","",VLOOKUP($D13,invullijst!$A$11:$M$185,2,FALSE)) -> 0 | G13: =IF(VLOOKUP($D13,invullijst!$A$11:$M$185,9,FALSE)=0,"",VLOOKUP($D13,invullijst!$A$11:$M$185,9,FALSE)) ->  | I13: 2 | J13: =IF($O$3="k",IF(VLOOKUP($L13,invullijst!$A$11:$M$185,11,FALSE)=0," ",VLOOKUP($L13,invullijst!$A$11:$M$185,11,FALSE)),"") ->  | K13: =IF(VLOOKUP($L13,invullijst!$A$11:$M$226,4,FALSE)="","",VLOOKUP($L13,invullijst!$A$11:$M$226,4,FALSE)) -> 0 | M13: =IF(VLOOKUP($L13,invullijst!$A$11:$M$185,2,FALSE)="","",VLOOKUP($L13,invullijst!$A$11:$M$185,2,FALSE)) -> 0 | O13: =IF(VLOOKUP($L13,invullijst!$A$11:$M$185,9,FALSE)=0,"",VLOOKUP($L13,invullijst!$A$11:$M$185,9,FALSE)) -> 
A14: 3 | B14: =IF($G$3="k",IF(VLOOKUP($D14,invullijst!$A$11:$M$185,11,FALSE)=0," ",VLOOKUP($D14,invullijst!$A$11:$M$185,11,FALSE)),"") ->  | C14: =IF(VLOOKUP(D14,invullijst!A$11:F$226,4,FALSE)="","",VLOOKUP(D14,invullijst!A$11:D$226,4,FALSE)) -> 0 | E14: =IF(VLOOKUP($D14,invullijst!$A$11:$M$185,2,FALSE)="","",VLOOKUP($D14,invullijst!$A$11:$M$185,2,FALSE)) -> 0 | G14: =IF(VLOOKUP($D14,invullijst!$A$11:$M$185,9,FALSE)=0,"",VLOOKUP($D14,invullijst!$A$11:$M$185,9,FALSE)) ->  | I14: 3 | J14: =IF($O$3="k",IF(VLOOKUP($L14,invullijst!$A$11:$M$185,11,FALSE)=0," ",VLOOKUP($L14,invullijst!$A$11:$M$185,11,FALSE)),"") ->  | K14: =IF(VLOOKUP($L14,invullijst!$A$11:$M$226,4,FALSE)="","",VLOOKUP($L14,invullijst!$A$11:$M$226,4,FALSE)) -> 0 | M14: =IF(VLOOKUP($L14,invullijst!$A$11:$M$185,2,FALSE)="","",VLOOKUP($L14,invullijst!$A$11:$M$185,2,FALSE)) -> 0 | O14: =IF(VLOOKUP($L14,invullijst!$A$11:$M$185,9,FALSE)=0,"",VLOOKUP($L14,invullijst!$A$11:$M$185,9,FALSE)) -> 
A15: 4 | B15: =IF($G$3="k",IF(VLOOKUP($D15,invullijst!$A$11:$M$185,11,FALSE)=0," ",VLOOKUP($D15,invullijst!$A$11:$M$185,11,FALSE)),"") ->  | C15: =IF(VLOOKUP(D15,invullijst!A$11:F$226,4,FALSE)="","",VLOOKUP(D15,invullijst!A$11:D$226,4,FALSE)) -> 0 | E15: =IF(VLOOKUP($D15,invullijst!$A$11:$M$185,2,FALSE)="","",VLOOKUP($D15,invullijst!$A$11:$M$185,2,FALSE)) -> 0 | G15: =IF(VLOOKUP($D15,invullijst!$A$11:$M$185,9,FALSE)=0,"",VLOOKUP($D15,invullijst!$A$11:$M$185,9,FALSE)) ->  | I15: 4 | J15: =IF($O$3="k",IF(VLOOKUP($L15,invullijst!$A$11:$M$185,11,FALSE)=0," ",VLOOKUP($L15,invullijst!$A$11:$M$185,11,FALSE)),"") ->  | K15: =IF(VLOOKUP($L15,invullijst!$A$11:$M$226,4,FALSE)="","",VLOOKUP($L15,invullijst!$A$11:$M$226,4,FALSE)) -> 0 | M15: =IF(VLOOKUP($L15,invullijst!$A$11:$M$185,2,FALSE)="","",VLOOKUP($L15,invullijst!$A$11:$M$185,2,FALSE)) -> 0 | O15: =IF(VLOOKUP($L15,invullijst!$A$11:$M$185,9,FALSE)=0,"",VLOOKUP($L15,invullijst!$A$11:$M$185,9,FALSE)) -> 
A16: Totaal B1 korps | G16: =SUM(G12:G15) -> 76 | I16: Totaal B1 korps | O16: =SUM(O12:O15) -> 0
A18: 1 | B18: =IF($G$3="k",IF(VLOOKUP($D18,invullijst!$A$11:$M$185,11,FALSE)=0," ",VLOOKUP($D18,invullijst!$A$11:$M$185,11,FALSE)),"") ->  | C18: =IF(VLOOKUP(D18,invullijst!A$11:F$226,4,FALSE)="","",VLOOKUP(D18,invullijst!A$11:D$226,4,FALSE)) -> 0 | E18: =IF(VLOOKUP($D18,invullijst!$A$11:$M$185,2,FALSE)="","",VLOOKUP($D18,invullijst!$A$11:$M$185,2,FALSE)) -> 0 | G18: =IF(VLOOKUP($D18,invullijst!$A$11:$M$185,9,FALSE)=0,"",VLOOKUP($D18,invullijst!$A$11:$M$185,9,FALSE)) ->  | I18: 1 | J18: =IF($O$3="k",IF(VLOOKUP($L18,invullijst!$A$11:$M$185,11,FALSE)=0," ",VLOOKUP($L18,invullijst!$A$11:$M$185,11,FALSE)),"") ->  | K18: =IF(VLOOKUP($L18,invullijst!$A$11:$M$226,4,FALSE)="","",VLOOKUP($L18,invullijst!$A$11:$M$226,4,FALSE)) -> 0 | M18: =IF(VLOOKUP($L18,invullijst!$A$11:$M$185,2,FALSE)="","",VLOOKUP($L18,invullijst!$A$11:$M$185,2,FALSE)) -> 0 | O18: =IF(VLOOKUP($L18,invullijst!$A$11:$M$185,9,FALSE)=0,"",VLOOKUP($L18,invullijst!$A$11:$M$185,9,FALSE)) -> 
A19: 2 | B19: =IF($G$3="k",IF(VLOOKUP($D19,invullijst!$A$11:$M$185,11,FALSE)=0," ",VLOOKUP($D19,invullijst!$A$11:$M$185,11,FALSE)),"") ->  | C19: =IF(VLOOKUP(D19,invullijst!A$11:F$226,4,FALSE)="","",VLOOKUP(D19,invullijst!A$11:D$226,4,FALSE)) -> 0 | E19: =IF(VLOOKUP($D19,invullijst!$A$11:$M$185,2,FALSE)="","",VLOOKUP($D19,invullijst!$A$11:$M$185,2,FALSE)) -> 0 | G19: =IF(VLOOKUP($D19,invullijst!$A$11:$M$185,9,FALSE)=0,"",VLOOKUP($D19,invullijst!$A$11:$M$185,9,FALSE)) ->  | I19: 2 | J19: =IF($O$3="k",IF(VLOOKUP($L19,invullijst!$A$11:$M$185,11,FALSE)=0," ",VLOOKUP($L19,invullijst!$A$11:$M$185,11,FALSE)),"") ->  | K19: =IF(VLOOKUP($L19,invullijst!$A$11:$M$226,4,FALSE)="","",VLOOKUP($L19,invullijst!$A$11:$M$226,4,FALSE)) -> 0 | M19: =IF(VLOOKUP($L19,invullijst!$A$11:$M$185,2,FALSE)="","",VLOOKUP($L19,invullijst!$A$11:$M$185,2,FALSE)) -> 0 | O19: =IF(VLOOKUP($L19,invullijst!$A$11:$M$185,9,FALSE)=0,"",VLOOKUP($L19,invullijst!$A$11:$M$185,9,FALSE)) -> 
A20: 3 | B20: =IF($G$3="k",IF(VLOOKUP($D20,invullijst!$A$11:$M$185,11,FALSE)=0," ",VLOOKUP($D20,invullijst!$A$11:$M$185,11,FALSE)),"") ->  | C20: =IF(VLOOKUP(D20,invullijst!A$11:F$226,4,FALSE)="","",VLOOKUP(D20,invullijst!A$11:D$226,4,FALSE)) -> 0 | E20: =IF(VLOOKUP($D20,invullijst!$A$11:$M$185,2,FALSE)="","",VLOOKUP($D20,invullijst!$A$11:$M$185,2,FALSE)) -> 0 | G20: =IF(VLOOKUP($D20,invullijst!$A$11:$M$185,9,FALSE)=0,"",VLOOKUP($D20,invullijst!$A$11:$M$185,9,FALSE)) ->  | I20: 3 | J20: =IF($O$3="k",IF(VLOOKUP($L20,invullijst!$A$11:$M$185,11,FALSE)=0," ",VLOOKUP($L20,invullijst!$A$11:$M$185,11,FALSE)),"") ->  | K20: =IF(VLOOKUP($L20,invullijst!$A$11:$M$226,4,FALSE)="","",VLOOKUP($L20,invullijst!$A$11:$M$226,4,FALSE)) -> 0 | M20: =IF(VLOOKUP($L20,invullijst!$A$11:$M$185,2,FALSE)="","",VLOOKUP($L20,invullijst!$A$11:$M$185,2,FALSE)) -> 0 | O20: =IF(VLOOKUP($L20,invullijst!$A$11:$M$185,9,FALSE)=0,"",VLOOKUP($L20,invullijst!$A$11:$M$185,9,FALSE)) -> 
A21: 4 | B21: =IF($G$3="k",IF(VLOOKUP($D21,invullijst!$A$11:$M$185,11,FALSE)=0," ",VLOOKUP($D21,invullijst!$A$11:$M$185,11,FALSE)),"") ->  | C21: =IF(VLOOKUP(D21,invullijst!A$11:F$226,4,FALSE)="","",VLOOKUP(D21,invullijst!A$11:D$226,4,FALSE)) -> 0 | E21: =IF(VLOOKUP($D21,invullijst!$A$11:$M$185,2,FALSE)="","",VLOOKUP($D21,invullijst!$A$11:$M$185,2,FALSE)) -> 0 | G21: =IF(VLOOKUP($D21,invullijst!$A$11:$M$185,9,FALSE)=0,"",VLOOKUP($D21,invullijst!$A$11:$M$185,9,FALSE)) ->  | I21: 4 | J21: =IF($O$3="k",IF(VLOOKUP($L21,invullijst!$A$11:$M$185,11,FALSE)=0," ",VLOOKUP($L21,invullijst!$A$11:$M$185,11,FALSE)),"") ->  | K21: =IF(VLOOKUP($L21,invullijst!$A$11:$M$226,4,FALSE)="","",VLOOKUP($L21,invullijst!$A$11:$M$226,4,FALSE)) -> 0 | M21: =IF(VLOOKUP($L21,invullijst!$A$11:$M$185,2,FALSE)="","",VLOOKUP($L21,invullijst!$A$11:$M$185,2,FALSE)) -> 0 | O21: =IF(VLOOKUP($L21,invullijst!$A$11:$M$185,9,FALSE)=0,"",VLOOKUP($L21,invullijst!$A$11:$M$185,9,FALSE)) -> 
A22: DIVERSEN / INHAAL | I22: DIVERSEN / INHAAL
A24: OPGELEGD (Jeugd <16 en 65+)
A25: 1 | B25: =IF($G$3="k",IF(VLOOKUP($D25,invullijst!$A$11:$M$185,11,FALSE)=0," ",VLOOKUP($D25,invullijst!$A$11:$M$185,11,FALSE)),"") -> 48 | C25: =IF(VLOOKUP(D25,invullijst!A$11:F$226,4,FALSE)="","",VLOOKUP(D25,invullijst!A$11:D$226,4,FALSE)) -> 65+ | D25: 401 | E25: =IF(VLOOKUP($D25,invullijst!$A$11:$M$185,2,FALSE)="","",VLOOKUP($D25,invullijst!$A$11:$M$185,2,FALSE)) -> Frans van Beurden | G25: =IF(VLOOKUP($D25,invullijst!$A$11:$M$185,9,FALSE)=0,"",VLOOKUP($D25,invullijst!$A$11:$M$185,9,FALSE)) -> 98 | I25: 1 | J25: =IF($O$3="k",IF(VLOOKUP($L25,invullijst!$A$11:$M$185,11,FALSE)=0," ",VLOOKUP($L25,invullijst!$A$11:$M$185,11,FALSE)),"") ->  | K25: =IF(VLOOKUP($L25,invullijst!$A$11:$M$226,4,FALSE)="","",VLOOKUP($L25,invullijst!$A$11:$M$226,4,FALSE)) -> 65+ | L25: 307 | M25: =IF(VLOOKUP($L25,invullijst!$A$11:$M$185,2,FALSE)="","",VLOOKUP($L25,invullijst!$A$11:$M$185,2,FALSE)) -> Bert van Engelen | O25: =IF(VLOOKUP($L25,invullijst!$A$11:$M$185,9,FALSE)=0,"",VLOOKUP($L25,invullijst!$A$11:$M$185,9,FALSE)) -> 94
A26: 2 | B26: =IF($G$3="k",IF(VLOOKUP($D26,invullijst!$A$11:$M$185,11,FALSE)=0," ",VLOOKUP($D26,invullijst!$A$11:$M$185,11,FALSE)),"") -> 48 | C26: =IF(VLOOKUP(D26,invullijst!A$11:F$226,4,FALSE)="","",VLOOKUP(D26,invullijst!A$11:D$226,4,FALSE)) -> 65+ | D26: 405 | E26: =IF(VLOOKUP($D26,invullijst!$A$11:$M$185,2,FALSE)="","",VLOOKUP($D26,invullijst!$A$11:$M$185,2,FALSE)) -> Jan de Vaan | G26: =IF(VLOOKUP($D26,invullijst!$A$11:$M$185,9,FALSE)=0,"",VLOOKUP($D26,invullijst!$A$11:$M$185,9,FALSE)) -> 96 | I26: 2 | J26: =IF($O$3="k",IF(VLOOKUP($L26,invullijst!$A$11:$M$185,11,FALSE)=0," ",VLOOKUP($L26,invullijst!$A$11:$M$185,11,FALSE)),"") ->  | K26: =IF(VLOOKUP($L26,invullijst!$A$11:$M$226,4,FALSE)="","",VLOOKUP($L26,invullijst!$A$11:$M$226,4,FALSE)) -> 65+ | L26: 309 | M26: =IF(VLOOKUP($L26,invullijst!$A$11:$M$185,2,FALSE)="","",VLOOKUP($L26,invullijst!$A$11:$M$185,2,FALSE)) -> René de Jong | O26: =IF(VLOOKUP($L26,invullijst!$A$11:$M$185,9,FALSE)=0,"",VLOOKUP($L26,invullijst!$A$11:$M$185,9,FALSE)) -> 88
A27: 3 | B27: =IF($G$3="k",IF(VLOOKUP($D27,invullijst!$A$11:$M$185,11,FALSE)=0," ",VLOOKUP($D27,invullijst!$A$11:$M$185,11,FALSE)),"") -> 49 | C27: =IF(VLOOKUP(D27,invullijst!A$11:F$226,4,FALSE)="","",VLOOKUP(D27,invullijst!A$11:D$226,4,FALSE)) -> 65+ | D27: 404 | E27: =IF(VLOOKUP($D27,invullijst!$A$11:$M$185,2,FALSE)="","",VLOOKUP($D27,invullijst!$A$11:$M$185,2,FALSE)) -> Gerard van Beurden | G27: =IF(VLOOKUP($D27,invullijst!$A$11:$M$185,9,FALSE)=0,"",VLOOKUP($D27,invullijst!$A$11:$M$185,9,FALSE)) -> 96 | I27: 3 | J27: =IF($O$3="k",IF(VLOOKUP($L27,invullijst!$A$11:$M$185,11,FALSE)=0," ",VLOOKUP($L27,invullijst!$A$11:$M$185,11,FALSE)),"") ->  | K27: =IF(VLOOKUP($L27,invullijst!$A$11:$M$226,4,FALSE)="","",VLOOKUP($L27,invullijst!$A$11:$M$226,4,FALSE)) -> 65+ | L27: 301 | M27: =IF(VLOOKUP($L27,invullijst!$A$11:$M$185,2,FALSE)="","",VLOOKUP($L27,invullijst!$A$11:$M$185,2,FALSE)) -> Arjen van Assem disp | O27: =IF(VLOOKUP($L27,invullijst!$A$11:$M$185,9,FALSE)=0,"",VLOOKUP($L27,invullijst!$A$11:$M$185,9,FALSE)) -> 92
A28: Totaal korps opgelegd A1 | G28: =SUM(G25:G27) -> 290 | I28: Totaal korps opgelegd A1 | O28: =SUM(O25:O27) -> 274
A30: 1 | B30: =IF($G$3="k",IF(VLOOKUP($D30,invullijst!$A$11:$M$185,11,FALSE)=0," ",VLOOKUP($D30,invullijst!$A$11:$M$185,11,FALSE)),"") -> 47 | C30: =IF(VLOOKUP(D30,invullijst!A$11:F$226,4,FALSE)="","",VLOOKUP(D30,invullijst!A$11:D$226,4,FALSE)) -> 65+ | D30: 413 | E30: =IF(VLOOKUP($D30,invullijst!$A$11:$M$185,2,FALSE)="","",VLOOKUP($D30,invullijst!$A$11:$M$185,2,FALSE)) -> Frans Mommersteeg | G30: =IF(VLOOKUP($D30,invullijst!$A$11:$M$185,9,FALSE)=0,"",VLOOKUP($D30,invullijst!$A$11:$M$185,9,FALSE)) -> 94 | I30: 1 | J30: =IF($O$3="k",IF(VLOOKUP($L30,invullijst!$A$11:$M$185,11,FALSE)=0," ",VLOOKUP($L30,invullijst!$A$11:$M$185,11,FALSE)),"") ->  | K30: =IF(VLOOKUP($L30,invullijst!$A$11:$M$226,4,FALSE)="","",VLOOKUP($L30,invullijst!$A$11:$M$226,4,FALSE)) -> 65+ | L30: 310 | M30: =IF(VLOOKUP($L30,invullijst!$A$11:$M$185,2,FALSE)="","",VLOOKUP($L30,invullijst!$A$11:$M$185,2,FALSE)) -> Tiny Boom
A31: 2 | B31: =IF($G$3="k",IF(VLOOKUP($D31,invullijst!$A$11:$M$185,11,FALSE)=0," ",VLOOKUP($D31,invullijst!$A$11:$M$185,11,FALSE)),"") -> 49 | C31: =IF(VLOOKUP(D31,invullijst!A$11:F$226,4,FALSE)="","",VLOOKUP(D31,invullijst!A$11:D$226,4,FALSE)) -> 65+ | D31: 403 | E31: =IF(VLOOKUP($D31,invullijst!$A$11:$M$185,2,FALSE)="","",VLOOKUP($D31,invullijst!$A$11:$M$185,2,FALSE)) -> Dorien de Kort | G31: =IF(VLOOKUP($D31,invullijst!$A$11:$M$185,9,FALSE)=0,"",VLOOKUP($D31,invullijst!$A$11:$M$185,9,FALSE)) -> 96 | I31: 2 | J31: =IF($O$3="k",IF(VLOOKUP($L31,invullijst!$A$11:$M$185,11,FALSE)=0," ",VLOOKUP($L31,invullijst!$A$11:$M$185,11,FALSE)),"") ->  | K31: =IF(VLOOKUP($L31,invullijst!$A$11:$M$226,4,FALSE)="","",VLOOKUP($L31,invullijst!$A$11:$M$226,4,FALSE)) -> 0 | M31: =IF(VLOOKUP($L31,invullijst!$A$11:$M$185,2,FALSE)="","",VLOOKUP($L31,invullijst!$A$11:$M$185,2,FALSE)) -> 0 | O31: =IF(VLOOKUP($L31,invullijst!$A$11:$M$185,9,FALSE)=0,"",VLOOKUP($L31,invullijst!$A$11:$M$185,9,FALSE)) -> 
A32: 3 | B32: =IF($G$3="k",IF(VLOOKUP($D32,invullijst!$A$11:$M$185,11,FALSE)=0," ",VLOOKUP($D32,invullijst!$A$11:$M$185,11,FALSE)),"") -> 46 | C32: =IF(VLOOKUP(D32,invullijst!A$11:F$226,4,FALSE)="","",VLOOKUP(D32,invullijst!A$11:D$226,4,FALSE)) -> 65+ | D32: 415 | E32: =IF(VLOOKUP($D32,invullijst!$A$11:$M$185,2,FALSE)="","",VLOOKUP($D32,invullijst!$A$11:$M$185,2,FALSE)) -> Wim de Gouw | G32: =IF(VLOOKUP($D32,invullijst!$A$11:$M$185,9,FALSE)=0,"",VLOOKUP($D32,invullijst!$A$11:$M$185,9,FALSE)) -> 96 | I32: 3 | J32: =IF($O$3="k",IF(VLOOKUP($L32,invullijst!$A$11:$M$185,11,FALSE)=0," ",VLOOKUP($L32,invullijst!$A$11:$M$185,11,FALSE)),"") ->  | K32: =IF(VLOOKUP($L32,invullijst!$A$11:$M$226,4,FALSE)="","",VLOOKUP($L32,invullijst!$A$11:$M$226,4,FALSE)) -> 0 | M32: =IF(VLOOKUP($L32,invullijst!$A$11:$M$185,2,FALSE)="","",VLOOKUP($L32,invullijst!$A$11:$M$185,2,FALSE)) -> 0 | O32: =IF(VLOOKUP($L32,invullijst!$A$11:$M$185,9,FALSE)=0,"",VLOOKUP($L32,invullijst!$A$11:$M$185,9,FALSE)) -> 
A33: Totaal korps opgelegd A2 | G33: =SUM(G30:G32) -> 286 | I33: Totaal korps opgelegd A2 | O33: =SUM(O30:O32) -> 0
A35: 1 | B35: =IF($G$3="k",IF(VLOOKUP($D35,invullijst!$A$11:$M$185,11,FALSE)=0," ",VLOOKUP($D35,invullijst!$A$11:$M$185,11,FALSE)),"") -> 48 | C35: =IF(VLOOKUP(D35,invullijst!A$11:F$226,4,FALSE)="","",VLOOKUP(D35,invullijst!A$11:D$226,4,FALSE)) -> 65+ | D35: 412 | E35: =IF(VLOOKUP($D35,invullijst!$A$11:$M$185,2,FALSE)="","",VLOOKUP($D35,invullijst!$A$11:$M$185,2,FALSE)) -> Francien v/d Wiel | G35: =IF(VLOOKUP($D35,invullijst!$A$11:$M$185,9,FALSE)=0,"",VLOOKUP($D35,invullijst!$A$11:$M$185,9,FALSE)) -> 96 | I35: 1 | J35: =IF($O$3="k",IF(VLOOKUP($L35,invullijst!$A$11:$M$185,11,FALSE)=0," ",VLOOKUP($L35,invullijst!$A$11:$M$185,11,FALSE)),"") ->  | K35: =IF(VLOOKUP($L35,invullijst!$A$11:$M$226,4,FALSE)="","",VLOOKUP($L35,invullijst!$A$11:$M$226,4,FALSE)) -> 0 | M35: =IF(VLOOKUP($L35,invullijst!$A$11:$M$185,2,FALSE)="","",VLOOKUP($L35,invullijst!$A$11:$M$185,2,FALSE)) -> 0 | O35: =IF(VLOOKUP($L35,invullijst!$A$11:$M$185,9,FALSE)=0,"",VLOOKUP($L35,invullijst!$A$11:$M$185,9,FALSE)) -> 
A36: 2 | B36: =IF($G$3="k",IF(VLOOKUP($D36,invullijst!$A$11:$M$185,11,FALSE)=0," ",VLOOKUP($D36,invullijst!$A$11:$M$185,11,FALSE)),"") ->  | C36: =IF(VLOOKUP(D36,invullijst!A$11:F$226,4,FALSE)="","",VLOOKUP(D36,invullijst!A$11:D$226,4,FALSE)) -> 0 | E36: =IF(VLOOKUP($D36,invullijst!$A$11:$M$185,2,FALSE)="","",VLOOKUP($D36,invullijst!$A$11:$M$185,2,FALSE)) -> 0 | G36: =IF(VLOOKUP($D36,invullijst!$A$11:$M$185,9,FALSE)=0,"",VLOOKUP($D36,invullijst!$A$11:$M$185,9,FALSE)) ->  | I36: 2 | J36: =IF($O$3="k",IF(VLOOKUP($L36,invullijst!$A$11:$M$185,11,FALSE)=0," ",VLOOKUP($L36,invullijst!$A$11:$M$185,11,FALSE)),"") ->  | K36: =IF(VLOOKUP($L36,invullijst!$A$11:$M$226,4,FALSE)="","",VLOOKUP($L36,invullijst!$A$11:$M$226,4,FALSE)) -> 0 | M36: =IF(VLOOKUP($L36,invullijst!$A$11:$M$185,2,FALSE)="","",VLOOKUP($L36,invullijst!$A$11:$M$185,2,FALSE)) -> 0 | O36: =IF(VLOOKUP($L36,invullijst!$A$11:$M$185,9,FALSE)=0,"",VLOOKUP($L36,invullijst!$A$11:$M$185,9,FALSE)) -> 
A37: 3 | B37: =IF($G$3="k",IF(VLOOKUP($D37,invullijst!$A$11:$M$185,11,FALSE)=0," ",VLOOKUP($D37,invullijst!$A$11:$M$185,11,FALSE)),"") ->  | C37: =IF(VLOOKUP(D37,invullijst!A$11:F$226,4,FALSE)="","",VLOOKUP(D37,invullijst!A$11:D$226,4,FALSE)) -> 0 | E37: =IF(VLOOKUP($D37,invullijst!$A$11:$M$185,2,FALSE)="","",VLOOKUP($D37,invullijst!$A$11:$M$185,2,FALSE)) -> 0 | G37: =IF(VLOOKUP($D37,invullijst!$A$11:$M$185,9,FALSE)=0,"",VLOOKUP($D37,invullijst!$A$11:$M$185,9,FALSE)) ->  | I37: 3 | J37: =IF($O$3="k",IF(VLOOKUP($L37,invullijst!$A$11:$M$185,11,FALSE)=0," ",VLOOKUP($L37,invullijst!$A$11:$M$185,11,FALSE)),"") ->  | K37: =IF(VLOOKUP($L37,invullijst!$A$11:$M$226,4,FALSE)="","",VLOOKUP($L37,invullijst!$A$11:$M$226,4,FALSE)) -> 0 | M37: =IF(VLOOKUP($L37,invullijst!$A$11:$M$185,2,FALSE)="","",VLOOKUP($L37,invullijst!$A$11:$M$185,2,FALSE)) -> 0 | O37: =IF(VLOOKUP($L37,invullijst!$A$11:$M$185,9,FALSE)=0,"",VLOOKUP($L37,invullijst!$A$11:$M$185,9,FALSE)) -> 
A38: Totaal korps opgelegd A3 | G38: =SUM(G35:G37) -> 96 | I38: Totaal korps opgelegd A3 | O38: =SUM(O35:O37) -> 0

Sheet wedstrijd 4B
A1: =invullijst!F1 -> Organistatie | F1: =invullijst!H2 -> 2024 - 2025 | I1: =invullijst!F3 -> O.L.V. Schuts Elshout
A2: Datum: | M2: 2025-02-23
A3: 1 | B3: =IF(VLOOKUP(A3,invullijst!A1:F5,2,FALSE)="","",VLOOKUP(A3,invullijst!A1:F5,2,FALSE)) -> Sint Ambrosius Baardwijk | G3: k | I3: 5 | J3: =IF(VLOOKUP(I3,invullijst!A1:C5,2,FALSE)="","",VLOOKUP(I3,invullijst!A1:C5,2,FALSE)) -> Sint Jan Baptist Kaatsheuvel | O3: k
A5: vrijehand
A6: 1 | B6: =IF($G$3="k",IF(VLOOKUP($D6,invullijst!$A$11:$M$185,11,FALSE)=0," ",VLOOKUP($D6,invullijst!$A$11:$M$185,11,FALSE)),"") -> 42 | C6: =IF(VLOOKUP(D6,invullijst!A$11:F$226,4,FALSE)="","",VLOOKUP(D6,invullijst!A$11:D$226,4,FALSE)) -> vr | D6: 105 | E6: =IF(VLOOKUP($D6,invullijst!$A$11:$M$185,2,FALSE)="","",VLOOKUP($D6,invullijst!$A$11:$M$185,2,FALSE)) -> René Klijn | G6: =IF(VLOOKUP($D6,invullijst!$A$11:$M$185,9,FALSE)=0,"",VLOOKUP($D6,invullijst!$A$11:$M$185,9,FALSE)) -> 80 | I6: 1 | J6: =IF($O$3="k",IF(VLOOKUP($L6,invullijst!$A$11:$M$185,11,FALSE)=0," ",VLOOKUP($L6,invullijst!$A$11:$M$185,11,FALSE)),"") -> 42 | K6: =IF(VLOOKUP($L6,invullijst!$A$11:$M$226,4,FALSE)="","",VLOOKUP($L6,invullijst!$A$11:$M$226,4,FALSE)) -> vr | L6: 506 | M6: =IF(VLOOKUP($L6,invullijst!$A$11:$M$185,2,FALSE)="","",VLOOKUP($L6,invullijst!$A$11:$M$185,2,FALSE)) -> Maikel Monden | O6: =IF(VLOOKUP($L6,invullijst!$A$11:$M$185,9,FALSE)=0,"",VLOOKUP($L6,invullijst!$A$11:$M$185,9,FALSE)) -> 75
A7: 2 | B7: =IF($G$3="k",IF(VLOOKUP($D7,invullijst!$A$11:$M$185,11,FALSE)=0," ",VLOOKUP($D7,invullijst!$A$11:$M$185,11,FALSE)),"") -> 41 | C7: =IF(VLOOKUP(D7,invullijst!A$11:F$226,4,FALSE)="","",VLOOKUP(D7,invullijst!A$11:D$226,4,FALSE)) -> vr | D7: 106 | E7: =IF(VLOOKUP($D7,invullijst!$A$11:$M$185,2,FALSE)="","",VLOOKUP($D7,invullijst!$A$11:$M$185,2,FALSE)) -> René Pullens | G7: =IF(VLOOKUP($D7,invullijst!$A$11:$M$185,9,FALSE)=0,"",VLOOKUP($D7,invullijst!$A$11:$M$185,9,FALSE)) -> 77 | I7: 2 | J7: =IF($O$3="k",IF(VLOOKUP($L7,invullijst!$A$11:$M$185,11,FALSE)=0," ",VLOOKUP($L7,invullijst!$A$11:$M$185,11,FALSE)),"") -> 41 | K7: =IF(VLOOKUP($L7,invullijst!$A$11:$M$226,4,FALSE)="","",VLOOKUP($L7,invullijst!$A$11:$M$226,4,FALSE)) -> vr | L7: 501 | M7: =IF(VLOOKUP($L7,invullijst!$A$11:$M$185,2,FALSE)="","",VLOOKUP($L7,invullijst!$A$11:$M$185,2,FALSE)) -> Annette Vos | O7: =IF(VLOOKUP($L7,invullijst!$A$11:$M$185,9,FALSE)=0,"",VLOOKUP($L7,invullijst!$A$11:$M$185,9,FALSE)) -> 76
A8: 3 | B8: =IF($G$3="k",IF(VLOOKUP($D8,invullijst!$A$11:$M$185,11,FALSE)=0," ",VLOOKUP($D8,invullijst!$A$11:$M$185,11,FALSE)),"") -> 35 | C8: =IF(VLOOKUP(D8,invullijst!A$11:F$226,4,FALSE)="","",VLOOKUP(D8,invullijst!A$11:D$226,4,FALSE)) -> vr | D8: 108 | E8: =IF(VLOOKUP($D8,invullijst!$A$11:$M$185,2,FALSE)="","",VLOOKUP($D8,invullijst!$A$11:$M$185,2,FALSE)) -> Bram Pullens | G8: =IF(VLOOKUP($D8,invullijst!$A$11:$M$185,9,FALSE)=0,"",VLOOKUP($D8,invullijst!$A$11:$M$185,9,FALSE)) -> 84 | I8: 3 | J8: =IF($O$3="k",IF(VLOOKUP($L8,invullijst!$A$11:$M$185,11,FALSE)=0," ",VLOOKUP($L8,invullijst!$A$11:$M$185,11,FALSE)),"") -> 31 | K8: =IF(VLOOKUP($L8,invullijst!$A$11:$M$226,4,FALSE)="","",VLOOKUP($L8,invullijst!$A$11:$M$226,4,FALSE)) -> vr | L8: 513 | M8: =IF(VLOOKUP($L8,invullijst!$A$11:$M$185,2,FALSE)="","",VLOOKUP($L8,invullijst!$A$11:$M$185,2,FALSE)) -> Mark van Delft | O8: =IF(VLOOKUP($L8,invullijst!$A$11:$M$185,9,FALSE)=0,"",VLOOKUP($L8,invullijst!$A$11:$M$185,9,FALSE)) -> 80
A9: 4 | B9: =IF($G$3="k",IF(VLOOKUP($D9,invullijst!$A$11:$M$185,11,FALSE)=0," ",VLOOKUP($D9,invullijst!$A$11:$M$185,11,FALSE)),"") -> 35 | C9: =IF(VLOOKUP(D9,invullijst!A$11:F$226,4,FALSE)="","",VLOOKUP(D9,invullijst!A$11:D$226,4,FALSE)) -> vr | D9: 109 | E9: =IF(VLOOKUP($D9,invullijst!$A$11:$M$185,2,FALSE)="","",VLOOKUP($D9,invullijst!$A$11:$M$185,2,FALSE)) -> Gijs Pullens | G9: =IF(VLOOKUP($D9,invullijst!$A$11:$M$185,9,FALSE)=0,"",VLOOKUP($D9,invullijst!$A$11:$M$185,9,FALSE)) -> 75 | I9: 4 | J9: =IF($O$3="k",IF(VLOOKUP($L9,invullijst!$A$11:$M$185,11,FALSE)=0," ",VLOOKUP($L9,invullijst!$A$11:$M$185,11,FALSE)),"") -> 34 | K9: =IF(VLOOKUP($L9,invullijst!$A$11:$M$226,4,FALSE)="","",VLOOKUP($L9,invullijst!$A$11:$M$226,4,FALSE)) -> vr | L9: 508 | M9: =IF(VLOOKUP($L9,invullijst!$A$11:$M$185,2,FALSE)="","",VLOOKUP($L9,invullijst!$A$11:$M$185,2,FALSE)) -> Rowan Dobbelsteen | O9: =IF(VLOOKUP($L9,invullijst!$A$11:$M$185,9,FALSE)=0,"",VLOOKUP($L9,invullijst!$A$11:$M$185,9,FALSE)) -> 77
A10: Totaal A korps | G10: =SUM(G6:G9) -> 316 | I10: Totaal A korps | O10: =SUM(O6:O9) -> 308
A12: 1 | B12: =IF($G$3="k",IF(VLOOKUP($D12,invullijst!$A$11:$M$185,11,FALSE)=0," ",VLOOKUP($D12,invullijst!$A$11:$M$185,11,FALSE)),"") -> 22 | C12: =IF(VLOOKUP(D12,invullijst!A$11:F$226,4,FALSE)="","",VLOOKUP(D12,invullijst!A$11:D$226,4,FALSE)) -> vr | D12: 102 | E12: =IF(VLOOKUP($D12,invullijst!$A$11:$M$185,2,FALSE)="","",VLOOKUP($D12,invullijst!$A$11:$M$185,2,FALSE)) -> John de Jong | G12: =IF(VLOOKUP($D12,invullijst!$A$11:$M$185,9,FALSE)=0,"",VLOOKUP($D12,invullijst!$A$11:$M$185,9,FALSE)) -> 60 | I12: 1 | J12: =IF($O$3="k",IF(VLOOKUP($L12,invullijst!$A$11:$M$185,11,FALSE)=0," ",VLOOKUP($L12,invullijst!$A$11:$M$185,11,FALSE)),"") -> 20 | K12: =IF(VLOOKUP($L12,invullijst!$A$11:$M$226,4,FALSE)="","",VLOOKUP($L12,invullijst!$A$11:$M$226,4,FALSE)) -> vr | L12: 517 | M12: =IF(VLOOKUP($L12,invullijst!$A$11:$M$185,2,FALSE)="","",VLOOKUP($L12,invullijst!$A$11:$M$185,2,FALSE)) -> Diny Vos | O12: =IF(VLOOKUP($L12,invullijst!$A$11:$M$185,9,FALSE)=0,"",VLOOKUP($L12,invullijst!$A$11:$M$185,9,FALSE)) -> 59
A13: 2 | B13: =IF($G$3="k",IF(VLOOKUP($D13,invullijst!$A$11:$M$185,11,FALSE)=0," ",VLOOKUP($D13,invullijst!$A$11:$M$185,11,FALSE)),"") -> 36 | C13: =IF(VLOOKUP(D13,invullijst!A$11:F$226,4,FALSE)="","",VLOOKUP(D13,invullijst!A$11:D$226,4,FALSE)) -> vr | D13: 101 | E13: =IF(VLOOKUP($D13,invullijst!$A$11:$M$185,2,FALSE)="","",VLOOKUP($D13,invullijst!$A$11:$M$185,2,FALSE)) -> Antwan van Buul | G13: =IF(VLOOKUP($D13,invullijst!$A$11:$M$185,9,FALSE)=0,"",VLOOKUP($D13,invullijst!$A$11:$M$185,9,FALSE)) -> 60 | I13: 2 | J13: =IF($O$3="k",IF(VLOOKUP($L13,invullijst!$A$11:$M$185,11,FALSE)=0," ",VLOOKUP($L13,invullijst!$A$11:$M$185,11,FALSE)),"") -> 35 | K13: =IF(VLOOKUP($L13,invullijst!$A$11:$M$226,4,FALSE)="","",VLOOKUP($L13,invullijst!$A$11:$M$226,4,FALSE)) -> vr | L13: 512 | M13: =IF(VLOOKUP($L13,invullijst!$A$11:$M$185,2,FALSE)="","",VLOOKUP($L13,invullijst!$A$11:$M$185,2,FALSE)) -> Hans Bergakker | O13: =IF(VLOOKUP($L13,invullijst!$A$11:$M$185,9,FALSE)=0,"",VLOOKUP($L13,invullijst!$A$11:$M$185,9,FALSE)) -> 73
A14: 3 | B14: =IF($G$3="k",IF(VLOOKUP($D14,invullijst!$A$11:$M$185,11,FALSE)=0," ",VLOOKUP($D14,invullijst!$A$11:$M$185,11,FALSE)),"") -> 28 | C14: =IF(VLOOKUP(D14,invullijst!A$11:F$226,4,FALSE)="","",VLOOKUP(D14,invullijst!A$11:D$226,4,FALSE)) -> vr | D14: 103 | E14: =IF(VLOOKUP($D14,invullijst!$A$11:$M$185,2,FALSE)="","",VLOOKUP($D14,invullijst!$A$11:$M$185,2,FALSE)) -> Norbert van Buul | G14: =IF(VLOOKUP($D14,invullijst!$A$11:$M$185,9,FALSE)=0,"",VLOOKUP($D14,invullijst!$A$11:$M$185,9,FALSE)) -> 63 | I14: 3 | J14: =IF($O$3="k",IF(VLOOKUP($L14,invullijst!$A$11:$M$185,11,FALSE)=0," ",VLOOKUP($L14,invullijst!$A$11:$M$185,11,FALSE)),"") -> 31 | K14: =IF(VLOOKUP($L14,invullijst!$A$11:$M$226,4,FALSE)="","",VLOOKUP($L14,invullijst!$A$11:$M$226,4,FALSE)) -> vr | L14: 507 | M14: =IF(VLOOKUP($L14,invullijst!$A$11:$M$185,2,FALSE)="","",VLOOKUP($L14,invullijst!$A$11:$M$185,2,FALSE)) -> Michael Blaauwbroek | O14: =IF(VLOOKUP($L14,invullijst!$A$11:$M$185,9,FALSE)=0,"",VLOOKUP($L14,invullijst!$A$11:$M$185,9,FALSE)) -> 83
A15: 4 | B15: =IF($G$3="k",IF(VLOOKUP($D15,invullijst!$A$11:$M$185,11,FALSE)=0," ",VLOOKUP($D15,invullijst!$A$11:$M$185,11,FALSE)),"") ->  | C15: =IF(VLOOKUP(D15,invullijst!A$11:F$226,4,FALSE)="","",VLOOKUP(D15,invullijst!A$11:D$226,4,FALSE)) -> 0 | E15: =IF(VLOOKUP($D15,invullijst!$A$11:$M$185,2,FALSE)="","",VLOOKUP($D15,invullijst!$A$11:$M$185,2,FALSE)) -> 0 | G15: =IF(VLOOKUP($D15,invullijst!$A$11:$M$185,9,FALSE)=0,"",VLOOKUP($D15,invullijst!$A$11:$M$185,9,FALSE)) ->  | I15: 4 | J15: =IF($O$3="k",IF(VLOOKUP($L15,invullijst!$A$11:$M$185,11,FALSE)=0," ",VLOOKUP($L15,invullijst!$A$11:$M$185,11,FALSE)),"") ->  | K15: =IF(VLOOKUP($L15,invullijst!$A$11:$M$226,4,FALSE)="","",VLOOKUP($L15,invullijst!$A$11:$M$226,4,FALSE)) -> 0 | M15: =IF(VLOOKUP($L15,invullijst!$A$11:$M$185,2,FALSE)="","",VLOOKUP($L15,invullijst!$A$11:$M$185,2,FALSE)) -> 0 | O15: =IF(VLOOKUP($L15,invullijst!$A$11:$M$185,9,FALSE)=0,"",VLOOKUP($L15,invullijst!$A$11:$M$185,9,FALSE)) -> 
A16: Totaal B1 korps | G16: =SUM(G12:G15) -> 183 | I16: Totaal B1 korps | O16: =SUM(O12:O15) -> 215
A18: 1 | B18: =IF($G$3="k",IF(VLOOKUP($D18,invullijst!$A$11:$M$185,11,FALSE)=0," ",VLOOKUP($D18,invullijst!$A$11:$M$185,11,FALSE)),"") ->  | C18: =IF(VLOOKUP(D18,invullijst!A$11:F$226,4,FALSE)="","",VLOOKUP(D18,invullijst!A$11:D$226,4,FALSE)) -> 0 | E18: =IF(VLOOKUP($D18,invullijst!$A$11:$M$185,2,FALSE)="","",VLOOKUP($D18,invullijst!$A$11:$M$185,2,FALSE)) -> 0 | G18: =IF(VLOOKUP($D18,invullijst!$A$11:$M$185,9,FALSE)=0,"",VLOOKUP($D18,invullijst!$A$11:$M$185,9,FALSE)) ->  | I18: 1 | J18: =IF($O$3="k",IF(VLOOKUP($L18,invullijst!$A$11:$M$185,11,FALSE)=0," ",VLOOKUP($L18,invullijst!$A$11:$M$185,11,FALSE)),"") ->  | K18: =IF(VLOOKUP($L18,invullijst!$A$11:$M$226,4,FALSE)="","",VLOOKUP($L18,invullijst!$A$11:$M$226,4,FALSE)) -> 0 | M18: =IF(VLOOKUP($L18,invullijst!$A$11:$M$185,2,FALSE)="","",VLOOKUP($L18,invullijst!$A$11:$M$185,2,FALSE)) -> 0 | O18: =IF(VLOOKUP($L18,invullijst!$A$11:$M$185,9,FALSE)=0,"",VLOOKUP($L18,invullijst!$A$11:$M$185,9,FALSE)) -> 
A19: 2 | B19: inh | C19: =IF(VLOOKUP(D19,invullijst!A$11:F$226,4,FALSE)="","",VLOOKUP(D19,invullijst!A$11:D$226,4,FALSE)) -> vr | D19: 101 | E19: =IF(VLOOKUP($D19,invullijst!$A$11:$M$185,2,FALSE)="","",VLOOKUP($D19,invullijst!$A$11:$M$185,2,FALSE)) -> Antwan van Buul | G19: 67 | I19: 2 | J19: =IF($O$3="k",IF(VLOOKUP($L19,invullijst!$A$11:$M$185,11,FALSE)=0," ",VLOOKUP($L19,invullijst!$A$11:$M$185,11,FALSE)),"") ->  | K19: =IF(VLOOKUP($L19,invullijst!$A$11:$M$226,4,FALSE)="","",VLOOKUP($L19,invullijst!$A$11:$M$226,4,FALSE)) -> 0 | M19: =IF(VLOOKUP($L19,invullijst!$A$11:$M$185,2,FALSE)="","",VLOOKUP($L19,invullijst!$A$11:$M$185,2,FALSE)) -> 0 | O19: =IF(VLOOKUP($L19,invullijst!$A$11:$M$185,9,FALSE)=0,"",VLOOKUP($L19,invullijst!$A$11:$M$185,9,FALSE)) -> 
A20: 3 | B20: =IF($G$3="k",IF(VLOOKUP($D20,invullijst!$A$11:$M$185,11,FALSE)=0," ",VLOOKUP($D20,invullijst!$A$11:$M$185,11,FALSE)),"") ->  | C20: =IF(VLOOKUP(D20,invullijst!A$11:F$226,4,FALSE)="","",VLOOKUP(D20,invullijst!A$11:D$226,4,FALSE)) -> 0 | E20: =IF(VLOOKUP($D20,invullijst!$A$11:$M$185,2,FALSE)="","",VLOOKUP($D20,invullijst!$A$11:$M$185,2,FALSE)) -> 0 | G20: =IF(VLOOKUP($D20,invullijst!$A$11:$M$185,9,FALSE)=0,"",VLOOKUP($D20,invullijst!$A$11:$M$185,9,FALSE)) ->  | I20: 3 | J20: =IF($O$3="k",IF(VLOOKUP($L20,invullijst!$A$11:$M$185,11,FALSE)=0," ",VLOOKUP($L20,invullijst!$A$11:$M$185,11,FALSE)),"") ->  | K20: =IF(VLOOKUP($L20,invullijst!$A$11:$M$226,4,FALSE)="","",VLOOKUP($L20,invullijst!$A$11:$M$226,4,FALSE)) -> 0 | M20: =IF(VLOOKUP($L20,invullijst!$A$11:$M$185,2,FALSE)="","",VLOOKUP($L20,invullijst!$A$11:$M$185,2,FALSE)) -> 0 | O20: =IF(VLOOKUP($L20,invullijst!$A$11:$M$185,9,FALSE)=0,"",VLOOKUP($L20,invullijst!$A$11:$M$185,9,FALSE)) -> 
A21: 4 | B21: =IF($G$3="k",IF(VLOOKUP($D21,invullijst!$A$11:$M$185,11,FALSE)=0," ",VLOOKUP($D21,invullijst!$A$11:$M$185,11,FALSE)),"") ->  | C21: =IF(VLOOKUP(D21,invullijst!A$11:F$226,4,FALSE)="","",VLOOKUP(D21,invullijst!A$11:D$226,4,FALSE)) -> 0 | E21: =IF(VLOOKUP($D21,invullijst!$A$11:$M$185,2,FALSE)="","",VLOOKUP($D21,invullijst!$A$11:$M$185,2,FALSE)) -> 0 | G21: =IF(VLOOKUP($D21,invullijst!$A$11:$M$185,9,FALSE)=0,"",VLOOKUP($D21,invullijst!$A$11:$M$185,9,FALSE)) ->  | I21: 4 | J21: =IF($O$3="k",IF(VLOOKUP($L21,invullijst!$A$11:$M$185,11,FALSE)=0," ",VLOOKUP($L21,invullijst!$A$11:$M$185,11,FALSE)),"") ->  | K21: =IF(VLOOKUP($L21,invullijst!$A$11:$M$226,4,FALSE)="","",VLOOKUP($L21,invullijst!$A$11:$M$226,4,FALSE)) -> 0 | M21: =IF(VLOOKUP($L21,invullijst!$A$11:$M$185,2,FALSE)="","",VLOOKUP($L21,invullijst!$A$11:$M$185,2,FALSE)) -> 0 | O21: =IF(VLOOKUP($L21,invullijst!$A$11:$M$185,9,FALSE)=0,"",VLOOKUP($L21,invullijst!$A$11:$M$185,9,FALSE)) -> 
A22: DIVERSEN / INHAAL | I22: DIVERSEN / INHAAL
A24: OPGELEGD (Jeugd <16 en 65+)
A25: 1 | B25: =IF($G$3="k",IF(VLOOKUP($D25,invullijst!$A$11:$M$185,11,FALSE)=0," ",VLOOKUP($D25,invullijst!$A$11:$M$185,11,FALSE)),"") -> 37 | C25: =IF(VLOOKUP(D25,invullijst!A$11:F$226,4,FALSE)="","",VLOOKUP(D25,invullijst!A$11:D$226,4,FALSE)) -> 65+ | D25: 107 | E25: =IF(VLOOKUP($D25,invullijst!$A$11:$M$185,2,FALSE)="","",VLOOKUP($D25,invullijst!$A$11:$M$185,2,FALSE)) -> Cees Coppens | G25: =IF(VLOOKUP($D25,invullijst!$A$11:$M$185,9,FALSE)=0,"",VLOOKUP($D25,invullijst!$A$11:$M$185,9,FALSE)) -> 82 | I25: 1 | J25: =IF($O$3="k",IF(VLOOKUP($L25,invullijst!$A$11:$M$185,11,FALSE)=0," ",VLOOKUP($L25,invullijst!$A$11:$M$185,11,FALSE)),"") -> 47 | K25: =IF(VLOOKUP($L25,invullijst!$A$11:$M$226,4,FALSE)="","",VLOOKUP($L25,invullijst!$A$11:$M$226,4,FALSE)) -> 65+ | L25: 516 | M25: =IF(VLOOKUP($L25,invullijst!$A$11:$M$185,2,FALSE)="","",VLOOKUP($L25,invullijst!$A$11:$M$185,2,FALSE)) -> Henry Bergakker disp | O25: =IF(VLOOKUP($L25,invullijst!$A$11:$M$185,9,FALSE)=0,"",VLOOKUP($L25,invullijst!$A$11:$M$185,9,FALSE)) -> 90
A26: 2 | B26: =IF($G$3="k",IF(VLOOKUP($D26,invullijst!$A$11:$M$185,11,FALSE)=0," ",VLOOKUP($D26,invullijst!$A$11:$M$185,11,FALSE)),"") -> 20 | C26: =IF(VLOOKUP(D26,invullijst!A$11:F$226,4,FALSE)="","",VLOOKUP(D26,invullijst!A$11:D$226,4,FALSE)) -> 65+ | D26: 112 | E26: =IF(VLOOKUP($D26,invullijst!$A$11:$M$185,2,FALSE)="","",VLOOKUP($D26,invullijst!$A$11:$M$185,2,FALSE)) -> Toon van Buul | G26: =IF(VLOOKUP($D26,invullijst!$A$11:$M$185,9,FALSE)=0,"",VLOOKUP($D26,invullijst!$A$11:$M$185,9,FALSE)) -> 67 | I26: 2 | J26: =IF($O$3="k",IF(VLOOKUP($L26,invullijst!$A$11:$M$185,11,FALSE)=0," ",VLOOKUP($L26,invullijst!$A$11:$M$185,11,FALSE)),"") -> 40 | K26: =IF(VLOOKUP($L26,invullijst!$A$11:$M$226,4,FALSE)="","",VLOOKUP($L26,invullijst!$A$11:$M$226,4,FALSE)) -> 65+ | L26: 509 | M26: =IF(VLOOKUP($L26,invullijst!$A$11:$M$185,2,FALSE)="","",VLOOKUP($L26,invullijst!$A$11:$M$185,2,FALSE)) -> Adwan de Pinth | O26: =IF(VLOOKUP($L26,invullijst!$A$11:$M$185,9,FALSE)=0,"",VLOOKUP($L26,invullijst!$A$11:$M$185,9,FALSE)) -> 96
A27: 3 | B27: =IF($G$3="k",IF(VLOOKUP($D27,invullijst!$A$11:$M$185,11,FALSE)=0," ",VLOOKUP($D27,invullijst!$A$11:$M$185,11,FALSE)),"") -> 37 | C27: =IF(VLOOKUP(D27,invullijst!A$11:F$226,4,FALSE)="","",VLOOKUP(D27,invullijst!A$11:D$226,4,FALSE)) -> 65+ | D27: 104 | E27: =IF(VLOOKUP($D27,invullijst!$A$11:$M$185,2,FALSE)="","",VLOOKUP($D27,invullijst!$A$11:$M$185,2,FALSE)) -> Peter Brekelmans | G27: =IF(VLOOKUP($D27,invullijst!$A$11:$M$185,9,FALSE)=0,"",VLOOKUP($D27,invullijst!$A$11:$M$185,9,FALSE)) -> 84 | I27: 3 | J27: =IF($O$3="k",IF(VLOOKUP($L27,invullijst!$A$11:$M$185,11,FALSE)=0," ",VLOOKUP($L27,invullijst!$A$11:$M$185,11,FALSE)),"") -> 44 | K27: =IF(VLOOKUP($L27,invullijst!$A$11:$M$226,4,FALSE)="","",VLOOKUP($L27,invullijst!$A$11:$M$226,4,FALSE)) -> 65+ | L27: 515 | M27: =IF(VLOOKUP($L27,invullijst!$A$11:$M$185,2,FALSE)="","",VLOOKUP($L27,invullijst!$A$11:$M$185,2,FALSE)) -> Ilona Bergakker disp | O27: =IF(VLOOKUP($L27,invullijst!$A$11:$M$185,9,FALSE)=0,"",VLOOKUP($L27,invullijst!$A$11:$M$185,9,FALSE)) -> 85
A28: Totaal korps opgelegd A1 | G28: =SUM(G25:G27) -> 233 | I28: Totaal korps opgelegd A1 | O28: =SUM(O25:O27) -> 271
A30: 1 | B30: =IF($G$3="k",IF(VLOOKUP($D30,invullijst!$A$11:$M$185,11,FALSE)=0," ",VLOOKUP($D30,invullijst!$A$11:$M$185,11,FALSE)),"") ->  | C30: =IF(VLOOKUP(D30,invullijst!A$11:F$226,4,FALSE)="","",VLOOKUP(D30,invullijst!A$11:D$226,4,FALSE)) -> 0 | E30: =IF(VLOOKUP($D30,invullijst!$A$11:$M$185,2,FALSE)="","",VLOOKUP($D30,invullijst!$A$11:$M$185,2,FALSE)) -> 0 | G30: =IF(VLOOKUP($D30,invullijst!$A$11:$M$185,9,FALSE)=0,"",VLOOKUP($D30,invullijst!$A$11:$M$185,9,FALSE)) ->  | I30: 1 | J30: =IF($O$3="k",IF(VLOOKUP($L30,invullijst!$A$11:$M$185,11,FALSE)=0," ",VLOOKUP($L30,invullijst!$A$11:$M$185,11,FALSE)),"") ->  | K30: =IF(VLOOKUP($L30,invullijst!$A$11:$M$226,4,FALSE)="","",VLOOKUP($L30,invullijst!$A$11:$M$226,4,FALSE)) -> 0 | M30: =IF(VLOOKUP($L30,invullijst!$A$11:$M$185,2,FALSE)="","",VLOOKUP($L30,invullijst!$A$11:$M$185,2,FALSE)) -> 0 | O30: =IF(VLOOKUP($L30,invullijst!$A$11:$M$185,9,FALSE)=0,"",VLOOKUP($L30,invullijst!$A$11:$M$185,9,FALSE)) -> 
A31: 2 | B31: =IF($G$3="k",IF(VLOOKUP($D31,invullijst!$A$11:$M$185,11,FALSE)=0," ",VLOOKUP($D31,invullijst!$A$11:$M$185,11,FALSE)),"") ->  | C31: =IF(VLOOKUP(D31,invullijst!A$11:F$226,4,FALSE)="","",VLOOKUP(D31,invullijst!A$11:D$226,4,FALSE)) -> 0 | E31: =IF(VLOOKUP($D31,invullijst!$A$11:$M$185,2,FALSE)="","",VLOOKUP($D31,invullijst!$A$11:$M$185,2,FALSE)) -> 0 | G31: =IF(VLOOKUP($D31,invullijst!$A$11:$M$185,9,FALSE)=0,"",VLOOKUP($D31,invullijst!$A$11:$M$185,9,FALSE)) ->  | I31: 2 | J31: =IF($O$3="k",IF(VLOOKUP($L31,invullijst!$A$11:$M$185,11,FALSE)=0," ",VLOOKUP($L31,invullijst!$A$11:$M$185,11,FALSE)),"") ->  | K31: =IF(VLOOKUP($L31,invullijst!$A$11:$M$226,4,FALSE)="","",VLOOKUP($L31,invullijst!$A$11:$M$226,4,FALSE)) -> 0 | M31: =IF(VLOOKUP($L31,invullijst!$A$11:$M$185,2,FALSE)="","",VLOOKUP($L31,invullijst!$A$11:$M$185,2,FALSE)) -> 0 | O31: =IF(VLOOKUP($L31,invullijst!$A$11:$M$185,9,FALSE)=0,"",VLOOKUP($L31,invullijst!$A$11:$M$185,9,FALSE)) -> 
A32: 3 | B32: =IF($G$3="k",IF(VLOOKUP($D32,invullijst!$A$11:$M$185,11,FALSE)=0," ",VLOOKUP($D32,invullijst!$A$11:$M$185,11,FALSE)),"") ->  | C32: =IF(VLOOKUP(D32,invullijst!A$11:F$226,4,FALSE)="","",VLOOKUP(D32,invullijst!A$11:D$226,4,FALSE)) -> 0 | E32: =IF(VLOOKUP($D32,invullijst!$A$11:$M$185,2,FALSE)="","",VLOOKUP($D32,invullijst!$A$11:$M$185,2,FALSE)) -> 0 | G32: =IF(VLOOKUP($D32,invullijst!$A$11:$M$185,9,FALSE)=0,"",VLOOKUP($D32,invullijst!$A$11:$M$185,9,FALSE)) ->  | I32: 3 | J32: =IF($O$3="k",IF(VLOOKUP($L32,invullijst!$A$11:$M$185,11,FALSE)=0," ",VLOOKUP($L32,invullijst!$A$11:$M$185,11,FALSE)),"") ->  | K32: =IF(VLOOKUP($L32,invullijst!$A$11:$M$226,4,FALSE)="","",VLOOKUP($L32,invullijst!$A$11:$M$226,4,FALSE)) -> 0 | M32: =IF(VLOOKUP($L32,invullijst!$A$11:$M$185,2,FALSE)="","",VLOOKUP($L32,invullijst!$A$11:$M$185,2,FALSE)) -> 0 | O32: =IF(VLOOKUP($L32,invullijst!$A$11:$M$185,9,FALSE)=0,"",VLOOKUP($L32,invullijst!$A$11:$M$185,9,FALSE)) -> 
A33: Totaal korps opgelegd A2 | G33: =SUM(G30:G32) -> 0 | I33: Totaal korps opgelegd A2 | O33: =SUM(O30:O32) -> 0
A35: 1 | B35: =IF($G$3="k",IF(VLOOKUP($D35,invullijst!$A$11:$M$185,11,FALSE)=0," ",VLOOKUP($D35,invullijst!$A$11:$M$185,11,FALSE)),"") ->  | C35: =IF(VLOOKUP(D35,invullijst!A$11:F$226,4,FALSE)="","",VLOOKUP(D35,invullijst!A$11:D$226,4,FALSE)) -> 0 | E35: =IF(VLOOKUP($D35,invullijst!$A$11:$M$185,2,FALSE)="","",VLOOKUP($D35,invullijst!$A$11:$M$185,2,FALSE)) -> 0 | G35: =IF(VLOOKUP($D35,invullijst!$A$11:$M$185,9,FALSE)=0,"",VLOOKUP($D35,invullijst!$A$11:$M$185,9,FALSE)) ->  | I35: 1 | J35: =IF($O$3="k",IF(VLOOKUP($L35,invullijst!$A$11:$M$185,11,FALSE)=0," ",VLOOKUP($L35,invullijst!$A$11:$M$185,11,FALSE)),"") ->  | K35: =IF(VLOOKUP($L35,invullijst!$A$11:$M$226,4,FALSE)="","",VLOOKUP($L35,invullijst!$A$11:$M$226,4,FALSE)) -> 0 | M35: =IF(VLOOKUP($L35,invullijst!$A$11:$M$185,2,FALSE)="","",VLOOKUP($L35,invullijst!$A$11:$M$185,2,FALSE)) -> 0 | O35: =IF(VLOOKUP($L35,invullijst!$A$11:$M$185,9,FALSE)=0,"",VLOOKUP($L35,invullijst!$A$11:$M$185,9,FALSE)) -> 
A36: 2 | B36: =IF($G$3="k",IF(VLOOKUP($D36,invullijst!$A$11:$M$185,11,FALSE)=0," ",VLOOKUP($D36,invullijst!$A$11:$M$185,11,FALSE)),"") ->  | C36: =IF(VLOOKUP(D36,invullijst!A$11:F$226,4,FALSE)="","",VLOOKUP(D36,invullijst!A$11:D$226,4,FALSE)) -> 0 | E36: =IF(VLOOKUP($D36,invullijst!$A$11:$M$185,2,FALSE)="","",VLOOKUP($D36,invullijst!$A$11:$M$185,2,FALSE)) -> 0 | G36: =IF(VLOOKUP($D36,invullijst!$A$11:$M$185,9,FALSE)=0,"",VLOOKUP($D36,invullijst!$A$11:$M$185,9,FALSE)) ->  | I36: 2 | J36: =IF($O$3="k",IF(VLOOKUP($L36,invullijst!$A$11:$M$185,11,FALSE)=0," ",VLOOKUP($L36,invullijst!$A$11:$M$185,11,FALSE)),"") ->  | K36: =IF(VLOOKUP($L36,invullijst!$A$11:$M$226,4,FALSE)="","",VLOOKUP($L36,invullijst!$A$11:$M$226,4,FALSE)) -> 0 | M36: =IF(VLOOKUP($L36,invullijst!$A$11:$M$185,2,FALSE)="","",VLOOKUP($L36,invullijst!$A$11:$M$185,2,FALSE)) -> 0 | O36: =IF(VLOOKUP($L36,invullijst!$A$11:$M$185,9,FALSE)=0,"",VLOOKUP($L36,invullijst!$A$11:$M$185,9,FALSE)) -> 
A37: 3 | B37: =IF($G$3="k",IF(VLOOKUP($D37,invullijst!$A$11:$M$185,11,FALSE)=0," ",VLOOKUP($D37,invullijst!$A$11:$M$185,11,FALSE)),"") ->  | C37: =IF(VLOOKUP(D37,invullijst!A$11:F$226,4,FALSE)="","",VLOOKUP(D37,invullijst!A$11:D$226,4,FALSE)) -> 0 | E37: =IF(VLOOKUP($D37,invullijst!$A$11:$M$185,2,FALSE)="","",VLOOKUP($D37,invullijst!$A$11:$M$185,2,FALSE)) -> 0 | G37: =IF(VLOOKUP($D37,invullijst!$A$11:$M$185,9,FALSE)=0,"",VLOOKUP($D37,invullijst!$A$11:$M$185,9,FALSE)) ->  | I37: 3 | J37: =IF($O$3="k",IF(VLOOKUP($L37,invullijst!$A$11:$M$185,11,FALSE)=0," ",VLOOKUP($L37,invullijst!$A$11:$M$185,11,FALSE)),"") ->  | K37: =IF(VLOOKUP($L37,invullijst!$A$11:$M$226,4,FALSE)="","",VLOOKUP($L37,invullijst!$A$11:$M$226,4,FALSE)) -> 0 | M37: =IF(VLOOKUP($L37,invullijst!$A$11:$M$185,2,FALSE)="","",VLOOKUP($L37,invullijst!$A$11:$M$185,2,FALSE)) -> 0 | O37: =IF(VLOOKUP($L37,invullijst!$A$11:$M$185,9,FALSE)=0,"",VLOOKUP($L37,invullijst!$A$11:$M$185,9,FALSE)) -> 
A38: Totaal korps opgelegd A3 | G38: =SUM(G35:G37) -> 0 | I38: Totaal korps opgelegd A3 | O38: =SUM(O35:O37) -> 0

Sheet wedstrijd 5A
A1: =invullijst!F1 -> Organistatie | F1: =invullijst!H2 -> 2024 - 2025 | I1: =invullijst!F3 -> O.L.V. Schuts Elshout
A2: Datum: | M2: 2024-03-16
A3: 1 | B3: =IF(VLOOKUP(A3,invullijst!A1:F5,2,FALSE)="","",VLOOKUP(A3,invullijst!A1:F5,2,FALSE)) -> Sint Ambrosius Baardwijk | I3: 2 | J3: =IF(VLOOKUP(I3,invullijst!A1:C5,2,FALSE)="","",VLOOKUP(I3,invullijst!A1:C5,2,FALSE)) -> St. Crispinus & Crispinianus Besoijen
A5: vrijehand
A6: 1 | B6: =IF($G$3="k",IF(VLOOKUP($D6,invullijst!$A$11:$M$185,11,FALSE)=0," ",VLOOKUP($D6,invullijst!$A$11:$M$185,11,FALSE)),"") ->  | C6: =IF(VLOOKUP(D6,invullijst!A$11:F$226,4,FALSE)="","",VLOOKUP(D6,invullijst!A$11:D$226,4,FALSE)) -> vr | D6: 105 | E6: =IF(VLOOKUP($D6,invullijst!$A$11:$M$185,2,FALSE)="","",VLOOKUP($D6,invullijst!$A$11:$M$185,2,FALSE)) -> René Klijn | G6: =IF(VLOOKUP($D6,invullijst!$A$11:$M$185,10,FALSE)=0,"",VLOOKUP($D6,invullijst!$A$11:$M$185,10,FALSE)) -> 88 | I6: 1 | J6: =IF($O$3="k",IF(VLOOKUP($L6,invullijst!$A$11:$M$185,11,FALSE)=0," ",VLOOKUP($L6,invullijst!$A$11:$M$185,11,FALSE)),"") ->  | K6: =IF(VLOOKUP($L6,invullijst!$A$11:$M$226,4,FALSE)="","",VLOOKUP($L6,invullijst!$A$11:$M$226,4,FALSE)) -> vr | L6: 210 | M6: =IF(VLOOKUP($L6,invullijst!$A$11:$M$185,2,FALSE)="","",VLOOKUP($L6,invullijst!$A$11:$M$185,2,FALSE)) -> Sander Oome | O6: =IF(VLOOKUP($L6,invullijst!$A$11:$M$185,10,FALSE)=0,"",VLOOKUP($L6,invullijst!$A$11:$M$185,10,FALSE)) -> 90
A7: 2 | B7: =IF($G$3="k",IF(VLOOKUP($D7,invullijst!$A$11:$M$185,11,FALSE)=0," ",VLOOKUP($D7,invullijst!$A$11:$M$185,11,FALSE)),"") ->  | C7: =IF(VLOOKUP(D7,invullijst!A$11:F$226,4,FALSE)="","",VLOOKUP(D7,invullijst!A$11:D$226,4,FALSE)) -> vr | D7: 106 | E7: =IF(VLOOKUP($D7,invullijst!$A$11:$M$185,2,FALSE)="","",VLOOKUP($D7,invullijst!$A$11:$M$185,2,FALSE)) -> René Pullens | G7: =IF(VLOOKUP($D7,invullijst!$A$11:$M$185,10,FALSE)=0,"",VLOOKUP($D7,invullijst!$A$11:$M$185,10,FALSE)) -> 77 | I7: 2 | J7: =IF($O$3="k",IF(VLOOKUP($L7,invullijst!$A$11:$M$185,11,FALSE)=0," ",VLOOKUP($L7,invullijst!$A$11:$M$185,11,FALSE)),"") ->  | K7: =IF(VLOOKUP($L7,invullijst!$A$11:$M$226,4,FALSE)="","",VLOOKUP($L7,invullijst!$A$11:$M$226,4,FALSE)) -> vr | L7: 207 | M7: =IF(VLOOKUP($L7,invullijst!$A$11:$M$185,2,FALSE)="","",VLOOKUP($L7,invullijst!$A$11:$M$185,2,FALSE)) -> Max de Louw | O7: =IF(VLOOKUP($L7,invullijst!$A$11:$M$185,10,FALSE)=0,"",VLOOKUP($L7,invullijst!$A$11:$M$185,10,FALSE)) -> 89
A8: 3 | B8: =IF($G$3="k",IF(VLOOKUP($D8,invullijst!$A$11:$M$185,11,FALSE)=0," ",VLOOKUP($D8,invullijst!$A$11:$M$185,11,FALSE)),"") ->  | C8: =IF(VLOOKUP(D8,invullijst!A$11:F$226,4,FALSE)="","",VLOOKUP(D8,invullijst!A$11:D$226,4,FALSE)) -> vr | D8: 108 | E8: =IF(VLOOKUP($D8,invullijst!$A$11:$M$185,2,FALSE)="","",VLOOKUP($D8,invullijst!$A$11:$M$185,2,FALSE)) -> Bram Pullens | G8: =IF(VLOOKUP($D8,invullijst!$A$11:$M$185,10,FALSE)=0,"",VLOOKUP($D8,invullijst!$A$11:$M$185,10,FALSE)) -> 80 | I8: 3 | J8: =IF($O$3="k",IF(VLOOKUP($L8,invullijst!$A$11:$M$185,11,FALSE)=0," ",VLOOKUP($L8,invullijst!$A$11:$M$185,11,FALSE)),"") ->  | K8: =IF(VLOOKUP($L8,invullijst!$A$11:$M$226,4,FALSE)="","",VLOOKUP($L8,invullijst!$A$11:$M$226,4,FALSE)) -> vr | L8: 216 | M8: =IF(VLOOKUP($L8,invullijst!$A$11:$M$185,2,FALSE)="","",VLOOKUP($L8,invullijst!$A$11:$M$185,2,FALSE)) -> Pieter Laghuwitz | O8: =IF(VLOOKUP($L8,invullijst!$A$11:$M$185,10,FALSE)=0,"",VLOOKUP($L8,invullijst!$A$11:$M$185,10,FALSE)) -> 90
A9: 4 | B9: =IF($G$3="k",IF(VLOOKUP($D9,invullijst!$A$11:$M$185,11,FALSE)=0," ",VLOOKUP($D9,invullijst!$A$11:$M$185,11,FALSE)),"") ->  | C9: =IF(VLOOKUP(D9,invullijst!A$11:F$226,4,FALSE)="","",VLOOKUP(D9,invullijst!A$11:D$226,4,FALSE)) -> vr | D9: 109 | E9: =IF(VLOOKUP($D9,invullijst!$A$11:$M$185,2,FALSE)="","",VLOOKUP($D9,invullijst!$A$11:$M$185,2,FALSE)) -> Gijs Pullens | G9: =IF(VLOOKUP($D9,invullijst!$A$11:$M$185,10,FALSE)=0,"",VLOOKUP($D9,invullijst!$A$11:$M$185,10,FALSE)) -> 70 | I9: 4 | J9: =IF($O$3="k",IF(VLOOKUP($L9,invullijst!$A$11:$M$185,11,FALSE)=0," ",VLOOKUP($L9,invullijst!$A$11:$M$185,11,FALSE)),"") ->  | K9: =IF(VLOOKUP($L9,invullijst!$A$11:$M$226,4,FALSE)="","",VLOOKUP($L9,invullijst!$A$11:$M$226,4,FALSE)) -> vr | L9: 204 | M9: =IF(VLOOKUP($L9,invullijst!$A$11:$M$185,2,FALSE)="","",VLOOKUP($L9,invullijst!$A$11:$M$185,2,FALSE)) -> Harry de Louw | O9: =IF(VLOOKUP($L9,invullijst!$A$11:$M$185,10,FALSE)=0,"",VLOOKUP($L9,invullijst!$A$11:$M$185,10,FALSE)) -> 74
A10: Totaal A korps | G10: =SUM(G6:G9) -> 315 | I10: Totaal A korps | O10: =SUM(O6:O9) -> 343
A12: 1 | B12: =IF($G$3="k",IF(VLOOKUP($D12,invullijst!$A$11:$M$185,11,FALSE)=0," ",VLOOKUP($D12,invullijst!$A$11:$M$185,11,FALSE)),"") ->  | C12: =IF(VLOOKUP(D12,invullijst!A$11:F$226,4,FALSE)="","",VLOOKUP(D12,invullijst!A$11:D$226,4,FALSE)) -> vr | D12: 102 | E12: =IF(VLOOKUP($D12,invullijst!$A$11:$M$185,2,FALSE)="","",VLOOKUP($D12,invullijst!$A$11:$M$185,2,FALSE)) -> John de Jong | G12: =IF(VLOOKUP($D12,invullijst!$A$11:$M$185,10,FALSE)=0,"",VLOOKUP($D12,invullijst!$A$11:$M$185,10,FALSE)) -> 62 | I12: 1 | J12: =IF($O$3="k",IF(VLOOKUP($L12,invullijst!$A$11:$M$185,11,FALSE)=0," ",VLOOKUP($L12,invullijst!$A$11:$M$185,11,FALSE)),"") ->  | K12: =IF(VLOOKUP($L12,invullijst!$A$11:$M$226,4,FALSE)="","",VLOOKUP($L12,invullijst!$A$11:$M$226,4,FALSE)) -> vr | L12: 203 | M12: =IF(VLOOKUP($L12,invullijst!$A$11:$M$185,2,FALSE)="","",VLOOKUP($L12,invullijst!$A$11:$M$185,2,FALSE)) -> Frank van den Houdt | O12: =IF(VLOOKUP($L12,invullijst!$A$11:$M$185,10,FALSE)=0,"",VLOOKUP($L12,invullijst!$A$11:$M$185,10,FALSE)) -> 75
A13: 2 | B13: =IF($G$3="k",IF(VLOOKUP($D13,invullijst!$A$11:$M$185,11,FALSE)=0," ",VLOOKUP($D13,invullijst!$A$11:$M$185,11,FALSE)),"") ->  | C13: =IF(VLOOKUP(D13,invullijst!A$11:F$226,4,FALSE)="","",VLOOKUP(D13,invullijst!A$11:D$226,4,FALSE)) -> vr | D13: 101 | E13: =IF(VLOOKUP($D13,invullijst!$A$11:$M$185,2,FALSE)="","",VLOOKUP($D13,invullijst!$A$11:$M$185,2,FALSE)) -> Antwan van Buul | G13: =IF(VLOOKUP($D13,invullijst!$A$11:$M$185,10,FALSE)=0,"",VLOOKUP($D13,invullijst!$A$11:$M$185,10,FALSE)) -> 61 | I13: 2 | J13: =IF($O$3="k",IF(VLOOKUP($L13,invullijst!$A$11:$M$185,11,FALSE)=0," ",VLOOKUP($L13,invullijst!$A$11:$M$185,11,FALSE)),"") ->  | K13: =IF(VLOOKUP($L13,invullijst!$A$11:$M$226,4,FALSE)="","",VLOOKUP($L13,invullijst!$A$11:$M$226,4,FALSE)) -> vr | L13: 205 | M13: =IF(VLOOKUP($L13,invullijst!$A$11:$M$185,2,FALSE)="","",VLOOKUP($L13,invullijst!$A$11:$M$185,2,FALSE)) -> Jos v/d Snepscheut | O13: =IF(VLOOKUP($L13,invullijst!$A$11:$M$185,10,FALSE)=0,"",VLOOKUP($L13,invullijst!$A$11:$M$185,10,FALSE)) -> 74
A14: 3 | B14: =IF($G$3="k",IF(VLOOKUP($D14,invullijst!$A$11:$M$185,11,FALSE)=0," ",VLOOKUP($D14,invullijst!$A$11:$M$185,11,FALSE)),"") ->  | C14: =IF(VLOOKUP(D14,invullijst!A$11:F$226,4,FALSE)="","",VLOOKUP(D14,invullijst!A$11:D$226,4,FALSE)) -> vr | D14: 103 | E14: =IF(VLOOKUP($D14,invullijst!$A$11:$M$185,2,FALSE)="","",VLOOKUP($D14,invullijst!$A$11:$M$185,2,FALSE)) -> Norbert van Buul | G14: =IF(VLOOKUP($D14,invullijst!$A$11:$M$185,10,FALSE)=0,"",VLOOKUP($D14,invullijst!$A$11:$M$185,10,FALSE)) -> 59 | I14: 3 | J14: =IF($O$3="k",IF(VLOOKUP($L14,invullijst!$A$11:$M$185,11,FALSE)=0," ",VLOOKUP($L14,invullijst!$A$11:$M$185,11,FALSE)),"") ->  | K14: =IF(VLOOKUP($L14,invullijst!$A$11:$M$226,4,FALSE)="","",VLOOKUP($L14,invullijst!$A$11:$M$226,4,FALSE)) -> vr | L14: 209 | M14: =IF(VLOOKUP($L14,invullijst!$A$11:$M$185,2,FALSE)="","",VLOOKUP($L14,invullijst!$A$11:$M$185,2,FALSE)) -> René van Kuijk | O14: =IF(VLOOKUP($L14,invullijst!$A$11:$M$185,10,FALSE)=0,"",VLOOKUP($L14,invullijst!$A$11:$M$185,10,FALSE)) -> 81
A15: 4 | B15: =IF($G$3="k",IF(VLOOKUP($D15,invullijst!$A$11:$M$185,11,FALSE)=0," ",VLOOKUP($D15,invullijst!$A$11:$M$185,11,FALSE)),"") ->  | C15: =IF(VLOOKUP(D15,invullijst!A$11:F$226,4,FALSE)="","",VLOOKUP(D15,invullijst!A$11:D$226,4,FALSE)) -> 0 | E15: =IF(VLOOKUP($D15,invullijst!$A$11:$M$185,2,FALSE)="","",VLOOKUP($D15,invullijst!$A$11:$M$185,2,FALSE)) -> 0 | G15: =IF(VLOOKUP($D15,invullijst!$A$11:$M$185,10,FALSE)=0,"",VLOOKUP($D15,invullijst!$A$11:$M$185,10,FALSE)) ->  | I15: 4 | J15: =IF($O$3="k",IF(VLOOKUP($L15,invullijst!$A$11:$M$185,11,FALSE)=0," ",VLOOKUP($L15,invullijst!$A$11:$M$185,11,FALSE)),"") ->  | K15: =IF(VLOOKUP($L15,invullijst!$A$11:$M$226,4,FALSE)="","",VLOOKUP($L15,invullijst!$A$11:$M$226,4,FALSE)) -> vr | L15: 208 | M15: =IF(VLOOKUP($L15,invullijst!$A$11:$M$185,2,FALSE)="","",VLOOKUP($L15,invullijst!$A$11:$M$185,2,FALSE)) -> Erin van Hulten | O15: =IF(VLOOKUP($L15,invullijst!$A$11:$M$185,10,FALSE)=0,"",VLOOKUP($L15,invullijst!$A$11:$M$185,10,FALSE)) -> 78
A16: Totaal B1 korps | G16: =SUM(G12:G15) -> 182 | I16: Totaal B1 korps | O16: =SUM(O12:O15) -> 308
A18: 1 | B18: =IF($G$3="k",IF(VLOOKUP($D18,invullijst!$A$11:$M$185,11,FALSE)=0," ",VLOOKUP($D18,invullijst!$A$11:$M$185,11,FALSE)),"") ->  | C18: =IF(VLOOKUP(D18,invullijst!A$11:F$226,4,FALSE)="","",VLOOKUP(D18,invullijst!A$11:D$226,4,FALSE)) -> 0 | E18: =IF(VLOOKUP($D18,invullijst!$A$11:$M$185,2,FALSE)="","",VLOOKUP($D18,invullijst!$A$11:$M$185,2,FALSE)) -> 0 | G18: =IF(VLOOKUP($D18,invullijst!$A$11:$M$185,10,FALSE)=0,"",VLOOKUP($D18,invullijst!$A$11:$M$185,10,FALSE)) ->  | I18: 1 | J18: =IF($O$3="k",IF(VLOOKUP($L18,invullijst!$A$11:$M$185,11,FALSE)=0," ",VLOOKUP($L18,invullijst!$A$11:$M$185,11,FALSE)),"") ->  | K18: =IF(VLOOKUP($L18,invullijst!$A$11:$M$226,4,FALSE)="","",VLOOKUP($L18,invullijst!$A$11:$M$226,4,FALSE)) -> vr | L18: 217 | M18: =IF(VLOOKUP($L18,invullijst!$A$11:$M$185,2,FALSE)="","",VLOOKUP($L18,invullijst!$A$11:$M$185,2,FALSE)) -> Hans Laghuwitz | O18: =IF(VLOOKUP($L18,invullijst!$A$11:$M$185,10,FALSE)=0,"",VLOOKUP($L18,invullijst!$A$11:$M$185,10,FALSE)) -> 72
A19: 2 | B19: =IF($G$3="k",IF(VLOOKUP($D19,invullijst!$A$11:$M$185,11,FALSE)=0," ",VLOOKUP($D19,invullijst!$A$11:$M$185,11,FALSE)),"") ->  | C19: =IF(VLOOKUP(D19,invullijst!A$11:F$226,4,FALSE)="","",VLOOKUP(D19,invullijst!A$11:D$226,4,FALSE)) -> 0 | E19: =IF(VLOOKUP($D19,invullijst!$A$11:$M$185,2,FALSE)="","",VLOOKUP($D19,invullijst!$A$11:$M$185,2,FALSE)) -> 0 | G19: =IF(VLOOKUP($D19,invullijst!$A$11:$M$185,10,FALSE)=0,"",VLOOKUP($D19,invullijst!$A$11:$M$185,10,FALSE)) ->  | I19: 2 | J19: =IF($O$3="k",IF(VLOOKUP($L19,invullijst!$A$11:$M$185,11,FALSE)=0," ",VLOOKUP($L19,invullijst!$A$11:$M$185,11,FALSE)),"") ->  | K19: =IF(VLOOKUP($L19,invullijst!$A$11:$M$226,4,FALSE)="","",VLOOKUP($L19,invullijst!$A$11:$M$226,4,FALSE)) -> vr | L19: 222 | M19: =IF(VLOOKUP($L19,invullijst!$A$11:$M$185,2,FALSE)="","",VLOOKUP($L19,invullijst!$A$11:$M$185,2,FALSE)) -> Nick de Vaan | O19: =IF(VLOOKUP($L19,invullijst!$A$11:$M$185,10,FALSE)=0,"",VLOOKUP($L19,invullijst!$A$11:$M$185,10,FALSE)) -> 82
A20: 3 | B20: =IF($G$3="k",IF(VLOOKUP($D20,invullijst!$A$11:$M$185,11,FALSE)=0," ",VLOOKUP($D20,invullijst!$A$11:$M$185,11,FALSE)),"") ->  | C20: =IF(VLOOKUP(D20,invullijst!A$11:F$226,4,FALSE)="","",VLOOKUP(D20,invullijst!A$11:D$226,4,FALSE)) -> 0 | E20: =IF(VLOOKUP($D20,invullijst!$A$11:$M$185,2,FALSE)="","",VLOOKUP($D20,invullijst!$A$11:$M$185,2,FALSE)) -> 0 | G20: =IF(VLOOKUP($D20,invullijst!$A$11:$M$185,10,FALSE)=0,"",VLOOKUP($D20,invullijst!$A$11:$M$185,10,FALSE)) ->  | I20: 3 | J20: =IF($O$3="k",IF(VLOOKUP($L20,invullijst!$A$11:$M$185,11,FALSE)=0," ",VLOOKUP($L20,invullijst!$A$11:$M$185,11,FALSE)),"") ->  | K20: =IF(VLOOKUP($L20,invullijst!$A$11:$M$226,4,FALSE)="","",VLOOKUP($L20,invullijst!$A$11:$M$226,4,FALSE)) -> vr | L20: 213 | M20: =IF(VLOOKUP($L20,invullijst!$A$11:$M$185,2,FALSE)="","",VLOOKUP($L20,invullijst!$A$11:$M$185,2,FALSE)) -> Roland van Delft | O20: =IF(VLOOKUP($L20,invullijst!$A$11:$M$185,10,FALSE)=0,"",VLOOKUP($L20,invullijst!$A$11:$M$185,10,FALSE)) -> 71
A21: 4 | B21: =IF($G$3="k",IF(VLOOKUP($D21,invullijst!$A$11:$M$185,11,FALSE)=0," ",VLOOKUP($D21,invullijst!$A$11:$M$185,11,FALSE)),"") ->  | C21: =IF(VLOOKUP(D21,invullijst!A$11:F$226,4,FALSE)="","",VLOOKUP(D21,invullijst!A$11:D$226,4,FALSE)) -> 0 | E21: =IF(VLOOKUP($D21,invullijst!$A$11:$M$185,2,FALSE)="","",VLOOKUP($D21,invullijst!$A$11:$M$185,2,FALSE)) -> 0 | G21: =IF(VLOOKUP($D21,invullijst!$A$11:$M$185,10,FALSE)=0,"",VLOOKUP($D21,invullijst!$A$11:$M$185,10,FALSE)) ->  | I21: 4 | J21: =IF($O$3="k",IF(VLOOKUP($L21,invullijst!$A$11:$M$185,11,FALSE)=0," ",VLOOKUP($L21,invullijst!$A$11:$M$185,11,FALSE)),"") ->  | K21: =IF(VLOOKUP($L21,invullijst!$A$11:$M$226,4,FALSE)="","",VLOOKUP($L21,invullijst!$A$11:$M$226,4,FALSE)) -> vr | L21: 202 | M21: =IF(VLOOKUP($L21,invullijst!$A$11:$M$185,2,FALSE)="","",VLOOKUP($L21,invullijst!$A$11:$M$185,2,FALSE)) -> Arco van Kuijk | O21: =IF(VLOOKUP($L21,invullijst!$A$11:$M$185,10,FALSE)=0,"",VLOOKUP($L21,invullijst!$A$11:$M$185,10,FALSE)) -> 76
A22: DIVERSEN / INHAAL | I22: DIVERSEN | O22: =SUM(O18:O21) -> 301
A24: OPGELEGD (Jeugd <16 en 65+)
A25: 1 | B25: =IF($G$3="k",IF(VLOOKUP($D25,invullijst!$A$11:$M$185,11,FALSE)=0," ",VLOOKUP($D25,invullijst!$A$11:$M$185,11,FALSE)),"") ->  | C25: =IF(VLOOKUP(D25,invullijst!A$11:F$226,4,FALSE)="","",VLOOKUP(D25,invullijst!A$11:D$226,4,FALSE)) -> 65+ | D25: 112 | E25: =IF(VLOOKUP($D25,invullijst!$A$11:$M$185,2,FALSE)="","",VLOOKUP($D25,invullijst!$A$11:$M$185,2,FALSE)) -> Toon van Buul | G25: =IF(VLOOKUP($D25,invullijst!$A$11:$M$185,10,FALSE)=0,"",VLOOKUP($D25,invullijst!$A$11:$M$185,10,FALSE)) -> 64 | I25: 1 | J25: =IF($O$3="k",IF(VLOOKUP($L25,invullijst!$A$11:$M$185,11,FALSE)=0," ",VLOOKUP($L25,invullijst!$A$11:$M$185,11,FALSE)),"") ->  | K25: =IF(VLOOKUP($L25,invullijst!$A$11:$M$226,4,FALSE)="","",VLOOKUP($L25,invullijst!$A$11:$M$226,4,FALSE)) -> 65+ | L25: 218 | M25: =IF(VLOOKUP($L25,invullijst!$A$11:$M$185,2,FALSE)="","",VLOOKUP($L25,invullijst!$A$11:$M$185,2,FALSE)) -> Jacob van de Werken | O25: =IF(VLOOKUP($L25,invullijst!$A$11:$M$185,10,FALSE)=0,"",VLOOKUP($L25,invullijst!$A$11:$M$185,10,FALSE)) -> 91
A26: 2 | B26: =IF($G$3="k",IF(VLOOKUP($D26,invullijst!$A$11:$M$185,11,FALSE)=0," ",VLOOKUP($D26,invullijst!$A$11:$M$185,11,FALSE)),"") ->  | C26: =IF(VLOOKUP(D26,invullijst!A$11:F$226,4,FALSE)="","",VLOOKUP(D26,invullijst!A$11:D$226,4,FALSE)) -> 65+ | D26: 107 | E26: =IF(VLOOKUP($D26,invullijst!$A$11:$M$185,2,FALSE)="","",VLOOKUP($D26,invullijst!$A$11:$M$185,2,FALSE)) -> Cees Coppens | G26: =IF(VLOOKUP($D26,invullijst!$A$11:$M$185,10,FALSE)=0,"",VLOOKUP($D26,invullijst!$A$11:$M$185,10,FALSE)) -> 75 | I26: 2 | J26: =IF($O$3="k",IF(VLOOKUP($L26,invullijst!$A$11:$M$185,11,FALSE)=0," ",VLOOKUP($L26,invullijst!$A$11:$M$185,11,FALSE)),"") ->  | K26: =IF(VLOOKUP($L26,invullijst!$A$11:$M$226,4,FALSE)="","",VLOOKUP($L26,invullijst!$A$11:$M$226,4,FALSE)) -> 65+ | L26: 220 | M26: =IF(VLOOKUP($L26,invullijst!$A$11:$M$185,2,FALSE)="","",VLOOKUP($L26,invullijst!$A$11:$M$185,2,FALSE)) -> Kees Vos | O26: =IF(VLOOKUP($L26,invullijst!$A$11:$M$185,10,FALSE)=0,"",VLOOKUP($L26,invullijst!$A$11:$M$185,10,FALSE)) -> 90
A27: 3 | B27: =IF($G$3="k",IF(VLOOKUP($D27,invullijst!$A$11:$M$185,11,FALSE)=0," ",VLOOKUP($D27,invullijst!$A$11:$M$185,11,FALSE)),"") ->  | C27: =IF(VLOOKUP(D27,invullijst!A$11:F$226,4,FALSE)="","",VLOOKUP(D27,invullijst!A$11:D$226,4,FALSE)) -> 0 | E27: =IF(VLOOKUP($D27,invullijst!$A$11:$M$185,2,FALSE)="","",VLOOKUP($D27,invullijst!$A$11:$M$185,2,FALSE)) -> 0 | G27: =IF(VLOOKUP($D27,invullijst!$A$11:$M$185,10,FALSE)=0,"",VLOOKUP($D27,invullijst!$A$11:$M$185,10,FALSE)) ->  | I27: 3 | J27: =IF($O$3="k",IF(VLOOKUP($L27,invullijst!$A$11:$M$185,11,FALSE)=0," ",VLOOKUP($L27,invullijst!$A$11:$M$185,11,FALSE)),"") ->  | K27: =IF(VLOOKUP($L27,invullijst!$A$11:$M$226,4,FALSE)="","",VLOOKUP($L27,invullijst!$A$11:$M$226,4,FALSE)) -> 65+ | L27: 219 | M27: =IF(VLOOKUP($L27,invullijst!$A$11:$M$185,2,FALSE)="","",VLOOKUP($L27,invullijst!$A$11:$M$185,2,FALSE)) -> Frans de Bont | O27: =IF(VLOOKUP($L27,invullijst!$A$11:$M$185,10,FALSE)=0,"",VLOOKUP($L27,invullijst!$A$11:$M$185,10,FALSE)) -> 96
A28: Totaal korps opgelegd A1 | G28: =SUM(G25:G27) -> 139 | I28: Totaal korps opgelegd A1 | O28: =SUM(O25:O27) -> 277
A30: 1 | B30: =IF($G$3="k",IF(VLOOKUP($D30,invullijst!$A$11:$M$185,11,FALSE)=0," ",VLOOKUP($D30,invullijst!$A$11:$M$185,11,FALSE)),"") ->  | C30: =IF(VLOOKUP(D30,invullijst!A$11:F$226,4,FALSE)="","",VLOOKUP(D30,invullijst!A$11:D$226,4,FALSE)) -> 0 | E30: =IF(VLOOKUP($D30,invullijst!$A$11:$M$185,2,FALSE)="","",VLOOKUP($D30,invullijst!$A$11:$M$185,2,FALSE)) -> 0 | G30: =IF(VLOOKUP($D30,invullijst!$A$11:$M$185,10,FALSE)=0,"",VLOOKUP($D30,invullijst!$A$11:$M$185,10,FALSE)) ->  | I30: 1 | J30: =IF($O$3="k",IF(VLOOKUP($L30,invullijst!$A$11:$M$185,11,FALSE)=0," ",VLOOKUP($L30,invullijst!$A$11:$M$185,11,FALSE)),"") ->  | K30: =IF(VLOOKUP($L30,invullijst!$A$11:$M$226,4,FALSE)="","",VLOOKUP($L30,invullijst!$A$11:$M$226,4,FALSE)) -> 65+ | L30: 214 | M30: =IF(VLOOKUP($L30,invullijst!$A$11:$M$185,2,FALSE)="","",VLOOKUP($L30,invullijst!$A$11:$M$185,2,FALSE)) -> Andre de Vaan | O30: =IF(VLOOKUP($L30,invullijst!$A$11:$M$185,10,FALSE)=0,"",VLOOKUP($L30,invullijst!$A$11:$M$185,10,FALSE)) -> 90
A31: 2 | B31: =IF($G$3="k",IF(VLOOKUP($D31,invullijst!$A$11:$M$185,11,FALSE)=0," ",VLOOKUP($D31,invullijst!$A$11:$M$185,11,FALSE)),"") ->  | C31: =IF(VLOOKUP(D31,invullijst!A$11:F$226,4,FALSE)="","",VLOOKUP(D31,invullijst!A$11:D$226,4,FALSE)) -> 0 | E31: =IF(VLOOKUP($D31,invullijst!$A$11:$M$185,2,FALSE)="","",VLOOKUP($D31,invullijst!$A$11:$M$185,2,FALSE)) -> 0 | G31: =IF(VLOOKUP($D31,invullijst!$A$11:$M$185,10,FALSE)=0,"",VLOOKUP($D31,invullijst!$A$11:$M$185,10,FALSE)) ->  | I31: 2 | J31: =IF($O$3="k",IF(VLOOKUP($L31,invullijst!$A$11:$M$185,11,FALSE)=0," ",VLOOKUP($L31,invullijst!$A$11:$M$185,11,FALSE)),"") ->  | K31: =IF(VLOOKUP($L31,invullijst!$A$11:$M$226,4,FALSE)="","",VLOOKUP($L31,invullijst!$A$11:$M$226,4,FALSE)) -> 65+ | L31: 212 | M31: =IF(VLOOKUP($L31,invullijst!$A$11:$M$185,2,FALSE)="","",VLOOKUP($L31,invullijst!$A$11:$M$185,2,FALSE)) -> René Duquesnoy | O31: =IF(VLOOKUP($L31,invullijst!$A$11:$M$185,10,FALSE)=0,"",VLOOKUP($L31,invullijst!$A$11:$M$185,10,FALSE)) -> 86
